Workbook

Sheet Retirement Worksheet
A1: RETIREMENT WORKSHEET | D1: Retirement Savings Requirement Graph
A2: DIRECTIONS: 1) Enter assumptions, 2) Click 'Enter'->
A3: 3) Review the outcome using the text box to the right of the graph
A4: 4) As needed, adjust the "Total Savings at Final Retirement Age"
A5: 5) Repeat the process until your answer is "Yes"
A7: Assumptions
A8: Life expectancy (# years old) | B8: 90
A9: Military Retirement age (# years old)
A10: Final Retirement age (# years old) | B10: 65
A11: Total Savings at Final Retirement Age ($) | B11: 800000
A12: Annual final retirement savings withdrawal rate (%) | B12: 0.04
A13: Federal Tax rate in retirement (%) | B13: 0.22
A14: Federal Long-term Capital Gains Tax Rate (%) | B14: 0.2
A15: State Tax rate in retirement (%) | B15: 0.06
A16: Local Tax rate in retirement (%) | B16: 0.02
A17: Military Pension taxed by State & Local? | B17: Yes
A18: Annual investment fees (%) | B18: 0.0025
A19: Annual Social Security benfit at Final Retirement ($) | B19: 20000
A20: Annual Social Security benefits subject to Federal tax (%) | B20: 0.85
A21: Social Security benefits taxed by State & Local? | B21: No
A22: Final Military Pay (annual $) | B22: 0
A23: Military Retirement Multiplier (%) | B23: 0.025
A24: Years of Military Service (#) | B24: 30
A25: Annual Pension at Military Retirement ($)
A26: Annual Military Disability Payments ($) | B26: 12000
A27: Annual expenses ($) | B27: 70000
A28: Annual inflation rate (%) | B28: 0.03
A29: Annual COLA / income increase (%) | B29: 0.02
A30: Annual return on investments (%) | B30: 0.05
C32: Chart Detail
D34: Investments | H34: Income | M34: Taxes | Q34: Expenses
C36: ='Retirement Calculations'!A2 -> Age | D36: Savings Balance | E36: ='Retirement Calculations'!C2 -> Investment Fees | F36: ='Retirement Calculations'!D2 -> Return on Investments | G36: ='Retirement Calculations'!E2 -> Net Investments | H36: Annual Disability | I36: ='Retirement Calculations'!H2 -> Annual Withdrawal | J36: ='Retirement Calculations'!I2 -> Pension | K36: ='Retirement Calculations'!J2 -> SSA | L36: Annual Income | M36: ='Retirement Calculations'!M2 -> Federal Income Taxes | N36: ='Retirement Calculations'!N2 -> State Income Taxes | O36: ='Retirement Calculations'!O2 -> Local Income Taxes | P36: ='Retirement Calculations'!Q2 -> Income-Taxes | Q36: ='Retirement Calculations'!R2 -> Annual Expenses | R36: ='Retirement Calculations'!S2 -> Net Income
C37: =IFERROR('Retirement Calculations'!A3,"") -> 65 | D37: =IFERROR('Retirement Calculations'!B3,"") -> 800000 | E37: =IFERROR('Retirement Calculations'!C3,"") -> 2000 | F37: =IFERROR('Retirement Calculations'!D3,"") -> 40000 | G37: =IFERROR('Retirement Calculations'!E3,"") -> 838000 | H37: =IFERROR('Retirement Calculations'!G3,"") -> 43470.2773 | I37: =IFERROR('Retirement Calculations'!H3,"") -> 32000 | J37: =IFERROR('Retirement Calculations'!I3,"") -> 0 | K37: =IFERROR('Retirement Calculations'!J3,"") -> 20000 | L37: =IFERROR('Retirement Calculations'!K3,"") -> 95470.2773 | M37: =IFERROR('Retirement Calculations'!M3,"") -> 10140 | N37: =IFERROR('Retirement Calculations'!#REF!,"") ->  | O37: =IFERROR('Retirement Calculations'!#REF!,"") ->  | P37: =IFERROR('Retirement Calculations'!Q3,"") -> 82770.2773 | Q37: =IFERROR('Retirement Calculations'!R3,"") -> 70000 | R37: =IFERROR('Retirement Calculations'!S3,"") -> 12770.2773
C38: =IFERROR('Retirement Calculations'!A4,"") -> 66 | D38: =IFERROR('Retirement Calculations'!B4,"") -> 818770.2773 | E38: =IFERROR('Retirement Calculations'!C4,"") -> 2046.925693 | F38: =IFERROR('Retirement Calculations'!D4,"") -> 40938.51386 | G38: =IFERROR('Retirement Calculations'!E4,"") -> 857661.8655 | H38: =IFERROR('Retirement Calculations'!G4,"") -> 44339.68284 | I38: =IFERROR('Retirement Calculations'!H4,"") -> 32750.81109 | J38: =IFERROR('Retirement Calculations'!I4,"") -> 0 | K38: =IFERROR('Retirement Calculations'!J4,"") -> 20400 | L38: =IFERROR('Retirement Calculations'!K4,"") -> 97490.49394 | M38: =IFERROR('Retirement Calculations'!M4,"") -> 10364.96222 | N38: =IFERROR('Retirement Calculations'!N4,"") -> 1965.048666 | O38: =IFERROR('Retirement Calculations'!O4,"") -> 655.0162218 | P38: =IFERROR('Retirement Calculations'!Q4,"") -> 84505.46683 | Q38: =IFERROR('Retirement Calculations'!R4,"") -> 72100 | R38: =IFERROR('Retirement Calculations'!S4,"") -> 12405.46683
C39: =IFERROR('Retirement Calculations'!A5,"") -> 67 | D39: =IFERROR('Retirement Calculations'!B5,"") -> 837316.5212 | E39: =IFERROR('Retirement Calculations'!C5,"") -> 2093.291303 | F39: =IFERROR('Retirement Calculations'!D5,"") -> 41865.82606 | G39: =IFERROR('Retirement Calculations'!E5,"") -> 877089.056 | H39: =IFERROR('Retirement Calculations'!G5,"") -> 45226.4765 | I39: =IFERROR('Retirement Calculations'!H5,"") -> 33492.66085 | J39: =IFERROR('Retirement Calculations'!I5,"") -> 0 | K39: =IFERROR('Retirement Calculations'!J5,"") -> 20808 | L39: =IFERROR('Retirement Calculations'!K5,"") -> 99527.13735 | M39: =IFERROR('Retirement Calculations'!M5,"") -> 10589.62817 | N39: =IFERROR('Retirement Calculations'!N5,"") -> 2009.559651 | O39: =IFERROR('Retirement Calculations'!O5,"") -> 669.853217 | P39: =IFERROR('Retirement Calculations'!Q5,"") -> 86258.09631 | Q39: =IFERROR('Retirement Calculations'!R5,"") -> 74263 | R39: =IFERROR('Retirement Calculations'!S5,"") -> 11995.09631
C40: =IFERROR('Retirement Calculations'!A6,"") -> 68 | D40: =IFERROR('Retirement Calculations'!B6,"") -> 855591.4914 | E40: =IFERROR('Retirement Calculations'!C6,"") -> 2138.978729 | F40: =IFERROR('Retirement Calculations'!D6,"") -> 42779.57457 | G40: =IFERROR('Retirement Calculations'!E6,"") -> 896232.0873 | H40: =IFERROR('Retirement Calculations'!G6,"") -> 46131.00603 | I40: =IFERROR('Retirement Calculations'!H6,"") -> 34223.65966 | J40: =IFERROR('Retirement Calculations'!I6,"") -> 0 | K40: =IFERROR('Retirement Calculations'!J6,"") -> 21224.16 | L40: =IFERROR('Retirement Calculations'!K6,"") -> 101578.8257 | M40: =IFERROR('Retirement Calculations'!M6,"") -> 10813.64985 | N40: =IFERROR('Retirement Calculations'!N6,"") -> 2053.419579 | O40: =IFERROR('Retirement Calculations'!O6,"") -> 684.4731931 | P40: =IFERROR('Retirement Calculations'!Q6,"") -> 88027.28306 | Q40: =IFERROR('Retirement Calculations'!R6,"") -> 76490.89 | R40: =IFERROR('Retirement Calculations'!S6,"") -> 11536.39306
C41: =IFERROR('Retirement Calculations'!A7,"") -> 69 | D41: =IFERROR('Retirement Calculations'!B7,"") -> 873544.8207 | E41: =IFERROR('Retirement Calculations'!C7,"") -> 2183.862052 | F41: =IFERROR('Retirement Calculations'!D7,"") -> 43677.24103 | G41: =IFERROR('Retirement Calculations'!E7,"") -> 915038.1997 | H41: =IFERROR('Retirement Calculations'!G7,"") -> 47053.62615 | I41: =IFERROR('Retirement Calculations'!H7,"") -> 34941.79283 | J41: =IFERROR('Retirement Calculations'!I7,"") -> 0 | K41: =IFERROR('Retirement Calculations'!J7,"") -> 21648.6432 | L41: =IFERROR('Retirement Calculations'!K7,"") -> 103644.0622 | M41: =IFERROR('Retirement Calculations'!M7,"") -> 11036.65484 | N41: =IFERROR('Retirement Calculations'!N7,"") -> 2096.50757 | O41: =IFERROR('Retirement Calculations'!O7,"") -> 698.8358565 | P41: =IFERROR('Retirement Calculations'!Q7,"") -> 89812.06391 | Q41: =IFERROR('Retirement Calculations'!R7,"") -> 78785.6167 | R41: =IFERROR('Retirement Calculations'!S7,"") -> 11026.44721
C42: =IFERROR('Retirement Calculations'!A8,"") -> 70 | D42: =IFERROR('Retirement Calculations'!B8,"") -> 891122.854 | E42: =IFERROR('Retirement Calculations'!C8,"") -> 2227.807135 | F42: =IFERROR('Retirement Calculations'!D8,"") -> 44556.1427 | G42: =IFERROR('Retirement Calculations'!E8,"") -> 933451.1896 | H42: =IFERROR('Retirement Calculations'!G8,"") -> 47994.69867 | I42: =IFERROR('Retirement Calculations'!H8,"") -> 35644.91416 | J42: =IFERROR('Retirement Calculations'!I8,"") -> 0 | K42: =IFERROR('Retirement Calculations'!J8,"") -> 22081.61606 | L42: =IFERROR('Retirement Calculations'!K8,"") -> 105721.2289 | M42: =IFERROR('Retirement Calculations'!M8,"") -> 11258.24504 | N42: =IFERROR('Retirement Calculations'!N8,"") -> 2138.69485 | O42: =IFERROR('Retirement Calculations'!O8,"") -> 712.8982832 | P42: =IFERROR('Retirement Calculations'!Q8,"") -> 91611.39073 | Q42: =IFERROR('Retirement Calculations'!R8,"") -> 81149.1852 | R42: =IFERROR('Retirement Calculations'!S8,"") -> 10462.20553
C43: =IFERROR('Retirement Calculations'!A9,"") -> 71 | D43: =IFERROR('Retirement Calculations'!B9,"") -> 908268.481 | E43: =IFERROR('Retirement Calculations'!C9,"") -> 2270.671202 | F43: =IFERROR('Retirement Calculations'!D9,"") -> 45413.42405 | G43: =IFERROR('Retirement Calculations'!E9,"") -> 951411.2338 | H43: =IFERROR('Retirement Calculations'!G9,"") -> 48954.59265 | I43: =IFERROR('Retirement Calculations'!H9,"") -> 36330.73924 | J43: =IFERROR('Retirement Calculations'!I9,"") -> 0 | K43: =IFERROR('Retirement Calculations'!J9,"") -> 22523.24839 | L43: =IFERROR('Retirement Calculations'!K9,"") -> 107808.5803 | M43: =IFERROR('Retirement Calculations'!M9,"") -> 11477.9953 | N43: =IFERROR('Retirement Calculations'!N9,"") -> 2179.844354 | O43: =IFERROR('Retirement Calculations'!O9,"") -> 726.6147848 | P43: =IFERROR('Retirement Calculations'!Q9,"") -> 93424.12584 | Q43: =IFERROR('Retirement Calculations'!R9,"") -> 83583.66076 | R43: =IFERROR('Retirement Calculations'!S9,"") -> 9840.46508
C44: =IFERROR('Retirement Calculations'!A10,"") -> 72 | D44: =IFERROR('Retirement Calculations'!B10,"") -> 924920.9597 | E44: =IFERROR('Retirement Calculations'!C10,"") -> 2312.302399 | F44: =IFERROR('Retirement Calculations'!D10,"") -> 46246.04798 | G44: =IFERROR('Retirement Calculations'!E10,"") -> 968854.7052 | H44: =IFERROR('Retirement Calculations'!G10,"") -> 49933.6845 | I44: =IFERROR('Retirement Calculations'!H10,"") -> 36996.83839 | J44: =IFERROR('Retirement Calculations'!I10,"") -> 0 | K44: =IFERROR('Retirement Calculations'!J10,"") -> 22973.71335 | L44: =IFERROR('Retirement Calculations'!K10,"") -> 109904.2362 | M44: =IFERROR('Retirement Calculations'!M10,"") -> 11695.45207 | N44: =IFERROR('Retirement Calculations'!N10,"") -> 2219.810303 | O44: =IFERROR('Retirement Calculations'!O10,"") -> 739.9367677 | P44: =IFERROR('Retirement Calculations'!Q10,"") -> 95249.03709 | Q44: =IFERROR('Retirement Calculations'!R10,"") -> 86091.17058 | R44: =IFERROR('Retirement Calculations'!S10,"") -> 9157.866515
C45: =IFERROR('Retirement Calculations'!A11,"") -> 73 | D45: =IFERROR('Retirement Calculations'!B11,"") -> 941015.7334 | E45: =IFERROR('Retirement Calculations'!C11,"") -> 2352.539333 | F45: =IFERROR('Retirement Calculations'!D11,"") -> 47050.78667 | G45: =IFERROR('Retirement Calculations'!E11,"") -> 985713.9807 | H45: =IFERROR('Retirement Calculations'!G11,"") -> 50932.35819 | I45: =IFERROR('Retirement Calculations'!H11,"") -> 37640.62934 | J45: =IFERROR('Retirement Calculations'!I11,"") -> 0 | K45: =IFERROR('Retirement Calculations'!J11,"") -> 23433.18762 | L45: =IFERROR('Retirement Calculations'!K11,"") -> 112006.1751 | M45: =IFERROR('Retirement Calculations'!M11,"") -> 11910.13195 | N45: =IFERROR('Retirement Calculations'!N11,"") -> 2258.43776 | O45: =IFERROR('Retirement Calculations'!O11,"") -> 752.8125867 | P45: =IFERROR('Retirement Calculations'!Q11,"") -> 97084.79285 | Q45: =IFERROR('Retirement Calculations'!R11,"") -> 88673.9057 | R45: =IFERROR('Retirement Calculations'!S11,"") -> 8410.88715
C46: =IFERROR('Retirement Calculations'!A12,"") -> 74 | D46: =IFERROR('Retirement Calculations'!B12,"") -> 956484.2385 | E46: =IFERROR('Retirement Calculations'!C12,"") -> 2391.210596 | F46: =IFERROR('Retirement Calculations'!D12,"") -> 47824.21193 | G46: =IFERROR('Retirement Calculations'!E12,"") -> 1001917.24 | H46: =IFERROR('Retirement Calculations'!G12,"") -> 51951.00535 | I46: =IFERROR('Retirement Calculations'!H12,"") -> 38259.36954 | J46: =IFERROR('Retirement Calculations'!I12,"") -> 0 | K46: =IFERROR('Retirement Calculations'!J12,"") -> 23901.85137 | L46: =IFERROR('Retirement Calculations'!K12,"") -> 114112.2263 | M46: =IFERROR('Retirement Calculations'!M12,"") -> 12121.52011 | N46: =IFERROR('Retirement Calculations'!N12,"") -> 2295.562172 | O46: =IFERROR('Retirement Calculations'!O12,"") -> 765.1873908 | P46: =IFERROR('Retirement Calculations'!Q12,"") -> 98929.95659 | Q46: =IFERROR('Retirement Calculations'!R12,"") -> 91334.12287 | R46: =IFERROR('Retirement Calculations'!S12,"") -> 7595.833722
C47: =IFERROR('Retirement Calculations'!A13,"") -> 75 | D47: =IFERROR('Retirement Calculations'!B13,"") -> 971253.704 | E47: =IFERROR('Retirement Calculations'!C13,"") -> 2428.13426 | F47: =IFERROR('Retirement Calculations'!D13,"") -> 48562.6852 | G47: =IFERROR('Retirement Calculations'!E13,"") -> 1017388.255 | H47: =IFERROR('Retirement Calculations'!G13,"") -> 52990.02546 | I47: =IFERROR('Retirement Calculations'!H13,"") -> 38850.14816 | J47: =IFERROR('Retirement Calculations'!I13,"") -> 0 | K47: =IFERROR('Retirement Calculations'!J13,"") -> 24379.8884 | L47: =IFERROR('Retirement Calculations'!K13,"") -> 116220.062 | M47: =IFERROR('Retirement Calculations'!M13,"") -> 12329.06876 | N47: =IFERROR('Retirement Calculations'!N13,"") -> 2331.00889 | O47: =IFERROR('Retirement Calculations'!O13,"") -> 777.0029632 | P47: =IFERROR('Retirement Calculations'!Q13,"") -> 100782.9814 | Q47: =IFERROR('Retirement Calculations'!R13,"") -> 94074.14655 | R47: =IFERROR('Retirement Calculations'!S13,"") -> 6708.834853
C48: =IFERROR('Retirement Calculations'!A14,"") -> 76 | D48: =IFERROR('Retirement Calculations'!B14,"") -> 985246.9417 | E48: =IFERROR('Retirement Calculations'!C14,"") -> 2463.117354 | F48: =IFERROR('Retirement Calculations'!D14,"") -> 49262.34708 | G48: =IFERROR('Retirement Calculations'!E14,"") -> 1032046.171 | H48: =IFERROR('Retirement Calculations'!G14,"") -> 54049.82597 | I48: =IFERROR('Retirement Calculations'!H14,"") -> 39409.87767 | J48: =IFERROR('Retirement Calculations'!I14,"") -> 0 | K48: =IFERROR('Retirement Calculations'!J14,"") -> 24867.48617 | L48: =IFERROR('Retirement Calculations'!K14,"") -> 118327.1898 | M48: =IFERROR('Retirement Calculations'!M14,"") -> 12532.19545 | N48: =IFERROR('Retirement Calculations'!N14,"") -> 2364.59266 | O48: =IFERROR('Retirement Calculations'!O14,"") -> 788.1975533 | P48: =IFERROR('Retirement Calculations'!Q14,"") -> 102642.2041 | Q48: =IFERROR('Retirement Calculations'!R14,"") -> 96896.37095 | R48: =IFERROR('Retirement Calculations'!S14,"") -> 5745.833195
C49: =IFERROR('Retirement Calculations'!A15,"") -> 77 | D49: =IFERROR('Retirement Calculations'!B15,"") -> 998382.1269 | E49: =IFERROR('Retirement Calculations'!C15,"") -> 2495.955317 | F49: =IFERROR('Retirement Calculations'!D15,"") -> 49919.10635 | G49: =IFERROR('Retirement Calculations'!E15,"") -> 1045805.278 | H49: =IFERROR('Retirement Calculations'!G15,"") -> 55130.82249 | I49: =IFERROR('Retirement Calculations'!H15,"") -> 39935.28508 | J49: =IFERROR('Retirement Calculations'!I15,"") -> 0 | K49: =IFERROR('Retirement Calculations'!J15,"") -> 25364.83589 | L49: =IFERROR('Retirement Calculations'!K15,"") -> 120430.9435 | M49: =IFERROR('Retirement Calculations'!M15,"") -> 12730.28133 | N49: =IFERROR('Retirement Calculations'!N15,"") -> 2396.117105 | O49: =IFERROR('Retirement Calculations'!O15,"") -> 798.7057015 | P49: =IFERROR('Retirement Calculations'!Q15,"") -> 104505.8393 | Q49: =IFERROR('Retirement Calculations'!R15,"") -> 99803.26208 | R49: =IFERROR('Retirement Calculations'!S15,"") -> 4702.577246
C50: =IFERROR('Retirement Calculations'!A16,"") -> 78 | D50: =IFERROR('Retirement Calculations'!B16,"") -> 1010572.57 | E50: =IFERROR('Retirement Calculations'!C16,"") -> 2526.431425 | F50: =IFERROR('Retirement Calculations'!D16,"") -> 50528.62851 | G50: =IFERROR('Retirement Calculations'!E16,"") -> 1058574.767 | H50: =IFERROR('Retirement Calculations'!G16,"") -> 56233.43894 | I50: =IFERROR('Retirement Calculations'!H16,"") -> 40422.9028 | J50: =IFERROR('Retirement Calculations'!I16,"") -> 0 | K50: =IFERROR('Retirement Calculations'!J16,"") -> 25872.13261 | L50: =IFERROR('Retirement Calculations'!K16,"") -> 122528.4744 | M50: =IFERROR('Retirement Calculations'!M16,"") -> 12922.66936 | N50: =IFERROR('Retirement Calculations'!N16,"") -> 2425.374168 | O50: =IFERROR('Retirement Calculations'!O16,"") -> 808.4580561 | P50: =IFERROR('Retirement Calculations'!Q16,"") -> 106371.9728 | Q50: =IFERROR('Retirement Calculations'!R16,"") -> 102797.3599 | R50: =IFERROR('Retirement Calculations'!S16,"") -> 3574.612829
C51: =IFERROR('Retirement Calculations'!A17,"") -> 79 | D51: =IFERROR('Retirement Calculations'!B17,"") -> 1021726.477 | E51: =IFERROR('Retirement Calculations'!C17,"") -> 2554.316193 | F51: =IFERROR('Retirement Calculations'!D17,"") -> 51086.32386 | G51: =IFERROR('Retirement Calculations'!E17,"") -> 1070258.485 | H51: =IFERROR('Retirement Calculations'!G17,"") -> 57358.10772 | I51: =IFERROR('Retirement Calculations'!H17,"") -> 40869.05909 | J51: =IFERROR('Retirement Calculations'!I17,"") -> 0 | K51: =IFERROR('Retirement Calculations'!J17,"") -> 26389.57526 | L51: =IFERROR('Retirement Calculations'!K17,"") -> 124616.7421 | M51: =IFERROR('Retirement Calculations'!M17,"") -> 13108.66239 | N51: =IFERROR('Retirement Calculations'!N17,"") -> 2452.143545 | O51: =IFERROR('Retirement Calculations'!O17,"") -> 817.3811818 | P51: =IFERROR('Retirement Calculations'!Q17,"") -> 108238.555 | Q51: =IFERROR('Retirement Calculations'!R17,"") -> 105881.2807 | R51: =IFERROR('Retirement Calculations'!S17,"") -> 2357.274211
C52: =IFERROR('Retirement Calculations'!A18,"") -> 80 | D52: =IFERROR('Retirement Calculations'!B18,"") -> 1031746.7 | E52: =IFERROR('Retirement Calculations'!C18,"") -> 2579.36675 | F52: =IFERROR('Retirement Calculations'!D18,"") -> 51587.335 | G52: =IFERROR('Retirement Calculations'!E18,"") -> 1080754.668 | H52: =IFERROR('Retirement Calculations'!G18,"") -> 58505.26987 | I52: =IFERROR('Retirement Calculations'!H18,"") -> 41269.868 | J52: =IFERROR('Retirement Calculations'!I18,"") -> 0 | K52: =IFERROR('Retirement Calculations'!J18,"") -> 26917.36677 | L52: =IFERROR('Retirement Calculations'!K18,"") -> 126692.5046 | M52: =IFERROR('Retirement Calculations'!M18,"") -> 13287.52119 | N52: =IFERROR('Retirement Calculations'!N18,"") -> 2476.19208 | O52: =IFERROR('Retirement Calculations'!O18,"") -> 825.39736 | P52: =IFERROR('Retirement Calculations'!Q18,"") -> 110103.394 | Q52: =IFERROR('Retirement Calculations'!R18,"") -> 109057.7192 | R52: =IFERROR('Retirement Calculations'!S18,"") -> 1045.674853
C53: =IFERROR('Retirement Calculations'!A19,"") -> 81 | D53: =IFERROR('Retirement Calculations'!B19,"") -> 1040530.475 | E53: =IFERROR('Retirement Calculations'!C19,"") -> 2601.326188 | F53: =IFERROR('Retirement Calculations'!D19,"") -> 52026.52376 | G53: =IFERROR('Retirement Calculations'!E19,"") -> 1089955.673 | H53: =IFERROR('Retirement Calculations'!G19,"") -> 59675.37527 | I53: =IFERROR('Retirement Calculations'!H19,"") -> 41621.219 | J53: =IFERROR('Retirement Calculations'!I19,"") -> 0 | K53: =IFERROR('Retirement Calculations'!J19,"") -> 27455.7141 | L53: =IFERROR('Retirement Calculations'!K19,"") -> 128752.3084 | M53: =IFERROR('Retirement Calculations'!M19,"") -> 13458.46234 | N53: =IFERROR('Retirement Calculations'!N19,"") -> 2497.27314 | O53: =IFERROR('Retirement Calculations'!O19,"") -> 832.4243801 | P53: =IFERROR('Retirement Calculations'!Q19,"") -> 111964.1485 | Q53: =IFERROR('Retirement Calculations'!R19,"") -> 112329.4507 | R53: =IFERROR('Retirement Calculations'!S19,"") -> -365.302218
C54: =IFERROR('Retirement Calculations'!A20,"") -> 82 | D54: =IFERROR('Retirement Calculations'!B20,"") -> 1047969.151 | E54: =IFERROR('Retirement Calculations'!C20,"") -> 2619.922879 | F54: =IFERROR('Retirement Calculations'!D20,"") -> 52398.45757 | G54: =IFERROR('Retirement Calculations'!E20,"") -> 1097747.686 | H54: =IFERROR('Retirement Calculations'!G20,"") -> 60868.88278 | I54: =IFERROR('Retirement Calculations'!H20,"") -> 41918.76606 | J54: =IFERROR('Retirement Calculations'!I20,"") -> 0 | K54: =IFERROR('Retirement Calculations'!J20,"") -> 28004.82838 | L54: =IFERROR('Retirement Calculations'!K20,"") -> 130792.4772 | M54: =IFERROR('Retirement Calculations'!M20,"") -> 13620.65612 | N54: =IFERROR('Retirement Calculations'!N20,"") -> 2515.125964 | O54: =IFERROR('Retirement Calculations'!O20,"") -> 838.3753212 | P54: =IFERROR('Retirement Calculations'!Q20,"") -> 113818.3198 | Q54: =IFERROR('Retirement Calculations'!R20,"") -> 115699.3343 | R54: =IFERROR('Retirement Calculations'!S20,"") -> -1881.014445
C55: =IFERROR('Retirement Calculations'!A21,"") -> 83 | D55: =IFERROR('Retirement Calculations'!B21,"") -> 1053947.906 | E55: =IFERROR('Retirement Calculations'!C21,"") -> 2634.869764 | F55: =IFERROR('Retirement Calculations'!D21,"") -> 52697.39528 | G55: =IFERROR('Retirement Calculations'!E21,"") -> 1104010.431 | H55: =IFERROR('Retirement Calculations'!G21,"") -> 62086.26043 | I55: =IFERROR('Retirement Calculations'!H21,"") -> 42157.91623 | J55: =IFERROR('Retirement Calculations'!I21,"") -> 0 | K55: =IFERROR('Retirement Calculations'!J21,"") -> 28564.92495 | L55: =IFERROR('Retirement Calculations'!K21,"") -> 132809.1016 | M55: =IFERROR('Retirement Calculations'!M21,"") -> 13773.22421 | N55: =IFERROR('Retirement Calculations'!N21,"") -> 2529.474974 | O55: =IFERROR('Retirement Calculations'!O21,"") -> 843.1583245 | P55: =IFERROR('Retirement Calculations'!Q21,"") -> 115663.2441 | Q55: =IFERROR('Retirement Calculations'!R21,"") -> 119170.3143 | R55: =IFERROR('Retirement Calculations'!S21,"") -> -3507.070187
C56: =IFERROR('Retirement Calculations'!A22,"") -> 84 | D56: =IFERROR('Retirement Calculations'!B22,"") -> 1058345.445 | E56: =IFERROR('Retirement Calculations'!C22,"") -> 2645.863612 | F56: =IFERROR('Retirement Calculations'!D22,"") -> 52917.27224 | G56: =IFERROR('Retirement Calculations'!E22,"") -> 1108616.853 | H56: =IFERROR('Retirement Calculations'!G22,"") -> 63327.98564 | I56: =IFERROR('Retirement Calculations'!H22,"") -> 42333.81779 | J56: =IFERROR('Retirement Calculations'!I22,"") -> 0 | K56: =IFERROR('Retirement Calculations'!J22,"") -> 29136.22345 | L56: =IFERROR('Retirement Calculations'!K22,"") -> 134798.0269 | M56: =IFERROR('Retirement Calculations'!M22,"") -> 13915.23734 | N56: =IFERROR('Retirement Calculations'!N22,"") -> 2540.029067 | O56: =IFERROR('Retirement Calculations'!O22,"") -> 846.6763558 | P56: =IFERROR('Retirement Calculations'!Q22,"") -> 117496.0841 | Q56: =IFERROR('Retirement Calculations'!R22,"") -> 122745.4237 | R56: =IFERROR('Retirement Calculations'!S22,"") -> -5249.339601
C57: =IFERROR('Retirement Calculations'!A23,"") -> 85 | D57: =IFERROR('Retirement Calculations'!B23,"") -> 1061033.696 | E57: =IFERROR('Retirement Calculations'!C23,"") -> 2652.58424 | F57: =IFERROR('Retirement Calculations'!D23,"") -> 53051.6848 | G57: =IFERROR('Retirement Calculations'!E23,"") -> 1111432.797 | H57: =IFERROR('Retirement Calculations'!G23,"") -> 64594.54535 | I57: =IFERROR('Retirement Calculations'!H23,"") -> 42441.34784 | J57: =IFERROR('Retirement Calculations'!I23,"") -> 0 | K57: =IFERROR('Retirement Calculations'!J23,"") -> 29718.94792 | L57: =IFERROR('Retirement Calculations'!K23,"") -> 136754.8411 | M57: =IFERROR('Retirement Calculations'!M23,"") -> 14045.71283 | N57: =IFERROR('Retirement Calculations'!N23,"") -> 2546.48087 | O57: =IFERROR('Retirement Calculations'!O23,"") -> 848.8269568 | P57: =IFERROR('Retirement Calculations'!Q23,"") -> 119313.8205 | Q57: =IFERROR('Retirement Calculations'!R23,"") -> 126427.7864 | R57: =IFERROR('Retirement Calculations'!S23,"") -> -7113.96597
C58: =IFERROR('Retirement Calculations'!A24,"") -> 86 | D58: =IFERROR('Retirement Calculations'!B24,"") -> 1061877.483 | E58: =IFERROR('Retirement Calculations'!C24,"") -> 2654.693707 | F58: =IFERROR('Retirement Calculations'!D24,"") -> 53093.87414 | G58: =IFERROR('Retirement Calculations'!E24,"") -> 1112316.663 | H58: =IFERROR('Retirement Calculations'!G24,"") -> 65886.43626 | I58: =IFERROR('Retirement Calculations'!H24,"") -> 42475.09931 | J58: =IFERROR('Retirement Calculations'!I24,"") -> 0 | K58: =IFERROR('Retirement Calculations'!J24,"") -> 30313.32688 | L58: =IFERROR('Retirement Calculations'!K24,"") -> 138674.8624 | M58: =IFERROR('Retirement Calculations'!M24,"") -> 14163.61199 | N58: =IFERROR('Retirement Calculations'!N24,"") -> 2548.505959 | O58: =IFERROR('Retirement Calculations'!O24,"") -> 849.5019862 | P58: =IFERROR('Retirement Calculations'!Q24,"") -> 121113.2425 | Q58: =IFERROR('Retirement Calculations'!R24,"") -> 130220.62 | R58: =IFERROR('Retirement Calculations'!S24,"") -> -9107.377505
C59: =IFERROR('Retirement Calculations'!A25,"") -> 87 | D59: =IFERROR('Retirement Calculations'!B25,"") -> 1060734.186 | E59: =IFERROR('Retirement Calculations'!C25,"") -> 2651.835466 | F59: =IFERROR('Retirement Calculations'!D25,"") -> 53036.70932 | G59: =IFERROR('Retirement Calculations'!E25,"") -> 1111119.06 | H59: =IFERROR('Retirement Calculations'!G25,"") -> 67204.16499 | I59: =IFERROR('Retirement Calculations'!H25,"") -> 42429.36745 | J59: =IFERROR('Retirement Calculations'!I25,"") -> 0 | K59: =IFERROR('Retirement Calculations'!J25,"") -> 30919.59342 | L59: =IFERROR('Retirement Calculations'!K25,"") -> 140553.1259 | M59: =IFERROR('Retirement Calculations'!M25,"") -> 14267.83746 | N59: =IFERROR('Retirement Calculations'!N25,"") -> 2545.762047 | O59: =IFERROR('Retirement Calculations'!O25,"") -> 848.5873491 | P59: =IFERROR('Retirement Calculations'!Q25,"") -> 122890.939 | Q59: =IFERROR('Retirement Calculations'!R25,"") -> 134127.2386 | R59: =IFERROR('Retirement Calculations'!S25,"") -> -11236.29962
C60: =IFERROR('Retirement Calculations'!A26,"") -> 88 | D60: =IFERROR('Retirement Calculations'!B26,"") -> 1057453.393 | E60: =IFERROR('Retirement Calculations'!C26,"") -> 2643.633483 | F60: =IFERROR('Retirement Calculations'!D26,"") -> 52872.66966 | G60: =IFERROR('Retirement Calculations'!E26,"") -> 1107682.429 | H60: =IFERROR('Retirement Calculations'!G26,"") -> 68548.24828 | I60: =IFERROR('Retirement Calculations'!H26,"") -> 42298.13573 | J60: =IFERROR('Retirement Calculations'!I26,"") -> 0 | K60: =IFERROR('Retirement Calculations'!J26,"") -> 31537.98528 | L60: =IFERROR('Retirement Calculations'!K26,"") -> 142384.3693 | M60: =IFERROR('Retirement Calculations'!M26,"") -> 14357.23039 | N60: =IFERROR('Retirement Calculations'!N26,"") -> 2537.888144 | O60: =IFERROR('Retirement Calculations'!O26,"") -> 845.9627145 | P60: =IFERROR('Retirement Calculations'!Q26,"") -> 124643.288 | Q60: =IFERROR('Retirement Calculations'!R26,"") -> 138151.0558 | R60: =IFERROR('Retirement Calculations'!S26,"") -> -13507.76774
C61: =IFERROR('Retirement Calculations'!A27,"") -> 89 | D61: =IFERROR('Retirement Calculations'!B27,"") -> 1051876.526 | E61: =IFERROR('Retirement Calculations'!C27,"") -> 2629.691315 | F61: =IFERROR('Retirement Calculations'!D27,"") -> 52593.82629 | G61: =IFERROR('Retirement Calculations'!E27,"") -> 1101840.661 | H61: =IFERROR('Retirement Calculations'!G27,"") -> 69919.21325 | I61: =IFERROR('Retirement Calculations'!H27,"") -> 42075.06103 | J61: =IFERROR('Retirement Calculations'!I27,"") -> 0 | K61: =IFERROR('Retirement Calculations'!J27,"") -> 32168.74499 | L61: =IFERROR('Retirement Calculations'!K27,"") -> 144163.0193 | M61: =IFERROR('Retirement Calculations'!M27,"") -> 14430.56752 | N61: =IFERROR('Retirement Calculations'!N27,"") -> 2524.503662 | O61: =IFERROR('Retirement Calculations'!O27,"") -> 841.5012207 | P61: =IFERROR('Retirement Calculations'!Q27,"") -> 126366.4469 | Q61: =IFERROR('Retirement Calculations'!R27,"") -> 142295.5875 | R61: =IFERROR('Retirement Calculations'!S27,"") -> -15929.14058
C62: =IFERROR('Retirement Calculations'!A28,"") -> 90 | D62: =IFERROR('Retirement Calculations'!B28,"") -> 1043836.459 | E62: =IFERROR('Retirement Calculations'!C28,"") -> 2609.591148 | F62: =IFERROR('Retirement Calculations'!D28,"") -> 52191.82296 | G62: =IFERROR('Retirement Calculations'!E28,"") -> 1093418.691 | H62: =IFERROR('Retirement Calculations'!G28,"") -> 71317.59752 | I62: =IFERROR('Retirement Calculations'!H28,"") -> 41753.45837 | J62: =IFERROR('Retirement Calculations'!I28,"") -> 0 | K62: =IFERROR('Retirement Calculations'!J28,"") -> 32812.11989 | L62: =IFERROR('Retirement Calculations'!K28,"") -> 145883.1758 | M62: =IFERROR('Retirement Calculations'!M28,"") -> 14486.55809 | N62: =IFERROR('Retirement Calculations'!N28,"") -> 2505.207502 | O62: =IFERROR('Retirement Calculations'!O28,"") -> 835.0691674 | P62: =IFERROR('Retirement Calculations'!Q28,"") -> 128056.341 | Q62: =IFERROR('Retirement Calculations'!R28,"") -> 146564.4551 | R62: =IFERROR('Retirement Calculations'!S28,"") -> -18508.11406
C63: =IFERROR('Retirement Calculations'!A29,"") ->  | D63: =IFERROR('Retirement Calculations'!B29,"") ->  | E63: =IFERROR('Retirement Calculations'!C29,"") ->  | F63: =IFERROR('Retirement Calculations'!D29,"") ->  | G63: =IFERROR('Retirement Calculations'!E29,"") ->  | H63: =IFERROR('Retirement Calculations'!G29,"") ->  | I63: =IFERROR('Retirement Calculations'!H29,"") ->  | J63: =IFERROR('Retirement Calculations'!I29,"") ->  | K63: =IFERROR('Retirement Calculations'!J29,"") ->  | L63: =IFERROR('Retirement Calculations'!K29,"") ->  | M63: =IFERROR('Retirement Calculations'!M29,"") ->  | N63: =IFERROR('Retirement Calculations'!N29,"") ->  | O63: =IFERROR('Retirement Calculations'!O29,"") ->  | P63: =IFERROR('Retirement Calculations'!Q29,"") ->  | Q63: =IFERROR('Retirement Calculations'!R29,"") ->  | R63: =IFERROR('Retirement Calculations'!S29,"") -> 
C64: =IFERROR('Retirement Calculations'!A30,"") ->  | D64: =IFERROR('Retirement Calculations'!B30,"") ->  | E64: =IFERROR('Retirement Calculations'!C30,"") ->  | F64: =IFERROR('Retirement Calculations'!D30,"") ->  | G64: =IFERROR('Retirement Calculations'!E30,"") ->  | H64: =IFERROR('Retirement Calculations'!G30,"") ->  | I64: =IFERROR('Retirement Calculations'!H30,"") ->  | J64: =IFERROR('Retirement Calculations'!I30,"") ->  | K64: =IFERROR('Retirement Calculations'!J30,"") ->  | L64: =IFERROR('Retirement Calculations'!K30,"") ->  | M64: =IFERROR('Retirement Calculations'!M30,"") ->  | N64: =IFERROR('Retirement Calculations'!N30,"") ->  | O64: =IFERROR('Retirement Calculations'!O30,"") ->  | P64: =IFERROR('Retirement Calculations'!Q30,"") ->  | Q64: =IFERROR('Retirement Calculations'!R30,"") ->  | R64: =IFERROR('Retirement Calculations'!S30,"") -> 
C65: =IFERROR('Retirement Calculations'!A31,"") ->  | D65: =IFERROR('Retirement Calculations'!B31,"") ->  | E65: =IFERROR('Retirement Calculations'!C31,"") ->  | F65: =IFERROR('Retirement Calculations'!D31,"") ->  | G65: =IFERROR('Retirement Calculations'!E31,"") ->  | H65: =IFERROR('Retirement Calculations'!G31,"") ->  | I65: =IFERROR('Retirement Calculations'!H31,"") ->  | J65: =IFERROR('Retirement Calculations'!I31,"") ->  | K65: =IFERROR('Retirement Calculations'!J31,"") ->  | L65: =IFERROR('Retirement Calculations'!K31,"") ->  | M65: =IFERROR('Retirement Calculations'!M31,"") ->  | N65: =IFERROR('Retirement Calculations'!N31,"") ->  | O65: =IFERROR('Retirement Calculations'!O31,"") ->  | P65: =IFERROR('Retirement Calculations'!Q31,"") ->  | Q65: =IFERROR('Retirement Calculations'!R31,"") ->  | R65: =IFERROR('Retirement Calculations'!S31,"") -> 
C66: =IFERROR('Retirement Calculations'!A32,"") ->  | D66: =IFERROR('Retirement Calculations'!B32,"") ->  | E66: =IFERROR('Retirement Calculations'!C32,"") ->  | F66: =IFERROR('Retirement Calculations'!D32,"") ->  | G66: =IFERROR('Retirement Calculations'!E32,"") ->  | H66: =IFERROR('Retirement Calculations'!G32,"") ->  | I66: =IFERROR('Retirement Calculations'!H32,"") ->  | J66: =IFERROR('Retirement Calculations'!I32,"") ->  | K66: =IFERROR('Retirement Calculations'!J32,"") ->  | L66: =IFERROR('Retirement Calculations'!K32,"") ->  | M66: =IFERROR('Retirement Calculations'!M32,"") ->  | N66: =IFERROR('Retirement Calculations'!N32,"") ->  | O66: =IFERROR('Retirement Calculations'!O32,"") ->  | P66: =IFERROR('Retirement Calculations'!Q32,"") ->  | Q66: =IFERROR('Retirement Calculations'!R32,"") ->  | R66: =IFERROR('Retirement Calculations'!S32,"") -> 
C67: =IFERROR('Retirement Calculations'!A33,"") ->  | D67: =IFERROR('Retirement Calculations'!B33,"") ->  | E67: =IFERROR('Retirement Calculations'!C33,"") ->  | F67: =IFERROR('Retirement Calculations'!D33,"") ->  | G67: =IFERROR('Retirement Calculations'!E33,"") ->  | H67: =IFERROR('Retirement Calculations'!G33,"") ->  | I67: =IFERROR('Retirement Calculations'!H33,"") ->  | J67: =IFERROR('Retirement Calculations'!I33,"") ->  | K67: =IFERROR('Retirement Calculations'!J33,"") ->  | L67: =IFERROR('Retirement Calculations'!K33,"") ->  | M67: =IFERROR('Retirement Calculations'!M33,"") ->  | N67: =IFERROR('Retirement Calculations'!N33,"") ->  | O67: =IFERROR('Retirement Calculations'!O33,"") ->  | P67: =IFERROR('Retirement Calculations'!Q33,"") ->  | Q67: =IFERROR('Retirement Calculations'!R33,"") ->  | R67: =IFERROR('Retirement Calculations'!S33,"") -> 
C68: =IFERROR('Retirement Calculations'!A34,"") ->  | D68: =IFERROR('Retirement Calculations'!B34,"") ->  | E68: =IFERROR('Retirement Calculations'!C34,"") ->  | F68: =IFERROR('Retirement Calculations'!D34,"") ->  | G68: =IFERROR('Retirement Calculations'!E34,"") ->  | H68: =IFERROR('Retirement Calculations'!G34,"") ->  | I68: =IFERROR('Retirement Calculations'!H34,"") ->  | J68: =IFERROR('Retirement Calculations'!I34,"") ->  | K68: =IFERROR('Retirement Calculations'!J34,"") ->  | L68: =IFERROR('Retirement Calculations'!K34,"") ->  | M68: =IFERROR('Retirement Calculations'!M34,"") ->  | N68: =IFERROR('Retirement Calculations'!N34,"") ->  | O68: =IFERROR('Retirement Calculations'!O34,"") ->  | P68: =IFERROR('Retirement Calculations'!Q34,"") ->  | Q68: =IFERROR('Retirement Calculations'!R34,"") ->  | R68: =IFERROR('Retirement Calculations'!S34,"") -> 
C69: =IFERROR('Retirement Calculations'!A35,"") ->  | D69: =IFERROR('Retirement Calculations'!B35,"") ->  | E69: =IFERROR('Retirement Calculations'!C35,"") ->  | F69: =IFERROR('Retirement Calculations'!D35,"") ->  | G69: =IFERROR('Retirement Calculations'!E35,"") ->  | H69: =IFERROR('Retirement Calculations'!G35,"") ->  | I69: =IFERROR('Retirement Calculations'!H35,"") ->  | J69: =IFERROR('Retirement Calculations'!I35,"") ->  | K69: =IFERROR('Retirement Calculations'!J35,"") ->  | L69: =IFERROR('Retirement Calculations'!K35,"") ->  | M69: =IFERROR('Retirement Calculations'!M35,"") ->  | N69: =IFERROR('Retirement Calculations'!N35,"") ->  | O69: =IFERROR('Retirement Calculations'!O35,"") ->  | P69: =IFERROR('Retirement Calculations'!Q35,"") ->  | Q69: =IFERROR('Retirement Calculations'!R35,"") ->  | R69: =IFERROR('Retirement Calculations'!S35,"") -> 
C70: =IFERROR('Retirement Calculations'!A36,"") ->  | D70: =IFERROR('Retirement Calculations'!B36,"") ->  | E70: =IFERROR('Retirement Calculations'!C36,"") ->  | F70: =IFERROR('Retirement Calculations'!D36,"") ->  | G70: =IFERROR('Retirement Calculations'!E36,"") ->  | H70: =IFERROR('Retirement Calculations'!G36,"") ->  | I70: =IFERROR('Retirement Calculations'!H36,"") ->  | J70: =IFERROR('Retirement Calculations'!I36,"") ->  | K70: =IFERROR('Retirement Calculations'!J36,"") ->  | L70: =IFERROR('Retirement Calculations'!K36,"") ->  | M70: =IFERROR('Retirement Calculations'!M36,"") ->  | N70: =IFERROR('Retirement Calculations'!N36,"") ->  | O70: =IFERROR('Retirement Calculations'!O36,"") ->  | P70: =IFERROR('Retirement Calculations'!Q36,"") ->  | Q70: =IFERROR('Retirement Calculations'!R36,"") ->  | R70: =IFERROR('Retirement Calculations'!S36,"") -> 
C71: =IFERROR('Retirement Calculations'!A37,"") ->  | D71: =IFERROR('Retirement Calculations'!B37,"") ->  | E71: =IFERROR('Retirement Calculations'!C37,"") ->  | F71: =IFERROR('Retirement Calculations'!D37,"") ->  | G71: =IFERROR('Retirement Calculations'!E37,"") ->  | H71: =IFERROR('Retirement Calculations'!G37,"") ->  | I71: =IFERROR('Retirement Calculations'!H37,"") ->  | J71: =IFERROR('Retirement Calculations'!I37,"") ->  | K71: =IFERROR('Retirement Calculations'!J37,"") ->  | L71: =IFERROR('Retirement Calculations'!K37,"") ->  | M71: =IFERROR('Retirement Calculations'!M37,"") ->  | N71: =IFERROR('Retirement Calculations'!N37,"") ->  | O71: =IFERROR('Retirement Calculations'!O37,"") ->  | P71: =IFERROR('Retirement Calculations'!Q37,"") ->  | Q71: =IFERROR('Retirement Calculations'!R37,"") ->  | R71: =IFERROR('Retirement Calculations'!S37,"") -> 
C72: =IFERROR('Retirement Calculations'!A38,"") ->  | D72: =IFERROR('Retirement Calculations'!B38,"") ->  | E72: =IFERROR('Retirement Calculations'!C38,"") ->  | F72: =IFERROR('Retirement Calculations'!D38,"") ->  | G72: =IFERROR('Retirement Calculations'!E38,"") ->  | H72: =IFERROR('Retirement Calculations'!G38,"") ->  | I72: =IFERROR('Retirement Calculations'!H38,"") ->  | J72: =IFERROR('Retirement Calculations'!I38,"") ->  | K72: =IFERROR('Retirement Calculations'!J38,"") ->  | L72: =IFERROR('Retirement Calculations'!K38,"") ->  | M72: =IFERROR('Retirement Calculations'!M38,"") ->  | N72: =IFERROR('Retirement Calculations'!N38,"") ->  | O72: =IFERROR('Retirement Calculations'!O38,"") ->  | P72: =IFERROR('Retirement Calculations'!Q38,"") ->  | Q72: =IFERROR('Retirement Calculations'!R38,"") ->  | R72: =IFERROR('Retirement Calculations'!S38,"") -> 
C73: =IFERROR('Retirement Calculations'!A39,"") ->  | D73: =IFERROR('Retirement Calculations'!B39,"") ->  | E73: =IFERROR('Retirement Calculations'!C39,"") ->  | F73: =IFERROR('Retirement Calculations'!D39,"") ->  | G73: =IFERROR('Retirement Calculations'!E39,"") ->  | H73: =IFERROR('Retirement Calculations'!G39,"") ->  | I73: =IFERROR('Retirement Calculations'!H39,"") ->  | J73: =IFERROR('Retirement Calculations'!I39,"") ->  | K73: =IFERROR('Retirement Calculations'!J39,"") ->  | L73: =IFERROR('Retirement Calculations'!K39,"") ->  | M73: =IFERROR('Retirement Calculations'!M39,"") ->  | N73: =IFERROR('Retirement Calculations'!N39,"") ->  | O73: =IFERROR('Retirement Calculations'!O39,"") ->  | P73: =IFERROR('Retirement Calculations'!Q39,"") ->  | Q73: =IFERROR('Retirement Calculations'!R39,"") ->  | R73: =IFERROR('Retirement Calculations'!S39,"") -> 
C74: =IFERROR('Retirement Calculations'!A40,"") ->  | D74: =IFERROR('Retirement Calculations'!B40,"") ->  | E74: =IFERROR('Retirement Calculations'!C40,"") ->  | F74: =IFERROR('Retirement Calculations'!D40,"") ->  | G74: =IFERROR('Retirement Calculations'!E40,"") ->  | H74: =IFERROR('Retirement Calculations'!G40,"") ->  | I74: =IFERROR('Retirement Calculations'!H40,"") ->  | J74: =IFERROR('Retirement Calculations'!I40,"") ->  | K74: =IFERROR('Retirement Calculations'!J40,"") ->  | L74: =IFERROR('Retirement Calculations'!K40,"") ->  | M74: =IFERROR('Retirement Calculations'!M40,"") ->  | N74: =IFERROR('Retirement Calculations'!N40,"") ->  | O74: =IFERROR('Retirement Calculations'!O40,"") ->  | P74: =IFERROR('Retirement Calculations'!Q40,"") ->  | Q74: =IFERROR('Retirement Calculations'!R40,"") ->  | R74: =IFERROR('Retirement Calculations'!S40,"") -> 
C75: =IFERROR('Retirement Calculations'!A41,"") ->  | D75: =IFERROR('Retirement Calculations'!B41,"") ->  | E75: =IFERROR('Retirement Calculations'!C41,"") ->  | F75: =IFERROR('Retirement Calculations'!D41,"") ->  | G75: =IFERROR('Retirement Calculations'!E41,"") ->  | H75: =IFERROR('Retirement Calculations'!G41,"") ->  | I75: =IFERROR('Retirement Calculations'!H41,"") ->  | J75: =IFERROR('Retirement Calculations'!I41,"") ->  | K75: =IFERROR('Retirement Calculations'!J41,"") ->  | L75: =IFERROR('Retirement Calculations'!K41,"") ->  | M75: =IFERROR('Retirement Calculations'!M41,"") ->  | N75: =IFERROR('Retirement Calculations'!N41,"") ->  | O75: =IFERROR('Retirement Calculations'!O41,"") ->  | P75: =IFERROR('Retirement Calculations'!Q41,"") ->  | Q75: =IFERROR('Retirement Calculations'!R41,"") ->  | R75: =IFERROR('Retirement Calculations'!S41,"") -> 
C76: =IFERROR('Retirement Calculations'!A42,"") ->  | D76: =IFERROR('Retirement Calculations'!B42,"") ->  | E76: =IFERROR('Retirement Calculations'!C42,"") ->  | F76: =IFERROR('Retirement Calculations'!D42,"") ->  | G76: =IFERROR('Retirement Calculations'!E42,"") ->  | H76: =IFERROR('Retirement Calculations'!G42,"") ->  | I76: =IFERROR('Retirement Calculations'!H42,"") ->  | J76: =IFERROR('Retirement Calculations'!I42,"") ->  | K76: =IFERROR('Retirement Calculations'!J42,"") ->  | L76: =IFERROR('Retirement Calculations'!K42,"") ->  | M76: =IFERROR('Retirement Calculations'!M42,"") ->  | N76: =IFERROR('Retirement Calculations'!N42,"") ->  | O76: =IFERROR('Retirement Calculations'!O42,"") ->  | P76: =IFERROR('Retirement Calculations'!Q42,"") ->  | Q76: =IFERROR('Retirement Calculations'!R42,"") ->  | R76: =IFERROR('Retirement Calculations'!S42,"") -> 
C77: =IFERROR('Retirement Calculations'!A43,"") ->  | D77: =IFERROR('Retirement Calculations'!B43,"") ->  | E77: =IFERROR('Retirement Calculations'!C43,"") ->  | F77: =IFERROR('Retirement Calculations'!D43,"") ->  | G77: =IFERROR('Retirement Calculations'!E43,"") ->  | H77: =IFERROR('Retirement Calculations'!G43,"") ->  | I77: =IFERROR('Retirement Calculations'!H43,"") ->  | J77: =IFERROR('Retirement Calculations'!I43,"") ->  | K77: =IFERROR('Retirement Calculations'!J43,"") ->  | L77: =IFERROR('Retirement Calculations'!K43,"") ->  | M77: =IFERROR('Retirement Calculations'!M43,"") ->  | N77: =IFERROR('Retirement Calculations'!N43,"") ->  | O77: =IFERROR('Retirement Calculations'!O43,"") ->  | P77: =IFERROR('Retirement Calculations'!Q43,"") ->  | Q77: =IFERROR('Retirement Calculations'!R43,"") ->  | R77: =IFERROR('Retirement Calculations'!S43,"") -> 
C78: =IFERROR('Retirement Calculations'!A44,"") ->  | D78: =IFERROR('Retirement Calculations'!B44,"") ->  | E78: =IFERROR('Retirement Calculations'!C44,"") ->  | F78: =IFERROR('Retirement Calculations'!D44,"") ->  | G78: =IFERROR('Retirement Calculations'!E44,"") ->  | H78: =IFERROR('Retirement Calculations'!G44,"") ->  | I78: =IFERROR('Retirement Calculations'!H44,"") ->  | J78: =IFERROR('Retirement Calculations'!I44,"") ->  | K78: =IFERROR('Retirement Calculations'!J44,"") ->  | L78: =IFERROR('Retirement Calculations'!K44,"") ->  | M78: =IFERROR('Retirement Calculations'!M44,"") ->  | N78: =IFERROR('Retirement Calculations'!N44,"") ->  | O78: =IFERROR('Retirement Calculations'!O44,"") ->  | P78: =IFERROR('Retirement Calculations'!Q44,"") ->  | Q78: =IFERROR('Retirement Calculations'!R44,"") ->  | R78: =IFERROR('Retirement Calculations'!S44,"") -> 
C79: =IFERROR('Retirement Calculations'!A45,"") ->  | D79: =IFERROR('Retirement Calculations'!B45,"") ->  | E79: =IFERROR('Retirement Calculations'!C45,"") ->  | F79: =IFERROR('Retirement Calculations'!D45,"") ->  | G79: =IFERROR('Retirement Calculations'!E45,"") ->  | H79: =IFERROR('Retirement Calculations'!G45,"") ->  | I79: =IFERROR('Retirement Calculations'!H45,"") ->  | J79: =IFERROR('Retirement Calculations'!I45,"") ->  | K79: =IFERROR('Retirement Calculations'!J45,"") ->  | L79: =IFERROR('Retirement Calculations'!K45,"") ->  | M79: =IFERROR('Retirement Calculations'!M45,"") ->  | N79: =IFERROR('Retirement Calculations'!N45,"") ->  | O79: =IFERROR('Retirement Calculations'!O45,"") ->  | P79: =IFERROR('Retirement Calculations'!Q45,"") ->  | Q79: =IFERROR('Retirement Calculations'!R45,"") ->  | R79: =IFERROR('Retirement Calculations'!S45,"") -> 
C80: =IFERROR('Retirement Calculations'!A46,"") ->  | D80: =IFERROR('Retirement Calculations'!B46,"") ->  | E80: =IFERROR('Retirement Calculations'!C46,"") ->  | F80: =IFERROR('Retirement Calculations'!D46,"") ->  | G80: =IFERROR('Retirement Calculations'!E46,"") ->  | H80: =IFERROR('Retirement Calculations'!G46,"") ->  | I80: =IFERROR('Retirement Calculations'!H46,"") ->  | J80: =IFERROR('Retirement Calculations'!I46,"") ->  | K80: =IFERROR('Retirement Calculations'!J46,"") ->  | L80: =IFERROR('Retirement Calculations'!K46,"") ->  | M80: =IFERROR('Retirement Calculations'!M46,"") ->  | N80: =IFERROR('Retirement Calculations'!N46,"") ->  | O80: =IFERROR('Retirement Calculations'!O46,"") ->  | P80: =IFERROR('Retirement Calculations'!Q46,"") ->  | Q80: =IFERROR('Retirement Calculations'!R46,"") ->  | R80: =IFERROR('Retirement Calculations'!S46,"") -> 
C81: =IFERROR('Retirement Calculations'!A47,"") ->  | D81: =IFERROR('Retirement Calculations'!B47,"") ->  | E81: =IFERROR('Retirement Calculations'!C47,"") ->  | F81: =IFERROR('Retirement Calculations'!D47,"") ->  | G81: =IFERROR('Retirement Calculations'!E47,"") ->  | H81: =IFERROR('Retirement Calculations'!G47,"") ->  | I81: =IFERROR('Retirement Calculations'!H47,"") ->  | J81: =IFERROR('Retirement Calculations'!I47,"") ->  | K81: =IFERROR('Retirement Calculations'!J47,"") ->  | L81: =IFERROR('Retirement Calculations'!K47,"") ->  | M81: =IFERROR('Retirement Calculations'!M47,"") ->  | N81: =IFERROR('Retirement Calculations'!N47,"") ->  | O81: =IFERROR('Retirement Calculations'!O47,"") ->  | P81: =IFERROR('Retirement Calculations'!Q47,"") ->  | Q81: =IFERROR('Retirement Calculations'!R47,"") ->  | R81: =IFERROR('Retirement Calculations'!S47,"") -> 
C82: =IFERROR('Retirement Calculations'!A48,"") ->  | D82: =IFERROR('Retirement Calculations'!B48,"") ->  | E82: =IFERROR('Retirement Calculations'!C48,"") ->  | F82: =IFERROR('Retirement Calculations'!D48,"") ->  | G82: =IFERROR('Retirement Calculations'!E48,"") ->  | H82: =IFERROR('Retirement Calculations'!G48,"") ->  | I82: =IFERROR('Retirement Calculations'!H48,"") ->  | J82: =IFERROR('Retirement Calculations'!I48,"") ->  | K82: =IFERROR('Retirement Calculations'!J48,"") ->  | L82: =IFERROR('Retirement Calculations'!K48,"") ->  | M82: =IFERROR('Retirement Calculations'!M48,"") ->  | N82: =IFERROR('Retirement Calculations'!N48,"") ->  | O82: =IFERROR('Retirement Calculations'!O48,"") ->  | P82: =IFERROR('Retirement Calculations'!Q48,"") ->  | Q82: =IFERROR('Retirement Calculations'!R48,"") ->  | R82: =IFERROR('Retirement Calculations'!S48,"") -> 
C83: =IFERROR('Retirement Calculations'!A49,"") ->  | D83: =IFERROR('Retirement Calculations'!B49,"") ->  | E83: =IFERROR('Retirement Calculations'!C49,"") ->  | F83: =IFERROR('Retirement Calculations'!D49,"") ->  | G83: =IFERROR('Retirement Calculations'!E49,"") ->  | H83: =IFERROR('Retirement Calculations'!G49,"") ->  | I83: =IFERROR('Retirement Calculations'!H49,"") ->  | J83: =IFERROR('Retirement Calculations'!I49,"") ->  | K83: =IFERROR('Retirement Calculations'!J49,"") ->  | L83: =IFERROR('Retirement Calculations'!K49,"") ->  | M83: =IFERROR('Retirement Calculations'!M49,"") ->  | N83: =IFERROR('Retirement Calculations'!N49,"") ->  | O83: =IFERROR('Retirement Calculations'!O49,"") ->  | P83: =IFERROR('Retirement Calculations'!Q49,"") ->  | Q83: =IFERROR('Retirement Calculations'!R49,"") ->  | R83: =IFERROR('Retirement Calculations'!S49,"") -> 
C84: =IFERROR('Retirement Calculations'!A50,"") ->  | D84: =IFERROR('Retirement Calculations'!B50,"") ->  | E84: =IFERROR('Retirement Calculations'!C50,"") ->  | F84: =IFERROR('Retirement Calculations'!D50,"") ->  | G84: =IFERROR('Retirement Calculations'!E50,"") ->  | H84: =IFERROR('Retirement Calculations'!G50,"") ->  | I84: =IFERROR('Retirement Calculations'!H50,"") ->  | J84: =IFERROR('Retirement Calculations'!I50,"") ->  | K84: =IFERROR('Retirement Calculations'!J50,"") ->  | L84: =IFERROR('Retirement Calculations'!K50,"") ->  | M84: =IFERROR('Retirement Calculations'!M50,"") ->  | N84: =IFERROR('Retirement Calculations'!N50,"") ->  | O84: =IFERROR('Retirement Calculations'!O50,"") ->  | P84: =IFERROR('Retirement Calculations'!Q50,"") ->  | Q84: =IFERROR('Retirement Calculations'!R50,"") ->  | R84: =IFERROR('Retirement Calculations'!S50,"") -> 
C85: =IFERROR('Retirement Calculations'!A51,"") ->  | D85: =IFERROR('Retirement Calculations'!B51,"") ->  | E85: =IFERROR('Retirement Calculations'!C51,"") ->  | F85: =IFERROR('Retirement Calculations'!D51,"") ->  | G85: =IFERROR('Retirement Calculations'!E51,"") ->  | H85: =IFERROR('Retirement Calculations'!G51,"") ->  | I85: =IFERROR('Retirement Calculations'!H51,"") ->  | J85: =IFERROR('Retirement Calculations'!I51,"") ->  | K85: =IFERROR('Retirement Calculations'!J51,"") ->  | L85: =IFERROR('Retirement Calculations'!K51,"") ->  | M85: =IFERROR('Retirement Calculations'!M51,"") ->  | N85: =IFERROR('Retirement Calculations'!N51,"") ->  | O85: =IFERROR('Retirement Calculations'!O51,"") ->  | P85: =IFERROR('Retirement Calculations'!Q51,"") ->  | Q85: =IFERROR('Retirement Calculations'!R51,"") ->  | R85: =IFERROR('Retirement Calculations'!S51,"") -> 
C86: =IFERROR('Retirement Calculations'!A52,"") ->  | D86: =IFERROR('Retirement Calculations'!B52,"") ->  | E86: =IFERROR('Retirement Calculations'!C52,"") ->  | F86: =IFERROR('Retirement Calculations'!D52,"") ->  | G86: =IFERROR('Retirement Calculations'!E52,"") ->  | H86: =IFERROR('Retirement Calculations'!G52,"") ->  | I86: =IFERROR('Retirement Calculations'!H52,"") ->  | J86: =IFERROR('Retirement Calculations'!I52,"") ->  | K86: =IFERROR('Retirement Calculations'!J52,"") ->  | L86: =IFERROR('Retirement Calculations'!K52,"") ->  | M86: =IFERROR('Retirement Calculations'!M52,"") ->  | N86: =IFERROR('Retirement Calculations'!N52,"") ->  | O86: =IFERROR('Retirement Calculations'!O52,"") ->  | P86: =IFERROR('Retirement Calculations'!Q52,"") ->  | Q86: =IFERROR('Retirement Calculations'!R52,"") ->  | R86: =IFERROR('Retirement Calculations'!S52,"") -> 
C87: =IFERROR('Retirement Calculations'!A53,"") ->  | D87: =IFERROR('Retirement Calculations'!B53,"") ->  | E87: =IFERROR('Retirement Calculations'!C53,"") ->  | F87: =IFERROR('Retirement Calculations'!D53,"") ->  | G87: =IFERROR('Retirement Calculations'!E53,"") ->  | H87: =IFERROR('Retirement Calculations'!G53,"") ->  | I87: =IFERROR('Retirement Calculations'!H53,"") ->  | J87: =IFERROR('Retirement Calculations'!I53,"") ->  | K87: =IFERROR('Retirement Calculations'!J53,"") ->  | L87: =IFERROR('Retirement Calculations'!K53,"") ->  | M87: =IFERROR('Retirement Calculations'!M53,"") ->  | N87: =IFERROR('Retirement Calculations'!N53,"") ->  | O87: =IFERROR('Retirement Calculations'!O53,"") ->  | P87: =IFERROR('Retirement Calculations'!Q53,"") ->  | Q87: =IFERROR('Retirement Calculations'!R53,"") ->  | R87: =IFERROR('Retirement Calculations'!S53,"") -> 
C88: =IFERROR('Retirement Calculations'!A54,"") ->  | D88: =IFERROR('Retirement Calculations'!B54,"") ->  | E88: =IFERROR('Retirement Calculations'!C54,"") ->  | F88: =IFERROR('Retirement Calculations'!D54,"") ->  | G88: =IFERROR('Retirement Calculations'!E54,"") ->  | H88: =IFERROR('Retirement Calculations'!G54,"") ->  | I88: =IFERROR('Retirement Calculations'!H54,"") ->  | J88: =IFERROR('Retirement Calculations'!I54,"") ->  | K88: =IFERROR('Retirement Calculations'!J54,"") ->  | L88: =IFERROR('Retirement Calculations'!K54,"") ->  | M88: =IFERROR('Retirement Calculations'!M54,"") ->  | N88: =IFERROR('Retirement Calculations'!N54,"") ->  | O88: =IFERROR('Retirement Calculations'!O54,"") ->  | P88: =IFERROR('Retirement Calculations'!Q54,"") ->  | Q88: =IFERROR('Retirement Calculations'!R54,"") ->  | R88: =IFERROR('Retirement Calculations'!S54,"") -> 
C89: =IFERROR('Retirement Calculations'!A55,"") ->  | D89: =IFERROR('Retirement Calculations'!B55,"") ->  | E89: =IFERROR('Retirement Calculations'!C55,"") ->  | F89: =IFERROR('Retirement Calculations'!D55,"") ->  | G89: =IFERROR('Retirement Calculations'!E55,"") ->  | H89: =IFERROR('Retirement Calculations'!G55,"") ->  | I89: =IFERROR('Retirement Calculations'!H55,"") ->  | J89: =IFERROR('Retirement Calculations'!I55,"") ->  | K89: =IFERROR('Retirement Calculations'!J55,"") ->  | L89: =IFERROR('Retirement Calculations'!K55,"") ->  | M89: =IFERROR('Retirement Calculations'!M55,"") ->  | N89: =IFERROR('Retirement Calculations'!N55,"") ->  | O89: =IFERROR('Retirement Calculations'!O55,"") ->  | P89: =IFERROR('Retirement Calculations'!Q55,"") ->  | Q89: =IFERROR('Retirement Calculations'!R55,"") ->  | R89: =IFERROR('Retirement Calculations'!S55,"") -> 
C90: =IFERROR('Retirement Calculations'!A56,"") ->  | D90: =IFERROR('Retirement Calculations'!B56,"") ->  | E90: =IFERROR('Retirement Calculations'!C56,"") ->  | F90: =IFERROR('Retirement Calculations'!D56,"") ->  | G90: =IFERROR('Retirement Calculations'!E56,"") ->  | H90: =IFERROR('Retirement Calculations'!G56,"") ->  | I90: =IFERROR('Retirement Calculations'!H56,"") ->  | J90: =IFERROR('Retirement Calculations'!I56,"") ->  | K90: =IFERROR('Retirement Calculations'!J56,"") ->  | L90: =IFERROR('Retirement Calculations'!K56,"") ->  | M90: =IFERROR('Retirement Calculations'!M56,"") ->  | N90: =IFERROR('Retirement Calculations'!N56,"") ->  | O90: =IFERROR('Retirement Calculations'!O56,"") ->  | P90: =IFERROR('Retirement Calculations'!Q56,"") ->  | Q90: =IFERROR('Retirement Calculations'!R56,"") ->  | R90: =IFERROR('Retirement Calculations'!S56,"") -> 
C91: =IFERROR('Retirement Calculations'!A57,"") ->  | D91: =IFERROR('Retirement Calculations'!B57,"") ->  | E91: =IFERROR('Retirement Calculations'!C57,"") ->  | F91: =IFERROR('Retirement Calculations'!D57,"") ->  | G91: =IFERROR('Retirement Calculations'!E57,"") ->  | H91: =IFERROR('Retirement Calculations'!G57,"") ->  | I91: =IFERROR('Retirement Calculations'!H57,"") ->  | J91: =IFERROR('Retirement Calculations'!I57,"") ->  | K91: =IFERROR('Retirement Calculations'!J57,"") ->  | L91: =IFERROR('Retirement Calculations'!K57,"") ->  | M91: =IFERROR('Retirement Calculations'!M57,"") ->  | N91: =IFERROR('Retirement Calculations'!N57,"") ->  | O91: =IFERROR('Retirement Calculations'!O57,"") ->  | P91: =IFERROR('Retirement Calculations'!Q57,"") ->  | Q91: =IFERROR('Retirement Calculations'!R57,"") ->  | R91: =IFERROR('Retirement Calculations'!S57,"") -> 
C92: =IFERROR('Retirement Calculations'!A58,"") ->  | D92: =IFERROR('Retirement Calculations'!B58,"") ->  | E92: =IFERROR('Retirement Calculations'!C58,"") ->  | F92: =IFERROR('Retirement Calculations'!D58,"") ->  | G92: =IFERROR('Retirement Calculations'!E58,"") ->  | H92: =IFERROR('Retirement Calculations'!G58,"") ->  | I92: =IFERROR('Retirement Calculations'!H58,"") ->  | J92: =IFERROR('Retirement Calculations'!I58,"") ->  | K92: =IFERROR('Retirement Calculations'!J58,"") ->  | L92: =IFERROR('Retirement Calculations'!K58,"") ->  | M92: =IFERROR('Retirement Calculations'!M58,"") ->  | N92: =IFERROR('Retirement Calculations'!N58,"") ->  | O92: =IFERROR('Retirement Calculations'!O58,"") ->  | P92: =IFERROR('Retirement Calculations'!Q58,"") ->  | Q92: =IFERROR('Retirement Calculations'!R58,"") ->  | R92: =IFERROR('Retirement Calculations'!S58,"") -> 
C93: =IFERROR('Retirement Calculations'!A59,"") ->  | D93: =IFERROR('Retirement Calculations'!B59,"") ->  | E93: =IFERROR('Retirement Calculations'!C59,"") ->  | F93: =IFERROR('Retirement Calculations'!D59,"") ->  | G93: =IFERROR('Retirement Calculations'!E59,"") ->  | H93: =IFERROR('Retirement Calculations'!G59,"") ->  | I93: =IFERROR('Retirement Calculations'!H59,"") ->  | J93: =IFERROR('Retirement Calculations'!I59,"") ->  | K93: =IFERROR('Retirement Calculations'!J59,"") ->  | L93: =IFERROR('Retirement Calculations'!K59,"") ->  | M93: =IFERROR('Retirement Calculations'!M59,"") ->  | N93: =IFERROR('Retirement Calculations'!N59,"") ->  | O93: =IFERROR('Retirement Calculations'!O59,"") ->  | P93: =IFERROR('Retirement Calculations'!Q59,"") ->  | Q93: =IFERROR('Retirement Calculations'!R59,"") ->  | R93: =IFERROR('Retirement Calculations'!S59,"") -> 
C94: =IFERROR('Retirement Calculations'!A60,"") ->  | D94: =IFERROR('Retirement Calculations'!B60,"") ->  | E94: =IFERROR('Retirement Calculations'!C60,"") ->  | F94: =IFERROR('Retirement Calculations'!D60,"") ->  | G94: =IFERROR('Retirement Calculations'!E60,"") ->  | H94: =IFERROR('Retirement Calculations'!G60,"") ->  | I94: =IFERROR('Retirement Calculations'!H60,"") ->  | J94: =IFERROR('Retirement Calculations'!I60,"") ->  | K94: =IFERROR('Retirement Calculations'!J60,"") ->  | L94: =IFERROR('Retirement Calculations'!K60,"") ->  | M94: =IFERROR('Retirement Calculations'!M60,"") ->  | N94: =IFERROR('Retirement Calculations'!N60,"") ->  | O94: =IFERROR('Retirement Calculations'!O60,"") ->  | P94: =IFERROR('Retirement Calculations'!Q60,"") ->  | Q94: =IFERROR('Retirement Calculations'!R60,"") ->  | R94: =IFERROR('Retirement Calculations'!S60,"") -> 
C95: =IFERROR('Retirement Calculations'!A61,"") ->  | D95: =IFERROR('Retirement Calculations'!B61,"") ->  | E95: =IFERROR('Retirement Calculations'!C61,"") ->  | F95: =IFERROR('Retirement Calculations'!D61,"") ->  | G95: =IFERROR('Retirement Calculations'!E61,"") ->  | H95: =IFERROR('Retirement Calculations'!G61,"") ->  | I95: =IFERROR('Retirement Calculations'!H61,"") ->  | J95: =IFERROR('Retirement Calculations'!I61,"") ->  | K95: =IFERROR('Retirement Calculations'!J61,"") ->  | L95: =IFERROR('Retirement Calculations'!K61,"") ->  | M95: =IFERROR('Retirement Calculations'!M61,"") ->  | N95: =IFERROR('Retirement Calculations'!N61,"") ->  | O95: =IFERROR('Retirement Calculations'!O61,"") ->  | P95: =IFERROR('Retirement Calculations'!Q61,"") ->  | Q95: =IFERROR('Retirement Calculations'!R61,"") ->  | R95: =IFERROR('Retirement Calculations'!S61,"") -> 
C96: =IFERROR('Retirement Calculations'!A62,"") ->  | D96: =IFERROR('Retirement Calculations'!B62,"") ->  | E96: =IFERROR('Retirement Calculations'!C62,"") ->  | F96: =IFERROR('Retirement Calculations'!D62,"") ->  | G96: =IFERROR('Retirement Calculations'!E62,"") ->  | H96: =IFERROR('Retirement Calculations'!G62,"") ->  | I96: =IFERROR('Retirement Calculations'!H62,"") ->  | J96: =IFERROR('Retirement Calculations'!I62,"") ->  | K96: =IFERROR('Retirement Calculations'!J62,"") ->  | L96: =IFERROR('Retirement Calculations'!K62,"") ->  | M96: =IFERROR('Retirement Calculations'!M62,"") ->  | N96: =IFERROR('Retirement Calculations'!N62,"") ->  | O96: =IFERROR('Retirement Calculations'!O62,"") ->  | P96: =IFERROR('Retirement Calculations'!Q62,"") ->  | Q96: =IFERROR('Retirement Calculations'!R62,"") ->  | R96: =IFERROR('Retirement Calculations'!S62,"") -> 
C97: =IFERROR('Retirement Calculations'!A63,"") ->  | D97: =IFERROR('Retirement Calculations'!B63,"") ->  | E97: =IFERROR('Retirement Calculations'!C63,"") ->  | F97: =IFERROR('Retirement Calculations'!D63,"") ->  | G97: =IFERROR('Retirement Calculations'!E63,"") ->  | H97: =IFERROR('Retirement Calculations'!G63,"") ->  | I97: =IFERROR('Retirement Calculations'!H63,"") ->  | J97: =IFERROR('Retirement Calculations'!I63,"") ->  | K97: =IFERROR('Retirement Calculations'!J63,"") ->  | L97: =IFERROR('Retirement Calculations'!K63,"") ->  | M97: =IFERROR('Retirement Calculations'!M63,"") ->  | N97: =IFERROR('Retirement Calculations'!N63,"") ->  | O97: =IFERROR('Retirement Calculations'!O63,"") ->  | P97: =IFERROR('Retirement Calculations'!Q63,"") ->  | Q97: =IFERROR('Retirement Calculations'!R63,"") ->  | R97: =IFERROR('Retirement Calculations'!S63,"") -> 
C98: =IFERROR('Retirement Calculations'!A64,"") ->  | D98: =IFERROR('Retirement Calculations'!B64,"") ->  | E98: =IFERROR('Retirement Calculations'!C64,"") ->  | F98: =IFERROR('Retirement Calculations'!D64,"") ->  | G98: =IFERROR('Retirement Calculations'!E64,"") ->  | H98: =IFERROR('Retirement Calculations'!G64,"") ->  | I98: =IFERROR('Retirement Calculations'!H64,"") ->  | J98: =IFERROR('Retirement Calculations'!I64,"") ->  | K98: =IFERROR('Retirement Calculations'!J64,"") ->  | L98: =IFERROR('Retirement Calculations'!K64,"") ->  | M98: =IFERROR('Retirement Calculations'!M64,"") ->  | N98: =IFERROR('Retirement Calculations'!N64,"") ->  | O98: =IFERROR('Retirement Calculations'!O64,"") ->  | P98: =IFERROR('Retirement Calculations'!Q64,"") ->  | Q98: =IFERROR('Retirement Calculations'!R64,"") ->  | R98: =IFERROR('Retirement Calculations'!S64,"") -> 
C99: =IFERROR('Retirement Calculations'!A65,"") ->  | D99: =IFERROR('Retirement Calculations'!B65,"") ->  | E99: =IFERROR('Retirement Calculations'!C65,"") ->  | F99: =IFERROR('Retirement Calculations'!D65,"") ->  | G99: =IFERROR('Retirement Calculations'!E65,"") ->  | H99: =IFERROR('Retirement Calculations'!G65,"") ->  | I99: =IFERROR('Retirement Calculations'!H65,"") ->  | J99: =IFERROR('Retirement Calculations'!I65,"") ->  | K99: =IFERROR('Retirement Calculations'!J65,"") ->  | L99: =IFERROR('Retirement Calculations'!K65,"") ->  | M99: =IFERROR('Retirement Calculations'!M65,"") ->  | N99: =IFERROR('Retirement Calculations'!N65,"") ->  | O99: =IFERROR('Retirement Calculations'!O65,"") ->  | P99: =IFERROR('Retirement Calculations'!Q65,"") ->  | Q99: =IFERROR('Retirement Calculations'!R65,"") ->  | R99: =IFERROR('Retirement Calculations'!S65,"") -> 
C100: =IFERROR('Retirement Calculations'!A66,"") ->  | D100: =IFERROR('Retirement Calculations'!B66,"") ->  | E100: =IFERROR('Retirement Calculations'!C66,"") ->  | F100: =IFERROR('Retirement Calculations'!D66,"") ->  | G100: =IFERROR('Retirement Calculations'!E66,"") ->  | H100: =IFERROR('Retirement Calculations'!G66,"") ->  | I100: =IFERROR('Retirement Calculations'!H66,"") ->  | J100: =IFERROR('Retirement Calculations'!I66,"") ->  | K100: =IFERROR('Retirement Calculations'!J66,"") ->  | L100: =IFERROR('Retirement Calculations'!K66,"") ->  | M100: =IFERROR('Retirement Calculations'!M66,"") ->  | N100: =IFERROR('Retirement Calculations'!N66,"") ->  | O100: =IFERROR('Retirement Calculations'!O66,"") ->  | P100: =IFERROR('Retirement Calculations'!Q66,"") ->  | Q100: =IFERROR('Retirement Calculations'!R66,"") ->  | R100: =IFERROR('Retirement Calculations'!S66,"") -> 
C101: =IFERROR('Retirement Calculations'!A67,"") ->  | D101: =IFERROR('Retirement Calculations'!B67,"") ->  | E101: =IFERROR('Retirement Calculations'!C67,"") ->  | F101: =IFERROR('Retirement Calculations'!D67,"") ->  | G101: =IFERROR('Retirement Calculations'!E67,"") ->  | H101: =IFERROR('Retirement Calculations'!G67,"") ->  | I101: =IFERROR('Retirement Calculations'!H67,"") ->  | J101: =IFERROR('Retirement Calculations'!I67,"") ->  | K101: =IFERROR('Retirement Calculations'!J67,"") ->  | L101: =IFERROR('Retirement Calculations'!K67,"") ->  | M101: =IFERROR('Retirement Calculations'!M67,"") ->  | N101: =IFERROR('Retirement Calculations'!N67,"") ->  | O101: =IFERROR('Retirement Calculations'!O67,"") ->  | P101: =IFERROR('Retirement Calculations'!Q67,"") ->  | Q101: =IFERROR('Retirement Calculations'!R67,"") ->  | R101: =IFERROR('Retirement Calculations'!S67,"") -> 
C102: =IFERROR('Retirement Calculations'!A68,"") ->  | D102: =IFERROR('Retirement Calculations'!B68,"") ->  | E102: =IFERROR('Retirement Calculations'!C68,"") ->  | F102: =IFERROR('Retirement Calculations'!D68,"") ->  | G102: =IFERROR('Retirement Calculations'!E68,"") ->  | H102: =IFERROR('Retirement Calculations'!G68,"") ->  | I102: =IFERROR('Retirement Calculations'!H68,"") ->  | J102: =IFERROR('Retirement Calculations'!I68,"") ->  | K102: =IFERROR('Retirement Calculations'!J68,"") ->  | L102: =IFERROR('Retirement Calculations'!K68,"") ->  | M102: =IFERROR('Retirement Calculations'!M68,"") ->  | N102: =IFERROR('Retirement Calculations'!N68,"") ->  | O102: =IFERROR('Retirement Calculations'!O68,"") ->  | P102: =IFERROR('Retirement Calculations'!Q68,"") ->  | Q102: =IFERROR('Retirement Calculations'!R68,"") ->  | R102: =IFERROR('Retirement Calculations'!S68,"") -> 
C103: =IFERROR('Retirement Calculations'!A69,"") ->  | D103: =IFERROR('Retirement Calculations'!B69,"") ->  | E103: =IFERROR('Retirement Calculations'!C69,"") ->  | F103: =IFERROR('Retirement Calculations'!D69,"") ->  | G103: =IFERROR('Retirement Calculations'!E69,"") ->  | H103: =IFERROR('Retirement Calculations'!G69,"") ->  | I103: =IFERROR('Retirement Calculations'!H69,"") ->  | J103: =IFERROR('Retirement Calculations'!I69,"") ->  | K103: =IFERROR('Retirement Calculations'!J69,"") ->  | L103: =IFERROR('Retirement Calculations'!K69,"") ->  | M103: =IFERROR('Retirement Calculations'!M69,"") ->  | N103: =IFERROR('Retirement Calculations'!N69,"") ->  | O103: =IFERROR('Retirement Calculations'!O69,"") ->  | P103: =IFERROR('Retirement Calculations'!Q69,"") ->  | Q103: =IFERROR('Retirement Calculations'!R69,"") ->  | R103: =IFERROR('Retirement Calculations'!S69,"") -> 
C104: =IFERROR('Retirement Calculations'!A70,"") ->  | D104: =IFERROR('Retirement Calculations'!B70,"") ->  | E104: =IFERROR('Retirement Calculations'!C70,"") ->  | F104: =IFERROR('Retirement Calculations'!D70,"") ->  | G104: =IFERROR('Retirement Calculations'!E70,"") ->  | H104: =IFERROR('Retirement Calculations'!G70,"") ->  | I104: =IFERROR('Retirement Calculations'!H70,"") ->  | J104: =IFERROR('Retirement Calculations'!I70,"") ->  | K104: =IFERROR('Retirement Calculations'!J70,"") ->  | L104: =IFERROR('Retirement Calculations'!K70,"") ->  | M104: =IFERROR('Retirement Calculations'!M70,"") ->  | N104: =IFERROR('Retirement Calculations'!N70,"") ->  | O104: =IFERROR('Retirement Calculations'!O70,"") ->  | P104: =IFERROR('Retirement Calculations'!Q70,"") ->  | Q104: =IFERROR('Retirement Calculations'!R70,"") ->  | R104: =IFERROR('Retirement Calculations'!S70,"") -> 
C105: =IFERROR('Retirement Calculations'!A71,"") ->  | D105: =IFERROR('Retirement Calculations'!B71,"") ->  | E105: =IFERROR('Retirement Calculations'!C71,"") ->  | F105: =IFERROR('Retirement Calculations'!D71,"") ->  | G105: =IFERROR('Retirement Calculations'!E71,"") ->  | H105: =IFERROR('Retirement Calculations'!G71,"") ->  | I105: =IFERROR('Retirement Calculations'!H71,"") ->  | J105: =IFERROR('Retirement Calculations'!I71,"") ->  | K105: =IFERROR('Retirement Calculations'!J71,"") ->  | L105: =IFERROR('Retirement Calculations'!K71,"") ->  | M105: =IFERROR('Retirement Calculations'!M71,"") ->  | N105: =IFERROR('Retirement Calculations'!N71,"") ->  | O105: =IFERROR('Retirement Calculations'!O71,"") ->  | P105: =IFERROR('Retirement Calculations'!Q71,"") ->  | Q105: =IFERROR('Retirement Calculations'!R71,"") ->  | R105: =IFERROR('Retirement Calculations'!S71,"") -> 
C106: =IFERROR('Retirement Calculations'!A72,"") ->  | D106: =IFERROR('Retirement Calculations'!B72,"") ->  | E106: =IFERROR('Retirement Calculations'!C72,"") ->  | F106: =IFERROR('Retirement Calculations'!D72,"") ->  | G106: =IFERROR('Retirement Calculations'!E72,"") ->  | H106: =IFERROR('Retirement Calculations'!G72,"") ->  | I106: =IFERROR('Retirement Calculations'!H72,"") ->  | J106: =IFERROR('Retirement Calculations'!I72,"") ->  | K106: =IFERROR('Retirement Calculations'!J72,"") ->  | L106: =IFERROR('Retirement Calculations'!K72,"") ->  | M106: =IFERROR('Retirement Calculations'!M72,"") ->  | N106: =IFERROR('Retirement Calculations'!N72,"") ->  | O106: =IFERROR('Retirement Calculations'!O72,"") ->  | P106: =IFERROR('Retirement Calculations'!Q72,"") ->  | Q106: =IFERROR('Retirement Calculations'!R72,"") ->  | R106: =IFERROR('Retirement Calculations'!S72,"") -> 
C107: =IFERROR('Retirement Calculations'!A73,"") ->  | D107: =IFERROR('Retirement Calculations'!B73,"") ->  | E107: =IFERROR('Retirement Calculations'!C73,"") ->  | F107: =IFERROR('Retirement Calculations'!D73,"") ->  | G107: =IFERROR('Retirement Calculations'!E73,"") ->  | H107: =IFERROR('Retirement Calculations'!G73,"") ->  | I107: =IFERROR('Retirement Calculations'!H73,"") ->  | J107: =IFERROR('Retirement Calculations'!I73,"") ->  | K107: =IFERROR('Retirement Calculations'!J73,"") ->  | L107: =IFERROR('Retirement Calculations'!K73,"") ->  | M107: =IFERROR('Retirement Calculations'!M73,"") ->  | N107: =IFERROR('Retirement Calculations'!N73,"") ->  | O107: =IFERROR('Retirement Calculations'!O73,"") ->  | P107: =IFERROR('Retirement Calculations'!Q73,"") ->  | Q107: =IFERROR('Retirement Calculations'!R73,"") ->  | R107: =IFERROR('Retirement Calculations'!S73,"") -> 
C108: =IFERROR('Retirement Calculations'!A74,"") ->  | D108: =IFERROR('Retirement Calculations'!B74,"") ->  | E108: =IFERROR('Retirement Calculations'!C74,"") ->  | F108: =IFERROR('Retirement Calculations'!D74,"") ->  | G108: =IFERROR('Retirement Calculations'!E74,"") ->  | H108: =IFERROR('Retirement Calculations'!G74,"") ->  | I108: =IFERROR('Retirement Calculations'!H74,"") ->  | J108: =IFERROR('Retirement Calculations'!I74,"") ->  | K108: =IFERROR('Retirement Calculations'!J74,"") ->  | L108: =IFERROR('Retirement Calculations'!K74,"") ->  | M108: =IFERROR('Retirement Calculations'!M74,"") ->  | N108: =IFERROR('Retirement Calculations'!N74,"") ->  | O108: =IFERROR('Retirement Calculations'!O74,"") ->  | P108: =IFERROR('Retirement Calculations'!Q74,"") ->  | Q108: =IFERROR('Retirement Calculations'!R74,"") ->  | R108: =IFERROR('Retirement Calculations'!S74,"") -> 
C109: =IFERROR('Retirement Calculations'!A75,"") ->  | D109: =IFERROR('Retirement Calculations'!B75,"") ->  | E109: =IFERROR('Retirement Calculations'!C75,"") ->  | F109: =IFERROR('Retirement Calculations'!D75,"") ->  | G109: =IFERROR('Retirement Calculations'!E75,"") ->  | H109: =IFERROR('Retirement Calculations'!G75,"") ->  | I109: =IFERROR('Retirement Calculations'!H75,"") ->  | J109: =IFERROR('Retirement Calculations'!I75,"") ->  | K109: =IFERROR('Retirement Calculations'!J75,"") ->  | L109: =IFERROR('Retirement Calculations'!K75,"") ->  | M109: =IFERROR('Retirement Calculations'!M75,"") ->  | N109: =IFERROR('Retirement Calculations'!N75,"") ->  | O109: =IFERROR('Retirement Calculations'!O75,"") ->  | P109: =IFERROR('Retirement Calculations'!Q75,"") ->  | Q109: =IFERROR('Retirement Calculations'!R75,"") ->  | R109: =IFERROR('Retirement Calculations'!S75,"") -> 
C110: =IFERROR('Retirement Calculations'!A76,"") ->  | D110: =IFERROR('Retirement Calculations'!B76,"") ->  | E110: =IFERROR('Retirement Calculations'!C76,"") ->  | F110: =IFERROR('Retirement Calculations'!D76,"") ->  | G110: =IFERROR('Retirement Calculations'!E76,"") ->  | H110: =IFERROR('Retirement Calculations'!G76,"") ->  | I110: =IFERROR('Retirement Calculations'!H76,"") ->  | J110: =IFERROR('Retirement Calculations'!I76,"") ->  | K110: =IFERROR('Retirement Calculations'!J76,"") ->  | L110: =IFERROR('Retirement Calculations'!K76,"") ->  | M110: =IFERROR('Retirement Calculations'!M76,"") ->  | N110: =IFERROR('Retirement Calculations'!N76,"") ->  | O110: =IFERROR('Retirement Calculations'!O76,"") ->  | P110: =IFERROR('Retirement Calculations'!Q76,"") ->  | Q110: =IFERROR('Retirement Calculations'!R76,"") ->  | R110: =IFERROR('Retirement Calculations'!S76,"") -> 
C111: =IFERROR('Retirement Calculations'!A77,"") ->  | D111: =IFERROR('Retirement Calculations'!B77,"") ->  | E111: =IFERROR('Retirement Calculations'!C77,"") ->  | F111: =IFERROR('Retirement Calculations'!D77,"") ->  | G111: =IFERROR('Retirement Calculations'!E77,"") ->  | H111: =IFERROR('Retirement Calculations'!G77,"") ->  | I111: =IFERROR('Retirement Calculations'!H77,"") ->  | J111: =IFERROR('Retirement Calculations'!I77,"") ->  | K111: =IFERROR('Retirement Calculations'!J77,"") ->  | L111: =IFERROR('Retirement Calculations'!K77,"") ->  | M111: =IFERROR('Retirement Calculations'!M77,"") ->  | N111: =IFERROR('Retirement Calculations'!N77,"") ->  | O111: =IFERROR('Retirement Calculations'!O77,"") ->  | P111: =IFERROR('Retirement Calculations'!Q77,"") ->  | Q111: =IFERROR('Retirement Calculations'!R77,"") ->  | R111: =IFERROR('Retirement Calculations'!S77,"") -> 
C112: =IFERROR('Retirement Calculations'!A78,"") ->  | D112: =IFERROR('Retirement Calculations'!B78,"") ->  | E112: =IFERROR('Retirement Calculations'!C78,"") ->  | F112: =IFERROR('Retirement Calculations'!D78,"") ->  | G112: =IFERROR('Retirement Calculations'!E78,"") ->  | H112: =IFERROR('Retirement Calculations'!G78,"") ->  | I112: =IFERROR('Retirement Calculations'!H78,"") ->  | J112: =IFERROR('Retirement Calculations'!I78,"") ->  | K112: =IFERROR('Retirement Calculations'!J78,"") ->  | L112: =IFERROR('Retirement Calculations'!K78,"") ->  | M112: =IFERROR('Retirement Calculations'!M78,"") ->  | N112: =IFERROR('Retirement Calculations'!N78,"") ->  | O112: =IFERROR('Retirement Calculations'!O78,"") ->  | P112: =IFERROR('Retirement Calculations'!Q78,"") ->  | Q112: =IFERROR('Retirement Calculations'!R78,"") ->  | R112: =IFERROR('Retirement Calculations'!S78,"") -> 
C113: =IFERROR('Retirement Calculations'!A79,"") ->  | D113: =IFERROR('Retirement Calculations'!B79,"") ->  | E113: =IFERROR('Retirement Calculations'!C79,"") ->  | F113: =IFERROR('Retirement Calculations'!D79,"") ->  | G113: =IFERROR('Retirement Calculations'!E79,"") ->  | H113: =IFERROR('Retirement Calculations'!G79,"") ->  | I113: =IFERROR('Retirement Calculations'!H79,"") ->  | J113: =IFERROR('Retirement Calculations'!I79,"") ->  | K113: =IFERROR('Retirement Calculations'!J79,"") ->  | L113: =IFERROR('Retirement Calculations'!K79,"") ->  | M113: =IFERROR('Retirement Calculations'!M79,"") ->  | N113: =IFERROR('Retirement Calculations'!N79,"") ->  | O113: =IFERROR('Retirement Calculations'!O79,"") ->  | P113: =IFERROR('Retirement Calculations'!Q79,"") ->  | Q113: =IFERROR('Retirement Calculations'!R79,"") ->  | R113: =IFERROR('Retirement Calculations'!S79,"") -> 
C114: =IFERROR('Retirement Calculations'!A80,"") ->  | D114: =IFERROR('Retirement Calculations'!B80,"") ->  | E114: =IFERROR('Retirement Calculations'!C80,"") ->  | F114: =IFERROR('Retirement Calculations'!D80,"") ->  | G114: =IFERROR('Retirement Calculations'!E80,"") ->  | H114: =IFERROR('Retirement Calculations'!G80,"") ->  | I114: =IFERROR('Retirement Calculations'!H80,"") ->  | J114: =IFERROR('Retirement Calculations'!I80,"") ->  | K114: =IFERROR('Retirement Calculations'!J80,"") ->  | L114: =IFERROR('Retirement Calculations'!K80,"") ->  | M114: =IFERROR('Retirement Calculations'!M80,"") ->  | N114: =IFERROR('Retirement Calculations'!N80,"") ->  | O114: =IFERROR('Retirement Calculations'!O80,"") ->  | P114: =IFERROR('Retirement Calculations'!Q80,"") ->  | Q114: =IFERROR('Retirement Calculations'!R80,"") ->  | R114: =IFERROR('Retirement Calculations'!S80,"") -> 
C115: =IFERROR('Retirement Calculations'!A81,"") ->  | D115: =IFERROR('Retirement Calculations'!B81,"") ->  | E115: =IFERROR('Retirement Calculations'!C81,"") ->  | F115: =IFERROR('Retirement Calculations'!D81,"") ->  | G115: =IFERROR('Retirement Calculations'!E81,"") ->  | H115: =IFERROR('Retirement Calculations'!G81,"") ->  | I115: =IFERROR('Retirement Calculations'!H81,"") ->  | J115: =IFERROR('Retirement Calculations'!I81,"") ->  | K115: =IFERROR('Retirement Calculations'!J81,"") ->  | L115: =IFERROR('Retirement Calculations'!K81,"") ->  | M115: =IFERROR('Retirement Calculations'!M81,"") ->  | N115: =IFERROR('Retirement Calculations'!N81,"") ->  | O115: =IFERROR('Retirement Calculations'!O81,"") ->  | P115: =IFERROR('Retirement Calculations'!Q81,"") ->  | Q115: =IFERROR('Retirement Calculations'!R81,"") ->  | R115: =IFERROR('Retirement Calculations'!S81,"") -> 
C116: =IFERROR('Retirement Calculations'!A82,"") ->  | D116: =IFERROR('Retirement Calculations'!B82,"") ->  | E116: =IFERROR('Retirement Calculations'!C82,"") ->  | F116: =IFERROR('Retirement Calculations'!D82,"") ->  | G116: =IFERROR('Retirement Calculations'!E82,"") ->  | H116: =IFERROR('Retirement Calculations'!G82,"") ->  | I116: =IFERROR('Retirement Calculations'!H82,"") ->  | J116: =IFERROR('Retirement Calculations'!I82,"") ->  | K116: =IFERROR('Retirement Calculations'!J82,"") ->  | L116: =IFERROR('Retirement Calculations'!K82,"") ->  | M116: =IFERROR('Retirement Calculations'!M82,"") ->  | N116: =IFERROR('Retirement Calculations'!N82,"") ->  | O116: =IFERROR('Retirement Calculations'!O82,"") ->  | P116: =IFERROR('Retirement Calculations'!Q82,"") ->  | Q116: =IFERROR('Retirement Calculations'!R82,"") ->  | R116: =IFERROR('Retirement Calculations'!S82,"") -> 
C117: =IFERROR('Retirement Calculations'!A83,"") ->  | D117: =IFERROR('Retirement Calculations'!B83,"") ->  | E117: =IFERROR('Retirement Calculations'!C83,"") ->  | F117: =IFERROR('Retirement Calculations'!D83,"") ->  | G117: =IFERROR('Retirement Calculations'!E83,"") ->  | H117: =IFERROR('Retirement Calculations'!G83,"") ->  | I117: =IFERROR('Retirement Calculations'!H83,"") ->  | J117: =IFERROR('Retirement Calculations'!I83,"") ->  | K117: =IFERROR('Retirement Calculations'!J83,"") ->  | L117: =IFERROR('Retirement Calculations'!K83,"") ->  | M117: =IFERROR('Retirement Calculations'!M83,"") ->  | N117: =IFERROR('Retirement Calculations'!N83,"") ->  | O117: =IFERROR('Retirement Calculations'!O83,"") ->  | P117: =IFERROR('Retirement Calculations'!Q83,"") ->  | Q117: =IFERROR('Retirement Calculations'!R83,"") ->  | R117: =IFERROR('Retirement Calculations'!S83,"") -> 
C118: =IFERROR('Retirement Calculations'!A84,"") ->  | D118: =IFERROR('Retirement Calculations'!B84,"") ->  | E118: =IFERROR('Retirement Calculations'!C84,"") ->  | F118: =IFERROR('Retirement Calculations'!D84,"") ->  | G118: =IFERROR('Retirement Calculations'!E84,"") ->  | H118: =IFERROR('Retirement Calculations'!G84,"") ->  | I118: =IFERROR('Retirement Calculations'!H84,"") ->  | J118: =IFERROR('Retirement Calculations'!I84,"") ->  | K118: =IFERROR('Retirement Calculations'!J84,"") ->  | L118: =IFERROR('Retirement Calculations'!K84,"") ->  | M118: =IFERROR('Retirement Calculations'!M84,"") ->  | N118: =IFERROR('Retirement Calculations'!N84,"") ->  | O118: =IFERROR('Retirement Calculations'!O84,"") ->  | P118: =IFERROR('Retirement Calculations'!Q84,"") ->  | Q118: =IFERROR('Retirement Calculations'!R84,"") ->  | R118: =IFERROR('Retirement Calculations'!S84,"") -> 
C119: =IFERROR('Retirement Calculations'!A85,"") ->  | D119: =IFERROR('Retirement Calculations'!B85,"") ->  | E119: =IFERROR('Retirement Calculations'!C85,"") ->  | F119: =IFERROR('Retirement Calculations'!D85,"") ->  | G119: =IFERROR('Retirement Calculations'!E85,"") ->  | H119: =IFERROR('Retirement Calculations'!G85,"") ->  | I119: =IFERROR('Retirement Calculations'!H85,"") ->  | J119: =IFERROR('Retirement Calculations'!I85,"") ->  | K119: =IFERROR('Retirement Calculations'!J85,"") ->  | L119: =IFERROR('Retirement Calculations'!K85,"") ->  | M119: =IFERROR('Retirement Calculations'!M85,"") ->  | N119: =IFERROR('Retirement Calculations'!N85,"") ->  | O119: =IFERROR('Retirement Calculations'!O85,"") ->  | P119: =IFERROR('Retirement Calculations'!Q85,"") ->  | Q119: =IFERROR('Retirement Calculations'!R85,"") ->  | R119: =IFERROR('Retirement Calculations'!S85,"") -> 
C120: =IFERROR('Retirement Calculations'!A86,"") ->  | D120: =IFERROR('Retirement Calculations'!B86,"") ->  | E120: =IFERROR('Retirement Calculations'!C86,"") ->  | F120: =IFERROR('Retirement Calculations'!D86,"") ->  | G120: =IFERROR('Retirement Calculations'!E86,"") ->  | H120: =IFERROR('Retirement Calculations'!G86,"") ->  | I120: =IFERROR('Retirement Calculations'!H86,"") ->  | J120: =IFERROR('Retirement Calculations'!I86,"") ->  | K120: =IFERROR('Retirement Calculations'!J86,"") ->  | L120: =IFERROR('Retirement Calculations'!K86,"") ->  | M120: =IFERROR('Retirement Calculations'!M86,"") ->  | N120: =IFERROR('Retirement Calculations'!N86,"") ->  | O120: =IFERROR('Retirement Calculations'!O86,"") ->  | P120: =IFERROR('Retirement Calculations'!Q86,"") ->  | Q120: =IFERROR('Retirement Calculations'!R86,"") ->  | R120: =IFERROR('Retirement Calculations'!S86,"") -> 
C121: =IFERROR('Retirement Calculations'!A87,"") ->  | D121: =IFERROR('Retirement Calculations'!B87,"") ->  | E121: =IFERROR('Retirement Calculations'!C87,"") ->  | F121: =IFERROR('Retirement Calculations'!D87,"") ->  | G121: =IFERROR('Retirement Calculations'!E87,"") ->  | H121: =IFERROR('Retirement Calculations'!G87,"") ->  | I121: =IFERROR('Retirement Calculations'!H87,"") ->  | J121: =IFERROR('Retirement Calculations'!I87,"") ->  | K121: =IFERROR('Retirement Calculations'!J87,"") ->  | L121: =IFERROR('Retirement Calculations'!K87,"") ->  | M121: =IFERROR('Retirement Calculations'!M87,"") ->  | N121: =IFERROR('Retirement Calculations'!N87,"") ->  | O121: =IFERROR('Retirement Calculations'!O87,"") ->  | P121: =IFERROR('Retirement Calculations'!Q87,"") ->  | Q121: =IFERROR('Retirement Calculations'!R87,"") ->  | R121: =IFERROR('Retirement Calculations'!S87,"") -> 
C122: =IFERROR('Retirement Calculations'!A88,"") ->  | D122: =IFERROR('Retirement Calculations'!B88,"") ->  | E122: =IFERROR('Retirement Calculations'!C88,"") ->  | F122: =IFERROR('Retirement Calculations'!D88,"") ->  | G122: =IFERROR('Retirement Calculations'!E88,"") ->  | H122: =IFERROR('Retirement Calculations'!G88,"") ->  | I122: =IFERROR('Retirement Calculations'!H88,"") ->  | J122: =IFERROR('Retirement Calculations'!I88,"") ->  | K122: =IFERROR('Retirement Calculations'!J88,"") ->  | L122: =IFERROR('Retirement Calculations'!K88,"") ->  | M122: =IFERROR('Retirement Calculations'!M88,"") ->  | N122: =IFERROR('Retirement Calculations'!N88,"") ->  | O122: =IFERROR('Retirement Calculations'!O88,"") ->  | P122: =IFERROR('Retirement Calculations'!Q88,"") ->  | Q122: =IFERROR('Retirement Calculations'!R88,"") ->  | R122: =IFERROR('Retirement Calculations'!S88,"") -> 
C123: =IFERROR('Retirement Calculations'!A89,"") ->  | D123: =IFERROR('Retirement Calculations'!B89,"") ->  | E123: =IFERROR('Retirement Calculations'!C89,"") ->  | F123: =IFERROR('Retirement Calculations'!D89,"") ->  | G123: =IFERROR('Retirement Calculations'!E89,"") ->  | H123: =IFERROR('Retirement Calculations'!G89,"") ->  | I123: =IFERROR('Retirement Calculations'!H89,"") ->  | J123: =IFERROR('Retirement Calculations'!I89,"") ->  | K123: =IFERROR('Retirement Calculations'!J89,"") ->  | L123: =IFERROR('Retirement Calculations'!K89,"") ->  | M123: =IFERROR('Retirement Calculations'!M89,"") ->  | N123: =IFERROR('Retirement Calculations'!N89,"") ->  | O123: =IFERROR('Retirement Calculations'!O89,"") ->  | P123: =IFERROR('Retirement Calculations'!Q89,"") ->  | Q123: =IFERROR('Retirement Calculations'!R89,"") ->  | R123: =IFERROR('Retirement Calculations'!S89,"") -> 
C124: =IFERROR('Retirement Calculations'!A90,"") ->  | D124: =IFERROR('Retirement Calculations'!B90,"") ->  | E124: =IFERROR('Retirement Calculations'!C90,"") ->  | F124: =IFERROR('Retirement Calculations'!D90,"") ->  | G124: =IFERROR('Retirement Calculations'!E90,"") ->  | H124: =IFERROR('Retirement Calculations'!G90,"") ->  | I124: =IFERROR('Retirement Calculations'!H90,"") ->  | J124: =IFERROR('Retirement Calculations'!I90,"") ->  | K124: =IFERROR('Retirement Calculations'!J90,"") ->  | L124: =IFERROR('Retirement Calculations'!K90,"") ->  | M124: =IFERROR('Retirement Calculations'!M90,"") ->  | N124: =IFERROR('Retirement Calculations'!N90,"") ->  | O124: =IFERROR('Retirement Calculations'!O90,"") ->  | P124: =IFERROR('Retirement Calculations'!Q90,"") ->  | Q124: =IFERROR('Retirement Calculations'!R90,"") ->  | R124: =IFERROR('Retirement Calculations'!S90,"") -> 
C125: =IFERROR('Retirement Calculations'!A91,"") ->  | D125: =IFERROR('Retirement Calculations'!B91,"") ->  | E125: =IFERROR('Retirement Calculations'!C91,"") ->  | F125: =IFERROR('Retirement Calculations'!D91,"") ->  | G125: =IFERROR('Retirement Calculations'!E91,"") ->  | H125: =IFERROR('Retirement Calculations'!G91,"") ->  | I125: =IFERROR('Retirement Calculations'!H91,"") ->  | J125: =IFERROR('Retirement Calculations'!I91,"") ->  | K125: =IFERROR('Retirement Calculations'!J91,"") ->  | L125: =IFERROR('Retirement Calculations'!K91,"") ->  | M125: =IFERROR('Retirement Calculations'!M91,"") ->  | N125: =IFERROR('Retirement Calculations'!N91,"") ->  | O125: =IFERROR('Retirement Calculations'!O91,"") ->  | P125: =IFERROR('Retirement Calculations'!Q91,"") ->  | Q125: =IFERROR('Retirement Calculations'!R91,"") ->  | R125: =IFERROR('Retirement Calculations'!S91,"") -> 
C126: =IFERROR('Retirement Calculations'!A92,"") ->  | D126: =IFERROR('Retirement Calculations'!B92,"") ->  | E126: =IFERROR('Retirement Calculations'!C92,"") ->  | F126: =IFERROR('Retirement Calculations'!D92,"") ->  | G126: =IFERROR('Retirement Calculations'!E92,"") ->  | H126: =IFERROR('Retirement Calculations'!G92,"") ->  | I126: =IFERROR('Retirement Calculations'!H92,"") ->  | J126: =IFERROR('Retirement Calculations'!I92,"") ->  | K126: =IFERROR('Retirement Calculations'!J92,"") ->  | L126: =IFERROR('Retirement Calculations'!K92,"") ->  | M126: =IFERROR('Retirement Calculations'!M92,"") ->  | N126: =IFERROR('Retirement Calculations'!N92,"") ->  | O126: =IFERROR('Retirement Calculations'!O92,"") ->  | P126: =IFERROR('Retirement Calculations'!Q92,"") ->  | Q126: =IFERROR('Retirement Calculations'!R92,"") ->  | R126: =IFERROR('Retirement Calculations'!S92,"") -> 
C127: =IFERROR('Retirement Calculations'!A93,"") ->  | D127: =IFERROR('Retirement Calculations'!B93,"") ->  | E127: =IFERROR('Retirement Calculations'!C93,"") ->  | F127: =IFERROR('Retirement Calculations'!D93,"") ->  | G127: =IFERROR('Retirement Calculations'!E93,"") ->  | H127: =IFERROR('Retirement Calculations'!G93,"") ->  | I127: =IFERROR('Retirement Calculations'!H93,"") ->  | J127: =IFERROR('Retirement Calculations'!I93,"") ->  | K127: =IFERROR('Retirement Calculations'!J93,"") ->  | L127: =IFERROR('Retirement Calculations'!K93,"") ->  | M127: =IFERROR('Retirement Calculations'!M93,"") ->  | N127: =IFERROR('Retirement Calculations'!N93,"") ->  | O127: =IFERROR('Retirement Calculations'!O93,"") ->  | P127: =IFERROR('Retirement Calculations'!Q93,"") ->  | Q127: =IFERROR('Retirement Calculations'!R93,"") ->  | R127: =IFERROR('Retirement Calculations'!S93,"") -> 
C128: =IFERROR('Retirement Calculations'!A94,"") ->  | D128: =IFERROR('Retirement Calculations'!B94,"") ->  | E128: =IFERROR('Retirement Calculations'!C94,"") ->  | F128: =IFERROR('Retirement Calculations'!D94,"") ->  | G128: =IFERROR('Retirement Calculations'!E94,"") ->  | H128: =IFERROR('Retirement Calculations'!G94,"") ->  | I128: =IFERROR('Retirement Calculations'!H94,"") ->  | J128: =IFERROR('Retirement Calculations'!I94,"") ->  | K128: =IFERROR('Retirement Calculations'!J94,"") ->  | L128: =IFERROR('Retirement Calculations'!K94,"") ->  | M128: =IFERROR('Retirement Calculations'!M94,"") ->  | N128: =IFERROR('Retirement Calculations'!N94,"") ->  | O128: =IFERROR('Retirement Calculations'!O94,"") ->  | P128: =IFERROR('Retirement Calculations'!Q94,"") ->  | Q128: =IFERROR('Retirement Calculations'!R94,"") ->  | R128: =IFERROR('Retirement Calculations'!S94,"") -> 
C129: =IFERROR('Retirement Calculations'!A95,"") ->  | D129: =IFERROR('Retirement Calculations'!B95,"") ->  | E129: =IFERROR('Retirement Calculations'!C95,"") ->  | F129: =IFERROR('Retirement Calculations'!D95,"") ->  | G129: =IFERROR('Retirement Calculations'!E95,"") ->  | H129: =IFERROR('Retirement Calculations'!G95,"") ->  | I129: =IFERROR('Retirement Calculations'!H95,"") ->  | J129: =IFERROR('Retirement Calculations'!I95,"") ->  | K129: =IFERROR('Retirement Calculations'!J95,"") ->  | L129: =IFERROR('Retirement Calculations'!K95,"") ->  | M129: =IFERROR('Retirement Calculations'!M95,"") ->  | N129: =IFERROR('Retirement Calculations'!N95,"") ->  | O129: =IFERROR('Retirement Calculations'!O95,"") ->  | P129: =IFERROR('Retirement Calculations'!Q95,"") ->  | Q129: =IFERROR('Retirement Calculations'!R95,"") ->  | R129: =IFERROR('Retirement Calculations'!S95,"") -> 
C130: =IFERROR('Retirement Calculations'!A96,"") ->  | D130: =IFERROR('Retirement Calculations'!B96,"") ->  | E130: =IFERROR('Retirement Calculations'!C96,"") ->  | F130: =IFERROR('Retirement Calculations'!D96,"") ->  | G130: =IFERROR('Retirement Calculations'!E96,"") ->  | H130: =IFERROR('Retirement Calculations'!G96,"") ->  | I130: =IFERROR('Retirement Calculations'!H96,"") ->  | J130: =IFERROR('Retirement Calculations'!I96,"") ->  | K130: =IFERROR('Retirement Calculations'!J96,"") ->  | L130: =IFERROR('Retirement Calculations'!K96,"") ->  | M130: =IFERROR('Retirement Calculations'!M96,"") ->  | N130: =IFERROR('Retirement Calculations'!N96,"") ->  | O130: =IFERROR('Retirement Calculations'!O96,"") ->  | P130: =IFERROR('Retirement Calculations'!Q96,"") ->  | Q130: =IFERROR('Retirement Calculations'!R96,"") ->  | R130: =IFERROR('Retirement Calculations'!S96,"") -> 
C131: =IFERROR('Retirement Calculations'!A97,"") ->  | D131: =IFERROR('Retirement Calculations'!B97,"") ->  | E131: =IFERROR('Retirement Calculations'!C97,"") ->  | F131: =IFERROR('Retirement Calculations'!D97,"") ->  | G131: =IFERROR('Retirement Calculations'!E97,"") ->  | H131: =IFERROR('Retirement Calculations'!G97,"") ->  | I131: =IFERROR('Retirement Calculations'!H97,"") ->  | J131: =IFERROR('Retirement Calculations'!I97,"") ->  | K131: =IFERROR('Retirement Calculations'!J97,"") ->  | L131: =IFERROR('Retirement Calculations'!K97,"") ->  | M131: =IFERROR('Retirement Calculations'!M97,"") ->  | N131: =IFERROR('Retirement Calculations'!N97,"") ->  | O131: =IFERROR('Retirement Calculations'!O97,"") ->  | P131: =IFERROR('Retirement Calculations'!Q97,"") ->  | Q131: =IFERROR('Retirement Calculations'!R97,"") ->  | R131: =IFERROR('Retirement Calculations'!S97,"") -> 
C132: =IFERROR('Retirement Calculations'!A98,"") ->  | D132: =IFERROR('Retirement Calculations'!B98,"") ->  | E132: =IFERROR('Retirement Calculations'!C98,"") ->  | F132: =IFERROR('Retirement Calculations'!D98,"") ->  | G132: =IFERROR('Retirement Calculations'!E98,"") ->  | H132: =IFERROR('Retirement Calculations'!G98,"") ->  | I132: =IFERROR('Retirement Calculations'!H98,"") ->  | J132: =IFERROR('Retirement Calculations'!I98,"") ->  | K132: =IFERROR('Retirement Calculations'!J98,"") ->  | L132: =IFERROR('Retirement Calculations'!K98,"") ->  | M132: =IFERROR('Retirement Calculations'!M98,"") ->  | N132: =IFERROR('Retirement Calculations'!N98,"") ->  | O132: =IFERROR('Retirement Calculations'!O98,"") ->  | P132: =IFERROR('Retirement Calculations'!Q98,"") ->  | Q132: =IFERROR('Retirement Calculations'!R98,"") ->  | R132: =IFERROR('Retirement Calculations'!S98,"") -> 
C133: =IFERROR('Retirement Calculations'!A99,"") ->  | D133: =IFERROR('Retirement Calculations'!B99,"") ->  | E133: =IFERROR('Retirement Calculations'!C99,"") ->  | F133: =IFERROR('Retirement Calculations'!D99,"") ->  | G133: =IFERROR('Retirement Calculations'!E99,"") ->  | H133: =IFERROR('Retirement Calculations'!G99,"") ->  | I133: =IFERROR('Retirement Calculations'!H99,"") ->  | J133: =IFERROR('Retirement Calculations'!I99,"") ->  | K133: =IFERROR('Retirement Calculations'!J99,"") ->  | L133: =IFERROR('Retirement Calculations'!K99,"") ->  | M133: =IFERROR('Retirement Calculations'!M99,"") ->  | N133: =IFERROR('Retirement Calculations'!N99,"") ->  | O133: =IFERROR('Retirement Calculations'!O99,"") ->  | P133: =IFERROR('Retirement Calculations'!Q99,"") ->  | Q133: =IFERROR('Retirement Calculations'!R99,"") ->  | R133: =IFERROR('Retirement Calculations'!S99,"") -> 
C134: =IFERROR('Retirement Calculations'!A100,"") ->  | D134: =IFERROR('Retirement Calculations'!B100,"") ->  | E134: =IFERROR('Retirement Calculations'!C100,"") ->  | F134: =IFERROR('Retirement Calculations'!D100,"") ->  | G134: =IFERROR('Retirement Calculations'!E100,"") ->  | H134: =IFERROR('Retirement Calculations'!G100,"") ->  | I134: =IFERROR('Retirement Calculations'!H100,"") ->  | J134: =IFERROR('Retirement Calculations'!I100,"") ->  | K134: =IFERROR('Retirement Calculations'!J100,"") ->  | L134: =IFERROR('Retirement Calculations'!K100,"") ->  | M134: =IFERROR('Retirement Calculations'!M100,"") ->  | N134: =IFERROR('Retirement Calculations'!N100,"") ->  | O134: =IFERROR('Retirement Calculations'!O100,"") ->  | P134: =IFERROR('Retirement Calculations'!Q100,"") ->  | Q134: =IFERROR('Retirement Calculations'!R100,"") ->  | R134: =IFERROR('Retirement Calculations'!S100,"") -> 
C135: =IFERROR('Retirement Calculations'!A101,"") ->  | D135: =IFERROR('Retirement Calculations'!B101,"") ->  | E135: =IFERROR('Retirement Calculations'!C101,"") ->  | F135: =IFERROR('Retirement Calculations'!D101,"") ->  | G135: =IFERROR('Retirement Calculations'!E101,"") ->  | H135: =IFERROR('Retirement Calculations'!G101,"") ->  | I135: =IFERROR('Retirement Calculations'!H101,"") ->  | J135: =IFERROR('Retirement Calculations'!I101,"") ->  | K135: =IFERROR('Retirement Calculations'!J101,"") ->  | L135: =IFERROR('Retirement Calculations'!K101,"") ->  | M135: =IFERROR('Retirement Calculations'!M101,"") ->  | N135: =IFERROR('Retirement Calculations'!N101,"") ->  | O135: =IFERROR('Retirement Calculations'!O101,"") ->  | P135: =IFERROR('Retirement Calculations'!Q101,"") ->  | Q135: =IFERROR('Retirement Calculations'!R101,"") ->  | R135: =IFERROR('Retirement Calculations'!S101,"") -> 
C136: =IFERROR('Retirement Calculations'!A102,"") ->  | D136: =IFERROR('Retirement Calculations'!B102,"") ->  | E136: =IFERROR('Retirement Calculations'!C102,"") ->  | F136: =IFERROR('Retirement Calculations'!D102,"") ->  | G136: =IFERROR('Retirement Calculations'!E102,"") ->  | H136: =IFERROR('Retirement Calculations'!G102,"") ->  | I136: =IFERROR('Retirement Calculations'!H102,"") ->  | J136: =IFERROR('Retirement Calculations'!I102,"") ->  | K136: =IFERROR('Retirement Calculations'!J102,"") ->  | L136: =IFERROR('Retirement Calculations'!K102,"") ->  | M136: =IFERROR('Retirement Calculations'!M102,"") ->  | N136: =IFERROR('Retirement Calculations'!N102,"") ->  | O136: =IFERROR('Retirement Calculations'!O102,"") ->  | P136: =IFERROR('Retirement Calculations'!Q102,"") ->  | Q136: =IFERROR('Retirement Calculations'!R102,"") ->  | R136: =IFERROR('Retirement Calculations'!S102,"") -> 
C137: =IFERROR('Retirement Calculations'!A103,"") ->  | D137: =IFERROR('Retirement Calculations'!B103,"") ->  | E137: =IFERROR('Retirement Calculations'!C103,"") ->  | F137: =IFERROR('Retirement Calculations'!D103,"") ->  | G137: =IFERROR('Retirement Calculations'!E103,"") ->  | H137: =IFERROR('Retirement Calculations'!G103,"") ->  | I137: =IFERROR('Retirement Calculations'!H103,"") ->  | J137: =IFERROR('Retirement Calculations'!I103,"") ->  | K137: =IFERROR('Retirement Calculations'!J103,"") ->  | L137: =IFERROR('Retirement Calculations'!K103,"") ->  | M137: =IFERROR('Retirement Calculations'!M103,"") ->  | N137: =IFERROR('Retirement Calculations'!N103,"") ->  | O137: =IFERROR('Retirement Calculations'!O103,"") ->  | P137: =IFERROR('Retirement Calculations'!Q103,"") ->  | Q137: =IFERROR('Retirement Calculations'!R103,"") ->  | R137: =IFERROR('Retirement Calculations'!S103,"") -> 
C138: =IFERROR('Retirement Calculations'!A104,"") ->  | D138: =IFERROR('Retirement Calculations'!B104,"") ->  | E138: =IFERROR('Retirement Calculations'!C104,"") ->  | F138: =IFERROR('Retirement Calculations'!D104,"") ->  | G138: =IFERROR('Retirement Calculations'!E104,"") ->  | H138: =IFERROR('Retirement Calculations'!G104,"") ->  | I138: =IFERROR('Retirement Calculations'!H104,"") ->  | J138: =IFERROR('Retirement Calculations'!I104,"") ->  | K138: =IFERROR('Retirement Calculations'!J104,"") ->  | L138: =IFERROR('Retirement Calculations'!K104,"") ->  | M138: =IFERROR('Retirement Calculations'!M104,"") ->  | N138: =IFERROR('Retirement Calculations'!N104,"") ->  | O138: =IFERROR('Retirement Calculations'!O104,"") ->  | P138: =IFERROR('Retirement Calculations'!Q104,"") ->  | Q138: =IFERROR('Retirement Calculations'!R104,"") ->  | R138: =IFERROR('Retirement Calculations'!S104,"") -> 
C139: =IFERROR('Retirement Calculations'!A105,"") ->  | D139: =IFERROR('Retirement Calculations'!B105,"") ->  | E139: =IFERROR('Retirement Calculations'!C105,"") ->  | F139: =IFERROR('Retirement Calculations'!D105,"") ->  | G139: =IFERROR('Retirement Calculations'!E105,"") ->  | H139: =IFERROR('Retirement Calculations'!G105,"") ->  | I139: =IFERROR('Retirement Calculations'!H105,"") ->  | J139: =IFERROR('Retirement Calculations'!I105,"") ->  | K139: =IFERROR('Retirement Calculations'!J105,"") ->  | L139: =IFERROR('Retirement Calculations'!K105,"") ->  | M139: =IFERROR('Retirement Calculations'!M105,"") ->  | N139: =IFERROR('Retirement Calculations'!N105,"") ->  | O139: =IFERROR('Retirement Calculations'!O105,"") ->  | P139: =IFERROR('Retirement Calculations'!Q105,"") ->  | Q139: =IFERROR('Retirement Calculations'!R105,"") ->  | R139: =IFERROR('Retirement Calculations'!S105,"") -> 
C140: =IFERROR('Retirement Calculations'!A106,"") ->  | D140: =IFERROR('Retirement Calculations'!B106,"") ->  | E140: =IFERROR('Retirement Calculations'!C106,"") ->  | F140: =IFERROR('Retirement Calculations'!D106,"") ->  | G140: =IFERROR('Retirement Calculations'!E106,"") ->  | H140: =IFERROR('Retirement Calculations'!G106,"") ->  | I140: =IFERROR('Retirement Calculations'!H106,"") ->  | J140: =IFERROR('Retirement Calculations'!I106,"") ->  | K140: =IFERROR('Retirement Calculations'!J106,"") ->  | L140: =IFERROR('Retirement Calculations'!K106,"") ->  | M140: =IFERROR('Retirement Calculations'!M106,"") ->  | N140: =IFERROR('Retirement Calculations'!N106,"") ->  | O140: =IFERROR('Retirement Calculations'!O106,"") ->  | P140: =IFERROR('Retirement Calculations'!Q106,"") ->  | Q140: =IFERROR('Retirement Calculations'!R106,"") ->  | R140: =IFERROR('Retirement Calculations'!S106,"") -> 
C141: =IFERROR('Retirement Calculations'!A107,"") ->  | D141: =IFERROR('Retirement Calculations'!B107,"") ->  | E141: =IFERROR('Retirement Calculations'!C107,"") ->  | F141: =IFERROR('Retirement Calculations'!D107,"") ->  | G141: =IFERROR('Retirement Calculations'!E107,"") ->  | H141: =IFERROR('Retirement Calculations'!G107,"") ->  | I141: =IFERROR('Retirement Calculations'!H107,"") ->  | J141: =IFERROR('Retirement Calculations'!I107,"") ->  | K141: =IFERROR('Retirement Calculations'!J107,"") ->  | L141: =IFERROR('Retirement Calculations'!K107,"") ->  | M141: =IFERROR('Retirement Calculations'!M107,"") ->  | N141: =IFERROR('Retirement Calculations'!N107,"") ->  | O141: =IFERROR('Retirement Calculations'!O107,"") ->  | P141: =IFERROR('Retirement Calculations'!Q107,"") ->  | Q141: =IFERROR('Retirement Calculations'!R107,"") ->  | R141: =IFERROR('Retirement Calculations'!S107,"") -> 
C144: Row Labels | D144: Sum of Savings Balance | E144: Sum of Annual Income
C145: 65 | D145: 800000 | E145: 95470.2773
C146: 66 | D146: 818770.2773 | E146: 97490.49394
C147: 67 | D147: 837316.5212 | E147: 99527.13735
C148: 68 | D148: 855591.4914 | E148: 101578.8257
C149: 69 | D149: 873544.8207 | E149: 103644.0622
C150: 70 | D150: 891122.854 | E150: 105721.2289
C151: 71 | D151: 908268.481 | E151: 107808.5803
C152: 72 | D152: 924920.9597 | E152: 109904.2362
C153: 73 | D153: 941015.7334 | E153: 112006.1751
C154: 74 | D154: 956484.2385 | E154: 114112.2263
C155: 75 | D155: 971253.704 | E155: 116220.062
C156: 76 | D156: 985246.9417 | E156: 118327.1898
C157: 77 | D157: 998382.1269 | E157: 120430.9435
C158: 78 | D158: 1010572.57 | E158: 122528.4744
C159: 79 | D159: 1021726.477 | E159: 124616.7421
C160: 80 | D160: 1031746.7 | E160: 126692.5046
C161: 81 | D161: 1040530.475 | E161: 128752.3084
C162: 82 | D162: 1047969.151 | E162: 130792.4772
C163: 83 | D163: 1053947.906 | E163: 132809.1016
C164: 84 | D164: 1058345.445 | E164: 134798.0269
C165: 85 | D165: 1061033.696 | E165: 136754.8411
C166: 86 | D166: 1061877.483 | E166: 138674.8624
C167: 87 | D167: 1060734.186 | E167: 140553.1259
C168: 88 | D168: 1057453.393 | E168: 142384.3693
C169: 89 | D169: 1051876.526 | E169: 144163.0193
C170: 90 | D170: 1043836.459 | E170: 145883.1758
C171: Grand Total | D171: 25363568.62 | E171: 3151644.467

Sheet Retirement Calculations (hidden)
B1: Investments | G1: Annual Income | M1: Taxes
A2: Age | B2: Savings | C2: Investment Fees | D2: Return on Investments | E2: Net Investments | G2: Annual Disability | H2: Annual Withdrawal | I2: Pension | J2: SSA | K2: Total Income | M2: Federal Income Taxes | N2: State Income Taxes | O2: Local Income Taxes | Q2: Income-Taxes | R2: Annual Expenses | S2: Net Income
A3: ='Retirement Worksheet'!B10 -> 65 | B3: ='Retirement Worksheet'!B11 -> 800000 | C3: =B3*'Retirement Worksheet'!$B$18 -> 2000 | D3: =B3*'Retirement Worksheet'!$B$30 -> 40000 | E3: =B3-C3+D3 -> 838000 | G3: =FV('Retirement Worksheet'!$B$29,('Retirement Worksheet'!B10-'Retirement Worksheet'!B9),0,-'Retirement Worksheet'!B26) -> 43470.2773 | H3: =B3*'Retirement Worksheet'!$B$12 -> 32000 | I3: =FV('Retirement Worksheet'!B29,('Retirement Worksheet'!B10-'Retirement Worksheet'!B9),0,-'Retirement Worksheet'!B25) -> 0 | J3: ='Retirement Worksheet'!B19 -> 20000 | K3: =SUM(G3:J3) -> 95470.2773 | M3: =((('Retirement Calculations'!I3)+(J3*'Retirement Worksheet'!$B$20))*'Retirement Worksheet'!$B$13)+(H3*'Retirement Worksheet'!$B$14) -> 10140 | N3: =(H3*'Retirement Worksheet'!$B$15)+IF('Retirement Worksheet'!$B$17="Yes",'Retirement Calculations'!I3*'Retirement Worksheet'!$B$15,0)+IF('Retirement Worksheet'!$B$21="Yes",'Retirement Calculations'!J3*'Retirement Worksheet'!$B$15,0) -> 1920 | O3: =(H3*'Retirement Worksheet'!$B$16)+IF('Retirement Worksheet'!$B$17="Yes",'Retirement Calculations'!I3*'Retirement Worksheet'!$B$16,0)+IF('Retirement Worksheet'!$B$21="Yes",'Retirement Calculations'!J3*'Retirement Worksheet'!$B$16,0) -> 640 | Q3: =SUM(G3:J3)-SUM(M3:O3) -> 82770.2773 | R3: ='Retirement Worksheet'!$B$27 -> 70000 | S3: =Q3-R3 -> 12770.2773
A4: =IF(A3<'Retirement Worksheet'!$B$8,A3+1,NA()) -> 66 | B4: =IF(ISERROR(A4),NA(),E3-H3+S3) -> 818770.2773 | C4: =B4*'Retirement Worksheet'!$B$18 -> 2046.925693 | D4: =B4*'Retirement Worksheet'!$B$30 -> 40938.51386 | E4: =B4-C4+D4 -> 857661.8655 | G4: =IF(ISERROR(A4),NA(),(G3*(1+'Retirement Worksheet'!$B$29))) -> 44339.68284 | H4: =B4*'Retirement Worksheet'!$B$12 -> 32750.81109 | I4: =IF(ISERROR(A4),NA(),I3*(1+'Retirement Worksheet'!$B$29)) -> 0 | J4: =IF(ISERROR(A4),NA(),J3*(1+'Retirement Worksheet'!$B$29)) -> 20400 | K4: =SUM(G4:J4) -> 97490.49394 | M4: =((('Retirement Calculations'!I4)+(J4*'Retirement Worksheet'!$B$20))*'Retirement Worksheet'!$B$13)+(H4*'Retirement Worksheet'!$B$14) -> 10364.96222 | N4: =(H4*'Retirement Worksheet'!$B$15)+IF('Retirement Worksheet'!$B$17="Yes",'Retirement Calculations'!I4*'Retirement Worksheet'!$B$15,0)+IF('Retirement Worksheet'!$B$21="Yes",'Retirement Calculations'!J4*'Retirement Worksheet'!$B$15,0) -> 1965.048666 | O4: =(H4*'Retirement Worksheet'!$B$16)+IF('Retirement Worksheet'!$B$17="Yes",'Retirement Calculations'!I4*'Retirement Worksheet'!$B$16,0)+IF('Retirement Worksheet'!$B$21="Yes",'Retirement Calculations'!J4*'Retirement Worksheet'!$B$16,0) -> 655.0162218 | Q4: =SUM(G4:J4)-SUM(M4:O4) -> 84505.46683 | R4: =IF(ISERROR(A4),NA(),R3*(1+'Retirement Worksheet'!$B$28)) -> 72100 | S4: =Q4-R4 -> 12405.46683
A5: =IF(A4<'Retirement Worksheet'!$B$8,A4+1,NA()) -> 67 | B5: =IF(ISERROR(A5),NA(),E4-H4+S4) -> 837316.5212 | C5: =B5*'Retirement Worksheet'!$B$18 -> 2093.291303 | D5: =B5*'Retirement Worksheet'!$B$30 -> 41865.82606 | E5: =B5-C5+D5 -> 877089.056 | G5: =IF(ISERROR(A5),NA(),(G4*(1+'Retirement Worksheet'!$B$29))) -> 45226.4765 | H5: =B5*'Retirement Worksheet'!$B$12 -> 33492.66085 | I5: =IF(ISERROR(A5),NA(),I4*(1+'Retirement Worksheet'!$B$29)) -> 0 | J5: =IF(ISERROR(A5),NA(),J4*(1+'Retirement Worksheet'!$B$29)) -> 20808 | K5: 99527.13735 | M5: =((('Retirement Calculations'!I5)+(J5*'Retirement Worksheet'!$B$20))*'Retirement Worksheet'!$B$13)+(H5*'Retirement Worksheet'!$B$14) -> 10589.62817 | N5: =(H5*'Retirement Worksheet'!$B$15)+IF('Retirement Worksheet'!$B$17="Yes",'Retirement Calculations'!I5*'Retirement Worksheet'!$B$15,0)+IF('Retirement Worksheet'!$B$21="Yes",'Retirement Calculations'!J5*'Retirement Worksheet'!$B$15,0) -> 2009.559651 | O5: =(H5*'Retirement Worksheet'!$B$16)+IF('Retirement Worksheet'!$B$17="Yes",'Retirement Calculations'!I5*'Retirement Worksheet'!$B$16,0)+IF('Retirement Worksheet'!$B$21="Yes",'Retirement Calculations'!J5*'Retirement Worksheet'!$B$16,0) -> 669.853217 | Q5: 86258.09631 | R5: =IF(ISERROR(A5),NA(),R4*(1+'Retirement Worksheet'!$B$28)) -> 74263 | S5: =Q5-R5 -> 11995.09631
A6: =IF(A5<'Retirement Worksheet'!$B$8,A5+1,NA()) -> 68 | B6: 855591.4914 | C6: =B6*'Retirement Worksheet'!$B$18 -> 2138.978729 | D6: =B6*'Retirement Worksheet'!$B$30 -> 42779.57457 | E6: =B6-C6+D6 -> 896232.0873 | G6: =IF(ISERROR(A6),NA(),(G5*(1+'Retirement Worksheet'!$B$29))) -> 46131.00603 | H6: =B6*'Retirement Worksheet'!$B$12 -> 34223.65966 | I6: =IF(ISERROR(A6),NA(),I5*(1+'Retirement Worksheet'!$B$29)) -> 0 | J6: =IF(ISERROR(A6),NA(),J5*(1+'Retirement Worksheet'!$B$29)) -> 21224.16 | K6: 101578.8257 | M6: =((('Retirement Calculations'!I6)+(J6*'Retirement Worksheet'!$B$20))*'Retirement Worksheet'!$B$13)+(H6*'Retirement Worksheet'!$B$14) -> 10813.64985 | N6: =(H6*'Retirement Worksheet'!$B$15)+IF('Retirement Worksheet'!$B$17="Yes",'Retirement Calculations'!I6*'Retirement Worksheet'!$B$15,0)+IF('Retirement Worksheet'!$B$21="Yes",'Retirement Calculations'!J6*'Retirement Worksheet'!$B$15,0) -> 2053.419579 | O6: =(H6*'Retirement Worksheet'!$B$16)+IF('Retirement Worksheet'!$B$17="Yes",'Retirement Calculations'!I6*'Retirement Worksheet'!$B$16,0)+IF('Retirement Worksheet'!$B$21="Yes",'Retirement Calculations'!J6*'Retirement Worksheet'!$B$16,0) -> 684.4731931 | Q6: 88027.28306 | R6: =IF(ISERROR(A6),NA(),R5*(1+'Retirement Worksheet'!$B$28)) -> 76490.89 | S6: =Q6-R6 -> 11536.39306
A7: =IF(A6<'Retirement Worksheet'!$B$8,A6+1,NA()) -> 69 | B7: 873544.8207 | C7: =B7*'Retirement Worksheet'!$B$18 -> 2183.862052 | D7: =B7*'Retirement Worksheet'!$B$30 -> 43677.24103 | E7: =B7-C7+D7 -> 915038.1997 | G7: =IF(ISERROR(A7),NA(),(G6*(1+'Retirement Worksheet'!$B$29))) -> 47053.62615 | H7: =B7*'Retirement Worksheet'!$B$12 -> 34941.79283 | I7: =IF(ISERROR(A7),NA(),I6*(1+'Retirement Worksheet'!$B$29)) -> 0 | J7: =IF(ISERROR(A7),NA(),J6*(1+'Retirement Worksheet'!$B$29)) -> 21648.6432 | K7: 103644.0622 | M7: =((('Retirement Calculations'!I7)+(J7*'Retirement Worksheet'!$B$20))*'Retirement Worksheet'!$B$13)+(H7*'Retirement Worksheet'!$B$14) -> 11036.65484 | N7: =(H7*'Retirement Worksheet'!$B$15)+IF('Retirement Worksheet'!$B$17="Yes",'Retirement Calculations'!I7*'Retirement Worksheet'!$B$15,0)+IF('Retirement Worksheet'!$B$21="Yes",'Retirement Calculations'!J7*'Retirement Worksheet'!$B$15,0) -> 2096.50757 | O7: =(H7*'Retirement Worksheet'!$B$16)+IF('Retirement Worksheet'!$B$17="Yes",'Retirement Calculations'!I7*'Retirement Worksheet'!$B$16,0)+IF('Retirement Worksheet'!$B$21="Yes",'Retirement Calculations'!J7*'Retirement Worksheet'!$B$16,0) -> 698.8358565 | Q7: 89812.06391 | R7: =IF(ISERROR(A7),NA(),R6*(1+'Retirement Worksheet'!$B$28)) -> 78785.6167 | S7: =Q7-R7 -> 11026.44721
A8: =IF(A7<'Retirement Worksheet'!$B$8,A7+1,NA()) -> 70 | B8: 891122.854 | C8: =B8*'Retirement Worksheet'!$B$18 -> 2227.807135 | D8: =B8*'Retirement Worksheet'!$B$30 -> 44556.1427 | E8: 933451.1896 | G8: =IF(ISERROR(A8),NA(),(G7*(1+'Retirement Worksheet'!$B$29))) -> 47994.69867 | H8: =B8*'Retirement Worksheet'!$B$12 -> 35644.91416 | I8: =IF(ISERROR(A8),NA(),I7*(1+'Retirement Worksheet'!$B$29)) -> 0 | J8: =IF(ISERROR(A8),NA(),J7*(1+'Retirement Worksheet'!$B$29)) -> 22081.61606 | K8: 105721.2289 | M8: =((('Retirement Calculations'!I8)+(J8*'Retirement Worksheet'!$B$20))*'Retirement Worksheet'!$B$13)+(H8*'Retirement Worksheet'!$B$14) -> 11258.24504 | N8: =(H8*'Retirement Worksheet'!$B$15)+IF('Retirement Worksheet'!$B$17="Yes",'Retirement Calculations'!I8*'Retirement Worksheet'!$B$15,0)+IF('Retirement Worksheet'!$B$21="Yes",'Retirement Calculations'!J8*'Retirement Worksheet'!$B$15,0) -> 2138.69485 | O8: =(H8*'Retirement Worksheet'!$B$16)+IF('Retirement Worksheet'!$B$17="Yes",'Retirement Calculations'!I8*'Retirement Worksheet'!$B$16,0)+IF('Retirement Worksheet'!$B$21="Yes",'Retirement Calculations'!J8*'Retirement Worksheet'!$B$16,0) -> 712.8982832 | Q8: 91611.39073 | R8: =IF(ISERROR(A8),NA(),R7*(1+'Retirement Worksheet'!$B$28)) -> 81149.1852 | S8: 10462.20553
A9: =IF(A8<'Retirement Worksheet'!$B$8,A8+1,NA()) -> 71 | B9: 908268.481 | C9: =B9*'Retirement Worksheet'!$B$18 -> 2270.671202 | D9: =B9*'Retirement Worksheet'!$B$30 -> 45413.42405 | E9: 951411.2338 | G9: =IF(ISERROR(A9),NA(),(G8*(1+'Retirement Worksheet'!$B$29))) -> 48954.59265 | H9: =B9*'Retirement Worksheet'!$B$12 -> 36330.73924 | I9: =IF(ISERROR(A9),NA(),I8*(1+'Retirement Worksheet'!$B$29)) -> 0 | J9: =IF(ISERROR(A9),NA(),J8*(1+'Retirement Worksheet'!$B$29)) -> 22523.24839 | K9: 107808.5803 | M9: =((('Retirement Calculations'!I9)+(J9*'Retirement Worksheet'!$B$20))*'Retirement Worksheet'!$B$13)+(H9*'Retirement Worksheet'!$B$14) -> 11477.9953 | N9: =(H9*'Retirement Worksheet'!$B$15)+IF('Retirement Worksheet'!$B$17="Yes",'Retirement Calculations'!I9*'Retirement Worksheet'!$B$15,0)+IF('Retirement Worksheet'!$B$21="Yes",'Retirement Calculations'!J9*'Retirement Worksheet'!$B$15,0) -> 2179.844354 | O9: =(H9*'Retirement Worksheet'!$B$16)+IF('Retirement Worksheet'!$B$17="Yes",'Retirement Calculations'!I9*'Retirement Worksheet'!$B$16,0)+IF('Retirement Worksheet'!$B$21="Yes",'Retirement Calculations'!J9*'Retirement Worksheet'!$B$16,0) -> 726.6147848 | Q9: 93424.12584 | R9: =IF(ISERROR(A9),NA(),R8*(1+'Retirement Worksheet'!$B$28)) -> 83583.66076 | S9: 9840.46508
A10: =IF(A9<'Retirement Worksheet'!$B$8,A9+1,NA()) -> 72 | B10: 924920.9597 | C10: =B10*'Retirement Worksheet'!$B$18 -> 2312.302399 | D10: =B10*'Retirement Worksheet'!$B$30 -> 46246.04798 | E10: 968854.7052 | G10: =IF(ISERROR(A10),NA(),(G9*(1+'Retirement Worksheet'!$B$29))) -> 49933.6845 | H10: =B10*'Retirement Worksheet'!$B$12 -> 36996.83839 | I10: =IF(ISERROR(A10),NA(),I9*(1+'Retirement Worksheet'!$B$29)) -> 0 | J10: =IF(ISERROR(A10),NA(),J9*(1+'Retirement Worksheet'!$B$29)) -> 22973.71335 | K10: 109904.2362 | M10: =((('Retirement Calculations'!I10)+(J10*'Retirement Worksheet'!$B$20))*'Retirement Worksheet'!$B$13)+(H10*'Retirement Worksheet'!$B$14) -> 11695.45207 | N10: =(H10*'Retirement Worksheet'!$B$15)+IF('Retirement Worksheet'!$B$17="Yes",'Retirement Calculations'!I10*'Retirement Worksheet'!$B$15,0)+IF('Retirement Worksheet'!$B$21="Yes",'Retirement Calculations'!J10*'Retirement Worksheet'!$B$15,0) -> 2219.810303 | O10: =(H10*'Retirement Worksheet'!$B$16)+IF('Retirement Worksheet'!$B$17="Yes",'Retirement Calculations'!I10*'Retirement Worksheet'!$B$16,0)+IF('Retirement Worksheet'!$B$21="Yes",'Retirement Calculations'!J10*'Retirement Worksheet'!$B$16,0) -> 739.9367677 | Q10: 95249.03709 | R10: =IF(ISERROR(A10),NA(),R9*(1+'Retirement Worksheet'!$B$28)) -> 86091.17058 | S10: 9157.866515
A11: =IF(A10<'Retirement Worksheet'!$B$8,A10+1,NA()) -> 73 | B11: 941015.7334 | C11: =B11*'Retirement Worksheet'!$B$18 -> 2352.539333 | D11: =B11*'Retirement Worksheet'!$B$30 -> 47050.78667 | E11: 985713.9807 | G11: =IF(ISERROR(A11),NA(),(G10*(1+'Retirement Worksheet'!$B$29))) -> 50932.35819 | H11: =B11*'Retirement Worksheet'!$B$12 -> 37640.62934 | I11: =IF(ISERROR(A11),NA(),I10*(1+'Retirement Worksheet'!$B$29)) -> 0 | J11: =IF(ISERROR(A11),NA(),J10*(1+'Retirement Worksheet'!$B$29)) -> 23433.18762 | K11: 112006.1751 | M11: =((('Retirement Calculations'!I11)+(J11*'Retirement Worksheet'!$B$20))*'Retirement Worksheet'!$B$13)+(H11*'Retirement Worksheet'!$B$14) -> 11910.13195 | N11: =(H11*'Retirement Worksheet'!$B$15)+IF('Retirement Worksheet'!$B$17="Yes",'Retirement Calculations'!I11*'Retirement Worksheet'!$B$15,0)+IF('Retirement Worksheet'!$B$21="Yes",'Retirement Calculations'!J11*'Retirement Worksheet'!$B$15,0) -> 2258.43776 | O11: =(H11*'Retirement Worksheet'!$B$16)+IF('Retirement Worksheet'!$B$17="Yes",'Retirement Calculations'!I11*'Retirement Worksheet'!$B$16,0)+IF('Retirement Worksheet'!$B$21="Yes",'Retirement Calculations'!J11*'Retirement Worksheet'!$B$16,0) -> 752.8125867 | Q11: 97084.79285 | R11: =IF(ISERROR(A11),NA(),R10*(1+'Retirement Worksheet'!$B$28)) -> 88673.9057 | S11: 8410.88715
A12: =IF(A11<'Retirement Worksheet'!$B$8,A11+1,NA()) -> 74 | B12: 956484.2385 | C12: =B12*'Retirement Worksheet'!$B$18 -> 2391.210596 | D12: =B12*'Retirement Worksheet'!$B$30 -> 47824.21193 | E12: 1001917.24 | G12: =IF(ISERROR(A12),NA(),(G11*(1+'Retirement Worksheet'!$B$29))) -> 51951.00535 | H12: =B12*'Retirement Worksheet'!$B$12 -> 38259.36954 | I12: =IF(ISERROR(A12),NA(),I11*(1+'Retirement Worksheet'!$B$29)) -> 0 | J12: =IF(ISERROR(A12),NA(),J11*(1+'Retirement Worksheet'!$B$29)) -> 23901.85137 | K12: 114112.2263 | M12: =((('Retirement Calculations'!I12)+(J12*'Retirement Worksheet'!$B$20))*'Retirement Worksheet'!$B$13)+(H12*'Retirement Worksheet'!$B$14) -> 12121.52011 | N12: =(H12*'Retirement Worksheet'!$B$15)+IF('Retirement Worksheet'!$B$17="Yes",'Retirement Calculations'!I12*'Retirement Worksheet'!$B$15,0)+IF('Retirement Worksheet'!$B$21="Yes",'Retirement Calculations'!J12*'Retirement Worksheet'!$B$15,0) -> 2295.562172 | O12: =(H12*'Retirement Worksheet'!$B$16)+IF('Retirement Worksheet'!$B$17="Yes",'Retirement Calculations'!I12*'Retirement Worksheet'!$B$16,0)+IF('Retirement Worksheet'!$B$21="Yes",'Retirement Calculations'!J12*'Retirement Worksheet'!$B$16,0) -> 765.1873908 | Q12: 98929.95659 | R12: =IF(ISERROR(A12),NA(),R11*(1+'Retirement Worksheet'!$B$28)) -> 91334.12287 | S12: 7595.833722
A13: =IF(A12<'Retirement Worksheet'!$B$8,A12+1,NA()) -> 75 | B13: 971253.704 | C13: =B13*'Retirement Worksheet'!$B$18 -> 2428.13426 | D13: =B13*'Retirement Worksheet'!$B$30 -> 48562.6852 | E13: 1017388.255 | G13: =IF(ISERROR(A13),NA(),(G12*(1+'Retirement Worksheet'!$B$29))) -> 52990.02546 | H13: =B13*'Retirement Worksheet'!$B$12 -> 38850.14816 | I13: =IF(ISERROR(A13),NA(),I12*(1+'Retirement Worksheet'!$B$29)) -> 0 | J13: =IF(ISERROR(A13),NA(),J12*(1+'Retirement Worksheet'!$B$29)) -> 24379.8884 | K13: 116220.062 | M13: =((('Retirement Calculations'!I13)+(J13*'Retirement Worksheet'!$B$20))*'Retirement Worksheet'!$B$13)+(H13*'Retirement Worksheet'!$B$14) -> 12329.06876 | N13: =(H13*'Retirement Worksheet'!$B$15)+IF('Retirement Worksheet'!$B$17="Yes",'Retirement Calculations'!I13*'Retirement Worksheet'!$B$15,0)+IF('Retirement Worksheet'!$B$21="Yes",'Retirement Calculations'!J13*'Retirement Worksheet'!$B$15,0) -> 2331.00889 | O13: =(H13*'Retirement Worksheet'!$B$16)+IF('Retirement Worksheet'!$B$17="Yes",'Retirement Calculations'!I13*'Retirement Worksheet'!$B$16,0)+IF('Retirement Worksheet'!$B$21="Yes",'Retirement Calculations'!J13*'Retirement Worksheet'!$B$16,0) -> 777.0029632 | Q13: 100782.9814 | R13: =IF(ISERROR(A13),NA(),R12*(1+'Retirement Worksheet'!$B$28)) -> 94074.14655 | S13: 6708.834853
A14: =IF(A13<'Retirement Worksheet'!$B$8,A13+1,NA()) -> 76 | B14: 985246.9417 | C14: =B14*'Retirement Worksheet'!$B$18 -> 2463.117354 | D14: =B14*'Retirement Worksheet'!$B$30 -> 49262.34708 | E14: 1032046.171 | G14: =IF(ISERROR(A14),NA(),(G13*(1+'Retirement Worksheet'!$B$29))) -> 54049.82597 | H14: =B14*'Retirement Worksheet'!$B$12 -> 39409.87767 | I14: =IF(ISERROR(A14),NA(),I13*(1+'Retirement Worksheet'!$B$29)) -> 0 | J14: =IF(ISERROR(A14),NA(),J13*(1+'Retirement Worksheet'!$B$29)) -> 24867.48617 | K14: 118327.1898 | M14: =((('Retirement Calculations'!I14)+(J14*'Retirement Worksheet'!$B$20))*'Retirement Worksheet'!$B$13)+(H14*'Retirement Worksheet'!$B$14) -> 12532.19545 | N14: =(H14*'Retirement Worksheet'!$B$15)+IF('Retirement Worksheet'!$B$17="Yes",'Retirement Calculations'!I14*'Retirement Worksheet'!$B$15,0)+IF('Retirement Worksheet'!$B$21="Yes",'Retirement Calculations'!J14*'Retirement Worksheet'!$B$15,0) -> 2364.59266 | O14: =(H14*'Retirement Worksheet'!$B$16)+IF('Retirement Worksheet'!$B$17="Yes",'Retirement Calculations'!I14*'Retirement Worksheet'!$B$16,0)+IF('Retirement Worksheet'!$B$21="Yes",'Retirement Calculations'!J14*'Retirement Worksheet'!$B$16,0) -> 788.1975533 | Q14: 102642.2041 | R14: =IF(ISERROR(A14),NA(),R13*(1+'Retirement Worksheet'!$B$28)) -> 96896.37095 | S14: 5745.833195
A15: =IF(A14<'Retirement Worksheet'!$B$8,A14+1,NA()) -> 77 | B15: 998382.1269 | C15: =B15*'Retirement Worksheet'!$B$18 -> 2495.955317 | D15: =B15*'Retirement Worksheet'!$B$30 -> 49919.10635 | E15: 1045805.278 | G15: =IF(ISERROR(A15),NA(),(G14*(1+'Retirement Worksheet'!$B$29))) -> 55130.82249 | H15: =B15*'Retirement Worksheet'!$B$12 -> 39935.28508 | I15: =IF(ISERROR(A15),NA(),I14*(1+'Retirement Worksheet'!$B$29)) -> 0 | J15: =IF(ISERROR(A15),NA(),J14*(1+'Retirement Worksheet'!$B$29)) -> 25364.83589 | K15: 120430.9435 | M15: =((('Retirement Calculations'!I15)+(J15*'Retirement Worksheet'!$B$20))*'Retirement Worksheet'!$B$13)+(H15*'Retirement Worksheet'!$B$14) -> 12730.28133 | N15: =(H15*'Retirement Worksheet'!$B$15)+IF('Retirement Worksheet'!$B$17="Yes",'Retirement Calculations'!I15*'Retirement Worksheet'!$B$15,0)+IF('Retirement Worksheet'!$B$21="Yes",'Retirement Calculations'!J15*'Retirement Worksheet'!$B$15,0) -> 2396.117105 | O15: =(H15*'Retirement Worksheet'!$B$16)+IF('Retirement Worksheet'!$B$17="Yes",'Retirement Calculations'!I15*'Retirement Worksheet'!$B$16,0)+IF('Retirement Worksheet'!$B$21="Yes",'Retirement Calculations'!J15*'Retirement Worksheet'!$B$16,0) -> 798.7057015 | Q15: 104505.8393 | R15: =IF(ISERROR(A15),NA(),R14*(1+'Retirement Worksheet'!$B$28)) -> 99803.26208 | S15: 4702.577246
A16: =IF(A15<'Retirement Worksheet'!$B$8,A15+1,NA()) -> 78 | B16: 1010572.57 | C16: =B16*'Retirement Worksheet'!$B$18 -> 2526.431425 | D16: =B16*'Retirement Worksheet'!$B$30 -> 50528.62851 | E16: 1058574.767 | G16: =IF(ISERROR(A16),NA(),(G15*(1+'Retirement Worksheet'!$B$29))) -> 56233.43894 | H16: =B16*'Retirement Worksheet'!$B$12 -> 40422.9028 | I16: =IF(ISERROR(A16),NA(),I15*(1+'Retirement Worksheet'!$B$29)) -> 0 | J16: =IF(ISERROR(A16),NA(),J15*(1+'Retirement Worksheet'!$B$29)) -> 25872.13261 | K16: 122528.4744 | M16: =((('Retirement Calculations'!I16)+(J16*'Retirement Worksheet'!$B$20))*'Retirement Worksheet'!$B$13)+(H16*'Retirement Worksheet'!$B$14) -> 12922.66936 | N16: =(H16*'Retirement Worksheet'!$B$15)+IF('Retirement Worksheet'!$B$17="Yes",'Retirement Calculations'!I16*'Retirement Worksheet'!$B$15,0)+IF('Retirement Worksheet'!$B$21="Yes",'Retirement Calculations'!J16*'Retirement Worksheet'!$B$15,0) -> 2425.374168 | O16: =(H16*'Retirement Worksheet'!$B$16)+IF('Retirement Worksheet'!$B$17="Yes",'Retirement Calculations'!I16*'Retirement Worksheet'!$B$16,0)+IF('Retirement Worksheet'!$B$21="Yes",'Retirement Calculations'!J16*'Retirement Worksheet'!$B$16,0) -> 808.4580561 | Q16: 106371.9728 | R16: =IF(ISERROR(A16),NA(),R15*(1+'Retirement Worksheet'!$B$28)) -> 102797.3599 | S16: 3574.612829
A17: =IF(A16<'Retirement Worksheet'!$B$8,A16+1,NA()) -> 79 | B17: 1021726.477 | C17: =B17*'Retirement Worksheet'!$B$18 -> 2554.316193 | D17: =B17*'Retirement Worksheet'!$B$30 -> 51086.32386 | E17: 1070258.485 | G17: =IF(ISERROR(A17),NA(),(G16*(1+'Retirement Worksheet'!$B$29))) -> 57358.10772 | H17: =B17*'Retirement Worksheet'!$B$12 -> 40869.05909 | I17: =IF(ISERROR(A17),NA(),I16*(1+'Retirement Worksheet'!$B$29)) -> 0 | J17: =IF(ISERROR(A17),NA(),J16*(1+'Retirement Worksheet'!$B$29)) -> 26389.57526 | K17: 124616.7421 | M17: =((('Retirement Calculations'!I17)+(J17*'Retirement Worksheet'!$B$20))*'Retirement Worksheet'!$B$13)+(H17*'Retirement Worksheet'!$B$14) -> 13108.66239 | N17: =(H17*'Retirement Worksheet'!$B$15)+IF('Retirement Worksheet'!$B$17="Yes",'Retirement Calculations'!I17*'Retirement Worksheet'!$B$15,0)+IF('Retirement Worksheet'!$B$21="Yes",'Retirement Calculations'!J17*'Retirement Worksheet'!$B$15,0) -> 2452.143545 | O17: =(H17*'Retirement Worksheet'!$B$16)+IF('Retirement Worksheet'!$B$17="Yes",'Retirement Calculations'!I17*'Retirement Worksheet'!$B$16,0)+IF('Retirement Worksheet'!$B$21="Yes",'Retirement Calculations'!J17*'Retirement Worksheet'!$B$16,0) -> 817.3811818 | Q17: 108238.555 | R17: =IF(ISERROR(A17),NA(),R16*(1+'Retirement Worksheet'!$B$28)) -> 105881.2807 | S17: 2357.274211
A18: =IF(A17<'Retirement Worksheet'!$B$8,A17+1,NA()) -> 80 | B18: 1031746.7 | C18: =B18*'Retirement Worksheet'!$B$18 -> 2579.36675 | D18: =B18*'Retirement Worksheet'!$B$30 -> 51587.335 | E18: 1080754.668 | G18: =IF(ISERROR(A18),NA(),(G17*(1+'Retirement Worksheet'!$B$29))) -> 58505.26987 | H18: =B18*'Retirement Worksheet'!$B$12 -> 41269.868 | I18: =IF(ISERROR(A18),NA(),I17*(1+'Retirement Worksheet'!$B$29)) -> 0 | J18: =IF(ISERROR(A18),NA(),J17*(1+'Retirement Worksheet'!$B$29)) -> 26917.36677 | K18: 126692.5046 | M18: =((('Retirement Calculations'!I18)+(J18*'Retirement Worksheet'!$B$20))*'Retirement Worksheet'!$B$13)+(H18*'Retirement Worksheet'!$B$14) -> 13287.52119 | N18: =(H18*'Retirement Worksheet'!$B$15)+IF('Retirement Worksheet'!$B$17="Yes",'Retirement Calculations'!I18*'Retirement Worksheet'!$B$15,0)+IF('Retirement Worksheet'!$B$21="Yes",'Retirement Calculations'!J18*'Retirement Worksheet'!$B$15,0) -> 2476.19208 | O18: =(H18*'Retirement Worksheet'!$B$16)+IF('Retirement Worksheet'!$B$17="Yes",'Retirement Calculations'!I18*'Retirement Worksheet'!$B$16,0)+IF('Retirement Worksheet'!$B$21="Yes",'Retirement Calculations'!J18*'Retirement Worksheet'!$B$16,0) -> 825.39736 | Q18: 110103.394 | R18: =IF(ISERROR(A18),NA(),R17*(1+'Retirement Worksheet'!$B$28)) -> 109057.7192 | S18: 1045.674853
A19: =IF(A18<'Retirement Worksheet'!$B$8,A18+1,NA()) -> 81 | B19: 1040530.475 | C19: =B19*'Retirement Worksheet'!$B$18 -> 2601.326188 | D19: =B19*'Retirement Worksheet'!$B$30 -> 52026.52376 | E19: 1089955.673 | G19: =IF(ISERROR(A19),NA(),(G18*(1+'Retirement Worksheet'!$B$29))) -> 59675.37527 | H19: =B19*'Retirement Worksheet'!$B$12 -> 41621.219 | I19: =IF(ISERROR(A19),NA(),I18*(1+'Retirement Worksheet'!$B$29)) -> 0 | J19: =IF(ISERROR(A19),NA(),J18*(1+'Retirement Worksheet'!$B$29)) -> 27455.7141 | K19: 128752.3084 | M19: =((('Retirement Calculations'!I19)+(J19*'Retirement Worksheet'!$B$20))*'Retirement Worksheet'!$B$13)+(H19*'Retirement Worksheet'!$B$14) -> 13458.46234 | N19: =(H19*'Retirement Worksheet'!$B$15)+IF('Retirement Worksheet'!$B$17="Yes",'Retirement Calculations'!I19*'Retirement Worksheet'!$B$15,0)+IF('Retirement Worksheet'!$B$21="Yes",'Retirement Calculations'!J19*'Retirement Worksheet'!$B$15,0) -> 2497.27314 | O19: =(H19*'Retirement Worksheet'!$B$16)+IF('Retirement Worksheet'!$B$17="Yes",'Retirement Calculations'!I19*'Retirement Worksheet'!$B$16,0)+IF('Retirement Worksheet'!$B$21="Yes",'Retirement Calculations'!J19*'Retirement Worksheet'!$B$16,0) -> 832.4243801 | Q19: 111964.1485 | R19: =IF(ISERROR(A19),NA(),R18*(1+'Retirement Worksheet'!$B$28)) -> 112329.4507 | S19: -365.302218
A20: =IF(A19<'Retirement Worksheet'!$B$8,A19+1,NA()) -> 82 | B20: 1047969.151 | C20: =B20*'Retirement Worksheet'!$B$18 -> 2619.922879 | D20: =B20*'Retirement Worksheet'!$B$30 -> 52398.45757 | E20: 1097747.686 | G20: =IF(ISERROR(A20),NA(),(G19*(1+'Retirement Worksheet'!$B$29))) -> 60868.88278 | H20: =B20*'Retirement Worksheet'!$B$12 -> 41918.76606 | I20: =IF(ISERROR(A20),NA(),I19*(1+'Retirement Worksheet'!$B$29)) -> 0 | J20: =IF(ISERROR(A20),NA(),J19*(1+'Retirement Worksheet'!$B$29)) -> 28004.82838 | K20: 130792.4772 | M20: =((('Retirement Calculations'!I20)+(J20*'Retirement Worksheet'!$B$20))*'Retirement Worksheet'!$B$13)+(H20*'Retirement Worksheet'!$B$14) -> 13620.65612 | N20: =(H20*'Retirement Worksheet'!$B$15)+IF('Retirement Worksheet'!$B$17="Yes",'Retirement Calculations'!I20*'Retirement Worksheet'!$B$15,0)+IF('Retirement Worksheet'!$B$21="Yes",'Retirement Calculations'!J20*'Retirement Worksheet'!$B$15,0) -> 2515.125964 | O20: =(H20*'Retirement Worksheet'!$B$16)+IF('Retirement Worksheet'!$B$17="Yes",'Retirement Calculations'!I20*'Retirement Worksheet'!$B$16,0)+IF('Retirement Worksheet'!$B$21="Yes",'Retirement Calculations'!J20*'Retirement Worksheet'!$B$16,0) -> 838.3753212 | Q20: 113818.3198 | R20: =IF(ISERROR(A20),NA(),R19*(1+'Retirement Worksheet'!$B$28)) -> 115699.3343 | S20: -1881.014445
A21: =IF(A20<'Retirement Worksheet'!$B$8,A20+1,NA()) -> 83 | B21: 1053947.906 | C21: =B21*'Retirement Worksheet'!$B$18 -> 2634.869764 | D21: =B21*'Retirement Worksheet'!$B$30 -> 52697.39528 | E21: 1104010.431 | G21: =IF(ISERROR(A21),NA(),(G20*(1+'Retirement Worksheet'!$B$29))) -> 62086.26043 | H21: =B21*'Retirement Worksheet'!$B$12 -> 42157.91623 | I21: =IF(ISERROR(A21),NA(),I20*(1+'Retirement Worksheet'!$B$29)) -> 0 | J21: =IF(ISERROR(A21),NA(),J20*(1+'Retirement Worksheet'!$B$29)) -> 28564.92495 | K21: 132809.1016 | M21: =((('Retirement Calculations'!I21)+(J21*'Retirement Worksheet'!$B$20))*'Retirement Worksheet'!$B$13)+(H21*'Retirement Worksheet'!$B$14) -> 13773.22421 | N21: =(H21*'Retirement Worksheet'!$B$15)+IF('Retirement Worksheet'!$B$17="Yes",'Retirement Calculations'!I21*'Retirement Worksheet'!$B$15,0)+IF('Retirement Worksheet'!$B$21="Yes",'Retirement Calculations'!J21*'Retirement Worksheet'!$B$15,0) -> 2529.474974 | O21: =(H21*'Retirement Worksheet'!$B$16)+IF('Retirement Worksheet'!$B$17="Yes",'Retirement Calculations'!I21*'Retirement Worksheet'!$B$16,0)+IF('Retirement Worksheet'!$B$21="Yes",'Retirement Calculations'!J21*'Retirement Worksheet'!$B$16,0) -> 843.1583245 | Q21: 115663.2441 | R21: =IF(ISERROR(A21),NA(),R20*(1+'Retirement Worksheet'!$B$28)) -> 119170.3143 | S21: -3507.070187
A22: =IF(A21<'Retirement Worksheet'!$B$8,A21+1,NA()) -> 84 | B22: 1058345.445 | C22: =B22*'Retirement Worksheet'!$B$18 -> 2645.863612 | D22: =B22*'Retirement Worksheet'!$B$30 -> 52917.27224 | E22: 1108616.853 | G22: =IF(ISERROR(A22),NA(),(G21*(1+'Retirement Worksheet'!$B$29))) -> 63327.98564 | H22: =B22*'Retirement Worksheet'!$B$12 -> 42333.81779 | I22: =IF(ISERROR(A22),NA(),I21*(1+'Retirement Worksheet'!$B$29)) -> 0 | J22: =IF(ISERROR(A22),NA(),J21*(1+'Retirement Worksheet'!$B$29)) -> 29136.22345 | K22: 134798.0269 | M22: =((('Retirement Calculations'!I22)+(J22*'Retirement Worksheet'!$B$20))*'Retirement Worksheet'!$B$13)+(H22*'Retirement Worksheet'!$B$14) -> 13915.23734 | N22: =(H22*'Retirement Worksheet'!$B$15)+IF('Retirement Worksheet'!$B$17="Yes",'Retirement Calculations'!I22*'Retirement Worksheet'!$B$15,0)+IF('Retirement Worksheet'!$B$21="Yes",'Retirement Calculations'!J22*'Retirement Worksheet'!$B$15,0) -> 2540.029067 | O22: =(H22*'Retirement Worksheet'!$B$16)+IF('Retirement Worksheet'!$B$17="Yes",'Retirement Calculations'!I22*'Retirement Worksheet'!$B$16,0)+IF('Retirement Worksheet'!$B$21="Yes",'Retirement Calculations'!J22*'Retirement Worksheet'!$B$16,0) -> 846.6763558 | Q22: 117496.0841 | R22: =IF(ISERROR(A22),NA(),R21*(1+'Retirement Worksheet'!$B$28)) -> 122745.4237 | S22: -5249.339601
A23: =IF(A22<'Retirement Worksheet'!$B$8,A22+1,NA()) -> 85 | B23: 1061033.696 | C23: =B23*'Retirement Worksheet'!$B$18 -> 2652.58424 | D23: =B23*'Retirement Worksheet'!$B$30 -> 53051.6848 | E23: 1111432.797 | G23: =IF(ISERROR(A23),NA(),(G22*(1+'Retirement Worksheet'!$B$29))) -> 64594.54535 | H23: =B23*'Retirement Worksheet'!$B$12 -> 42441.34784 | I23: =IF(ISERROR(A23),NA(),I22*(1+'Retirement Worksheet'!$B$29)) -> 0 | J23: =IF(ISERROR(A23),NA(),J22*(1+'Retirement Worksheet'!$B$29)) -> 29718.94792 | K23: 136754.8411 | M23: =((('Retirement Calculations'!I23)+(J23*'Retirement Worksheet'!$B$20))*'Retirement Worksheet'!$B$13)+(H23*'Retirement Worksheet'!$B$14) -> 14045.71283 | N23: =(H23*'Retirement Worksheet'!$B$15)+IF('Retirement Worksheet'!$B$17="Yes",'Retirement Calculations'!I23*'Retirement Worksheet'!$B$15,0)+IF('Retirement Worksheet'!$B$21="Yes",'Retirement Calculations'!J23*'Retirement Worksheet'!$B$15,0) -> 2546.48087 | O23: =(H23*'Retirement Worksheet'!$B$16)+IF('Retirement Worksheet'!$B$17="Yes",'Retirement Calculations'!I23*'Retirement Worksheet'!$B$16,0)+IF('Retirement Worksheet'!$B$21="Yes",'Retirement Calculations'!J23*'Retirement Worksheet'!$B$16,0) -> 848.8269568 | Q23: 119313.8205 | R23: =IF(ISERROR(A23),NA(),R22*(1+'Retirement Worksheet'!$B$28)) -> 126427.7864 | S23: -7113.96597
A24: =IF(A23<'Retirement Worksheet'!$B$8,A23+1,NA()) -> 86 | B24: 1061877.483 | C24: =B24*'Retirement Worksheet'!$B$18 -> 2654.693707 | D24: =B24*'Retirement Worksheet'!$B$30 -> 53093.87414 | E24: 1112316.663 | G24: =IF(ISERROR(A24),NA(),(G23*(1+'Retirement Worksheet'!$B$29))) -> 65886.43626 | H24: =B24*'Retirement Worksheet'!$B$12 -> 42475.09931 | I24: =IF(ISERROR(A24),NA(),I23*(1+'Retirement Worksheet'!$B$29)) -> 0 | J24: =IF(ISERROR(A24),NA(),J23*(1+'Retirement Worksheet'!$B$29)) -> 30313.32688 | K24: 138674.8624 | M24: =((('Retirement Calculations'!I24)+(J24*'Retirement Worksheet'!$B$20))*'Retirement Worksheet'!$B$13)+(H24*'Retirement Worksheet'!$B$14) -> 14163.61199 | N24: =(H24*'Retirement Worksheet'!$B$15)+IF('Retirement Worksheet'!$B$17="Yes",'Retirement Calculations'!I24*'Retirement Worksheet'!$B$15,0)+IF('Retirement Worksheet'!$B$21="Yes",'Retirement Calculations'!J24*'Retirement Worksheet'!$B$15,0) -> 2548.505959 | O24: =(H24*'Retirement Worksheet'!$B$16)+IF('Retirement Worksheet'!$B$17="Yes",'Retirement Calculations'!I24*'Retirement Worksheet'!$B$16,0)+IF('Retirement Worksheet'!$B$21="Yes",'Retirement Calculations'!J24*'Retirement Worksheet'!$B$16,0) -> 849.5019862 | Q24: 121113.2425 | R24: =IF(ISERROR(A24),NA(),R23*(1+'Retirement Worksheet'!$B$28)) -> 130220.62 | S24: -9107.377505
A25: =IF(A24<'Retirement Worksheet'!$B$8,A24+1,NA()) -> 87 | B25: 1060734.186 | C25: =B25*'Retirement Worksheet'!$B$18 -> 2651.835466 | D25: =B25*'Retirement Worksheet'!$B$30 -> 53036.70932 | E25: 1111119.06 | G25: =IF(ISERROR(A25),NA(),(G24*(1+'Retirement Worksheet'!$B$29))) -> 67204.16499 | H25: =B25*'Retirement Worksheet'!$B$12 -> 42429.36745 | I25: =IF(ISERROR(A25),NA(),I24*(1+'Retirement Worksheet'!$B$29)) -> 0 | J25: =IF(ISERROR(A25),NA(),J24*(1+'Retirement Worksheet'!$B$29)) -> 30919.59342 | K25: 140553.1259 | M25: =((('Retirement Calculations'!I25)+(J25*'Retirement Worksheet'!$B$20))*'Retirement Worksheet'!$B$13)+(H25*'Retirement Worksheet'!$B$14) -> 14267.83746 | N25: =(H25*'Retirement Worksheet'!$B$15)+IF('Retirement Worksheet'!$B$17="Yes",'Retirement Calculations'!I25*'Retirement Worksheet'!$B$15,0)+IF('Retirement Worksheet'!$B$21="Yes",'Retirement Calculations'!J25*'Retirement Worksheet'!$B$15,0) -> 2545.762047 | O25: =(H25*'Retirement Worksheet'!$B$16)+IF('Retirement Worksheet'!$B$17="Yes",'Retirement Calculations'!I25*'Retirement Worksheet'!$B$16,0)+IF('Retirement Worksheet'!$B$21="Yes",'Retirement Calculations'!J25*'Retirement Worksheet'!$B$16,0) -> 848.5873491 | Q25: 122890.939 | R25: =IF(ISERROR(A25),NA(),R24*(1+'Retirement Worksheet'!$B$28)) -> 134127.2386 | S25: -11236.29962
A26: =IF(A25<'Retirement Worksheet'!$B$8,A25+1,NA()) -> 88 | B26: 1057453.393 | C26: =B26*'Retirement Worksheet'!$B$18 -> 2643.633483 | D26: =B26*'Retirement Worksheet'!$B$30 -> 52872.66966 | E26: 1107682.429 | G26: =IF(ISERROR(A26),NA(),(G25*(1+'Retirement Worksheet'!$B$29))) -> 68548.24828 | H26: =B26*'Retirement Worksheet'!$B$12 -> 42298.13573 | I26: =IF(ISERROR(A26),NA(),I25*(1+'Retirement Worksheet'!$B$29)) -> 0 | J26: =IF(ISERROR(A26),NA(),J25*(1+'Retirement Worksheet'!$B$29)) -> 31537.98528 | K26: 142384.3693 | M26: =((('Retirement Calculations'!I26)+(J26*'Retirement Worksheet'!$B$20))*'Retirement Worksheet'!$B$13)+(H26*'Retirement Worksheet'!$B$14) -> 14357.23039 | N26: =(H26*'Retirement Worksheet'!$B$15)+IF('Retirement Worksheet'!$B$17="Yes",'Retirement Calculations'!I26*'Retirement Worksheet'!$B$15,0)+IF('Retirement Worksheet'!$B$21="Yes",'Retirement Calculations'!J26*'Retirement Worksheet'!$B$15,0) -> 2537.888144 | O26: =(H26*'Retirement Worksheet'!$B$16)+IF('Retirement Worksheet'!$B$17="Yes",'Retirement Calculations'!I26*'Retirement Worksheet'!$B$16,0)+IF('Retirement Worksheet'!$B$21="Yes",'Retirement Calculations'!J26*'Retirement Worksheet'!$B$16,0) -> 845.9627145 | Q26: 124643.288 | R26: =IF(ISERROR(A26),NA(),R25*(1+'Retirement Worksheet'!$B$28)) -> 138151.0558 | S26: -13507.76774
A27: =IF(A26<'Retirement Worksheet'!$B$8,A26+1,NA()) -> 89 | B27: 1051876.526 | C27: =B27*'Retirement Worksheet'!$B$18 -> 2629.691315 | D27: =B27*'Retirement Worksheet'!$B$30 -> 52593.82629 | E27: 1101840.661 | G27: =IF(ISERROR(A27),NA(),(G26*(1+'Retirement Worksheet'!$B$29))) -> 69919.21325 | H27: =B27*'Retirement Worksheet'!$B$12 -> 42075.06103 | I27: =IF(ISERROR(A27),NA(),I26*(1+'Retirement Worksheet'!$B$29)) -> 0 | J27: =IF(ISERROR(A27),NA(),J26*(1+'Retirement Worksheet'!$B$29)) -> 32168.74499 | K27: 144163.0193 | M27: =((('Retirement Calculations'!I27)+(J27*'Retirement Worksheet'!$B$20))*'Retirement Worksheet'!$B$13)+(H27*'Retirement Worksheet'!$B$14) -> 14430.56752 | N27: =(H27*'Retirement Worksheet'!$B$15)+IF('Retirement Worksheet'!$B$17="Yes",'Retirement Calculations'!I27*'Retirement Worksheet'!$B$15,0)+IF('Retirement Worksheet'!$B$21="Yes",'Retirement Calculations'!J27*'Retirement Worksheet'!$B$15,0) -> 2524.503662 | O27: =(H27*'Retirement Worksheet'!$B$16)+IF('Retirement Worksheet'!$B$17="Yes",'Retirement Calculations'!I27*'Retirement Worksheet'!$B$16,0)+IF('Retirement Worksheet'!$B$21="Yes",'Retirement Calculations'!J27*'Retirement Worksheet'!$B$16,0) -> 841.5012207 | Q27: 126366.4469 | R27: =IF(ISERROR(A27),NA(),R26*(1+'Retirement Worksheet'!$B$28)) -> 142295.5875 | S27: -15929.14058
A28: =IF(A27<'Retirement Worksheet'!$B$8,A27+1,NA()) -> 90 | B28: 1043836.459 | C28: =B28*'Retirement Worksheet'!$B$18 -> 2609.591148 | D28: =B28*'Retirement Worksheet'!$B$30 -> 52191.82296 | E28: 1093418.691 | G28: =IF(ISERROR(A28),NA(),(G27*(1+'Retirement Worksheet'!$B$29))) -> 71317.59752 | H28: =B28*'Retirement Worksheet'!$B$12 -> 41753.45837 | I28: =IF(ISERROR(A28),NA(),I27*(1+'Retirement Worksheet'!$B$29)) -> 0 | J28: =IF(ISERROR(A28),NA(),J27*(1+'Retirement Worksheet'!$B$29)) -> 32812.11989 | K28: 145883.1758 | M28: =((('Retirement Calculations'!I28)+(J28*'Retirement Worksheet'!$B$20))*'Retirement Worksheet'!$B$13)+(H28*'Retirement Worksheet'!$B$14) -> 14486.55809 | N28: =(H28*'Retirement Worksheet'!$B$15)+IF('Retirement Worksheet'!$B$17="Yes",'Retirement Calculations'!I28*'Retirement Worksheet'!$B$15,0)+IF('Retirement Worksheet'!$B$21="Yes",'Retirement Calculations'!J28*'Retirement Worksheet'!$B$15,0) -> 2505.207502 | O28: =(H28*'Retirement Worksheet'!$B$16)+IF('Retirement Worksheet'!$B$17="Yes",'Retirement Calculations'!I28*'Retirement Worksheet'!$B$16,0)+IF('Retirement Worksheet'!$B$21="Yes",'Retirement Calculations'!J28*'Retirement Worksheet'!$B$16,0) -> 835.0691674 | Q28: 128056.341 | R28: =IF(ISERROR(A28),NA(),R27*(1+'Retirement Worksheet'!$B$28)) -> 146564.4551 | S28: -18508.11406
A29: =IF(A28<'Retirement Worksheet'!$B$8,A28+1,NA()) ->  | C29: =B29*'Retirement Worksheet'!$B$18 ->  | D29: =B29*'Retirement Worksheet'!$B$30 ->  | G29: =IF(ISERROR(A29),NA(),(G28*(1+'Retirement Worksheet'!$B$29))) ->  | H29: =B29*'Retirement Worksheet'!$B$12 ->  | I29: =IF(ISERROR(A29),NA(),I28*(1+'Retirement Worksheet'!$B$29)) ->  | J29: =IF(ISERROR(A29),NA(),J28*(1+'Retirement Worksheet'!$B$29)) ->  | M29: =((('Retirement Calculations'!I29)+(J29*'Retirement Worksheet'!$B$20))*'Retirement Worksheet'!$B$13)+(H29*'Retirement Worksheet'!$B$14) ->  | N29: =(H29*'Retirement Worksheet'!$B$15)+IF('Retirement Worksheet'!$B$17="Yes",'Retirement Calculations'!I29*'Retirement Worksheet'!$B$15,0)+IF('Retirement Worksheet'!$B$21="Yes",'Retirement Calculations'!J29*'Retirement Worksheet'!$B$15,0) ->  | O29: =(H29*'Retirement Worksheet'!$B$16)+IF('Retirement Worksheet'!$B$17="Yes",'Retirement Calculations'!I29*'Retirement Worksheet'!$B$16,0)+IF('Retirement Worksheet'!$B$21="Yes",'Retirement Calculations'!J29*'Retirement Worksheet'!$B$16,0) ->  | R29: =IF(ISERROR(A29),NA(),R28*(1+'Retirement Worksheet'!$B$28)) -> 
A30: =IF(A29<'Retirement Worksheet'!$B$8,A29+1,NA()) ->  | C30: =B30*'Retirement Worksheet'!$B$18 ->  | D30: =B30*'Retirement Worksheet'!$B$30 ->  | G30: =IF(ISERROR(A30),NA(),(G29*(1+'Retirement Worksheet'!$B$29))) ->  | H30: =B30*'Retirement Worksheet'!$B$12 ->  | I30: =IF(ISERROR(A30),NA(),I29*(1+'Retirement Worksheet'!$B$29)) ->  | J30: =IF(ISERROR(A30),NA(),J29*(1+'Retirement Worksheet'!$B$29)) ->  | M30: =((('Retirement Calculations'!I30)+(J30*'Retirement Worksheet'!$B$20))*'Retirement Worksheet'!$B$13)+(H30*'Retirement Worksheet'!$B$14) ->  | N30: =(H30*'Retirement Worksheet'!$B$15)+IF('Retirement Worksheet'!$B$17="Yes",'Retirement Calculations'!I30*'Retirement Worksheet'!$B$15,0)+IF('Retirement Worksheet'!$B$21="Yes",'Retirement Calculations'!J30*'Retirement Worksheet'!$B$15,0) ->  | O30: =(H30*'Retirement Worksheet'!$B$16)+IF('Retirement Worksheet'!$B$17="Yes",'Retirement Calculations'!I30*'Retirement Worksheet'!$B$16,0)+IF('Retirement Worksheet'!$B$21="Yes",'Retirement Calculations'!J30*'Retirement Worksheet'!$B$16,0) ->  | R30: =IF(ISERROR(A30),NA(),R29*(1+'Retirement Worksheet'!$B$28)) -> 
A31: =IF(A30<'Retirement Worksheet'!$B$8,A30+1,NA()) ->  | C31: =B31*'Retirement Worksheet'!$B$18 ->  | D31: =B31*'Retirement Worksheet'!$B$30 ->  | G31: =IF(ISERROR(A31),NA(),(G30*(1+'Retirement Worksheet'!$B$29))) ->  | H31: =B31*'Retirement Worksheet'!$B$12 ->  | I31: =IF(ISERROR(A31),NA(),I30*(1+'Retirement Worksheet'!$B$29)) ->  | J31: =IF(ISERROR(A31),NA(),J30*(1+'Retirement Worksheet'!$B$29)) ->  | M31: =((('Retirement Calculations'!I31)+(J31*'Retirement Worksheet'!$B$20))*'Retirement Worksheet'!$B$13)+(H31*'Retirement Worksheet'!$B$14) ->  | N31: =(H31*'Retirement Worksheet'!$B$15)+IF('Retirement Worksheet'!$B$17="Yes",'Retirement Calculations'!I31*'Retirement Worksheet'!$B$15,0)+IF('Retirement Worksheet'!$B$21="Yes",'Retirement Calculations'!J31*'Retirement Worksheet'!$B$15,0) ->  | O31: =(H31*'Retirement Worksheet'!$B$16)+IF('Retirement Worksheet'!$B$17="Yes",'Retirement Calculations'!I31*'Retirement Worksheet'!$B$16,0)+IF('Retirement Worksheet'!$B$21="Yes",'Retirement Calculations'!J31*'Retirement Worksheet'!$B$16,0) ->  | R31: =IF(ISERROR(A31),NA(),R30*(1+'Retirement Worksheet'!$B$28)) -> 
A32: =IF(A31<'Retirement Worksheet'!$B$8,A31+1,NA()) ->  | C32: =B32*'Retirement Worksheet'!$B$18 ->  | D32: =B32*'Retirement Worksheet'!$B$30 ->  | G32: =IF(ISERROR(A32),NA(),(G31*(1+'Retirement Worksheet'!$B$29))) ->  | H32: =B32*'Retirement Worksheet'!$B$12 ->  | I32: =IF(ISERROR(A32),NA(),I31*(1+'Retirement Worksheet'!$B$29)) ->  | J32: =IF(ISERROR(A32),NA(),J31*(1+'Retirement Worksheet'!$B$29)) ->  | M32: =((('Retirement Calculations'!I32)+(J32*'Retirement Worksheet'!$B$20))*'Retirement Worksheet'!$B$13)+(H32*'Retirement Worksheet'!$B$14) ->  | N32: =(H32*'Retirement Worksheet'!$B$15)+IF('Retirement Worksheet'!$B$17="Yes",'Retirement Calculations'!I32*'Retirement Worksheet'!$B$15,0)+IF('Retirement Worksheet'!$B$21="Yes",'Retirement Calculations'!J32*'Retirement Worksheet'!$B$15,0) ->  | O32: =(H32*'Retirement Worksheet'!$B$16)+IF('Retirement Worksheet'!$B$17="Yes",'Retirement Calculations'!I32*'Retirement Worksheet'!$B$16,0)+IF('Retirement Worksheet'!$B$21="Yes",'Retirement Calculations'!J32*'Retirement Worksheet'!$B$16,0) ->  | R32: =IF(ISERROR(A32),NA(),R31*(1+'Retirement Worksheet'!$B$28)) -> 
A33: =IF(A32<'Retirement Worksheet'!$B$8,A32+1,NA()) ->  | C33: =B33*'Retirement Worksheet'!$B$18 ->  | D33: =B33*'Retirement Worksheet'!$B$30 ->  | G33: =IF(ISERROR(A33),NA(),(G32*(1+'Retirement Worksheet'!$B$29))) ->  | H33: =B33*'Retirement Worksheet'!$B$12 ->  | I33: =IF(ISERROR(A33),NA(),I32*(1+'Retirement Worksheet'!$B$29)) ->  | J33: =IF(ISERROR(A33),NA(),J32*(1+'Retirement Worksheet'!$B$29)) ->  | M33: =((('Retirement Calculations'!I33)+(J33*'Retirement Worksheet'!$B$20))*'Retirement Worksheet'!$B$13)+(H33*'Retirement Worksheet'!$B$14) ->  | N33: =(H33*'Retirement Worksheet'!$B$15)+IF('Retirement Worksheet'!$B$17="Yes",'Retirement Calculations'!I33*'Retirement Worksheet'!$B$15,0)+IF('Retirement Worksheet'!$B$21="Yes",'Retirement Calculations'!J33*'Retirement Worksheet'!$B$15,0) ->  | O33: =(H33*'Retirement Worksheet'!$B$16)+IF('Retirement Worksheet'!$B$17="Yes",'Retirement Calculations'!I33*'Retirement Worksheet'!$B$16,0)+IF('Retirement Worksheet'!$B$21="Yes",'Retirement Calculations'!J33*'Retirement Worksheet'!$B$16,0) ->  | R33: =IF(ISERROR(A33),NA(),R32*(1+'Retirement Worksheet'!$B$28)) -> 
A34: =IF(A33<'Retirement Worksheet'!$B$8,A33+1,NA()) ->  | C34: =B34*'Retirement Worksheet'!$B$18 ->  | D34: =B34*'Retirement Worksheet'!$B$30 ->  | G34: =IF(ISERROR(A34),NA(),(G33*(1+'Retirement Worksheet'!$B$29))) ->  | H34: =B34*'Retirement Worksheet'!$B$12 ->  | I34: =IF(ISERROR(A34),NA(),I33*(1+'Retirement Worksheet'!$B$29)) ->  | J34: =IF(ISERROR(A34),NA(),J33*(1+'Retirement Worksheet'!$B$29)) ->  | M34: =((('Retirement Calculations'!I34)+(J34*'Retirement Worksheet'!$B$20))*'Retirement Worksheet'!$B$13)+(H34*'Retirement Worksheet'!$B$14) ->  | N34: =(H34*'Retirement Worksheet'!$B$15)+IF('Retirement Worksheet'!$B$17="Yes",'Retirement Calculations'!I34*'Retirement Worksheet'!$B$15,0)+IF('Retirement Worksheet'!$B$21="Yes",'Retirement Calculations'!J34*'Retirement Worksheet'!$B$15,0) ->  | O34: =(H34*'Retirement Worksheet'!$B$16)+IF('Retirement Worksheet'!$B$17="Yes",'Retirement Calculations'!I34*'Retirement Worksheet'!$B$16,0)+IF('Retirement Worksheet'!$B$21="Yes",'Retirement Calculations'!J34*'Retirement Worksheet'!$B$16,0) ->  | R34: =IF(ISERROR(A34),NA(),R33*(1+'Retirement Worksheet'!$B$28)) -> 
A35: =IF(A34<'Retirement Worksheet'!$B$8,A34+1,NA()) ->  | C35: =B35*'Retirement Worksheet'!$B$18 ->  | D35: =B35*'Retirement Worksheet'!$B$30 ->  | G35: =IF(ISERROR(A35),NA(),(G34*(1+'Retirement Worksheet'!$B$29))) ->  | H35: =B35*'Retirement Worksheet'!$B$12 ->  | I35: =IF(ISERROR(A35),NA(),I34*(1+'Retirement Worksheet'!$B$29)) ->  | J35: =IF(ISERROR(A35),NA(),J34*(1+'Retirement Worksheet'!$B$29)) ->  | M35: =((('Retirement Calculations'!I35)+(J35*'Retirement Worksheet'!$B$20))*'Retirement Worksheet'!$B$13)+(H35*'Retirement Worksheet'!$B$14) ->  | N35: =(H35*'Retirement Worksheet'!$B$15)+IF('Retirement Worksheet'!$B$17="Yes",'Retirement Calculations'!I35*'Retirement Worksheet'!$B$15,0)+IF('Retirement Worksheet'!$B$21="Yes",'Retirement Calculations'!J35*'Retirement Worksheet'!$B$15,0) ->  | O35: =(H35*'Retirement Worksheet'!$B$16)+IF('Retirement Worksheet'!$B$17="Yes",'Retirement Calculations'!I35*'Retirement Worksheet'!$B$16,0)+IF('Retirement Worksheet'!$B$21="Yes",'Retirement Calculations'!J35*'Retirement Worksheet'!$B$16,0) ->  | R35: =IF(ISERROR(A35),NA(),R34*(1+'Retirement Worksheet'!$B$28)) -> 
A36: =IF(A35<'Retirement Worksheet'!$B$8,A35+1,NA()) ->  | C36: =B36*'Retirement Worksheet'!$B$18 ->  | D36: =B36*'Retirement Worksheet'!$B$30 ->  | G36: =IF(ISERROR(A36),NA(),(G35*(1+'Retirement Worksheet'!$B$29))) ->  | H36: =B36*'Retirement Worksheet'!$B$12 ->  | I36: =IF(ISERROR(A36),NA(),I35*(1+'Retirement Worksheet'!$B$29)) ->  | J36: =IF(ISERROR(A36),NA(),J35*(1+'Retirement Worksheet'!$B$29)) ->  | M36: =((('Retirement Calculations'!I36)+(J36*'Retirement Worksheet'!$B$20))*'Retirement Worksheet'!$B$13)+(H36*'Retirement Worksheet'!$B$14) ->  | N36: =(H36*'Retirement Worksheet'!$B$15)+IF('Retirement Worksheet'!$B$17="Yes",'Retirement Calculations'!I36*'Retirement Worksheet'!$B$15,0)+IF('Retirement Worksheet'!$B$21="Yes",'Retirement Calculations'!J36*'Retirement Worksheet'!$B$15,0) ->  | O36: =(H36*'Retirement Worksheet'!$B$16)+IF('Retirement Worksheet'!$B$17="Yes",'Retirement Calculations'!I36*'Retirement Worksheet'!$B$16,0)+IF('Retirement Worksheet'!$B$21="Yes",'Retirement Calculations'!J36*'Retirement Worksheet'!$B$16,0) ->  | R36: =IF(ISERROR(A36),NA(),R35*(1+'Retirement Worksheet'!$B$28)) -> 
A37: =IF(A36<'Retirement Worksheet'!$B$8,A36+1,NA()) ->  | C37: =B37*'Retirement Worksheet'!$B$18 ->  | D37: =B37*'Retirement Worksheet'!$B$30 ->  | G37: =IF(ISERROR(A37),NA(),(G36*(1+'Retirement Worksheet'!$B$29))) ->  | H37: =B37*'Retirement Worksheet'!$B$12 ->  | I37: =IF(ISERROR(A37),NA(),I36*(1+'Retirement Worksheet'!$B$29)) ->  | J37: =IF(ISERROR(A37),NA(),J36*(1+'Retirement Worksheet'!$B$29)) ->  | M37: =((('Retirement Calculations'!I37)+(J37*'Retirement Worksheet'!$B$20))*'Retirement Worksheet'!$B$13)+(H37*'Retirement Worksheet'!$B$14) ->  | N37: =(H37*'Retirement Worksheet'!$B$15)+IF('Retirement Worksheet'!$B$17="Yes",'Retirement Calculations'!I37*'Retirement Worksheet'!$B$15,0)+IF('Retirement Worksheet'!$B$21="Yes",'Retirement Calculations'!J37*'Retirement Worksheet'!$B$15,0) ->  | O37: =(H37*'Retirement Worksheet'!$B$16)+IF('Retirement Worksheet'!$B$17="Yes",'Retirement Calculations'!I37*'Retirement Worksheet'!$B$16,0)+IF('Retirement Worksheet'!$B$21="Yes",'Retirement Calculations'!J37*'Retirement Worksheet'!$B$16,0) ->  | R37: =IF(ISERROR(A37),NA(),R36*(1+'Retirement Worksheet'!$B$28)) -> 
A38: =IF(A37<'Retirement Worksheet'!$B$8,A37+1,NA()) ->  | C38: =B38*'Retirement Worksheet'!$B$18 ->  | D38: =B38*'Retirement Worksheet'!$B$30 ->  | G38: =IF(ISERROR(A38),NA(),(G37*(1+'Retirement Worksheet'!$B$29))) ->  | H38: =B38*'Retirement Worksheet'!$B$12 ->  | I38: =IF(ISERROR(A38),NA(),I37*(1+'Retirement Worksheet'!$B$29)) ->  | J38: =IF(ISERROR(A38),NA(),J37*(1+'Retirement Worksheet'!$B$29)) ->  | M38: =((('Retirement Calculations'!I38)+(J38*'Retirement Worksheet'!$B$20))*'Retirement Worksheet'!$B$13)+(H38*'Retirement Worksheet'!$B$14) ->  | N38: =(H38*'Retirement Worksheet'!$B$15)+IF('Retirement Worksheet'!$B$17="Yes",'Retirement Calculations'!I38*'Retirement Worksheet'!$B$15,0)+IF('Retirement Worksheet'!$B$21="Yes",'Retirement Calculations'!J38*'Retirement Worksheet'!$B$15,0) ->  | O38: =(H38*'Retirement Worksheet'!$B$16)+IF('Retirement Worksheet'!$B$17="Yes",'Retirement Calculations'!I38*'Retirement Worksheet'!$B$16,0)+IF('Retirement Worksheet'!$B$21="Yes",'Retirement Calculations'!J38*'Retirement Worksheet'!$B$16,0) ->  | R38: =IF(ISERROR(A38),NA(),R37*(1+'Retirement Worksheet'!$B$28)) -> 
A39: =IF(A38<'Retirement Worksheet'!$B$8,A38+1,NA()) ->  | C39: =B39*'Retirement Worksheet'!$B$18 ->  | D39: =B39*'Retirement Worksheet'!$B$30 ->  | G39: =IF(ISERROR(A39),NA(),(G38*(1+'Retirement Worksheet'!$B$29))) ->  | H39: =B39*'Retirement Worksheet'!$B$12 ->  | I39: =IF(ISERROR(A39),NA(),I38*(1+'Retirement Worksheet'!$B$29)) ->  | J39: =IF(ISERROR(A39),NA(),J38*(1+'Retirement Worksheet'!$B$29)) ->  | M39: =((('Retirement Calculations'!I39)+(J39*'Retirement Worksheet'!$B$20))*'Retirement Worksheet'!$B$13)+(H39*'Retirement Worksheet'!$B$14) ->  | N39: =(H39*'Retirement Worksheet'!$B$15)+IF('Retirement Worksheet'!$B$17="Yes",'Retirement Calculations'!I39*'Retirement Worksheet'!$B$15,0)+IF('Retirement Worksheet'!$B$21="Yes",'Retirement Calculations'!J39*'Retirement Worksheet'!$B$15,0) ->  | O39: =(H39*'Retirement Worksheet'!$B$16)+IF('Retirement Worksheet'!$B$17="Yes",'Retirement Calculations'!I39*'Retirement Worksheet'!$B$16,0)+IF('Retirement Worksheet'!$B$21="Yes",'Retirement Calculations'!J39*'Retirement Worksheet'!$B$16,0) ->  | R39: =IF(ISERROR(A39),NA(),R38*(1+'Retirement Worksheet'!$B$28)) -> 
A40: =IF(A39<'Retirement Worksheet'!$B$8,A39+1,NA()) ->  | C40: =B40*'Retirement Worksheet'!$B$18 ->  | D40: =B40*'Retirement Worksheet'!$B$30 ->  | G40: =IF(ISERROR(A40),NA(),(G39*(1+'Retirement Worksheet'!$B$29))) ->  | H40: =B40*'Retirement Worksheet'!$B$12 ->  | I40: =IF(ISERROR(A40),NA(),I39*(1+'Retirement Worksheet'!$B$29)) ->  | J40: =IF(ISERROR(A40),NA(),J39*(1+'Retirement Worksheet'!$B$29)) ->  | M40: =((('Retirement Calculations'!I40)+(J40*'Retirement Worksheet'!$B$20))*'Retirement Worksheet'!$B$13)+(H40*'Retirement Worksheet'!$B$14) ->  | N40: =(H40*'Retirement Worksheet'!$B$15)+IF('Retirement Worksheet'!$B$17="Yes",'Retirement Calculations'!I40*'Retirement Worksheet'!$B$15,0)+IF('Retirement Worksheet'!$B$21="Yes",'Retirement Calculations'!J40*'Retirement Worksheet'!$B$15,0) ->  | O40: =(H40*'Retirement Worksheet'!$B$16)+IF('Retirement Worksheet'!$B$17="Yes",'Retirement Calculations'!I40*'Retirement Worksheet'!$B$16,0)+IF('Retirement Worksheet'!$B$21="Yes",'Retirement Calculations'!J40*'Retirement Worksheet'!$B$16,0) ->  | R40: =IF(ISERROR(A40),NA(),R39*(1+'Retirement Worksheet'!$B$28)) -> 
A41: =IF(A40<'Retirement Worksheet'!$B$8,A40+1,NA()) ->  | C41: =B41*'Retirement Worksheet'!$B$18 ->  | D41: =B41*'Retirement Worksheet'!$B$30 ->  | G41: =IF(ISERROR(A41),NA(),(G40*(1+'Retirement Worksheet'!$B$29))) ->  | H41: =B41*'Retirement Worksheet'!$B$12 ->  | I41: =IF(ISERROR(A41),NA(),I40*(1+'Retirement Worksheet'!$B$29)) ->  | J41: =IF(ISERROR(A41),NA(),J40*(1+'Retirement Worksheet'!$B$29)) ->  | M41: =((('Retirement Calculations'!I41)+(J41*'Retirement Worksheet'!$B$20))*'Retirement Worksheet'!$B$13)+(H41*'Retirement Worksheet'!$B$14) ->  | N41: =(H41*'Retirement Worksheet'!$B$15)+IF('Retirement Worksheet'!$B$17="Yes",'Retirement Calculations'!I41*'Retirement Worksheet'!$B$15,0)+IF('Retirement Worksheet'!$B$21="Yes",'Retirement Calculations'!J41*'Retirement Worksheet'!$B$15,0) ->  | O41: =(H41*'Retirement Worksheet'!$B$16)+IF('Retirement Worksheet'!$B$17="Yes",'Retirement Calculations'!I41*'Retirement Worksheet'!$B$16,0)+IF('Retirement Worksheet'!$B$21="Yes",'Retirement Calculations'!J41*'Retirement Worksheet'!$B$16,0) ->  | R41: =IF(ISERROR(A41),NA(),R40*(1+'Retirement Worksheet'!$B$28)) -> 
A42: =IF(A41<'Retirement Worksheet'!$B$8,A41+1,NA()) ->  | C42: =B42*'Retirement Worksheet'!$B$18 ->  | D42: =B42*'Retirement Worksheet'!$B$30 ->  | G42: =IF(ISERROR(A42),NA(),(G41*(1+'Retirement Worksheet'!$B$29))) ->  | H42: =B42*'Retirement Worksheet'!$B$12 ->  | I42: =IF(ISERROR(A42),NA(),I41*(1+'Retirement Worksheet'!$B$29)) ->  | J42: =IF(ISERROR(A42),NA(),J41*(1+'Retirement Worksheet'!$B$29)) ->  | M42: =((('Retirement Calculations'!I42)+(J42*'Retirement Worksheet'!$B$20))*'Retirement Worksheet'!$B$13)+(H42*'Retirement Worksheet'!$B$14) ->  | N42: =(H42*'Retirement Worksheet'!$B$15)+IF('Retirement Worksheet'!$B$17="Yes",'Retirement Calculations'!I42*'Retirement Worksheet'!$B$15,0)+IF('Retirement Worksheet'!$B$21="Yes",'Retirement Calculations'!J42*'Retirement Worksheet'!$B$15,0) ->  | O42: =(H42*'Retirement Worksheet'!$B$16)+IF('Retirement Worksheet'!$B$17="Yes",'Retirement Calculations'!I42*'Retirement Worksheet'!$B$16,0)+IF('Retirement Worksheet'!$B$21="Yes",'Retirement Calculations'!J42*'Retirement Worksheet'!$B$16,0) ->  | R42: =IF(ISERROR(A42),NA(),R41*(1+'Retirement Worksheet'!$B$28)) -> 
A43: =IF(A42<'Retirement Worksheet'!$B$8,A42+1,NA()) ->  | C43: =B43*'Retirement Worksheet'!$B$18 ->  | D43: =B43*'Retirement Worksheet'!$B$30 ->  | G43: =IF(ISERROR(A43),NA(),(G42*(1+'Retirement Worksheet'!$B$29))) ->  | H43: =B43*'Retirement Worksheet'!$B$12 ->  | I43: =IF(ISERROR(A43),NA(),I42*(1+'Retirement Worksheet'!$B$29)) ->  | J43: =IF(ISERROR(A43),NA(),J42*(1+'Retirement Worksheet'!$B$29)) ->  | M43: =((('Retirement Calculations'!I43)+(J43*'Retirement Worksheet'!$B$20))*'Retirement Worksheet'!$B$13)+(H43*'Retirement Worksheet'!$B$14) ->  | N43: =(H43*'Retirement Worksheet'!$B$15)+IF('Retirement Worksheet'!$B$17="Yes",'Retirement Calculations'!I43*'Retirement Worksheet'!$B$15,0)+IF('Retirement Worksheet'!$B$21="Yes",'Retirement Calculations'!J43*'Retirement Worksheet'!$B$15,0) ->  | O43: =(H43*'Retirement Worksheet'!$B$16)+IF('Retirement Worksheet'!$B$17="Yes",'Retirement Calculations'!I43*'Retirement Worksheet'!$B$16,0)+IF('Retirement Worksheet'!$B$21="Yes",'Retirement Calculations'!J43*'Retirement Worksheet'!$B$16,0) ->  | R43: =IF(ISERROR(A43),NA(),R42*(1+'Retirement Worksheet'!$B$28)) -> 
A44: =IF(A43<'Retirement Worksheet'!$B$8,A43+1,NA()) ->  | C44: =B44*'Retirement Worksheet'!$B$18 ->  | D44: =B44*'Retirement Worksheet'!$B$30 ->  | G44: =IF(ISERROR(A44),NA(),(G43*(1+'Retirement Worksheet'!$B$29))) ->  | H44: =B44*'Retirement Worksheet'!$B$12 ->  | I44: =IF(ISERROR(A44),NA(),I43*(1+'Retirement Worksheet'!$B$29)) ->  | J44: =IF(ISERROR(A44),NA(),J43*(1+'Retirement Worksheet'!$B$29)) ->  | M44: =((('Retirement Calculations'!I44)+(J44*'Retirement Worksheet'!$B$20))*'Retirement Worksheet'!$B$13)+(H44*'Retirement Worksheet'!$B$14) ->  | N44: =(H44*'Retirement Worksheet'!$B$15)+IF('Retirement Worksheet'!$B$17="Yes",'Retirement Calculations'!I44*'Retirement Worksheet'!$B$15,0)+IF('Retirement Worksheet'!$B$21="Yes",'Retirement Calculations'!J44*'Retirement Worksheet'!$B$15,0) ->  | O44: =(H44*'Retirement Worksheet'!$B$16)+IF('Retirement Worksheet'!$B$17="Yes",'Retirement Calculations'!I44*'Retirement Worksheet'!$B$16,0)+IF('Retirement Worksheet'!$B$21="Yes",'Retirement Calculations'!J44*'Retirement Worksheet'!$B$16,0) ->  | R44: =IF(ISERROR(A44),NA(),R43*(1+'Retirement Worksheet'!$B$28)) -> 
A45: =IF(A44<'Retirement Worksheet'!$B$8,A44+1,NA()) ->  | C45: =B45*'Retirement Worksheet'!$B$18 ->  | D45: =B45*'Retirement Worksheet'!$B$30 ->  | G45: =IF(ISERROR(A45),NA(),(G44*(1+'Retirement Worksheet'!$B$29))) ->  | H45: =B45*'Retirement Worksheet'!$B$12 ->  | I45: =IF(ISERROR(A45),NA(),I44*(1+'Retirement Worksheet'!$B$29)) ->  | J45: =IF(ISERROR(A45),NA(),J44*(1+'Retirement Worksheet'!$B$29)) ->  | M45: =((('Retirement Calculations'!I45)+(J45*'Retirement Worksheet'!$B$20))*'Retirement Worksheet'!$B$13)+(H45*'Retirement Worksheet'!$B$14) ->  | N45: =(H45*'Retirement Worksheet'!$B$15)+IF('Retirement Worksheet'!$B$17="Yes",'Retirement Calculations'!I45*'Retirement Worksheet'!$B$15,0)+IF('Retirement Worksheet'!$B$21="Yes",'Retirement Calculations'!J45*'Retirement Worksheet'!$B$15,0) ->  | O45: =(H45*'Retirement Worksheet'!$B$16)+IF('Retirement Worksheet'!$B$17="Yes",'Retirement Calculations'!I45*'Retirement Worksheet'!$B$16,0)+IF('Retirement Worksheet'!$B$21="Yes",'Retirement Calculations'!J45*'Retirement Worksheet'!$B$16,0) ->  | R45: =IF(ISERROR(A45),NA(),R44*(1+'Retirement Worksheet'!$B$28)) -> 
A46: =IF(A45<'Retirement Worksheet'!$B$8,A45+1,NA()) ->  | C46: =B46*'Retirement Worksheet'!$B$18 ->  | D46: =B46*'Retirement Worksheet'!$B$30 ->  | G46: =IF(ISERROR(A46),NA(),(G45*(1+'Retirement Worksheet'!$B$29))) ->  | H46: =B46*'Retirement Worksheet'!$B$12 ->  | I46: =IF(ISERROR(A46),NA(),I45*(1+'Retirement Worksheet'!$B$29)) ->  | J46: =IF(ISERROR(A46),NA(),J45*(1+'Retirement Worksheet'!$B$29)) ->  | M46: =((('Retirement Calculations'!I46)+(J46*'Retirement Worksheet'!$B$20))*'Retirement Worksheet'!$B$13)+(H46*'Retirement Worksheet'!$B$14) ->  | N46: =(H46*'Retirement Worksheet'!$B$15)+IF('Retirement Worksheet'!$B$17="Yes",'Retirement Calculations'!I46*'Retirement Worksheet'!$B$15,0)+IF('Retirement Worksheet'!$B$21="Yes",'Retirement Calculations'!J46*'Retirement Worksheet'!$B$15,0) ->  | O46: =(H46*'Retirement Worksheet'!$B$16)+IF('Retirement Worksheet'!$B$17="Yes",'Retirement Calculations'!I46*'Retirement Worksheet'!$B$16,0)+IF('Retirement Worksheet'!$B$21="Yes",'Retirement Calculations'!J46*'Retirement Worksheet'!$B$16,0) ->  | R46: =IF(ISERROR(A46),NA(),R45*(1+'Retirement Worksheet'!$B$28)) -> 
A47: =IF(A46<'Retirement Worksheet'!$B$8,A46+1,NA()) ->  | C47: =B47*'Retirement Worksheet'!$B$18 ->  | D47: =B47*'Retirement Worksheet'!$B$30 ->  | G47: =IF(ISERROR(A47),NA(),(G46*(1+'Retirement Worksheet'!$B$29))) ->  | H47: =B47*'Retirement Worksheet'!$B$12 ->  | I47: =IF(ISERROR(A47),NA(),I46*(1+'Retirement Worksheet'!$B$29)) ->  | J47: =IF(ISERROR(A47),NA(),J46*(1+'Retirement Worksheet'!$B$29)) ->  | M47: =((('Retirement Calculations'!I47)+(J47*'Retirement Worksheet'!$B$20))*'Retirement Worksheet'!$B$13)+(H47*'Retirement Worksheet'!$B$14) ->  | N47: =(H47*'Retirement Worksheet'!$B$15)+IF('Retirement Worksheet'!$B$17="Yes",'Retirement Calculations'!I47*'Retirement Worksheet'!$B$15,0)+IF('Retirement Worksheet'!$B$21="Yes",'Retirement Calculations'!J47*'Retirement Worksheet'!$B$15,0) ->  | O47: =(H47*'Retirement Worksheet'!$B$16)+IF('Retirement Worksheet'!$B$17="Yes",'Retirement Calculations'!I47*'Retirement Worksheet'!$B$16,0)+IF('Retirement Worksheet'!$B$21="Yes",'Retirement Calculations'!J47*'Retirement Worksheet'!$B$16,0) ->  | R47: =IF(ISERROR(A47),NA(),R46*(1+'Retirement Worksheet'!$B$28)) -> 
A48: =IF(A47<'Retirement Worksheet'!$B$8,A47+1,NA()) ->  | C48: =B48*'Retirement Worksheet'!$B$18 ->  | D48: =B48*'Retirement Worksheet'!$B$30 ->  | G48: =IF(ISERROR(A48),NA(),(G47*(1+'Retirement Worksheet'!$B$29))) ->  | H48: =B48*'Retirement Worksheet'!$B$12 ->  | I48: =IF(ISERROR(A48),NA(),I47*(1+'Retirement Worksheet'!$B$29)) ->  | J48: =IF(ISERROR(A48),NA(),J47*(1+'Retirement Worksheet'!$B$29)) ->  | M48: =((('Retirement Calculations'!I48)+(J48*'Retirement Worksheet'!$B$20))*'Retirement Worksheet'!$B$13)+(H48*'Retirement Worksheet'!$B$14) ->  | N48: =(H48*'Retirement Worksheet'!$B$15)+IF('Retirement Worksheet'!$B$17="Yes",'Retirement Calculations'!I48*'Retirement Worksheet'!$B$15,0)+IF('Retirement Worksheet'!$B$21="Yes",'Retirement Calculations'!J48*'Retirement Worksheet'!$B$15,0) ->  | O48: =(H48*'Retirement Worksheet'!$B$16)+IF('Retirement Worksheet'!$B$17="Yes",'Retirement Calculations'!I48*'Retirement Worksheet'!$B$16,0)+IF('Retirement Worksheet'!$B$21="Yes",'Retirement Calculations'!J48*'Retirement Worksheet'!$B$16,0) ->  | R48: =IF(ISERROR(A48),NA(),R47*(1+'Retirement Worksheet'!$B$28)) -> 
A49: =IF(A48<'Retirement Worksheet'!$B$8,A48+1,NA()) ->  | C49: =B49*'Retirement Worksheet'!$B$18 ->  | D49: =B49*'Retirement Worksheet'!$B$30 ->  | G49: =IF(ISERROR(A49),NA(),(G48*(1+'Retirement Worksheet'!$B$29))) ->  | H49: =B49*'Retirement Worksheet'!$B$12 ->  | I49: =IF(ISERROR(A49),NA(),I48*(1+'Retirement Worksheet'!$B$29)) ->  | J49: =IF(ISERROR(A49),NA(),J48*(1+'Retirement Worksheet'!$B$29)) ->  | M49: =((('Retirement Calculations'!I49)+(J49*'Retirement Worksheet'!$B$20))*'Retirement Worksheet'!$B$13)+(H49*'Retirement Worksheet'!$B$14) ->  | N49: =(H49*'Retirement Worksheet'!$B$15)+IF('Retirement Worksheet'!$B$17="Yes",'Retirement Calculations'!I49*'Retirement Worksheet'!$B$15,0)+IF('Retirement Worksheet'!$B$21="Yes",'Retirement Calculations'!J49*'Retirement Worksheet'!$B$15,0) ->  | O49: =(H49*'Retirement Worksheet'!$B$16)+IF('Retirement Worksheet'!$B$17="Yes",'Retirement Calculations'!I49*'Retirement Worksheet'!$B$16,0)+IF('Retirement Worksheet'!$B$21="Yes",'Retirement Calculations'!J49*'Retirement Worksheet'!$B$16,0) ->  | R49: =IF(ISERROR(A49),NA(),R48*(1+'Retirement Worksheet'!$B$28)) -> 
A50: =IF(A49<'Retirement Worksheet'!$B$8,A49+1,NA()) ->  | C50: =B50*'Retirement Worksheet'!$B$18 ->  | D50: =B50*'Retirement Worksheet'!$B$30 ->  | G50: =IF(ISERROR(A50),NA(),(G49*(1+'Retirement Worksheet'!$B$29))) ->  | H50: =B50*'Retirement Worksheet'!$B$12 ->  | I50: =IF(ISERROR(A50),NA(),I49*(1+'Retirement Worksheet'!$B$29)) ->  | J50: =IF(ISERROR(A50),NA(),J49*(1+'Retirement Worksheet'!$B$29)) ->  | M50: =((('Retirement Calculations'!I50)+(J50*'Retirement Worksheet'!$B$20))*'Retirement Worksheet'!$B$13)+(H50*'Retirement Worksheet'!$B$14) ->  | N50: =(H50*'Retirement Worksheet'!$B$15)+IF('Retirement Worksheet'!$B$17="Yes",'Retirement Calculations'!I50*'Retirement Worksheet'!$B$15,0)+IF('Retirement Worksheet'!$B$21="Yes",'Retirement Calculations'!J50*'Retirement Worksheet'!$B$15,0) ->  | O50: =(H50*'Retirement Worksheet'!$B$16)+IF('Retirement Worksheet'!$B$17="Yes",'Retirement Calculations'!I50*'Retirement Worksheet'!$B$16,0)+IF('Retirement Worksheet'!$B$21="Yes",'Retirement Calculations'!J50*'Retirement Worksheet'!$B$16,0) ->  | R50: =IF(ISERROR(A50),NA(),R49*(1+'Retirement Worksheet'!$B$28)) -> 
A51: =IF(A50<'Retirement Worksheet'!$B$8,A50+1,NA()) ->  | C51: =B51*'Retirement Worksheet'!$B$18 ->  | D51: =B51*'Retirement Worksheet'!$B$30 ->  | G51: =IF(ISERROR(A51),NA(),(G50*(1+'Retirement Worksheet'!$B$29))) ->  | H51: =B51*'Retirement Worksheet'!$B$12 ->  | I51: =IF(ISERROR(A51),NA(),I50*(1+'Retirement Worksheet'!$B$29)) ->  | J51: =IF(ISERROR(A51),NA(),J50*(1+'Retirement Worksheet'!$B$29)) ->  | M51: =((('Retirement Calculations'!I51)+(J51*'Retirement Worksheet'!$B$20))*'Retirement Worksheet'!$B$13)+(H51*'Retirement Worksheet'!$B$14) ->  | N51: =(H51*'Retirement Worksheet'!$B$15)+IF('Retirement Worksheet'!$B$17="Yes",'Retirement Calculations'!I51*'Retirement Worksheet'!$B$15,0)+IF('Retirement Worksheet'!$B$21="Yes",'Retirement Calculations'!J51*'Retirement Worksheet'!$B$15,0) ->  | O51: =(H51*'Retirement Worksheet'!$B$16)+IF('Retirement Worksheet'!$B$17="Yes",'Retirement Calculations'!I51*'Retirement Worksheet'!$B$16,0)+IF('Retirement Worksheet'!$B$21="Yes",'Retirement Calculations'!J51*'Retirement Worksheet'!$B$16,0) ->  | R51: =IF(ISERROR(A51),NA(),R50*(1+'Retirement Worksheet'!$B$28)) -> 
A52: =IF(A51<'Retirement Worksheet'!$B$8,A51+1,NA()) ->  | C52: =B52*'Retirement Worksheet'!$B$18 ->  | D52: =B52*'Retirement Worksheet'!$B$30 ->  | G52: =IF(ISERROR(A52),NA(),(G51*(1+'Retirement Worksheet'!$B$29))) ->  | H52: =B52*'Retirement Worksheet'!$B$12 ->  | I52: =IF(ISERROR(A52),NA(),I51*(1+'Retirement Worksheet'!$B$29)) ->  | J52: =IF(ISERROR(A52),NA(),J51*(1+'Retirement Worksheet'!$B$29)) ->  | M52: =((('Retirement Calculations'!I52)+(J52*'Retirement Worksheet'!$B$20))*'Retirement Worksheet'!$B$13)+(H52*'Retirement Worksheet'!$B$14) ->  | N52: =(H52*'Retirement Worksheet'!$B$15)+IF('Retirement Worksheet'!$B$17="Yes",'Retirement Calculations'!I52*'Retirement Worksheet'!$B$15,0)+IF('Retirement Worksheet'!$B$21="Yes",'Retirement Calculations'!J52*'Retirement Worksheet'!$B$15,0) ->  | O52: =(H52*'Retirement Worksheet'!$B$16)+IF('Retirement Worksheet'!$B$17="Yes",'Retirement Calculations'!I52*'Retirement Worksheet'!$B$16,0)+IF('Retirement Worksheet'!$B$21="Yes",'Retirement Calculations'!J52*'Retirement Worksheet'!$B$16,0) ->  | R52: =IF(ISERROR(A52),NA(),R51*(1+'Retirement Worksheet'!$B$28)) -> 
A53: =IF(A52<'Retirement Worksheet'!$B$8,A52+1,NA()) ->  | C53: =B53*'Retirement Worksheet'!$B$18 ->  | D53: =B53*'Retirement Worksheet'!$B$30 ->  | G53: =IF(ISERROR(A53),NA(),(G52*(1+'Retirement Worksheet'!$B$29))) ->  | H53: =B53*'Retirement Worksheet'!$B$12 ->  | I53: =IF(ISERROR(A53),NA(),I52*(1+'Retirement Worksheet'!$B$29)) ->  | J53: =IF(ISERROR(A53),NA(),J52*(1+'Retirement Worksheet'!$B$29)) ->  | M53: =((('Retirement Calculations'!I53)+(J53*'Retirement Worksheet'!$B$20))*'Retirement Worksheet'!$B$13)+(H53*'Retirement Worksheet'!$B$14) ->  | N53: =(H53*'Retirement Worksheet'!$B$15)+IF('Retirement Worksheet'!$B$17="Yes",'Retirement Calculations'!I53*'Retirement Worksheet'!$B$15,0)+IF('Retirement Worksheet'!$B$21="Yes",'Retirement Calculations'!J53*'Retirement Worksheet'!$B$15,0) ->  | O53: =(H53*'Retirement Worksheet'!$B$16)+IF('Retirement Worksheet'!$B$17="Yes",'Retirement Calculations'!I53*'Retirement Worksheet'!$B$16,0)+IF('Retirement Worksheet'!$B$21="Yes",'Retirement Calculations'!J53*'Retirement Worksheet'!$B$16,0) ->  | R53: =IF(ISERROR(A53),NA(),R52*(1+'Retirement Worksheet'!$B$28)) -> 
A54: =IF(A53<'Retirement Worksheet'!$B$8,A53+1,NA()) ->  | C54: =B54*'Retirement Worksheet'!$B$18 ->  | D54: =B54*'Retirement Worksheet'!$B$30 ->  | G54: =IF(ISERROR(A54),NA(),(G53*(1+'Retirement Worksheet'!$B$29))) ->  | H54: =B54*'Retirement Worksheet'!$B$12 ->  | I54: =IF(ISERROR(A54),NA(),I53*(1+'Retirement Worksheet'!$B$29)) ->  | J54: =IF(ISERROR(A54),NA(),J53*(1+'Retirement Worksheet'!$B$29)) ->  | M54: =((('Retirement Calculations'!I54)+(J54*'Retirement Worksheet'!$B$20))*'Retirement Worksheet'!$B$13)+(H54*'Retirement Worksheet'!$B$14) ->  | N54: =(H54*'Retirement Worksheet'!$B$15)+IF('Retirement Worksheet'!$B$17="Yes",'Retirement Calculations'!I54*'Retirement Worksheet'!$B$15,0)+IF('Retirement Worksheet'!$B$21="Yes",'Retirement Calculations'!J54*'Retirement Worksheet'!$B$15,0) ->  | O54: =(H54*'Retirement Worksheet'!$B$16)+IF('Retirement Worksheet'!$B$17="Yes",'Retirement Calculations'!I54*'Retirement Worksheet'!$B$16,0)+IF('Retirement Worksheet'!$B$21="Yes",'Retirement Calculations'!J54*'Retirement Worksheet'!$B$16,0) ->  | R54: =IF(ISERROR(A54),NA(),R53*(1+'Retirement Worksheet'!$B$28)) -> 
A55: =IF(A54<'Retirement Worksheet'!$B$8,A54+1,NA()) ->  | C55: =B55*'Retirement Worksheet'!$B$18 ->  | D55: =B55*'Retirement Worksheet'!$B$30 ->  | G55: =IF(ISERROR(A55),NA(),(G54*(1+'Retirement Worksheet'!$B$29))) ->  | H55: =B55*'Retirement Worksheet'!$B$12 ->  | I55: =IF(ISERROR(A55),NA(),I54*(1+'Retirement Worksheet'!$B$29)) ->  | J55: =IF(ISERROR(A55),NA(),J54*(1+'Retirement Worksheet'!$B$29)) ->  | M55: =((('Retirement Calculations'!I55)+(J55*'Retirement Worksheet'!$B$20))*'Retirement Worksheet'!$B$13)+(H55*'Retirement Worksheet'!$B$14) ->  | N55: =(H55*'Retirement Worksheet'!$B$15)+IF('Retirement Worksheet'!$B$17="Yes",'Retirement Calculations'!I55*'Retirement Worksheet'!$B$15,0)+IF('Retirement Worksheet'!$B$21="Yes",'Retirement Calculations'!J55*'Retirement Worksheet'!$B$15,0) ->  | O55: =(H55*'Retirement Worksheet'!$B$16)+IF('Retirement Worksheet'!$B$17="Yes",'Retirement Calculations'!I55*'Retirement Worksheet'!$B$16,0)+IF('Retirement Worksheet'!$B$21="Yes",'Retirement Calculations'!J55*'Retirement Worksheet'!$B$16,0) ->  | R55: =IF(ISERROR(A55),NA(),R54*(1+'Retirement Worksheet'!$B$28)) -> 
A56: =IF(A55<'Retirement Worksheet'!$B$8,A55+1,NA()) ->  | C56: =B56*'Retirement Worksheet'!$B$18 ->  | D56: =B56*'Retirement Worksheet'!$B$30 ->  | G56: =IF(ISERROR(A56),NA(),(G55*(1+'Retirement Worksheet'!$B$29))) ->  | H56: =B56*'Retirement Worksheet'!$B$12 ->  | I56: =IF(ISERROR(A56),NA(),I55*(1+'Retirement Worksheet'!$B$29)) ->  | J56: =IF(ISERROR(A56),NA(),J55*(1+'Retirement Worksheet'!$B$29)) ->  | M56: =((('Retirement Calculations'!I56)+(J56*'Retirement Worksheet'!$B$20))*'Retirement Worksheet'!$B$13)+(H56*'Retirement Worksheet'!$B$14) ->  | N56: =(H56*'Retirement Worksheet'!$B$15)+IF('Retirement Worksheet'!$B$17="Yes",'Retirement Calculations'!I56*'Retirement Worksheet'!$B$15,0)+IF('Retirement Worksheet'!$B$21="Yes",'Retirement Calculations'!J56*'Retirement Worksheet'!$B$15,0) ->  | O56: =(H56*'Retirement Worksheet'!$B$16)+IF('Retirement Worksheet'!$B$17="Yes",'Retirement Calculations'!I56*'Retirement Worksheet'!$B$16,0)+IF('Retirement Worksheet'!$B$21="Yes",'Retirement Calculations'!J56*'Retirement Worksheet'!$B$16,0) ->  | R56: =IF(ISERROR(A56),NA(),R55*(1+'Retirement Worksheet'!$B$28)) -> 
A57: =IF(A56<'Retirement Worksheet'!$B$8,A56+1,NA()) ->  | C57: =B57*'Retirement Worksheet'!$B$18 ->  | D57: =B57*'Retirement Worksheet'!$B$30 ->  | G57: =IF(ISERROR(A57),NA(),(G56*(1+'Retirement Worksheet'!$B$29))) ->  | H57: =B57*'Retirement Worksheet'!$B$12 ->  | I57: =IF(ISERROR(A57),NA(),I56*(1+'Retirement Worksheet'!$B$29)) ->  | J57: =IF(ISERROR(A57),NA(),J56*(1+'Retirement Worksheet'!$B$29)) ->  | M57: =((('Retirement Calculations'!I57)+(J57*'Retirement Worksheet'!$B$20))*'Retirement Worksheet'!$B$13)+(H57*'Retirement Worksheet'!$B$14) ->  | N57: =(H57*'Retirement Worksheet'!$B$15)+IF('Retirement Worksheet'!$B$17="Yes",'Retirement Calculations'!I57*'Retirement Worksheet'!$B$15,0)+IF('Retirement Worksheet'!$B$21="Yes",'Retirement Calculations'!J57*'Retirement Worksheet'!$B$15,0) ->  | O57: =(H57*'Retirement Worksheet'!$B$16)+IF('Retirement Worksheet'!$B$17="Yes",'Retirement Calculations'!I57*'Retirement Worksheet'!$B$16,0)+IF('Retirement Worksheet'!$B$21="Yes",'Retirement Calculations'!J57*'Retirement Worksheet'!$B$16,0) ->  | R57: =IF(ISERROR(A57),NA(),R56*(1+'Retirement Worksheet'!$B$28)) -> 
A58: =IF(A57<'Retirement Worksheet'!$B$8,A57+1,NA()) ->  | C58: =B58*'Retirement Worksheet'!$B$18 ->  | D58: =B58*'Retirement Worksheet'!$B$30 ->  | G58: =IF(ISERROR(A58),NA(),(G57*(1+'Retirement Worksheet'!$B$29))) ->  | H58: =B58*'Retirement Worksheet'!$B$12 ->  | I58: =IF(ISERROR(A58),NA(),I57*(1+'Retirement Worksheet'!$B$29)) ->  | J58: =IF(ISERROR(A58),NA(),J57*(1+'Retirement Worksheet'!$B$29)) ->  | M58: =((('Retirement Calculations'!I58)+(J58*'Retirement Worksheet'!$B$20))*'Retirement Worksheet'!$B$13)+(H58*'Retirement Worksheet'!$B$14) ->  | N58: =(H58*'Retirement Worksheet'!$B$15)+IF('Retirement Worksheet'!$B$17="Yes",'Retirement Calculations'!I58*'Retirement Worksheet'!$B$15,0)+IF('Retirement Worksheet'!$B$21="Yes",'Retirement Calculations'!J58*'Retirement Worksheet'!$B$15,0) ->  | O58: =(H58*'Retirement Worksheet'!$B$16)+IF('Retirement Worksheet'!$B$17="Yes",'Retirement Calculations'!I58*'Retirement Worksheet'!$B$16,0)+IF('Retirement Worksheet'!$B$21="Yes",'Retirement Calculations'!J58*'Retirement Worksheet'!$B$16,0) ->  | R58: =IF(ISERROR(A58),NA(),R57*(1+'Retirement Worksheet'!$B$28)) -> 
A59: =IF(A58<'Retirement Worksheet'!$B$8,A58+1,NA()) ->  | C59: =B59*'Retirement Worksheet'!$B$18 ->  | D59: =B59*'Retirement Worksheet'!$B$30 ->  | G59: =IF(ISERROR(A59),NA(),(G58*(1+'Retirement Worksheet'!$B$29))) ->  | H59: =B59*'Retirement Worksheet'!$B$12 ->  | I59: =IF(ISERROR(A59),NA(),I58*(1+'Retirement Worksheet'!$B$29)) ->  | J59: =IF(ISERROR(A59),NA(),J58*(1+'Retirement Worksheet'!$B$29)) ->  | M59: =((('Retirement Calculations'!I59)+(J59*'Retirement Worksheet'!$B$20))*'Retirement Worksheet'!$B$13)+(H59*'Retirement Worksheet'!$B$14) ->  | N59: =(H59*'Retirement Worksheet'!$B$15)+IF('Retirement Worksheet'!$B$17="Yes",'Retirement Calculations'!I59*'Retirement Worksheet'!$B$15,0)+IF('Retirement Worksheet'!$B$21="Yes",'Retirement Calculations'!J59*'Retirement Worksheet'!$B$15,0) ->  | O59: =(H59*'Retirement Worksheet'!$B$16)+IF('Retirement Worksheet'!$B$17="Yes",'Retirement Calculations'!I59*'Retirement Worksheet'!$B$16,0)+IF('Retirement Worksheet'!$B$21="Yes",'Retirement Calculations'!J59*'Retirement Worksheet'!$B$16,0) ->  | R59: =IF(ISERROR(A59),NA(),R58*(1+'Retirement Worksheet'!$B$28)) -> 
A60: =IF(A59<'Retirement Worksheet'!$B$8,A59+1,NA()) ->  | C60: =B60*'Retirement Worksheet'!$B$18 ->  | D60: =B60*'Retirement Worksheet'!$B$30 ->  | G60: =IF(ISERROR(A60),NA(),(G59*(1+'Retirement Worksheet'!$B$29))) ->  | H60: =B60*'Retirement Worksheet'!$B$12 ->  | I60: =IF(ISERROR(A60),NA(),I59*(1+'Retirement Worksheet'!$B$29)) ->  | J60: =IF(ISERROR(A60),NA(),J59*(1+'Retirement Worksheet'!$B$29)) ->  | M60: =((('Retirement Calculations'!I60)+(J60*'Retirement Worksheet'!$B$20))*'Retirement Worksheet'!$B$13)+(H60*'Retirement Worksheet'!$B$14) ->  | N60: =(H60*'Retirement Worksheet'!$B$15)+IF('Retirement Worksheet'!$B$17="Yes",'Retirement Calculations'!I60*'Retirement Worksheet'!$B$15,0)+IF('Retirement Worksheet'!$B$21="Yes",'Retirement Calculations'!J60*'Retirement Worksheet'!$B$15,0) ->  | O60: =(H60*'Retirement Worksheet'!$B$16)+IF('Retirement Worksheet'!$B$17="Yes",'Retirement Calculations'!I60*'Retirement Worksheet'!$B$16,0)+IF('Retirement Worksheet'!$B$21="Yes",'Retirement Calculations'!J60*'Retirement Worksheet'!$B$16,0) ->  | R60: =IF(ISERROR(A60),NA(),R59*(1+'Retirement Worksheet'!$B$28)) -> 
A61: =IF(A60<'Retirement Worksheet'!$B$8,A60+1,NA()) ->  | C61: =B61*'Retirement Worksheet'!$B$18 ->  | D61: =B61*'Retirement Worksheet'!$B$30 ->  | G61: =IF(ISERROR(A61),NA(),(G60*(1+'Retirement Worksheet'!$B$29))) ->  | H61: =B61*'Retirement Worksheet'!$B$12 ->  | I61: =IF(ISERROR(A61),NA(),I60*(1+'Retirement Worksheet'!$B$29)) ->  | J61: =IF(ISERROR(A61),NA(),J60*(1+'Retirement Worksheet'!$B$29)) ->  | M61: =((('Retirement Calculations'!I61)+(J61*'Retirement Worksheet'!$B$20))*'Retirement Worksheet'!$B$13)+(H61*'Retirement Worksheet'!$B$14) ->  | N61: =(H61*'Retirement Worksheet'!$B$15)+IF('Retirement Worksheet'!$B$17="Yes",'Retirement Calculations'!I61*'Retirement Worksheet'!$B$15,0)+IF('Retirement Worksheet'!$B$21="Yes",'Retirement Calculations'!J61*'Retirement Worksheet'!$B$15,0) ->  | O61: =(H61*'Retirement Worksheet'!$B$16)+IF('Retirement Worksheet'!$B$17="Yes",'Retirement Calculations'!I61*'Retirement Worksheet'!$B$16,0)+IF('Retirement Worksheet'!$B$21="Yes",'Retirement Calculations'!J61*'Retirement Worksheet'!$B$16,0) ->  | R61: =IF(ISERROR(A61),NA(),R60*(1+'Retirement Worksheet'!$B$28)) -> 
A62: =IF(A61<'Retirement Worksheet'!$B$8,A61+1,NA()) ->  | C62: =B62*'Retirement Worksheet'!$B$18 ->  | D62: =B62*'Retirement Worksheet'!$B$30 ->  | G62: =IF(ISERROR(A62),NA(),(G61*(1+'Retirement Worksheet'!$B$29))) ->  | H62: =B62*'Retirement Worksheet'!$B$12 ->  | I62: =IF(ISERROR(A62),NA(),I61*(1+'Retirement Worksheet'!$B$29)) ->  | J62: =IF(ISERROR(A62),NA(),J61*(1+'Retirement Worksheet'!$B$29)) ->  | M62: =((('Retirement Calculations'!I62)+(J62*'Retirement Worksheet'!$B$20))*'Retirement Worksheet'!$B$13)+(H62*'Retirement Worksheet'!$B$14) ->  | N62: =(H62*'Retirement Worksheet'!$B$15)+IF('Retirement Worksheet'!$B$17="Yes",'Retirement Calculations'!I62*'Retirement Worksheet'!$B$15,0)+IF('Retirement Worksheet'!$B$21="Yes",'Retirement Calculations'!J62*'Retirement Worksheet'!$B$15,0) ->  | O62: =(H62*'Retirement Worksheet'!$B$16)+IF('Retirement Worksheet'!$B$17="Yes",'Retirement Calculations'!I62*'Retirement Worksheet'!$B$16,0)+IF('Retirement Worksheet'!$B$21="Yes",'Retirement Calculations'!J62*'Retirement Worksheet'!$B$16,0) ->  | R62: =IF(ISERROR(A62),NA(),R61*(1+'Retirement Worksheet'!$B$28)) -> 
A63: =IF(A62<'Retirement Worksheet'!$B$8,A62+1,NA()) ->  | C63: =B63*'Retirement Worksheet'!$B$18 ->  | D63: =B63*'Retirement Worksheet'!$B$30 ->  | G63: =IF(ISERROR(A63),NA(),(G62*(1+'Retirement Worksheet'!$B$29))) ->  | H63: =B63*'Retirement Worksheet'!$B$12 ->  | I63: =IF(ISERROR(A63),NA(),I62*(1+'Retirement Worksheet'!$B$29)) ->  | J63: =IF(ISERROR(A63),NA(),J62*(1+'Retirement Worksheet'!$B$29)) ->  | M63: =((('Retirement Calculations'!I63)+(J63*'Retirement Worksheet'!$B$20))*'Retirement Worksheet'!$B$13)+(H63*'Retirement Worksheet'!$B$14) ->  | N63: =(H63*'Retirement Worksheet'!$B$15)+IF('Retirement Worksheet'!$B$17="Yes",'Retirement Calculations'!I63*'Retirement Worksheet'!$B$15,0)+IF('Retirement Worksheet'!$B$21="Yes",'Retirement Calculations'!J63*'Retirement Worksheet'!$B$15,0) ->  | O63: =(H63*'Retirement Worksheet'!$B$16)+IF('Retirement Worksheet'!$B$17="Yes",'Retirement Calculations'!I63*'Retirement Worksheet'!$B$16,0)+IF('Retirement Worksheet'!$B$21="Yes",'Retirement Calculations'!J63*'Retirement Worksheet'!$B$16,0) ->  | R63: =IF(ISERROR(A63),NA(),R62*(1+'Retirement Worksheet'!$B$28)) -> 
A64: =IF(A63<'Retirement Worksheet'!$B$8,A63+1,NA()) ->  | C64: =B64*'Retirement Worksheet'!$B$18 ->  | D64: =B64*'Retirement Worksheet'!$B$30 ->  | G64: =IF(ISERROR(A64),NA(),(G63*(1+'Retirement Worksheet'!$B$29))) ->  | H64: =B64*'Retirement Worksheet'!$B$12 ->  | I64: =IF(ISERROR(A64),NA(),I63*(1+'Retirement Worksheet'!$B$29)) ->  | J64: =IF(ISERROR(A64),NA(),J63*(1+'Retirement Worksheet'!$B$29)) ->  | M64: =((('Retirement Calculations'!I64)+(J64*'Retirement Worksheet'!$B$20))*'Retirement Worksheet'!$B$13)+(H64*'Retirement Worksheet'!$B$14) ->  | N64: =(H64*'Retirement Worksheet'!$B$15)+IF('Retirement Worksheet'!$B$17="Yes",'Retirement Calculations'!I64*'Retirement Worksheet'!$B$15,0)+IF('Retirement Worksheet'!$B$21="Yes",'Retirement Calculations'!J64*'Retirement Worksheet'!$B$15,0) ->  | O64: =(H64*'Retirement Worksheet'!$B$16)+IF('Retirement Worksheet'!$B$17="Yes",'Retirement Calculations'!I64*'Retirement Worksheet'!$B$16,0)+IF('Retirement Worksheet'!$B$21="Yes",'Retirement Calculations'!J64*'Retirement Worksheet'!$B$16,0) ->  | R64: =IF(ISERROR(A64),NA(),R63*(1+'Retirement Worksheet'!$B$28)) -> 
A65: =IF(A64<'Retirement Worksheet'!$B$8,A64+1,NA()) ->  | C65: =B65*'Retirement Worksheet'!$B$18 ->  | D65: =B65*'Retirement Worksheet'!$B$30 ->  | G65: =IF(ISERROR(A65),NA(),(G64*(1+'Retirement Worksheet'!$B$29))) ->  | H65: =B65*'Retirement Worksheet'!$B$12 ->  | I65: =IF(ISERROR(A65),NA(),I64*(1+'Retirement Worksheet'!$B$29)) ->  | J65: =IF(ISERROR(A65),NA(),J64*(1+'Retirement Worksheet'!$B$29)) ->  | M65: =((('Retirement Calculations'!I65)+(J65*'Retirement Worksheet'!$B$20))*'Retirement Worksheet'!$B$13)+(H65*'Retirement Worksheet'!$B$14) ->  | N65: =(H65*'Retirement Worksheet'!$B$15)+IF('Retirement Worksheet'!$B$17="Yes",'Retirement Calculations'!I65*'Retirement Worksheet'!$B$15,0)+IF('Retirement Worksheet'!$B$21="Yes",'Retirement Calculations'!J65*'Retirement Worksheet'!$B$15,0) ->  | O65: =(H65*'Retirement Worksheet'!$B$16)+IF('Retirement Worksheet'!$B$17="Yes",'Retirement Calculations'!I65*'Retirement Worksheet'!$B$16,0)+IF('Retirement Worksheet'!$B$21="Yes",'Retirement Calculations'!J65*'Retirement Worksheet'!$B$16,0) ->  | R65: =IF(ISERROR(A65),NA(),R64*(1+'Retirement Worksheet'!$B$28)) -> 
A66: =IF(A65<'Retirement Worksheet'!$B$8,A65+1,NA()) ->  | C66: =B66*'Retirement Worksheet'!$B$18 ->  | D66: =B66*'Retirement Worksheet'!$B$30 ->  | G66: =IF(ISERROR(A66),NA(),(G65*(1+'Retirement Worksheet'!$B$29))) ->  | H66: =B66*'Retirement Worksheet'!$B$12 ->  | I66: =IF(ISERROR(A66),NA(),I65*(1+'Retirement Worksheet'!$B$29)) ->  | J66: =IF(ISERROR(A66),NA(),J65*(1+'Retirement Worksheet'!$B$29)) ->  | M66: =((('Retirement Calculations'!I66)+(J66*'Retirement Worksheet'!$B$20))*'Retirement Worksheet'!$B$13)+(H66*'Retirement Worksheet'!$B$14) ->  | N66: =(H66*'Retirement Worksheet'!$B$15)+IF('Retirement Worksheet'!$B$17="Yes",'Retirement Calculations'!I66*'Retirement Worksheet'!$B$15,0)+IF('Retirement Worksheet'!$B$21="Yes",'Retirement Calculations'!J66*'Retirement Worksheet'!$B$15,0) ->  | O66: =(H66*'Retirement Worksheet'!$B$16)+IF('Retirement Worksheet'!$B$17="Yes",'Retirement Calculations'!I66*'Retirement Worksheet'!$B$16,0)+IF('Retirement Worksheet'!$B$21="Yes",'Retirement Calculations'!J66*'Retirement Worksheet'!$B$16,0) ->  | R66: =IF(ISERROR(A66),NA(),R65*(1+'Retirement Worksheet'!$B$28)) -> 
A67: =IF(A66<'Retirement Worksheet'!$B$8,A66+1,NA()) ->  | C67: =B67*'Retirement Worksheet'!$B$18 ->  | D67: =B67*'Retirement Worksheet'!$B$30 ->  | G67: =IF(ISERROR(A67),NA(),(G66*(1+'Retirement Worksheet'!$B$29))) ->  | H67: =B67*'Retirement Worksheet'!$B$12 ->  | I67: =IF(ISERROR(A67),NA(),I66*(1+'Retirement Worksheet'!$B$29)) ->  | J67: =IF(ISERROR(A67),NA(),J66*(1+'Retirement Worksheet'!$B$29)) ->  | M67: =((('Retirement Calculations'!I67)+(J67*'Retirement Worksheet'!$B$20))*'Retirement Worksheet'!$B$13)+(H67*'Retirement Worksheet'!$B$14) ->  | N67: =(H67*'Retirement Worksheet'!$B$15)+IF('Retirement Worksheet'!$B$17="Yes",'Retirement Calculations'!I67*'Retirement Worksheet'!$B$15,0)+IF('Retirement Worksheet'!$B$21="Yes",'Retirement Calculations'!J67*'Retirement Worksheet'!$B$15,0) ->  | O67: =(H67*'Retirement Worksheet'!$B$16)+IF('Retirement Worksheet'!$B$17="Yes",'Retirement Calculations'!I67*'Retirement Worksheet'!$B$16,0)+IF('Retirement Worksheet'!$B$21="Yes",'Retirement Calculations'!J67*'Retirement Worksheet'!$B$16,0) ->  | R67: =IF(ISERROR(A67),NA(),R66*(1+'Retirement Worksheet'!$B$28)) -> 
A68: =IF(A67<'Retirement Worksheet'!$B$8,A67+1,NA()) ->  | C68: =B68*'Retirement Worksheet'!$B$18 ->  | D68: =B68*'Retirement Worksheet'!$B$30 ->  | G68: =IF(ISERROR(A68),NA(),(G67*(1+'Retirement Worksheet'!$B$29))) ->  | H68: =B68*'Retirement Worksheet'!$B$12 ->  | I68: =IF(ISERROR(A68),NA(),I67*(1+'Retirement Worksheet'!$B$29)) ->  | J68: =IF(ISERROR(A68),NA(),J67*(1+'Retirement Worksheet'!$B$29)) ->  | K68: =SUM(G68:J68) ->  | M68: =((('Retirement Calculations'!I68)+(J68*'Retirement Worksheet'!$B$20))*'Retirement Worksheet'!$B$13)+(H68*'Retirement Worksheet'!$B$14) ->  | N68: =(H68*'Retirement Worksheet'!$B$15)+IF('Retirement Worksheet'!$B$17="Yes",'Retirement Calculations'!I68*'Retirement Worksheet'!$B$15,0)+IF('Retirement Worksheet'!$B$21="Yes",'Retirement Calculations'!J68*'Retirement Worksheet'!$B$15,0) ->  | O68: =(H68*'Retirement Worksheet'!$B$16)+IF('Retirement Worksheet'!$B$17="Yes",'Retirement Calculations'!I68*'Retirement Worksheet'!$B$16,0)+IF('Retirement Worksheet'!$B$21="Yes",'Retirement Calculations'!J68*'Retirement Worksheet'!$B$16,0) ->  | Q68: =SUM(G68:J68)-SUM(M68:O68) ->  | R68: =IF(ISERROR(A68),NA(),R67*(1+'Retirement Worksheet'!$B$28)) -> 
A69: =IF(A68<'Retirement Worksheet'!$B$8,A68+1,NA()) ->  | B69: =IF(ISERROR(A69),NA(),E68-H68+S68) ->  | C69: =B69*'Retirement Worksheet'!$B$18 ->  | D69: =B69*'Retirement Worksheet'!$B$30 ->  | G69: =IF(ISERROR(A69),NA(),(G68*(1+'Retirement Worksheet'!$B$29))) ->  | H69: =B69*'Retirement Worksheet'!$B$12 ->  | I69: =IF(ISERROR(A69),NA(),I68*(1+'Retirement Worksheet'!$B$29)) ->  | J69: =IF(ISERROR(A69),NA(),J68*(1+'Retirement Worksheet'!$B$29)) ->  | M69: =((('Retirement Calculations'!I69)+(J69*'Retirement Worksheet'!$B$20))*'Retirement Worksheet'!$B$13)+(H69*'Retirement Worksheet'!$B$14) ->  | N69: =(H69*'Retirement Worksheet'!$B$15)+IF('Retirement Worksheet'!$B$17="Yes",'Retirement Calculations'!I69*'Retirement Worksheet'!$B$15,0)+IF('Retirement Worksheet'!$B$21="Yes",'Retirement Calculations'!J69*'Retirement Worksheet'!$B$15,0) ->  | O69: =(H69*'Retirement Worksheet'!$B$16)+IF('Retirement Worksheet'!$B$17="Yes",'Retirement Calculations'!I69*'Retirement Worksheet'!$B$16,0)+IF('Retirement Worksheet'!$B$21="Yes",'Retirement Calculations'!J69*'Retirement Worksheet'!$B$16,0) ->  | R69: =IF(ISERROR(A69),NA(),R68*(1+'Retirement Worksheet'!$B$28)) -> 
A70: =IF(A69<'Retirement Worksheet'!$B$8,A69+1,NA()) ->  | C70: =B70*'Retirement Worksheet'!$B$18 ->  | D70: =B70*'Retirement Worksheet'!$B$30 ->  | G70: =IF(ISERROR(A70),NA(),(G69*(1+'Retirement Worksheet'!$B$29))) ->  | H70: =B70*'Retirement Worksheet'!$B$12 ->  | I70: =IF(ISERROR(A70),NA(),I69*(1+'Retirement Worksheet'!$B$29)) ->  | J70: =IF(ISERROR(A70),NA(),J69*(1+'Retirement Worksheet'!$B$29)) ->  | M70: =((('Retirement Calculations'!I70)+(J70*'Retirement Worksheet'!$B$20))*'Retirement Worksheet'!$B$13)+(H70*'Retirement Worksheet'!$B$14) ->  | N70: =(H70*'Retirement Worksheet'!$B$15)+IF('Retirement Worksheet'!$B$17="Yes",'Retirement Calculations'!I70*'Retirement Worksheet'!$B$15,0)+IF('Retirement Worksheet'!$B$21="Yes",'Retirement Calculations'!J70*'Retirement Worksheet'!$B$15,0) ->  | O70: =(H70*'Retirement Worksheet'!$B$16)+IF('Retirement Worksheet'!$B$17="Yes",'Retirement Calculations'!I70*'Retirement Worksheet'!$B$16,0)+IF('Retirement Worksheet'!$B$21="Yes",'Retirement Calculations'!J70*'Retirement Worksheet'!$B$16,0) ->  | R70: =IF(ISERROR(A70),NA(),R69*(1+'Retirement Worksheet'!$B$28)) -> 
A71: =IF(A70<'Retirement Worksheet'!$B$8,A70+1,NA()) ->  | C71: =B71*'Retirement Worksheet'!$B$18 ->  | D71: =B71*'Retirement Worksheet'!$B$30 ->  | E71: =B71-C71+D71 ->  | G71: =IF(ISERROR(A71),NA(),(G70*(1+'Retirement Worksheet'!$B$29))) ->  | H71: =B71*'Retirement Worksheet'!$B$12 ->  | I71: =IF(ISERROR(A71),NA(),I70*(1+'Retirement Worksheet'!$B$29)) ->  | J71: =IF(ISERROR(A71),NA(),J70*(1+'Retirement Worksheet'!$B$29)) ->  | M71: =((('Retirement Calculations'!I71)+(J71*'Retirement Worksheet'!$B$20))*'Retirement Worksheet'!$B$13)+(H71*'Retirement Worksheet'!$B$14) ->  | N71: =(H71*'Retirement Worksheet'!$B$15)+IF('Retirement Worksheet'!$B$17="Yes",'Retirement Calculations'!I71*'Retirement Worksheet'!$B$15,0)+IF('Retirement Worksheet'!$B$21="Yes",'Retirement Calculations'!J71*'Retirement Worksheet'!$B$15,0) ->  | O71: =(H71*'Retirement Worksheet'!$B$16)+IF('Retirement Worksheet'!$B$17="Yes",'Retirement Calculations'!I71*'Retirement Worksheet'!$B$16,0)+IF('Retirement Worksheet'!$B$21="Yes",'Retirement Calculations'!J71*'Retirement Worksheet'!$B$16,0) ->  | R71: =IF(ISERROR(A71),NA(),R70*(1+'Retirement Worksheet'!$B$28)) ->  | S71: =Q71-R71 -> 
A72: =IF(A71<'Retirement Worksheet'!$B$8,A71+1,NA()) ->  | C72: =B72*'Retirement Worksheet'!$B$18 ->  | D72: =B72*'Retirement Worksheet'!$B$30 ->  | G72: =IF(ISERROR(A72),NA(),(G71*(1+'Retirement Worksheet'!$B$29))) ->  | H72: =B72*'Retirement Worksheet'!$B$12 ->  | I72: =IF(ISERROR(A72),NA(),I71*(1+'Retirement Worksheet'!$B$29)) ->  | J72: =IF(ISERROR(A72),NA(),J71*(1+'Retirement Worksheet'!$B$29)) ->  | M72: =((('Retirement Calculations'!I72)+(J72*'Retirement Worksheet'!$B$20))*'Retirement Worksheet'!$B$13)+(H72*'Retirement Worksheet'!$B$14) ->  | N72: =(H72*'Retirement Worksheet'!$B$15)+IF('Retirement Worksheet'!$B$17="Yes",'Retirement Calculations'!I72*'Retirement Worksheet'!$B$15,0)+IF('Retirement Worksheet'!$B$21="Yes",'Retirement Calculations'!J72*'Retirement Worksheet'!$B$15,0) ->  | O72: =(H72*'Retirement Worksheet'!$B$16)+IF('Retirement Worksheet'!$B$17="Yes",'Retirement Calculations'!I72*'Retirement Worksheet'!$B$16,0)+IF('Retirement Worksheet'!$B$21="Yes",'Retirement Calculations'!J72*'Retirement Worksheet'!$B$16,0) ->  | R72: =IF(ISERROR(A72),NA(),R71*(1+'Retirement Worksheet'!$B$28)) -> 
A73: =IF(A72<'Retirement Worksheet'!$B$8,A72+1,NA()) ->  | C73: =B73*'Retirement Worksheet'!$B$18 ->  | D73: =B73*'Retirement Worksheet'!$B$30 ->  | G73: =IF(ISERROR(A73),NA(),(G72*(1+'Retirement Worksheet'!$B$29))) ->  | H73: =B73*'Retirement Worksheet'!$B$12 ->  | I73: =IF(ISERROR(A73),NA(),I72*(1+'Retirement Worksheet'!$B$29)) ->  | J73: =IF(ISERROR(A73),NA(),J72*(1+'Retirement Worksheet'!$B$29)) ->  | M73: =((('Retirement Calculations'!I73)+(J73*'Retirement Worksheet'!$B$20))*'Retirement Worksheet'!$B$13)+(H73*'Retirement Worksheet'!$B$14) ->  | N73: =(H73*'Retirement Worksheet'!$B$15)+IF('Retirement Worksheet'!$B$17="Yes",'Retirement Calculations'!I73*'Retirement Worksheet'!$B$15,0)+IF('Retirement Worksheet'!$B$21="Yes",'Retirement Calculations'!J73*'Retirement Worksheet'!$B$15,0) ->  | O73: =(H73*'Retirement Worksheet'!$B$16)+IF('Retirement Worksheet'!$B$17="Yes",'Retirement Calculations'!I73*'Retirement Worksheet'!$B$16,0)+IF('Retirement Worksheet'!$B$21="Yes",'Retirement Calculations'!J73*'Retirement Worksheet'!$B$16,0) ->  | R73: =IF(ISERROR(A73),NA(),R72*(1+'Retirement Worksheet'!$B$28)) -> 
A74: =IF(A73<'Retirement Worksheet'!$B$8,A73+1,NA()) ->  | C74: =B74*'Retirement Worksheet'!$B$18 ->  | D74: =B74*'Retirement Worksheet'!$B$30 ->  | G74: =IF(ISERROR(A74),NA(),(G73*(1+'Retirement Worksheet'!$B$29))) ->  | H74: =B74*'Retirement Worksheet'!$B$12 ->  | I74: =IF(ISERROR(A74),NA(),I73*(1+'Retirement Worksheet'!$B$29)) ->  | J74: =IF(ISERROR(A74),NA(),J73*(1+'Retirement Worksheet'!$B$29)) ->  | M74: =((('Retirement Calculations'!I74)+(J74*'Retirement Worksheet'!$B$20))*'Retirement Worksheet'!$B$13)+(H74*'Retirement Worksheet'!$B$14) ->  | N74: =(H74*'Retirement Worksheet'!$B$15)+IF('Retirement Worksheet'!$B$17="Yes",'Retirement Calculations'!I74*'Retirement Worksheet'!$B$15,0)+IF('Retirement Worksheet'!$B$21="Yes",'Retirement Calculations'!J74*'Retirement Worksheet'!$B$15,0) ->  | O74: =(H74*'Retirement Worksheet'!$B$16)+IF('Retirement Worksheet'!$B$17="Yes",'Retirement Calculations'!I74*'Retirement Worksheet'!$B$16,0)+IF('Retirement Worksheet'!$B$21="Yes",'Retirement Calculations'!J74*'Retirement Worksheet'!$B$16,0) ->  | R74: =IF(ISERROR(A74),NA(),R73*(1+'Retirement Worksheet'!$B$28)) -> 
A75: =IF(A74<'Retirement Worksheet'!$B$8,A74+1,NA()) ->  | C75: =B75*'Retirement Worksheet'!$B$18 ->  | D75: =B75*'Retirement Worksheet'!$B$30 ->  | G75: =IF(ISERROR(A75),NA(),(G74*(1+'Retirement Worksheet'!$B$29))) ->  | H75: =B75*'Retirement Worksheet'!$B$12 ->  | I75: =IF(ISERROR(A75),NA(),I74*(1+'Retirement Worksheet'!$B$29)) ->  | J75: =IF(ISERROR(A75),NA(),J74*(1+'Retirement Worksheet'!$B$29)) ->  | M75: =((('Retirement Calculations'!I75)+(J75*'Retirement Worksheet'!$B$20))*'Retirement Worksheet'!$B$13)+(H75*'Retirement Worksheet'!$B$14) ->  | N75: =(H75*'Retirement Worksheet'!$B$15)+IF('Retirement Worksheet'!$B$17="Yes",'Retirement Calculations'!I75*'Retirement Worksheet'!$B$15,0)+IF('Retirement Worksheet'!$B$21="Yes",'Retirement Calculations'!J75*'Retirement Worksheet'!$B$15,0) ->  | O75: =(H75*'Retirement Worksheet'!$B$16)+IF('Retirement Worksheet'!$B$17="Yes",'Retirement Calculations'!I75*'Retirement Worksheet'!$B$16,0)+IF('Retirement Worksheet'!$B$21="Yes",'Retirement Calculations'!J75*'Retirement Worksheet'!$B$16,0) ->  | R75: =IF(ISERROR(A75),NA(),R74*(1+'Retirement Worksheet'!$B$28)) -> 
A76: =IF(A75<'Retirement Worksheet'!$B$8,A75+1,NA()) ->  | C76: =B76*'Retirement Worksheet'!$B$18 ->  | D76: =B76*'Retirement Worksheet'!$B$30 ->  | G76: =IF(ISERROR(A76),NA(),(G75*(1+'Retirement Worksheet'!$B$29))) ->  | H76: =B76*'Retirement Worksheet'!$B$12 ->  | I76: =IF(ISERROR(A76),NA(),I75*(1+'Retirement Worksheet'!$B$29)) ->  | J76: =IF(ISERROR(A76),NA(),J75*(1+'Retirement Worksheet'!$B$29)) ->  | M76: =((('Retirement Calculations'!I76)+(J76*'Retirement Worksheet'!$B$20))*'Retirement Worksheet'!$B$13)+(H76*'Retirement Worksheet'!$B$14) ->  | N76: =(H76*'Retirement Worksheet'!$B$15)+IF('Retirement Worksheet'!$B$17="Yes",'Retirement Calculations'!I76*'Retirement Worksheet'!$B$15,0)+IF('Retirement Worksheet'!$B$21="Yes",'Retirement Calculations'!J76*'Retirement Worksheet'!$B$15,0) ->  | O76: =(H76*'Retirement Worksheet'!$B$16)+IF('Retirement Worksheet'!$B$17="Yes",'Retirement Calculations'!I76*'Retirement Worksheet'!$B$16,0)+IF('Retirement Worksheet'!$B$21="Yes",'Retirement Calculations'!J76*'Retirement Worksheet'!$B$16,0) ->  | R76: =IF(ISERROR(A76),NA(),R75*(1+'Retirement Worksheet'!$B$28)) -> 
A77: =IF(A76<'Retirement Worksheet'!$B$8,A76+1,NA()) ->  | C77: =B77*'Retirement Worksheet'!$B$18 ->  | D77: =B77*'Retirement Worksheet'!$B$30 ->  | G77: =IF(ISERROR(A77),NA(),(G76*(1+'Retirement Worksheet'!$B$29))) ->  | H77: =B77*'Retirement Worksheet'!$B$12 ->  | I77: =IF(ISERROR(A77),NA(),I76*(1+'Retirement Worksheet'!$B$29)) ->  | J77: =IF(ISERROR(A77),NA(),J76*(1+'Retirement Worksheet'!$B$29)) ->  | M77: =((('Retirement Calculations'!I77)+(J77*'Retirement Worksheet'!$B$20))*'Retirement Worksheet'!$B$13)+(H77*'Retirement Worksheet'!$B$14) ->  | N77: =(H77*'Retirement Worksheet'!$B$15)+IF('Retirement Worksheet'!$B$17="Yes",'Retirement Calculations'!I77*'Retirement Worksheet'!$B$15,0)+IF('Retirement Worksheet'!$B$21="Yes",'Retirement Calculations'!J77*'Retirement Worksheet'!$B$15,0) ->  | O77: =(H77*'Retirement Worksheet'!$B$16)+IF('Retirement Worksheet'!$B$17="Yes",'Retirement Calculations'!I77*'Retirement Worksheet'!$B$16,0)+IF('Retirement Worksheet'!$B$21="Yes",'Retirement Calculations'!J77*'Retirement Worksheet'!$B$16,0) ->  | R77: =IF(ISERROR(A77),NA(),R76*(1+'Retirement Worksheet'!$B$28)) -> 
A78: =IF(A77<'Retirement Worksheet'!$B$8,A77+1,NA()) ->  | C78: =B78*'Retirement Worksheet'!$B$18 ->  | D78: =B78*'Retirement Worksheet'!$B$30 ->  | G78: =IF(ISERROR(A78),NA(),(G77*(1+'Retirement Worksheet'!$B$29))) ->  | H78: =B78*'Retirement Worksheet'!$B$12 ->  | I78: =IF(ISERROR(A78),NA(),I77*(1+'Retirement Worksheet'!$B$29)) ->  | J78: =IF(ISERROR(A78),NA(),J77*(1+'Retirement Worksheet'!$B$29)) ->  | M78: =((('Retirement Calculations'!I78)+(J78*'Retirement Worksheet'!$B$20))*'Retirement Worksheet'!$B$13)+(H78*'Retirement Worksheet'!$B$14) ->  | N78: =(H78*'Retirement Worksheet'!$B$15)+IF('Retirement Worksheet'!$B$17="Yes",'Retirement Calculations'!I78*'Retirement Worksheet'!$B$15,0)+IF('Retirement Worksheet'!$B$21="Yes",'Retirement Calculations'!J78*'Retirement Worksheet'!$B$15,0) ->  | O78: =(H78*'Retirement Worksheet'!$B$16)+IF('Retirement Worksheet'!$B$17="Yes",'Retirement Calculations'!I78*'Retirement Worksheet'!$B$16,0)+IF('Retirement Worksheet'!$B$21="Yes",'Retirement Calculations'!J78*'Retirement Worksheet'!$B$16,0) ->  | R78: =IF(ISERROR(A78),NA(),R77*(1+'Retirement Worksheet'!$B$28)) -> 
A79: =IF(A78<'Retirement Worksheet'!$B$8,A78+1,NA()) ->  | C79: =B79*'Retirement Worksheet'!$B$18 ->  | D79: =B79*'Retirement Worksheet'!$B$30 ->  | G79: =IF(ISERROR(A79),NA(),(G78*(1+'Retirement Worksheet'!$B$29))) ->  | H79: =B79*'Retirement Worksheet'!$B$12 ->  | I79: =IF(ISERROR(A79),NA(),I78*(1+'Retirement Worksheet'!$B$29)) ->  | J79: =IF(ISERROR(A79),NA(),J78*(1+'Retirement Worksheet'!$B$29)) ->  | M79: =((('Retirement Calculations'!I79)+(J79*'Retirement Worksheet'!$B$20))*'Retirement Worksheet'!$B$13)+(H79*'Retirement Worksheet'!$B$14) ->  | N79: =(H79*'Retirement Worksheet'!$B$15)+IF('Retirement Worksheet'!$B$17="Yes",'Retirement Calculations'!I79*'Retirement Worksheet'!$B$15,0)+IF('Retirement Worksheet'!$B$21="Yes",'Retirement Calculations'!J79*'Retirement Worksheet'!$B$15,0) ->  | O79: =(H79*'Retirement Worksheet'!$B$16)+IF('Retirement Worksheet'!$B$17="Yes",'Retirement Calculations'!I79*'Retirement Worksheet'!$B$16,0)+IF('Retirement Worksheet'!$B$21="Yes",'Retirement Calculations'!J79*'Retirement Worksheet'!$B$16,0) ->  | R79: =IF(ISERROR(A79),NA(),R78*(1+'Retirement Worksheet'!$B$28)) -> 
A80: =IF(A79<'Retirement Worksheet'!$B$8,A79+1,NA()) ->  | C80: =B80*'Retirement Worksheet'!$B$18 ->  | D80: =B80*'Retirement Worksheet'!$B$30 ->  | G80: =IF(ISERROR(A80),NA(),(G79*(1+'Retirement Worksheet'!$B$29))) ->  | H80: =B80*'Retirement Worksheet'!$B$12 ->  | I80: =IF(ISERROR(A80),NA(),I79*(1+'Retirement Worksheet'!$B$29)) ->  | J80: =IF(ISERROR(A80),NA(),J79*(1+'Retirement Worksheet'!$B$29)) ->  | M80: =((('Retirement Calculations'!I80)+(J80*'Retirement Worksheet'!$B$20))*'Retirement Worksheet'!$B$13)+(H80*'Retirement Worksheet'!$B$14) ->  | N80: =(H80*'Retirement Worksheet'!$B$15)+IF('Retirement Worksheet'!$B$17="Yes",'Retirement Calculations'!I80*'Retirement Worksheet'!$B$15,0)+IF('Retirement Worksheet'!$B$21="Yes",'Retirement Calculations'!J80*'Retirement Worksheet'!$B$15,0) ->  | O80: =(H80*'Retirement Worksheet'!$B$16)+IF('Retirement Worksheet'!$B$17="Yes",'Retirement Calculations'!I80*'Retirement Worksheet'!$B$16,0)+IF('Retirement Worksheet'!$B$21="Yes",'Retirement Calculations'!J80*'Retirement Worksheet'!$B$16,0) ->  | R80: =IF(ISERROR(A80),NA(),R79*(1+'Retirement Worksheet'!$B$28)) -> 
A81: =IF(A80<'Retirement Worksheet'!$B$8,A80+1,NA()) ->  | C81: =B81*'Retirement Worksheet'!$B$18 ->  | D81: =B81*'Retirement Worksheet'!$B$30 ->  | G81: =IF(ISERROR(A81),NA(),(G80*(1+'Retirement Worksheet'!$B$29))) ->  | H81: =B81*'Retirement Worksheet'!$B$12 ->  | I81: =IF(ISERROR(A81),NA(),I80*(1+'Retirement Worksheet'!$B$29)) ->  | J81: =IF(ISERROR(A81),NA(),J80*(1+'Retirement Worksheet'!$B$29)) ->  | M81: =((('Retirement Calculations'!I81)+(J81*'Retirement Worksheet'!$B$20))*'Retirement Worksheet'!$B$13)+(H81*'Retirement Worksheet'!$B$14) ->  | N81: =(H81*'Retirement Worksheet'!$B$15)+IF('Retirement Worksheet'!$B$17="Yes",'Retirement Calculations'!I81*'Retirement Worksheet'!$B$15,0)+IF('Retirement Worksheet'!$B$21="Yes",'Retirement Calculations'!J81*'Retirement Worksheet'!$B$15,0) ->  | O81: =(H81*'Retirement Worksheet'!$B$16)+IF('Retirement Worksheet'!$B$17="Yes",'Retirement Calculations'!I81*'Retirement Worksheet'!$B$16,0)+IF('Retirement Worksheet'!$B$21="Yes",'Retirement Calculations'!J81*'Retirement Worksheet'!$B$16,0) ->  | R81: =IF(ISERROR(A81),NA(),R80*(1+'Retirement Worksheet'!$B$28)) -> 
A82: =IF(A81<'Retirement Worksheet'!$B$8,A81+1,NA()) ->  | C82: =B82*'Retirement Worksheet'!$B$18 ->  | D82: =B82*'Retirement Worksheet'!$B$30 ->  | G82: =IF(ISERROR(A82),NA(),(G81*(1+'Retirement Worksheet'!$B$29))) ->  | H82: =B82*'Retirement Worksheet'!$B$12 ->  | I82: =IF(ISERROR(A82),NA(),I81*(1+'Retirement Worksheet'!$B$29)) ->  | J82: =IF(ISERROR(A82),NA(),J81*(1+'Retirement Worksheet'!$B$29)) ->  | M82: =((('Retirement Calculations'!I82)+(J82*'Retirement Worksheet'!$B$20))*'Retirement Worksheet'!$B$13)+(H82*'Retirement Worksheet'!$B$14) ->  | N82: =(H82*'Retirement Worksheet'!$B$15)+IF('Retirement Worksheet'!$B$17="Yes",'Retirement Calculations'!I82*'Retirement Worksheet'!$B$15,0)+IF('Retirement Worksheet'!$B$21="Yes",'Retirement Calculations'!J82*'Retirement Worksheet'!$B$15,0) ->  | O82: =(H82*'Retirement Worksheet'!$B$16)+IF('Retirement Worksheet'!$B$17="Yes",'Retirement Calculations'!I82*'Retirement Worksheet'!$B$16,0)+IF('Retirement Worksheet'!$B$21="Yes",'Retirement Calculations'!J82*'Retirement Worksheet'!$B$16,0) ->  | R82: =IF(ISERROR(A82),NA(),R81*(1+'Retirement Worksheet'!$B$28)) -> 
A83: =IF(A82<'Retirement Worksheet'!$B$8,A82+1,NA()) ->  | C83: =B83*'Retirement Worksheet'!$B$18 ->  | D83: =B83*'Retirement Worksheet'!$B$30 ->  | G83: =IF(ISERROR(A83),NA(),(G82*(1+'Retirement Worksheet'!$B$29))) ->  | H83: =B83*'Retirement Worksheet'!$B$12 ->  | I83: =IF(ISERROR(A83),NA(),I82*(1+'Retirement Worksheet'!$B$29)) ->  | J83: =IF(ISERROR(A83),NA(),J82*(1+'Retirement Worksheet'!$B$29)) ->  | M83: =((('Retirement Calculations'!I83)+(J83*'Retirement Worksheet'!$B$20))*'Retirement Worksheet'!$B$13)+(H83*'Retirement Worksheet'!$B$14) ->  | N83: =(H83*'Retirement Worksheet'!$B$15)+IF('Retirement Worksheet'!$B$17="Yes",'Retirement Calculations'!I83*'Retirement Worksheet'!$B$15,0)+IF('Retirement Worksheet'!$B$21="Yes",'Retirement Calculations'!J83*'Retirement Worksheet'!$B$15,0) ->  | O83: =(H83*'Retirement Worksheet'!$B$16)+IF('Retirement Worksheet'!$B$17="Yes",'Retirement Calculations'!I83*'Retirement Worksheet'!$B$16,0)+IF('Retirement Worksheet'!$B$21="Yes",'Retirement Calculations'!J83*'Retirement Worksheet'!$B$16,0) ->  | R83: =IF(ISERROR(A83),NA(),R82*(1+'Retirement Worksheet'!$B$28)) -> 
A84: =IF(A83<'Retirement Worksheet'!$B$8,A83+1,NA()) ->  | C84: =B84*'Retirement Worksheet'!$B$18 ->  | D84: =B84*'Retirement Worksheet'!$B$30 ->  | G84: =IF(ISERROR(A84),NA(),(G83*(1+'Retirement Worksheet'!$B$29))) ->  | H84: =B84*'Retirement Worksheet'!$B$12 ->  | I84: =IF(ISERROR(A84),NA(),I83*(1+'Retirement Worksheet'!$B$29)) ->  | J84: =IF(ISERROR(A84),NA(),J83*(1+'Retirement Worksheet'!$B$29)) ->  | M84: =((('Retirement Calculations'!I84)+(J84*'Retirement Worksheet'!$B$20))*'Retirement Worksheet'!$B$13)+(H84*'Retirement Worksheet'!$B$14) ->  | N84: =(H84*'Retirement Worksheet'!$B$15)+IF('Retirement Worksheet'!$B$17="Yes",'Retirement Calculations'!I84*'Retirement Worksheet'!$B$15,0)+IF('Retirement Worksheet'!$B$21="Yes",'Retirement Calculations'!J84*'Retirement Worksheet'!$B$15,0) ->  | O84: =(H84*'Retirement Worksheet'!$B$16)+IF('Retirement Worksheet'!$B$17="Yes",'Retirement Calculations'!I84*'Retirement Worksheet'!$B$16,0)+IF('Retirement Worksheet'!$B$21="Yes",'Retirement Calculations'!J84*'Retirement Worksheet'!$B$16,0) ->  | R84: =IF(ISERROR(A84),NA(),R83*(1+'Retirement Worksheet'!$B$28)) -> 
A85: =IF(A84<'Retirement Worksheet'!$B$8,A84+1,NA()) ->  | C85: =B85*'Retirement Worksheet'!$B$18 ->  | D85: =B85*'Retirement Worksheet'!$B$30 ->  | G85: =IF(ISERROR(A85),NA(),(G84*(1+'Retirement Worksheet'!$B$29))) ->  | H85: =B85*'Retirement Worksheet'!$B$12 ->  | I85: =IF(ISERROR(A85),NA(),I84*(1+'Retirement Worksheet'!$B$29)) ->  | J85: =IF(ISERROR(A85),NA(),J84*(1+'Retirement Worksheet'!$B$29)) ->  | M85: =((('Retirement Calculations'!I85)+(J85*'Retirement Worksheet'!$B$20))*'Retirement Worksheet'!$B$13)+(H85*'Retirement Worksheet'!$B$14) ->  | N85: =(H85*'Retirement Worksheet'!$B$15)+IF('Retirement Worksheet'!$B$17="Yes",'Retirement Calculations'!I85*'Retirement Worksheet'!$B$15,0)+IF('Retirement Worksheet'!$B$21="Yes",'Retirement Calculations'!J85*'Retirement Worksheet'!$B$15,0) ->  | O85: =(H85*'Retirement Worksheet'!$B$16)+IF('Retirement Worksheet'!$B$17="Yes",'Retirement Calculations'!I85*'Retirement Worksheet'!$B$16,0)+IF('Retirement Worksheet'!$B$21="Yes",'Retirement Calculations'!J85*'Retirement Worksheet'!$B$16,0) ->  | R85: =IF(ISERROR(A85),NA(),R84*(1+'Retirement Worksheet'!$B$28)) -> 
A86: =IF(A85<'Retirement Worksheet'!$B$8,A85+1,NA()) ->  | C86: =B86*'Retirement Worksheet'!$B$18 ->  | D86: =B86*'Retirement Worksheet'!$B$30 ->  | G86: =IF(ISERROR(A86),NA(),(G85*(1+'Retirement Worksheet'!$B$29))) ->  | H86: =B86*'Retirement Worksheet'!$B$12 ->  | I86: =IF(ISERROR(A86),NA(),I85*(1+'Retirement Worksheet'!$B$29)) ->  | J86: =IF(ISERROR(A86),NA(),J85*(1+'Retirement Worksheet'!$B$29)) ->  | M86: =((('Retirement Calculations'!I86)+(J86*'Retirement Worksheet'!$B$20))*'Retirement Worksheet'!$B$13)+(H86*'Retirement Worksheet'!$B$14) ->  | N86: =(H86*'Retirement Worksheet'!$B$15)+IF('Retirement Worksheet'!$B$17="Yes",'Retirement Calculations'!I86*'Retirement Worksheet'!$B$15,0)+IF('Retirement Worksheet'!$B$21="Yes",'Retirement Calculations'!J86*'Retirement Worksheet'!$B$15,0) ->  | O86: =(H86*'Retirement Worksheet'!$B$16)+IF('Retirement Worksheet'!$B$17="Yes",'Retirement Calculations'!I86*'Retirement Worksheet'!$B$16,0)+IF('Retirement Worksheet'!$B$21="Yes",'Retirement Calculations'!J86*'Retirement Worksheet'!$B$16,0) ->  | R86: =IF(ISERROR(A86),NA(),R85*(1+'Retirement Worksheet'!$B$28)) -> 
A87: =IF(A86<'Retirement Worksheet'!$B$8,A86+1,NA()) ->  | C87: =B87*'Retirement Worksheet'!$B$18 ->  | D87: =B87*'Retirement Worksheet'!$B$30 ->  | G87: =IF(ISERROR(A87),NA(),(G86*(1+'Retirement Worksheet'!$B$29))) ->  | H87: =B87*'Retirement Worksheet'!$B$12 ->  | I87: =IF(ISERROR(A87),NA(),I86*(1+'Retirement Worksheet'!$B$29)) ->  | J87: =IF(ISERROR(A87),NA(),J86*(1+'Retirement Worksheet'!$B$29)) ->  | M87: =((('Retirement Calculations'!I87)+(J87*'Retirement Worksheet'!$B$20))*'Retirement Worksheet'!$B$13)+(H87*'Retirement Worksheet'!$B$14) ->  | N87: =(H87*'Retirement Worksheet'!$B$15)+IF('Retirement Worksheet'!$B$17="Yes",'Retirement Calculations'!I87*'Retirement Worksheet'!$B$15,0)+IF('Retirement Worksheet'!$B$21="Yes",'Retirement Calculations'!J87*'Retirement Worksheet'!$B$15,0) ->  | O87: =(H87*'Retirement Worksheet'!$B$16)+IF('Retirement Worksheet'!$B$17="Yes",'Retirement Calculations'!I87*'Retirement Worksheet'!$B$16,0)+IF('Retirement Worksheet'!$B$21="Yes",'Retirement Calculations'!J87*'Retirement Worksheet'!$B$16,0) ->  | R87: =IF(ISERROR(A87),NA(),R86*(1+'Retirement Worksheet'!$B$28)) -> 
A88: =IF(A87<'Retirement Worksheet'!$B$8,A87+1,NA()) ->  | C88: =B88*'Retirement Worksheet'!$B$18 ->  | D88: =B88*'Retirement Worksheet'!$B$30 ->  | G88: =IF(ISERROR(A88),NA(),(G87*(1+'Retirement Worksheet'!$B$29))) ->  | H88: =B88*'Retirement Worksheet'!$B$12 ->  | I88: =IF(ISERROR(A88),NA(),I87*(1+'Retirement Worksheet'!$B$29)) ->  | J88: =IF(ISERROR(A88),NA(),J87*(1+'Retirement Worksheet'!$B$29)) ->  | M88: =((('Retirement Calculations'!I88)+(J88*'Retirement Worksheet'!$B$20))*'Retirement Worksheet'!$B$13)+(H88*'Retirement Worksheet'!$B$14) ->  | N88: =(H88*'Retirement Worksheet'!$B$15)+IF('Retirement Worksheet'!$B$17="Yes",'Retirement Calculations'!I88*'Retirement Worksheet'!$B$15,0)+IF('Retirement Worksheet'!$B$21="Yes",'Retirement Calculations'!J88*'Retirement Worksheet'!$B$15,0) ->  | O88: =(H88*'Retirement Worksheet'!$B$16)+IF('Retirement Worksheet'!$B$17="Yes",'Retirement Calculations'!I88*'Retirement Worksheet'!$B$16,0)+IF('Retirement Worksheet'!$B$21="Yes",'Retirement Calculations'!J88*'Retirement Worksheet'!$B$16,0) ->  | R88: =IF(ISERROR(A88),NA(),R87*(1+'Retirement Worksheet'!$B$28)) -> 
A89: =IF(A88<'Retirement Worksheet'!$B$8,A88+1,NA()) ->  | C89: =B89*'Retirement Worksheet'!$B$18 ->  | D89: =B89*'Retirement Worksheet'!$B$30 ->  | G89: =IF(ISERROR(A89),NA(),(G88*(1+'Retirement Worksheet'!$B$29))) ->  | H89: =B89*'Retirement Worksheet'!$B$12 ->  | I89: =IF(ISERROR(A89),NA(),I88*(1+'Retirement Worksheet'!$B$29)) ->  | J89: =IF(ISERROR(A89),NA(),J88*(1+'Retirement Worksheet'!$B$29)) ->  | M89: =((('Retirement Calculations'!I89)+(J89*'Retirement Worksheet'!$B$20))*'Retirement Worksheet'!$B$13)+(H89*'Retirement Worksheet'!$B$14) ->  | N89: =(H89*'Retirement Worksheet'!$B$15)+IF('Retirement Worksheet'!$B$17="Yes",'Retirement Calculations'!I89*'Retirement Worksheet'!$B$15,0)+IF('Retirement Worksheet'!$B$21="Yes",'Retirement Calculations'!J89*'Retirement Worksheet'!$B$15,0) ->  | O89: =(H89*'Retirement Worksheet'!$B$16)+IF('Retirement Worksheet'!$B$17="Yes",'Retirement Calculations'!I89*'Retirement Worksheet'!$B$16,0)+IF('Retirement Worksheet'!$B$21="Yes",'Retirement Calculations'!J89*'Retirement Worksheet'!$B$16,0) ->  | R89: =IF(ISERROR(A89),NA(),R88*(1+'Retirement Worksheet'!$B$28)) -> 
A90: =IF(A89<'Retirement Worksheet'!$B$8,A89+1,NA()) ->  | C90: =B90*'Retirement Worksheet'!$B$18 ->  | D90: =B90*'Retirement Worksheet'!$B$30 ->  | G90: =IF(ISERROR(A90),NA(),(G89*(1+'Retirement Worksheet'!$B$29))) ->  | H90: =B90*'Retirement Worksheet'!$B$12 ->  | I90: =IF(ISERROR(A90),NA(),I89*(1+'Retirement Worksheet'!$B$29)) ->  | J90: =IF(ISERROR(A90),NA(),J89*(1+'Retirement Worksheet'!$B$29)) ->  | M90: =((('Retirement Calculations'!I90)+(J90*'Retirement Worksheet'!$B$20))*'Retirement Worksheet'!$B$13)+(H90*'Retirement Worksheet'!$B$14) ->  | N90: =(H90*'Retirement Worksheet'!$B$15)+IF('Retirement Worksheet'!$B$17="Yes",'Retirement Calculations'!I90*'Retirement Worksheet'!$B$15,0)+IF('Retirement Worksheet'!$B$21="Yes",'Retirement Calculations'!J90*'Retirement Worksheet'!$B$15,0) ->  | O90: =(H90*'Retirement Worksheet'!$B$16)+IF('Retirement Worksheet'!$B$17="Yes",'Retirement Calculations'!I90*'Retirement Worksheet'!$B$16,0)+IF('Retirement Worksheet'!$B$21="Yes",'Retirement Calculations'!J90*'Retirement Worksheet'!$B$16,0) ->  | R90: =IF(ISERROR(A90),NA(),R89*(1+'Retirement Worksheet'!$B$28)) -> 
A91: =IF(A90<'Retirement Worksheet'!$B$8,A90+1,NA()) ->  | C91: =B91*'Retirement Worksheet'!$B$18 ->  | D91: =B91*'Retirement Worksheet'!$B$30 ->  | G91: =IF(ISERROR(A91),NA(),(G90*(1+'Retirement Worksheet'!$B$29))) ->  | H91: =B91*'Retirement Worksheet'!$B$12 ->  | I91: =IF(ISERROR(A91),NA(),I90*(1+'Retirement Worksheet'!$B$29)) ->  | J91: =IF(ISERROR(A91),NA(),J90*(1+'Retirement Worksheet'!$B$29)) ->  | M91: =((('Retirement Calculations'!I91)+(J91*'Retirement Worksheet'!$B$20))*'Retirement Worksheet'!$B$13)+(H91*'Retirement Worksheet'!$B$14) ->  | N91: =(H91*'Retirement Worksheet'!$B$15)+IF('Retirement Worksheet'!$B$17="Yes",'Retirement Calculations'!I91*'Retirement Worksheet'!$B$15,0)+IF('Retirement Worksheet'!$B$21="Yes",'Retirement Calculations'!J91*'Retirement Worksheet'!$B$15,0) ->  | O91: =(H91*'Retirement Worksheet'!$B$16)+IF('Retirement Worksheet'!$B$17="Yes",'Retirement Calculations'!I91*'Retirement Worksheet'!$B$16,0)+IF('Retirement Worksheet'!$B$21="Yes",'Retirement Calculations'!J91*'Retirement Worksheet'!$B$16,0) ->  | R91: =IF(ISERROR(A91),NA(),R90*(1+'Retirement Worksheet'!$B$28)) -> 
A92: =IF(A91<'Retirement Worksheet'!$B$8,A91+1,NA()) ->  | C92: =B92*'Retirement Worksheet'!$B$18 ->  | D92: =B92*'Retirement Worksheet'!$B$30 ->  | G92: =IF(ISERROR(A92),NA(),(G91*(1+'Retirement Worksheet'!$B$29))) ->  | H92: =B92*'Retirement Worksheet'!$B$12 ->  | I92: =IF(ISERROR(A92),NA(),I91*(1+'Retirement Worksheet'!$B$29)) ->  | J92: =IF(ISERROR(A92),NA(),J91*(1+'Retirement Worksheet'!$B$29)) ->  | M92: =((('Retirement Calculations'!I92)+(J92*'Retirement Worksheet'!$B$20))*'Retirement Worksheet'!$B$13)+(H92*'Retirement Worksheet'!$B$14) ->  | N92: =(H92*'Retirement Worksheet'!$B$15)+IF('Retirement Worksheet'!$B$17="Yes",'Retirement Calculations'!I92*'Retirement Worksheet'!$B$15,0)+IF('Retirement Worksheet'!$B$21="Yes",'Retirement Calculations'!J92*'Retirement Worksheet'!$B$15,0) ->  | O92: =(H92*'Retirement Worksheet'!$B$16)+IF('Retirement Worksheet'!$B$17="Yes",'Retirement Calculations'!I92*'Retirement Worksheet'!$B$16,0)+IF('Retirement Worksheet'!$B$21="Yes",'Retirement Calculations'!J92*'Retirement Worksheet'!$B$16,0) ->  | R92: =IF(ISERROR(A92),NA(),R91*(1+'Retirement Worksheet'!$B$28)) -> 
A93: =IF(A92<'Retirement Worksheet'!$B$8,A92+1,NA()) ->  | C93: =B93*'Retirement Worksheet'!$B$18 ->  | D93: =B93*'Retirement Worksheet'!$B$30 ->  | G93: =IF(ISERROR(A93),NA(),(G92*(1+'Retirement Worksheet'!$B$29))) ->  | H93: =B93*'Retirement Worksheet'!$B$12 ->  | I93: =IF(ISERROR(A93),NA(),I92*(1+'Retirement Worksheet'!$B$29)) ->  | J93: =IF(ISERROR(A93),NA(),J92*(1+'Retirement Worksheet'!$B$29)) ->  | M93: =((('Retirement Calculations'!I93)+(J93*'Retirement Worksheet'!$B$20))*'Retirement Worksheet'!$B$13)+(H93*'Retirement Worksheet'!$B$14) ->  | N93: =(H93*'Retirement Worksheet'!$B$15)+IF('Retirement Worksheet'!$B$17="Yes",'Retirement Calculations'!I93*'Retirement Worksheet'!$B$15,0)+IF('Retirement Worksheet'!$B$21="Yes",'Retirement Calculations'!J93*'Retirement Worksheet'!$B$15,0) ->  | O93: =(H93*'Retirement Worksheet'!$B$16)+IF('Retirement Worksheet'!$B$17="Yes",'Retirement Calculations'!I93*'Retirement Worksheet'!$B$16,0)+IF('Retirement Worksheet'!$B$21="Yes",'Retirement Calculations'!J93*'Retirement Worksheet'!$B$16,0) ->  | R93: =IF(ISERROR(A93),NA(),R92*(1+'Retirement Worksheet'!$B$28)) -> 
A94: =IF(A93<'Retirement Worksheet'!$B$8,A93+1,NA()) ->  | C94: =B94*'Retirement Worksheet'!$B$18 ->  | D94: =B94*'Retirement Worksheet'!$B$30 ->  | G94: =IF(ISERROR(A94),NA(),(G93*(1+'Retirement Worksheet'!$B$29))) ->  | H94: =B94*'Retirement Worksheet'!$B$12 ->  | I94: =IF(ISERROR(A94),NA(),I93*(1+'Retirement Worksheet'!$B$29)) ->  | J94: =IF(ISERROR(A94),NA(),J93*(1+'Retirement Worksheet'!$B$29)) ->  | M94: =((('Retirement Calculations'!I94)+(J94*'Retirement Worksheet'!$B$20))*'Retirement Worksheet'!$B$13)+(H94*'Retirement Worksheet'!$B$14) ->  | N94: =(H94*'Retirement Worksheet'!$B$15)+IF('Retirement Worksheet'!$B$17="Yes",'Retirement Calculations'!I94*'Retirement Worksheet'!$B$15,0)+IF('Retirement Worksheet'!$B$21="Yes",'Retirement Calculations'!J94*'Retirement Worksheet'!$B$15,0) ->  | O94: =(H94*'Retirement Worksheet'!$B$16)+IF('Retirement Worksheet'!$B$17="Yes",'Retirement Calculations'!I94*'Retirement Worksheet'!$B$16,0)+IF('Retirement Worksheet'!$B$21="Yes",'Retirement Calculations'!J94*'Retirement Worksheet'!$B$16,0) ->  | R94: =IF(ISERROR(A94),NA(),R93*(1+'Retirement Worksheet'!$B$28)) -> 
A95: =IF(A94<'Retirement Worksheet'!$B$8,A94+1,NA()) ->  | C95: =B95*'Retirement Worksheet'!$B$18 ->  | D95: =B95*'Retirement Worksheet'!$B$30 ->  | G95: =IF(ISERROR(A95),NA(),(G94*(1+'Retirement Worksheet'!$B$29))) ->  | H95: =B95*'Retirement Worksheet'!$B$12 ->  | I95: =IF(ISERROR(A95),NA(),I94*(1+'Retirement Worksheet'!$B$29)) ->  | J95: =IF(ISERROR(A95),NA(),J94*(1+'Retirement Worksheet'!$B$29)) ->  | M95: =((('Retirement Calculations'!I95)+(J95*'Retirement Worksheet'!$B$20))*'Retirement Worksheet'!$B$13)+(H95*'Retirement Worksheet'!$B$14) ->  | N95: =(H95*'Retirement Worksheet'!$B$15)+IF('Retirement Worksheet'!$B$17="Yes",'Retirement Calculations'!I95*'Retirement Worksheet'!$B$15,0)+IF('Retirement Worksheet'!$B$21="Yes",'Retirement Calculations'!J95*'Retirement Worksheet'!$B$15,0) ->  | O95: =(H95*'Retirement Worksheet'!$B$16)+IF('Retirement Worksheet'!$B$17="Yes",'Retirement Calculations'!I95*'Retirement Worksheet'!$B$16,0)+IF('Retirement Worksheet'!$B$21="Yes",'Retirement Calculations'!J95*'Retirement Worksheet'!$B$16,0) ->  | R95: =IF(ISERROR(A95),NA(),R94*(1+'Retirement Worksheet'!$B$28)) -> 
A96: =IF(A95<'Retirement Worksheet'!$B$8,A95+1,NA()) ->  | C96: =B96*'Retirement Worksheet'!$B$18 ->  | D96: =B96*'Retirement Worksheet'!$B$30 ->  | G96: =IF(ISERROR(A96),NA(),(G95*(1+'Retirement Worksheet'!$B$29))) ->  | H96: =B96*'Retirement Worksheet'!$B$12 ->  | I96: =IF(ISERROR(A96),NA(),I95*(1+'Retirement Worksheet'!$B$29)) ->  | J96: =IF(ISERROR(A96),NA(),J95*(1+'Retirement Worksheet'!$B$29)) ->  | M96: =((('Retirement Calculations'!I96)+(J96*'Retirement Worksheet'!$B$20))*'Retirement Worksheet'!$B$13)+(H96*'Retirement Worksheet'!$B$14) ->  | N96: =(H96*'Retirement Worksheet'!$B$15)+IF('Retirement Worksheet'!$B$17="Yes",'Retirement Calculations'!I96*'Retirement Worksheet'!$B$15,0)+IF('Retirement Worksheet'!$B$21="Yes",'Retirement Calculations'!J96*'Retirement Worksheet'!$B$15,0) ->  | O96: =(H96*'Retirement Worksheet'!$B$16)+IF('Retirement Worksheet'!$B$17="Yes",'Retirement Calculations'!I96*'Retirement Worksheet'!$B$16,0)+IF('Retirement Worksheet'!$B$21="Yes",'Retirement Calculations'!J96*'Retirement Worksheet'!$B$16,0) ->  | R96: =IF(ISERROR(A96),NA(),R95*(1+'Retirement Worksheet'!$B$28)) -> 
A97: =IF(A96<'Retirement Worksheet'!$B$8,A96+1,NA()) ->  | C97: =B97*'Retirement Worksheet'!$B$18 ->  | D97: =B97*'Retirement Worksheet'!$B$30 ->  | G97: =IF(ISERROR(A97),NA(),(G96*(1+'Retirement Worksheet'!$B$29))) ->  | H97: =B97*'Retirement Worksheet'!$B$12 ->  | I97: =IF(ISERROR(A97),NA(),I96*(1+'Retirement Worksheet'!$B$29)) ->  | J97: =IF(ISERROR(A97),NA(),J96*(1+'Retirement Worksheet'!$B$29)) ->  | M97: =((('Retirement Calculations'!I97)+(J97*'Retirement Worksheet'!$B$20))*'Retirement Worksheet'!$B$13)+(H97*'Retirement Worksheet'!$B$14) ->  | N97: =(H97*'Retirement Worksheet'!$B$15)+IF('Retirement Worksheet'!$B$17="Yes",'Retirement Calculations'!I97*'Retirement Worksheet'!$B$15,0)+IF('Retirement Worksheet'!$B$21="Yes",'Retirement Calculations'!J97*'Retirement Worksheet'!$B$15,0) ->  | O97: =(H97*'Retirement Worksheet'!$B$16)+IF('Retirement Worksheet'!$B$17="Yes",'Retirement Calculations'!I97*'Retirement Worksheet'!$B$16,0)+IF('Retirement Worksheet'!$B$21="Yes",'Retirement Calculations'!J97*'Retirement Worksheet'!$B$16,0) ->  | R97: =IF(ISERROR(A97),NA(),R96*(1+'Retirement Worksheet'!$B$28)) -> 
A98: =IF(A97<'Retirement Worksheet'!$B$8,A97+1,NA()) ->  | C98: =B98*'Retirement Worksheet'!$B$18 ->  | D98: =B98*'Retirement Worksheet'!$B$30 ->  | G98: =IF(ISERROR(A98),NA(),(G97*(1+'Retirement Worksheet'!$B$29))) ->  | H98: =B98*'Retirement Worksheet'!$B$12 ->  | I98: =IF(ISERROR(A98),NA(),I97*(1+'Retirement Worksheet'!$B$29)) ->  | J98: =IF(ISERROR(A98),NA(),J97*(1+'Retirement Worksheet'!$B$29)) ->  | M98: =((('Retirement Calculations'!I98)+(J98*'Retirement Worksheet'!$B$20))*'Retirement Worksheet'!$B$13)+(H98*'Retirement Worksheet'!$B$14) ->  | N98: =(H98*'Retirement Worksheet'!$B$15)+IF('Retirement Worksheet'!$B$17="Yes",'Retirement Calculations'!I98*'Retirement Worksheet'!$B$15,0)+IF('Retirement Worksheet'!$B$21="Yes",'Retirement Calculations'!J98*'Retirement Worksheet'!$B$15,0) ->  | O98: =(H98*'Retirement Worksheet'!$B$16)+IF('Retirement Worksheet'!$B$17="Yes",'Retirement Calculations'!I98*'Retirement Worksheet'!$B$16,0)+IF('Retirement Worksheet'!$B$21="Yes",'Retirement Calculations'!J98*'Retirement Worksheet'!$B$16,0) ->  | R98: =IF(ISERROR(A98),NA(),R97*(1+'Retirement Worksheet'!$B$28)) -> 
A99: =IF(A98<'Retirement Worksheet'!$B$8,A98+1,NA()) ->  | C99: =B99*'Retirement Worksheet'!$B$18 ->  | D99: =B99*'Retirement Worksheet'!$B$30 ->  | G99: =IF(ISERROR(A99),NA(),(G98*(1+'Retirement Worksheet'!$B$29))) ->  | H99: =B99*'Retirement Worksheet'!$B$12 ->  | I99: =IF(ISERROR(A99),NA(),I98*(1+'Retirement Worksheet'!$B$29)) ->  | J99: =IF(ISERROR(A99),NA(),J98*(1+'Retirement Worksheet'!$B$29)) ->  | M99: =((('Retirement Calculations'!I99)+(J99*'Retirement Worksheet'!$B$20))*'Retirement Worksheet'!$B$13)+(H99*'Retirement Worksheet'!$B$14) ->  | N99: =(H99*'Retirement Worksheet'!$B$15)+IF('Retirement Worksheet'!$B$17="Yes",'Retirement Calculations'!I99*'Retirement Worksheet'!$B$15,0)+IF('Retirement Worksheet'!$B$21="Yes",'Retirement Calculations'!J99*'Retirement Worksheet'!$B$15,0) ->  | O99: =(H99*'Retirement Worksheet'!$B$16)+IF('Retirement Worksheet'!$B$17="Yes",'Retirement Calculations'!I99*'Retirement Worksheet'!$B$16,0)+IF('Retirement Worksheet'!$B$21="Yes",'Retirement Calculations'!J99*'Retirement Worksheet'!$B$16,0) ->  | R99: =IF(ISERROR(A99),NA(),R98*(1+'Retirement Worksheet'!$B$28)) -> 
A100: =IF(A99<'Retirement Worksheet'!$B$8,A99+1,NA()) ->  | C100: =B100*'Retirement Worksheet'!$B$18 ->  | D100: =B100*'Retirement Worksheet'!$B$30 ->  | G100: =IF(ISERROR(A100),NA(),(G99*(1+'Retirement Worksheet'!$B$29))) ->  | H100: =B100*'Retirement Worksheet'!$B$12 ->  | I100: =IF(ISERROR(A100),NA(),I99*(1+'Retirement Worksheet'!$B$29)) ->  | J100: =IF(ISERROR(A100),NA(),J99*(1+'Retirement Worksheet'!$B$29)) ->  | M100: =((('Retirement Calculations'!I100)+(J100*'Retirement Worksheet'!$B$20))*'Retirement Worksheet'!$B$13)+(H100*'Retirement Worksheet'!$B$14) ->  | N100: =(H100*'Retirement Worksheet'!$B$15)+IF('Retirement Worksheet'!$B$17="Yes",'Retirement Calculations'!I100*'Retirement Worksheet'!$B$15,0)+IF('Retirement Worksheet'!$B$21="Yes",'Retirement Calculations'!J100*'Retirement Worksheet'!$B$15,0) ->  | O100: =(H100*'Retirement Worksheet'!$B$16)+IF('Retirement Worksheet'!$B$17="Yes",'Retirement Calculations'!I100*'Retirement Worksheet'!$B$16,0)+IF('Retirement Worksheet'!$B$21="Yes",'Retirement Calculations'!J100*'Retirement Worksheet'!$B$16,0) ->  | R100: =IF(ISERROR(A100),NA(),R99*(1+'Retirement Worksheet'!$B$28)) -> 
A101: =IF(A100<'Retirement Worksheet'!$B$8,A100+1,NA()) ->  | C101: =B101*'Retirement Worksheet'!$B$18 ->  | D101: =B101*'Retirement Worksheet'!$B$30 ->  | G101: =IF(ISERROR(A101),NA(),(G100*(1+'Retirement Worksheet'!$B$29))) ->  | H101: =B101*'Retirement Worksheet'!$B$12 ->  | I101: =IF(ISERROR(A101),NA(),I100*(1+'Retirement Worksheet'!$B$29)) ->  | J101: =IF(ISERROR(A101),NA(),J100*(1+'Retirement Worksheet'!$B$29)) ->  | M101: =((('Retirement Calculations'!I101)+(J101*'Retirement Worksheet'!$B$20))*'Retirement Worksheet'!$B$13)+(H101*'Retirement Worksheet'!$B$14) ->  | N101: =(H101*'Retirement Worksheet'!$B$15)+IF('Retirement Worksheet'!$B$17="Yes",'Retirement Calculations'!I101*'Retirement Worksheet'!$B$15,0)+IF('Retirement Worksheet'!$B$21="Yes",'Retirement Calculations'!J101*'Retirement Worksheet'!$B$15,0) ->  | O101: =(H101*'Retirement Worksheet'!$B$16)+IF('Retirement Worksheet'!$B$17="Yes",'Retirement Calculations'!I101*'Retirement Worksheet'!$B$16,0)+IF('Retirement Worksheet'!$B$21="Yes",'Retirement Calculations'!J101*'Retirement Worksheet'!$B$16,0) ->  | R101: =IF(ISERROR(A101),NA(),R100*(1+'Retirement Worksheet'!$B$28)) -> 
A102: =IF(A101<'Retirement Worksheet'!$B$8,A101+1,NA()) ->  | C102: =B102*'Retirement Worksheet'!$B$18 ->  | D102: =B102*'Retirement Worksheet'!$B$30 ->  | G102: =IF(ISERROR(A102),NA(),(G101*(1+'Retirement Worksheet'!$B$29))) ->  | H102: =B102*'Retirement Worksheet'!$B$12 ->  | I102: =IF(ISERROR(A102),NA(),I101*(1+'Retirement Worksheet'!$B$29)) ->  | J102: =IF(ISERROR(A102),NA(),J101*(1+'Retirement Worksheet'!$B$29)) ->  | M102: =((('Retirement Calculations'!I102)+(J102*'Retirement Worksheet'!$B$20))*'Retirement Worksheet'!$B$13)+(H102*'Retirement Worksheet'!$B$14) ->  | N102: =(H102*'Retirement Worksheet'!$B$15)+IF('Retirement Worksheet'!$B$17="Yes",'Retirement Calculations'!I102*'Retirement Worksheet'!$B$15,0)+IF('Retirement Worksheet'!$B$21="Yes",'Retirement Calculations'!J102*'Retirement Worksheet'!$B$15,0) ->  | O102: =(H102*'Retirement Worksheet'!$B$16)+IF('Retirement Worksheet'!$B$17="Yes",'Retirement Calculations'!I102*'Retirement Worksheet'!$B$16,0)+IF('Retirement Worksheet'!$B$21="Yes",'Retirement Calculations'!J102*'Retirement Worksheet'!$B$16,0) ->  | R102: =IF(ISERROR(A102),NA(),R101*(1+'Retirement Worksheet'!$B$28)) -> 
A103: =IF(A102<'Retirement Worksheet'!$B$8,A102+1,NA()) ->  | C103: =B103*'Retirement Worksheet'!$B$18 ->  | D103: =B103*'Retirement Worksheet'!$B$30 ->  | G103: =IF(ISERROR(A103),NA(),(G102*(1+'Retirement Worksheet'!$B$29))) ->  | H103: =B103*'Retirement Worksheet'!$B$12 ->  | I103: =IF(ISERROR(A103),NA(),I102*(1+'Retirement Worksheet'!$B$29)) ->  | J103: =IF(ISERROR(A103),NA(),J102*(1+'Retirement Worksheet'!$B$29)) ->  | M103: =((('Retirement Calculations'!I103)+(J103*'Retirement Worksheet'!$B$20))*'Retirement Worksheet'!$B$13)+(H103*'Retirement Worksheet'!$B$14) ->  | N103: =(H103*'Retirement Worksheet'!$B$15)+IF('Retirement Worksheet'!$B$17="Yes",'Retirement Calculations'!I103*'Retirement Worksheet'!$B$15,0)+IF('Retirement Worksheet'!$B$21="Yes",'Retirement Calculations'!J103*'Retirement Worksheet'!$B$15,0) ->  | O103: =(H103*'Retirement Worksheet'!$B$16)+IF('Retirement Worksheet'!$B$17="Yes",'Retirement Calculations'!I103*'Retirement Worksheet'!$B$16,0)+IF('Retirement Worksheet'!$B$21="Yes",'Retirement Calculations'!J103*'Retirement Worksheet'!$B$16,0) ->  | R103: =IF(ISERROR(A103),NA(),R102*(1+'Retirement Worksheet'!$B$28)) -> 
A104: =IF(A103<'Retirement Worksheet'!$B$8,A103+1,NA()) ->  | C104: =B104*'Retirement Worksheet'!$B$18 ->  | D104: =B104*'Retirement Worksheet'!$B$30 ->  | G104: =IF(ISERROR(A104),NA(),(G103*(1+'Retirement Worksheet'!$B$29))) ->  | H104: =B104*'Retirement Worksheet'!$B$12 ->  | I104: =IF(ISERROR(A104),NA(),I103*(1+'Retirement Worksheet'!$B$29)) ->  | J104: =IF(ISERROR(A104),NA(),J103*(1+'Retirement Worksheet'!$B$29)) ->  | M104: =((('Retirement Calculations'!I104)+(J104*'Retirement Worksheet'!$B$20))*'Retirement Worksheet'!$B$13)+(H104*'Retirement Worksheet'!$B$14) ->  | N104: =(H104*'Retirement Worksheet'!$B$15)+IF('Retirement Worksheet'!$B$17="Yes",'Retirement Calculations'!I104*'Retirement Worksheet'!$B$15,0)+IF('Retirement Worksheet'!$B$21="Yes",'Retirement Calculations'!J104*'Retirement Worksheet'!$B$15,0) ->  | O104: =(H104*'Retirement Worksheet'!$B$16)+IF('Retirement Worksheet'!$B$17="Yes",'Retirement Calculations'!I104*'Retirement Worksheet'!$B$16,0)+IF('Retirement Worksheet'!$B$21="Yes",'Retirement Calculations'!J104*'Retirement Worksheet'!$B$16,0) ->  | R104: =IF(ISERROR(A104),NA(),R103*(1+'Retirement Worksheet'!$B$28)) -> 
A105: =IF(A104<'Retirement Worksheet'!$B$8,A104+1,NA()) ->  | C105: =B105*'Retirement Worksheet'!$B$18 ->  | D105: =B105*'Retirement Worksheet'!$B$30 ->  | G105: =IF(ISERROR(A105),NA(),(G104*(1+'Retirement Worksheet'!$B$29))) ->  | H105: =B105*'Retirement Worksheet'!$B$12 ->  | I105: =IF(ISERROR(A105),NA(),I104*(1+'Retirement Worksheet'!$B$29)) ->  | J105: =IF(ISERROR(A105),NA(),J104*(1+'Retirement Worksheet'!$B$29)) ->  | M105: =((('Retirement Calculations'!I105)+(J105*'Retirement Worksheet'!$B$20))*'Retirement Worksheet'!$B$13)+(H105*'Retirement Worksheet'!$B$14) ->  | N105: =(H105*'Retirement Worksheet'!$B$15)+IF('Retirement Worksheet'!$B$17="Yes",'Retirement Calculations'!I105*'Retirement Worksheet'!$B$15,0)+IF('Retirement Worksheet'!$B$21="Yes",'Retirement Calculations'!J105*'Retirement Worksheet'!$B$15,0) ->  | O105: =(H105*'Retirement Worksheet'!$B$16)+IF('Retirement Worksheet'!$B$17="Yes",'Retirement Calculations'!I105*'Retirement Worksheet'!$B$16,0)+IF('Retirement Worksheet'!$B$21="Yes",'Retirement Calculations'!J105*'Retirement Worksheet'!$B$16,0) ->  | R105: =IF(ISERROR(A105),NA(),R104*(1+'Retirement Worksheet'!$B$28)) -> 
A106: =IF(A105<'Retirement Worksheet'!$B$8,A105+1,NA()) ->  | C106: =B106*'Retirement Worksheet'!$B$18 ->  | D106: =B106*'Retirement Worksheet'!$B$30 ->  | G106: =IF(ISERROR(A106),NA(),(G105*(1+'Retirement Worksheet'!$B$29))) ->  | H106: =B106*'Retirement Worksheet'!$B$12 ->  | I106: =IF(ISERROR(A106),NA(),I105*(1+'Retirement Worksheet'!$B$29)) ->  | J106: =IF(ISERROR(A106),NA(),J105*(1+'Retirement Worksheet'!$B$29)) ->  | M106: =((('Retirement Calculations'!I106)+(J106*'Retirement Worksheet'!$B$20))*'Retirement Worksheet'!$B$13)+(H106*'Retirement Worksheet'!$B$14) ->  | N106: =(H106*'Retirement Worksheet'!$B$15)+IF('Retirement Worksheet'!$B$17="Yes",'Retirement Calculations'!I106*'Retirement Worksheet'!$B$15,0)+IF('Retirement Worksheet'!$B$21="Yes",'Retirement Calculations'!J106*'Retirement Worksheet'!$B$15,0) ->  | O106: =(H106*'Retirement Worksheet'!$B$16)+IF('Retirement Worksheet'!$B$17="Yes",'Retirement Calculations'!I106*'Retirement Worksheet'!$B$16,0)+IF('Retirement Worksheet'!$B$21="Yes",'Retirement Calculations'!J106*'Retirement Worksheet'!$B$16,0) ->  | R106: =IF(ISERROR(A106),NA(),R105*(1+'Retirement Worksheet'!$B$28)) -> 
A107: =IF(A106<'Retirement Worksheet'!$B$8,A106+1,NA()) ->  | C107: =B107*'Retirement Worksheet'!$B$18 ->  | D107: =B107*'Retirement Worksheet'!$B$30 ->  | G107: =IF(ISERROR(A107),NA(),(G106*(1+'Retirement Worksheet'!$B$29))) ->  | H107: =B107*'Retirement Worksheet'!$B$12 ->  | I107: =IF(ISERROR(A107),NA(),I106*(1+'Retirement Worksheet'!$B$29)) ->  | J107: =IF(ISERROR(A107),NA(),J106*(1+'Retirement Worksheet'!$B$29)) ->  | M107: =((('Retirement Calculations'!I107)+(J107*'Retirement Worksheet'!$B$20))*'Retirement Worksheet'!$B$13)+(H107*'Retirement Worksheet'!$B$14) ->  | N107: =(H107*'Retirement Worksheet'!$B$15)+IF('Retirement Worksheet'!$B$17="Yes",'Retirement Calculations'!I107*'Retirement Worksheet'!$B$15,0)+IF('Retirement Worksheet'!$B$21="Yes",'Retirement Calculations'!J107*'Retirement Worksheet'!$B$15,0) ->  | O107: =(H107*'Retirement Worksheet'!$B$16)+IF('Retirement Worksheet'!$B$17="Yes",'Retirement Calculations'!I107*'Retirement Worksheet'!$B$16,0)+IF('Retirement Worksheet'!$B$21="Yes",'Retirement Calculations'!J107*'Retirement Worksheet'!$B$16,0) ->  | R107: =IF(ISERROR(A107),NA(),R106*(1+'Retirement Worksheet'!$B$28)) -> 

Sheet Salary Worksheet
A1: SALARY WORKSHEET | D1: Salary Requirement Graph
A2: DIRECTIONS: 1) Enter assumptions, 2) click 'Enter'->
A3: 3) Review the outcome using the text box to the right of the graph
A4: 4) As needed, adjust the "Projected Annual Salary at Current Age"
A5: 5) Repeat the process until your answer is "Yes"
A7: Assumptions
A8: Current age (# years old) | B8: 30
A9: Projected Final Retirement age (# years old) | B9: 65
A10: Military Retirement Age (# years old)
A11: Current Savings Available ($) | B11: 200000
A12: Federal Tax rate (%) | B12: 0.12
A13: State Tax rate (%) | B13: 0.06
A14: Local Tax rate (%) | B14: 0.02
A15: Annual investment fees (%) | B15: 0.0025
A16: Annual return on investments (%) | B16: 0.07
A17: Social Security tax rate (%) | B17: 0.062
A18: Social Security tax wage base limit ($) | B18: 176100
A19: Medicare tax rate (%) | B19: 0.0145
A20: Additional Medicare tax rate (%) | B20: 0.0009
A21: Tax Filing Status | B21: Married-Joint
A22: Required Savings upon Final Retirement ($) | B22: 800000
A23: Projected Annual Salary at Current Age ($) | B23: 80000
A24: Final Military Pay (annual $) | B24: 0
A25: Military Retirement Multiplier (%) | B25: 0.025
A26: Years of Military Service (#) | B26: 30
A27: Annual Military Pension ($) | B27: 0
A28: Annual Military Disability Payments ($) | B28: 12000
A29: Military Pension Taxed by State & Local? | B29: Yes | W29: Row Labels | X29: Sum of Savings | Y29: Sum of Savings Requirement | Z29: Sum of Salary | AA29: Sum of Net Income
A30: Annual expenses ($) | B30: 50000 | W30: 30 | X30: 200000 | Y30: 800000 | Z30: 80000 | AA30: 20033
A31: Annual inflation rate (%) | B31: 0.03 | W31: 31 | X31: 233533 | Y31: 800000 | Z31: 81600 | AA31: 7689.16
A32: Annual COLA / income increase (%) | B32: 0.02 | W32: 32 | X32: 256985.6375 | Y32: 800000 | Z32: 83232 | AA32: 7323.4432
A33: Include prior year net income in following year's savings? | B33: Yes | D33: Chart Detail | W33: 33 | X33: 281655.6112 | Y33: 800000 | Z33: 84896.64 | AA33: 6934.962064
W34: 34 | X34: 307602.3271 | Y34: 800000 | Z34: 86594.5728 | AA34: 6522.797805
E35: Investments | J35: Income | N35: Deductions | T35: Expenses | W35: 35 | X35: 334888.2819 | Y35: 800000 | Z35: 88326.46426 | AA35: 6085.999356
D36: ='Salary Calculations'!A2 -> Age | E36: ='Salary Calculations'!B2 -> Savings | F36: ='Salary Calculations'!C2 -> Savings Requirement | G36: ='Salary Calculations'!D2 -> Investment Fees | H36: ='Salary Calculations'!E2 -> Return on Investments | I36: ='Salary Calculations'!F2 -> Net Investments | J36: Disability | K36: ='Salary Calculations'!H2 -> Salary | L36: ='Salary Calculations'!I2 -> Pension | M36: ='Salary Calculations'!J2 -> Total Income | N36: ='Salary Calculations'!K2 -> Federal Taxes | O36: ='Salary Calculations'!L2 -> Social Security | P36: ='Salary Calculations'!M2 -> Medicare | Q36: ='Salary Calculations'!N2 -> State Taxes | R36: ='Salary Calculations'!O2 -> Local Taxes | S36: ='Salary Calculations'!P2 -> Total Deductions | T36: ='Salary Calculations'!Q2 -> Expenses | U36: ='Salary Calculations'!R2 -> Net Income | W36: 36 | X36: 363579.2403 | Y36: 800000 | Z36: 90092.99354 | AA36: 5623.582306
D37: =IFERROR('Salary Calculations'!A3,"") -> 30 | E37: =IFERROR('Salary Calculations'!B3,"") -> 200000 | F37: =IFERROR('Salary Calculations'!C3,"") -> 800000 | G37: =IFERROR('Salary Calculations'!D3,"") -> 500 | H37: =IFERROR('Salary Calculations'!E3,"") -> 14000 | I37: =IFERROR('Salary Calculations'!F3,"") -> 213500 | J37: =IFERROR('Salary Calculations'!G3,"") -> 12000 | K37: =IFERROR('Salary Calculations'!H3,"") -> 80000 | L37: =IFERROR('Salary Calculations'!I3,"") -> 0 | M37: =IFERROR('Salary Calculations'!J3,"") -> 92000 | N37: =IFERROR('Salary Calculations'!K3,"") -> 9600 | O37: =IFERROR('Salary Calculations'!L3,"") -> 4960 | P37: =IFERROR('Salary Calculations'!M3,"") -> 1007 | Q37: =IFERROR('Salary Calculations'!N3,"") -> 4800 | R37: =IFERROR('Salary Calculations'!O3,"") -> 1600 | S37: =IFERROR('Salary Calculations'!P3,"") -> 21967 | T37: =IFERROR('Salary Calculations'!Q3,"") -> 50000 | U37: =IFERROR('Salary Calculations'!R3,"") -> 20033 | W37: 37 | X37: 393744.4213 | Y37: 800000 | Z37: 91894.85341 | AA37: 5134.527804
D38: =IFERROR('Salary Calculations'!A4,"") -> 31 | E38: =IFERROR('Salary Calculations'!B4,"") -> 233533 | F38: =IFERROR('Salary Calculations'!C4,"") -> 800000 | G38: =IFERROR('Salary Calculations'!D4,"") -> 583.8325 | H38: =IFERROR('Salary Calculations'!E4,"") -> 16347.31 | I38: =IFERROR('Salary Calculations'!F4,"") -> 249296.4775 | J38: =IFERROR('Salary Calculations'!G4,"") -> 12240 | K38: =IFERROR('Salary Calculations'!H4,"") -> 81600 | L38: =IFERROR('Salary Calculations'!I4,"") -> 0 | M38: =IFERROR('Salary Calculations'!J4,"") -> 81600 | N38: =IFERROR('Salary Calculations'!K4,"") -> 9792 | O38: =IFERROR('Salary Calculations'!L4,"") -> 5059.2 | P38: =IFERROR('Salary Calculations'!M4,"") -> 1031.64 | Q38: =IFERROR('Salary Calculations'!N4,"") -> 4896 | R38: =IFERROR('Salary Calculations'!O4,"") -> 1632 | S38: =IFERROR('Salary Calculations'!P4,"") -> 22410.84 | T38: =IFERROR('Salary Calculations'!Q4,"") -> 51500 | U38: =IFERROR('Salary Calculations'!R4,"") -> 7689.16 | W38: 38 | X38: 425456.6976 | Y38: 800000 | Z38: 93732.75048 | AA38: 4617.781428
D39: =IFERROR('Salary Calculations'!A5,"") -> 32 | E39: =IFERROR('Salary Calculations'!B5,"") -> 256985.6375 | F39: =IFERROR('Salary Calculations'!C5,"") -> 800000 | G39: =IFERROR('Salary Calculations'!D5,"") -> 642.4640938 | H39: =IFERROR('Salary Calculations'!E5,"") -> 17988.99463 | I39: =IFERROR('Salary Calculations'!F5,"") -> 274332.168 | J39: =IFERROR('Salary Calculations'!G5,"") -> 12484.8 | K39: =IFERROR('Salary Calculations'!H5,"") -> 83232 | L39: =IFERROR('Salary Calculations'!I5,"") -> 0 | M39: =IFERROR('Salary Calculations'!J5,"") -> 83232 | N39: =IFERROR('Salary Calculations'!K5,"") -> 9987.84 | O39: =IFERROR('Salary Calculations'!L5,"") -> 5160.384 | P39: =IFERROR('Salary Calculations'!M5,"") -> 1056.7728 | Q39: =IFERROR('Salary Calculations'!N5,"") -> 4993.92 | R39: =IFERROR('Salary Calculations'!O5,"") -> 1664.64 | S39: =IFERROR('Salary Calculations'!P5,"") -> 22863.5568 | T39: =IFERROR('Salary Calculations'!Q5,"") -> 53045 | U39: =IFERROR('Salary Calculations'!R5,"") -> 7323.4432 | W39: 39 | X39: 458792.8061 | Y39: 800000 | Z39: 95607.40549 | AA39: 4072.252015
D40: =IFERROR('Salary Calculations'!A6,"") -> 33 | E40: =IFERROR('Salary Calculations'!B6,"") -> 281655.6112 | F40: =IFERROR('Salary Calculations'!C6,"") -> 800000 | G40: =IFERROR('Salary Calculations'!D6,"") -> 704.1390281 | H40: =IFERROR('Salary Calculations'!E6,"") -> 19715.89279 | I40: =IFERROR('Salary Calculations'!F6,"") -> 300667.365 | J40: =IFERROR('Salary Calculations'!G6,"") -> 12734.496 | K40: =IFERROR('Salary Calculations'!H6,"") -> 84896.64 | L40: =IFERROR('Salary Calculations'!I6,"") -> 0 | M40: =IFERROR('Salary Calculations'!J6,"") -> 84896.64 | N40: =IFERROR('Salary Calculations'!K6,"") -> 10187.5968 | O40: =IFERROR('Salary Calculations'!L6,"") -> 5263.59168 | P40: =IFERROR('Salary Calculations'!M6,"") -> 1082.408256 | Q40: =IFERROR('Salary Calculations'!N6,"") -> 5093.7984 | R40: =IFERROR('Salary Calculations'!O6,"") -> 1697.9328 | S40: =IFERROR('Salary Calculations'!P6,"") -> 23325.32794 | T40: =IFERROR('Salary Calculations'!Q6,"") -> 54636.35 | U40: =IFERROR('Salary Calculations'!R6,"") -> 6934.962064 | W40: 40 | X40: 493833.5725 | Y40: 800000 | Z40: 97519.5536 | AA40: 3496.810464
D41: =IFERROR('Salary Calculations'!A7,"") -> 34 | E41: =IFERROR('Salary Calculations'!B7,"") -> 307602.3271 | F41: =IFERROR('Salary Calculations'!C7,"") -> 800000 | G41: =IFERROR('Salary Calculations'!D7,"") -> 769.0058176 | H41: =IFERROR('Salary Calculations'!E7,"") -> 21532.16289 | I41: =IFERROR('Salary Calculations'!F7,"") -> 328365.4841 | J41: =IFERROR('Salary Calculations'!G7,"") -> 12989.18592 | K41: =IFERROR('Salary Calculations'!H7,"") -> 86594.5728 | L41: =IFERROR('Salary Calculations'!I7,"") -> 0 | M41: =IFERROR('Salary Calculations'!J7,"") -> 86594.5728 | N41: =IFERROR('Salary Calculations'!K7,"") -> 10391.34874 | O41: =IFERROR('Salary Calculations'!L7,"") -> 5368.863514 | P41: =IFERROR('Salary Calculations'!M7,"") -> 1108.556421 | Q41: =IFERROR('Salary Calculations'!N7,"") -> 5195.674368 | R41: =IFERROR('Salary Calculations'!O7,"") -> 1731.891456 | S41: =IFERROR('Salary Calculations'!P7,"") -> 23796.33449 | T41: =IFERROR('Salary Calculations'!Q7,"") -> 56275.4405 | U41: =IFERROR('Salary Calculations'!R7,"") -> 6522.797805 | W41: 41 | X41: 530664.1491 | Y41: 800000 | Z41: 99469.94467 | AA41: 2890.288483
D42: =IFERROR('Salary Calculations'!A8,"") -> 35 | E42: =IFERROR('Salary Calculations'!B8,"") -> 334888.2819 | F42: =IFERROR('Salary Calculations'!C8,"") -> 800000 | G42: =IFERROR('Salary Calculations'!D8,"") -> 837.2207048 | H42: =IFERROR('Salary Calculations'!E8,"") -> 23442.17974 | I42: =IFERROR('Salary Calculations'!F8,"") -> 357493.241 | J42: =IFERROR('Salary Calculations'!G8,"") -> 13248.96964 | K42: =IFERROR('Salary Calculations'!H8,"") -> 88326.46426 | L42: =IFERROR('Salary Calculations'!I8,"") -> 0 | M42: =IFERROR('Salary Calculations'!J8,"") -> 88326.46426 | N42: =IFERROR('Salary Calculations'!K8,"") -> 10599.17571 | O42: =IFERROR('Salary Calculations'!L8,"") -> 5476.240784 | P42: =IFERROR('Salary Calculations'!M8,"") -> 1135.22755 | Q42: =IFERROR('Salary Calculations'!N8,"") -> 5299.587855 | R42: =IFERROR('Salary Calculations'!O8,"") -> 1766.529285 | S42: =IFERROR('Salary Calculations'!P8,"") -> 24276.76118 | T42: =IFERROR('Salary Calculations'!Q8,"") -> 57963.70371 | U42: =IFERROR('Salary Calculations'!R8,"") -> 6085.999356 | W42: 42 | X42: 569374.2677 | Y42: 800000 | Z42: 101459.3436 | AA42: 2251.477318
D43: =IFERROR('Salary Calculations'!A9,"") -> 36 | E43: =IFERROR('Salary Calculations'!B9,"") -> 363579.2403 | F43: =IFERROR('Salary Calculations'!C9,"") -> 800000 | G43: =IFERROR('Salary Calculations'!D9,"") -> 908.9481008 | H43: =IFERROR('Salary Calculations'!E9,"") -> 25450.54682 | I43: =IFERROR('Salary Calculations'!F9,"") -> 388120.839 | J43: =IFERROR('Salary Calculations'!G9,"") -> 13513.94903 | K43: =IFERROR('Salary Calculations'!H9,"") -> 90092.99354 | L43: =IFERROR('Salary Calculations'!I9,"") -> 0 | M43: =IFERROR('Salary Calculations'!J9,"") -> 90092.99354 | N43: =IFERROR('Salary Calculations'!K9,"") -> 10811.15922 | O43: =IFERROR('Salary Calculations'!L9,"") -> 5585.7656 | P43: =IFERROR('Salary Calculations'!M9,"") -> 1162.432101 | Q43: =IFERROR('Salary Calculations'!N9,"") -> 5405.579612 | R43: =IFERROR('Salary Calculations'!O9,"") -> 1801.859871 | S43: =IFERROR('Salary Calculations'!P9,"") -> 24766.79641 | T43: =IFERROR('Salary Calculations'!Q9,"") -> 59702.61483 | U43: =IFERROR('Salary Calculations'!R9,"") -> 5623.582306 | W43: 43 | X43: 610058.5081 | Y43: 800000 | Z43: 103488.5304 | AA43: 1579.126421
D44: =IFERROR('Salary Calculations'!A10,"") -> 37 | E44: =IFERROR('Salary Calculations'!B10,"") -> 393744.4213 | F44: =IFERROR('Salary Calculations'!C10,"") -> 800000 | G44: =IFERROR('Salary Calculations'!D10,"") -> 984.3610534 | H44: =IFERROR('Salary Calculations'!E10,"") -> 27562.10949 | I44: =IFERROR('Salary Calculations'!F10,"") -> 420322.1698 | J44: =IFERROR('Salary Calculations'!G10,"") -> 13784.22801 | K44: =IFERROR('Salary Calculations'!H10,"") -> 91894.85341 | L44: =IFERROR('Salary Calculations'!I10,"") -> 0 | M44: =IFERROR('Salary Calculations'!J10,"") -> 91894.85341 | N44: =IFERROR('Salary Calculations'!K10,"") -> 11027.38241 | O44: =IFERROR('Salary Calculations'!L10,"") -> 5697.480912 | P44: =IFERROR('Salary Calculations'!M10,"") -> 1190.180743 | Q44: =IFERROR('Salary Calculations'!N10,"") -> 5513.691205 | R44: =IFERROR('Salary Calculations'!O10,"") -> 1837.897068 | S44: =IFERROR('Salary Calculations'!P10,"") -> 25266.63234 | T44: =IFERROR('Salary Calculations'!Q10,"") -> 61493.69327 | U44: =IFERROR('Salary Calculations'!R10,"") -> 5134.527804 | W44: 44 | X44: 652816.5838 | Y44: 800000 | Z44: 105558.301 | AA44: 871.9420924
D45: =IFERROR('Salary Calculations'!A11,"") -> 38 | E45: =IFERROR('Salary Calculations'!B11,"") -> 425456.6976 | F45: =IFERROR('Salary Calculations'!C11,"") -> 800000 | G45: =IFERROR('Salary Calculations'!D11,"") -> 1063.641744 | H45: =IFERROR('Salary Calculations'!E11,"") -> 29781.96883 | I45: =IFERROR('Salary Calculations'!F11,"") -> 454175.0247 | J45: =IFERROR('Salary Calculations'!G11,"") -> 14059.91257 | K45: =IFERROR('Salary Calculations'!H11,"") -> 93732.75048 | L45: =IFERROR('Salary Calculations'!I11,"") -> 0 | M45: =IFERROR('Salary Calculations'!J11,"") -> 93732.75048 | N45: =IFERROR('Salary Calculations'!K11,"") -> 11247.93006 | O45: =IFERROR('Salary Calculations'!L11,"") -> 5811.43053 | P45: =IFERROR('Salary Calculations'!M11,"") -> 1218.484357 | Q45: =IFERROR('Salary Calculations'!N11,"") -> 5623.965029 | R45: =IFERROR('Salary Calculations'!O11,"") -> 1874.65501 | S45: =IFERROR('Salary Calculations'!P11,"") -> 25776.46498 | T45: =IFERROR('Salary Calculations'!Q11,"") -> 63338.50407 | U45: =IFERROR('Salary Calculations'!R11,"") -> 4617.781428 | W45: 45 | X45: 697753.6453 | Y45: 800000 | Z45: 107669.4671 | AA45: 128.5860718
D46: =IFERROR('Salary Calculations'!A12,"") -> 39 | E46: =IFERROR('Salary Calculations'!B12,"") -> 458792.8061 | F46: =IFERROR('Salary Calculations'!C12,"") -> 800000 | G46: =IFERROR('Salary Calculations'!D12,"") -> 1146.982015 | H46: =IFERROR('Salary Calculations'!E12,"") -> 32115.49643 | I46: =IFERROR('Salary Calculations'!F12,"") -> 489761.3205 | J46: =IFERROR('Salary Calculations'!G12,"") -> 14341.11082 | K46: =IFERROR('Salary Calculations'!H12,"") -> 95607.40549 | L46: =IFERROR('Salary Calculations'!I12,"") -> 0 | M46: =IFERROR('Salary Calculations'!J12,"") -> 95607.40549 | N46: =IFERROR('Salary Calculations'!K12,"") -> 11472.88866 | O46: =IFERROR('Salary Calculations'!L12,"") -> 5927.65914 | P46: =IFERROR('Salary Calculations'!M12,"") -> 1247.354045 | Q46: =IFERROR('Salary Calculations'!N12,"") -> 5736.444329 | R46: =IFERROR('Salary Calculations'!O12,"") -> 1912.14811 | S46: =IFERROR('Salary Calculations'!P12,"") -> 26296.49428 | T46: =IFERROR('Salary Calculations'!Q12,"") -> 65238.65919 | U46: =IFERROR('Salary Calculations'!R12,"") -> 4072.252015 | W46: 46 | X46: 744980.6024 | Y46: 800000 | Z46: 109822.8564 | AA46: -652.3259151
D47: =IFERROR('Salary Calculations'!A13,"") -> 40 | E47: =IFERROR('Salary Calculations'!B13,"") -> 493833.5725 | F47: =IFERROR('Salary Calculations'!C13,"") -> 800000 | G47: =IFERROR('Salary Calculations'!D13,"") -> 1234.583931 | H47: =IFERROR('Salary Calculations'!E13,"") -> 34568.35008 | I47: =IFERROR('Salary Calculations'!F13,"") -> 527167.3387 | J47: =IFERROR('Salary Calculations'!G13,"") -> 14627.93304 | K47: =IFERROR('Salary Calculations'!H13,"") -> 97519.5536 | L47: =IFERROR('Salary Calculations'!I13,"") -> 0 | M47: =IFERROR('Salary Calculations'!J13,"") -> 97519.5536 | N47: =IFERROR('Salary Calculations'!K13,"") -> 11702.34643 | O47: =IFERROR('Salary Calculations'!L13,"") -> 6046.212323 | P47: =IFERROR('Salary Calculations'!M13,"") -> 1276.801125 | Q47: =IFERROR('Salary Calculations'!N13,"") -> 5851.173216 | R47: =IFERROR('Salary Calculations'!O13,"") -> 1950.391072 | S47: =IFERROR('Salary Calculations'!P13,"") -> 26826.92417 | T47: =IFERROR('Salary Calculations'!Q13,"") -> 67195.81897 | U47: =IFERROR('Salary Calculations'!R13,"") -> 3496.810464 | W47: 47 | X47: 794614.4672 | Y47: 800000 | Z47: 112019.3135 | AA47: -1472.225653
D48: =IFERROR('Salary Calculations'!A14,"") -> 41 | E48: =IFERROR('Salary Calculations'!B14,"") -> 530664.1491 | F48: =IFERROR('Salary Calculations'!C14,"") -> 800000 | G48: =IFERROR('Salary Calculations'!D14,"") -> 1326.660373 | H48: =IFERROR('Salary Calculations'!E14,"") -> 37146.49044 | I48: =IFERROR('Salary Calculations'!F14,"") -> 566483.9792 | J48: =IFERROR('Salary Calculations'!G14,"") -> 14920.4917 | K48: =IFERROR('Salary Calculations'!H14,"") -> 99469.94467 | L48: =IFERROR('Salary Calculations'!I14,"") -> 0 | M48: =IFERROR('Salary Calculations'!J14,"") -> 99469.94467 | N48: =IFERROR('Salary Calculations'!K14,"") -> 11936.39336 | O48: =IFERROR('Salary Calculations'!L14,"") -> 6167.13657 | P48: =IFERROR('Salary Calculations'!M14,"") -> 1306.837148 | Q48: =IFERROR('Salary Calculations'!N14,"") -> 5968.19668 | R48: =IFERROR('Salary Calculations'!O14,"") -> 1989.398893 | S48: =IFERROR('Salary Calculations'!P14,"") -> 27367.96265 | T48: =IFERROR('Salary Calculations'!Q14,"") -> 69211.69354 | U48: =IFERROR('Salary Calculations'!R14,"") -> 2890.288483 | W48: 48 | X48: 846778.7181 | Y48: 800000 | Z48: 114259.6998 | AA48: -2332.593982
D49: =IFERROR('Salary Calculations'!A15,"") -> 42 | E49: =IFERROR('Salary Calculations'!B15,"") -> 569374.2677 | F49: =IFERROR('Salary Calculations'!C15,"") -> 800000 | G49: =IFERROR('Salary Calculations'!D15,"") -> 1423.435669 | H49: =IFERROR('Salary Calculations'!E15,"") -> 39856.19874 | I49: =IFERROR('Salary Calculations'!F15,"") -> 607807.0308 | J49: =IFERROR('Salary Calculations'!G15,"") -> 15218.90153 | K49: =IFERROR('Salary Calculations'!H15,"") -> 101459.3436 | L49: =IFERROR('Salary Calculations'!I15,"") -> 0 | M49: =IFERROR('Salary Calculations'!J15,"") -> 101459.3436 | N49: =IFERROR('Salary Calculations'!K15,"") -> 12175.12123 | O49: =IFERROR('Salary Calculations'!L15,"") -> 6290.479301 | P49: =IFERROR('Salary Calculations'!M15,"") -> 1337.473891 | Q49: =IFERROR('Salary Calculations'!N15,"") -> 6087.560614 | R49: =IFERROR('Salary Calculations'!O15,"") -> 2029.186871 | S49: =IFERROR('Salary Calculations'!P15,"") -> 27919.8219 | T49: =IFERROR('Salary Calculations'!Q15,"") -> 71288.04434 | U49: =IFERROR('Salary Calculations'!R15,"") -> 2251.477318 | W49: 49 | X49: 901603.6876 | Y49: 800000 | Z49: 116544.8938 | AA49: -3234.962392
D50: =IFERROR('Salary Calculations'!A16,"") -> 43 | E50: =IFERROR('Salary Calculations'!B16,"") -> 610058.5081 | F50: =IFERROR('Salary Calculations'!C16,"") -> 800000 | G50: =IFERROR('Salary Calculations'!D16,"") -> 1525.14627 | H50: =IFERROR('Salary Calculations'!E16,"") -> 42704.09557 | I50: =IFERROR('Salary Calculations'!F16,"") -> 651237.4574 | J50: =IFERROR('Salary Calculations'!G16,"") -> 15523.27957 | K50: =IFERROR('Salary Calculations'!H16,"") -> 103488.5304 | L50: =IFERROR('Salary Calculations'!I16,"") -> 0 | M50: =IFERROR('Salary Calculations'!J16,"") -> 103488.5304 | N50: =IFERROR('Salary Calculations'!K16,"") -> 12418.62365 | O50: =IFERROR('Salary Calculations'!L16,"") -> 6416.288887 | P50: =IFERROR('Salary Calculations'!M16,"") -> 1368.723369 | Q50: =IFERROR('Salary Calculations'!N16,"") -> 6209.311826 | R50: =IFERROR('Salary Calculations'!O16,"") -> 2069.770609 | S50: =IFERROR('Salary Calculations'!P16,"") -> 28482.71834 | T50: =IFERROR('Salary Calculations'!Q16,"") -> 73426.68567 | U50: =IFERROR('Salary Calculations'!R16,"") -> 1579.126421 | W50: 50 | X50: 959226.9741 | Y50: 800000 | Z50: 118875.7917 | AA50: -4180.914667
D51: =IFERROR('Salary Calculations'!A17,"") -> 44 | E51: =IFERROR('Salary Calculations'!B17,"") -> 652816.5838 | F51: =IFERROR('Salary Calculations'!C17,"") -> 800000 | G51: =IFERROR('Salary Calculations'!D17,"") -> 1632.04146 | H51: =IFERROR('Salary Calculations'!E17,"") -> 45697.16087 | I51: =IFERROR('Salary Calculations'!F17,"") -> 696881.7032 | J51: =IFERROR('Salary Calculations'!G17,"") -> 15833.74516 | K51: =IFERROR('Salary Calculations'!H17,"") -> 105558.301 | L51: =IFERROR('Salary Calculations'!I17,"") -> 0 | M51: =IFERROR('Salary Calculations'!J17,"") -> 105558.301 | N51: =IFERROR('Salary Calculations'!K17,"") -> 12666.99613 | O51: =IFERROR('Salary Calculations'!L17,"") -> 6544.614665 | P51: =IFERROR('Salary Calculations'!M17,"") -> 1400.597836 | Q51: =IFERROR('Salary Calculations'!N17,"") -> 6333.498063 | R51: =IFERROR('Salary Calculations'!O17,"") -> 2111.166021 | S51: =IFERROR('Salary Calculations'!P17,"") -> 29056.87271 | T51: =IFERROR('Salary Calculations'!Q17,"") -> 75629.48624 | U51: =IFERROR('Salary Calculations'!R17,"") -> 871.9420924 | W51: 51 | X51: 1019793.88 | Y51: 800000 | Z51: 121253.3075 | AA51: -5172.088577
D52: =IFERROR('Salary Calculations'!A18,"") -> 45 | E52: =IFERROR('Salary Calculations'!B18,"") -> 697753.6453 | F52: =IFERROR('Salary Calculations'!C18,"") -> 800000 | G52: =IFERROR('Salary Calculations'!D18,"") -> 1744.384113 | H52: =IFERROR('Salary Calculations'!E18,"") -> 48842.75517 | I52: =IFERROR('Salary Calculations'!F18,"") -> 744852.0164 | J52: =IFERROR('Salary Calculations'!G18,"") -> 16150.42006 | K52: =IFERROR('Salary Calculations'!H18,"") -> 107669.4671 | L52: =IFERROR('Salary Calculations'!I18,"") -> 0 | M52: =IFERROR('Salary Calculations'!J18,"") -> 107669.4671 | N52: =IFERROR('Salary Calculations'!K18,"") -> 12920.33605 | O52: =IFERROR('Salary Calculations'!L18,"") -> 6675.506958 | P52: =IFERROR('Salary Calculations'!M18,"") -> 1433.109793 | Q52: =IFERROR('Salary Calculations'!N18,"") -> 6460.168024 | R52: =IFERROR('Salary Calculations'!O18,"") -> 2153.389341 | S52: =IFERROR('Salary Calculations'!P18,"") -> 29642.51016 | T52: =IFERROR('Salary Calculations'!Q18,"") -> 77898.37083 | U52: =IFERROR('Salary Calculations'!R18,"") -> 128.5860718 | W52: 52 | X52: 1083457.878 | Y52: 800000 | Z52: 123678.3737 | AA52: -6210.177635
D53: =IFERROR('Salary Calculations'!A19,"") -> 46 | E53: =IFERROR('Salary Calculations'!B19,"") -> 744980.6024 | F53: =IFERROR('Salary Calculations'!C19,"") -> 800000 | G53: =IFERROR('Salary Calculations'!D19,"") -> 1862.451506 | H53: =IFERROR('Salary Calculations'!E19,"") -> 52148.64217 | I53: =IFERROR('Salary Calculations'!F19,"") -> 795266.7931 | J53: =IFERROR('Salary Calculations'!G19,"") -> 16473.42846 | K53: =IFERROR('Salary Calculations'!H19,"") -> 109822.8564 | L53: =IFERROR('Salary Calculations'!I19,"") -> 0 | M53: =IFERROR('Salary Calculations'!J19,"") -> 109822.8564 | N53: =IFERROR('Salary Calculations'!K19,"") -> 13178.74277 | O53: =IFERROR('Salary Calculations'!L19,"") -> 6809.017097 | P53: =IFERROR('Salary Calculations'!M19,"") -> 1466.271989 | Q53: =IFERROR('Salary Calculations'!N19,"") -> 6589.371384 | R53: =IFERROR('Salary Calculations'!O19,"") -> 2196.457128 | S53: =IFERROR('Salary Calculations'!P19,"") -> 30239.86037 | T53: =IFERROR('Salary Calculations'!Q19,"") -> 80235.32195 | U53: =IFERROR('Salary Calculations'!R19,"") -> -652.3259151 | W53: 53 | X53: 1150381.108 | Y53: 800000 | Z53: 126151.9411 | AA53: -7296.932892
D54: =IFERROR('Salary Calculations'!A20,"") -> 47 | E54: =IFERROR('Salary Calculations'!B20,"") -> 794614.4672 | F54: =IFERROR('Salary Calculations'!C20,"") -> 800000 | G54: =IFERROR('Salary Calculations'!D20,"") -> 1986.536168 | H54: =IFERROR('Salary Calculations'!E20,"") -> 55623.0127 | I54: =IFERROR('Salary Calculations'!F20,"") -> 848250.9437 | J54: =IFERROR('Salary Calculations'!G20,"") -> 16802.89703 | K54: =IFERROR('Salary Calculations'!H20,"") -> 112019.3135 | L54: =IFERROR('Salary Calculations'!I20,"") -> 0 | M54: =IFERROR('Salary Calculations'!J20,"") -> 112019.3135 | N54: =IFERROR('Salary Calculations'!K20,"") -> 13442.31762 | O54: =IFERROR('Salary Calculations'!L20,"") -> 6945.197439 | P54: =IFERROR('Salary Calculations'!M20,"") -> 1500.097428 | Q54: =IFERROR('Salary Calculations'!N20,"") -> 6721.158812 | R54: =IFERROR('Salary Calculations'!O20,"") -> 2240.386271 | S54: =IFERROR('Salary Calculations'!P20,"") -> 30849.15757 | T54: =IFERROR('Salary Calculations'!Q20,"") -> 82642.38161 | U54: =IFERROR('Salary Calculations'!R20,"") -> -1472.225653 | W54: 54 | X54: 1220734.9 | Y54: 800000 | Z54: 128674.98 | AA54: -8434.164805
D55: =IFERROR('Salary Calculations'!A21,"") -> 48 | E55: =IFERROR('Salary Calculations'!B21,"") -> 846778.7181 | F55: =IFERROR('Salary Calculations'!C21,"") -> 800000 | G55: =IFERROR('Salary Calculations'!D21,"") -> 2116.946795 | H55: =IFERROR('Salary Calculations'!E21,"") -> 59274.51026 | I55: =IFERROR('Salary Calculations'!F21,"") -> 903936.2815 | J55: =IFERROR('Salary Calculations'!G21,"") -> 17138.95497 | K55: =IFERROR('Salary Calculations'!H21,"") -> 114259.6998 | L55: =IFERROR('Salary Calculations'!I21,"") -> 0 | M55: =IFERROR('Salary Calculations'!J21,"") -> 114259.6998 | N55: =IFERROR('Salary Calculations'!K21,"") -> 13711.16398 | O55: =IFERROR('Salary Calculations'!L21,"") -> 7084.101388 | P55: =IFERROR('Salary Calculations'!M21,"") -> 1534.599377 | Q55: =IFERROR('Salary Calculations'!N21,"") -> 6855.581988 | R55: =IFERROR('Salary Calculations'!O21,"") -> 2285.193996 | S55: =IFERROR('Salary Calculations'!P21,"") -> 31470.64073 | T55: =IFERROR('Salary Calculations'!Q21,"") -> 85121.65306 | U55: =IFERROR('Salary Calculations'!R21,"") -> -2332.593982 | W55: 55 | X55: 1294700.34 | Y55: 800000 | Z55: 131248.4796 | AA55: -9623.745155
D56: =IFERROR('Salary Calculations'!A22,"") -> 49 | E56: =IFERROR('Salary Calculations'!B22,"") -> 901603.6876 | F56: =IFERROR('Salary Calculations'!C22,"") -> 800000 | G56: =IFERROR('Salary Calculations'!D22,"") -> 2254.009219 | H56: =IFERROR('Salary Calculations'!E22,"") -> 63112.25813 | I56: =IFERROR('Salary Calculations'!F22,"") -> 962461.9365 | J56: =IFERROR('Salary Calculations'!G22,"") -> 17481.73407 | K56: =IFERROR('Salary Calculations'!H22,"") -> 116544.8938 | L56: =IFERROR('Salary Calculations'!I22,"") -> 0 | M56: =IFERROR('Salary Calculations'!J22,"") -> 116544.8938 | N56: =IFERROR('Salary Calculations'!K22,"") -> 13985.38726 | O56: =IFERROR('Salary Calculations'!L22,"") -> 7225.783416 | P56: =IFERROR('Salary Calculations'!M22,"") -> 1569.791365 | Q56: =IFERROR('Salary Calculations'!N22,"") -> 6992.693628 | R56: =IFERROR('Salary Calculations'!O22,"") -> 2330.897876 | S56: =IFERROR('Salary Calculations'!P22,"") -> 32104.55354 | T56: =IFERROR('Salary Calculations'!Q22,"") -> 87675.30265 | U56: =IFERROR('Salary Calculations'!R22,"") -> -3234.962392 | W56: 56 | X56: 1372468.868 | Y56: 800000 | Z56: 133873.4491 | AA56: -10867.60902
D57: =IFERROR('Salary Calculations'!A23,"") -> 50 | E57: =IFERROR('Salary Calculations'!B23,"") -> 959226.9741 | F57: =IFERROR('Salary Calculations'!C23,"") -> 800000 | G57: =IFERROR('Salary Calculations'!D23,"") -> 2398.067435 | H57: =IFERROR('Salary Calculations'!E23,"") -> 67145.88818 | I57: =IFERROR('Salary Calculations'!F23,"") -> 1023974.795 | J57: =IFERROR('Salary Calculations'!G23,"") -> 17831.36875 | K57: =IFERROR('Salary Calculations'!H23,"") -> 118875.7917 | L57: =IFERROR('Salary Calculations'!I23,"") -> 0 | M57: =IFERROR('Salary Calculations'!J23,"") -> 118875.7917 | N57: =IFERROR('Salary Calculations'!K23,"") -> 14265.095 | O57: =IFERROR('Salary Calculations'!L23,"") -> 7370.299084 | P57: =IFERROR('Salary Calculations'!M23,"") -> 1605.687192 | Q57: =IFERROR('Salary Calculations'!N23,"") -> 7132.547501 | R57: =IFERROR('Salary Calculations'!O23,"") -> 2377.515834 | S57: =IFERROR('Salary Calculations'!P23,"") -> 32751.14461 | T57: =IFERROR('Salary Calculations'!Q23,"") -> 90305.56173 | U57: =IFERROR('Salary Calculations'!R23,"") -> -4180.914667 | W57: 57 | X57: 1454242.908 | Y57: 800000 | Z57: 136550.9181 | AA57: -12167.75684
D58: =IFERROR('Salary Calculations'!A24,"") -> 51 | E58: =IFERROR('Salary Calculations'!B24,"") -> 1019793.88 | F58: =IFERROR('Salary Calculations'!C24,"") -> 800000 | G58: =IFERROR('Salary Calculations'!D24,"") -> 2549.4847 | H58: =IFERROR('Salary Calculations'!E24,"") -> 71385.57161 | I58: =IFERROR('Salary Calculations'!F24,"") -> 1088629.967 | J58: =IFERROR('Salary Calculations'!G24,"") -> 18187.99613 | K58: =IFERROR('Salary Calculations'!H24,"") -> 121253.3075 | L58: =IFERROR('Salary Calculations'!I24,"") -> 0 | M58: =IFERROR('Salary Calculations'!J24,"") -> 121253.3075 | N58: =IFERROR('Salary Calculations'!K24,"") -> 14550.3969 | O58: =IFERROR('Salary Calculations'!L24,"") -> 7517.705066 | P58: =IFERROR('Salary Calculations'!M24,"") -> 1642.300936 | Q58: =IFERROR('Salary Calculations'!N24,"") -> 7275.198451 | R58: =IFERROR('Salary Calculations'!O24,"") -> 2425.06615 | S58: =IFERROR('Salary Calculations'!P24,"") -> 33410.6675 | T58: =IFERROR('Salary Calculations'!Q24,"") -> 93014.72859 | U58: =IFERROR('Salary Calculations'!R24,"") -> -5172.088577 | W58: 58 | X58: 1540236.547 | Y58: 800000 | Z58: 139281.9365 | AA58: -13526.25648
D59: =IFERROR('Salary Calculations'!A25,"") -> 52 | E59: =IFERROR('Salary Calculations'!B25,"") -> 1083457.878 | F59: =IFERROR('Salary Calculations'!C25,"") -> 800000 | G59: =IFERROR('Salary Calculations'!D25,"") -> 2708.644696 | H59: =IFERROR('Salary Calculations'!E25,"") -> 75842.05149 | I59: =IFERROR('Salary Calculations'!F25,"") -> 1156591.285 | J59: =IFERROR('Salary Calculations'!G25,"") -> 18551.75605 | K59: =IFERROR('Salary Calculations'!H25,"") -> 123678.3737 | L59: =IFERROR('Salary Calculations'!I25,"") -> 0 | M59: =IFERROR('Salary Calculations'!J25,"") -> 123678.3737 | N59: =IFERROR('Salary Calculations'!K25,"") -> 14841.40484 | O59: =IFERROR('Salary Calculations'!L25,"") -> 7668.059167 | P59: =IFERROR('Salary Calculations'!M25,"") -> 1679.646954 | Q59: =IFERROR('Salary Calculations'!N25,"") -> 7420.70242 | R59: =IFERROR('Salary Calculations'!O25,"") -> 2473.567473 | S59: =IFERROR('Salary Calculations'!P25,"") -> 34083.38085 | T59: =IFERROR('Salary Calculations'!Q25,"") -> 95805.17044 | U59: =IFERROR('Salary Calculations'!R25,"") -> -6210.177635 | W59: 59 | X59: 1630676.258 | Y59: 800000 | Z59: 142067.5752 | AA59: -14945.24544
D60: =IFERROR('Salary Calculations'!A26,"") -> 53 | E60: =IFERROR('Salary Calculations'!B26,"") -> 1150381.108 | F60: =IFERROR('Salary Calculations'!C26,"") -> 800000 | G60: =IFERROR('Salary Calculations'!D26,"") -> 2875.952769 | H60: =IFERROR('Salary Calculations'!E26,"") -> 80526.67754 | I60: =IFERROR('Salary Calculations'!F26,"") -> 1228031.832 | J60: =IFERROR('Salary Calculations'!G26,"") -> 18922.79117 | K60: =IFERROR('Salary Calculations'!H26,"") -> 126151.9411 | L60: =IFERROR('Salary Calculations'!I26,"") -> 0 | M60: =IFERROR('Salary Calculations'!J26,"") -> 126151.9411 | N60: =IFERROR('Salary Calculations'!K26,"") -> 15138.23294 | O60: =IFERROR('Salary Calculations'!L26,"") -> 7821.42035 | P60: =IFERROR('Salary Calculations'!M26,"") -> 1717.739893 | Q60: =IFERROR('Salary Calculations'!N26,"") -> 7569.116468 | R60: =IFERROR('Salary Calculations'!O26,"") -> 2523.038823 | S60: =IFERROR('Salary Calculations'!P26,"") -> 34769.54847 | T60: =IFERROR('Salary Calculations'!Q26,"") -> 98679.32556 | U60: =IFERROR('Salary Calculations'!R26,"") -> -7296.932892 | W60: 60 | X60: 1725801.66 | Y60: 800000 | Z60: 144908.9267 | AA60: -16426.93311
D61: =IFERROR('Salary Calculations'!A27,"") -> 54 | E61: =IFERROR('Salary Calculations'!B27,"") -> 1220734.9 | F61: =IFERROR('Salary Calculations'!C27,"") -> 800000 | G61: =IFERROR('Salary Calculations'!D27,"") -> 3051.837249 | H61: =IFERROR('Salary Calculations'!E27,"") -> 85451.44297 | I61: =IFERROR('Salary Calculations'!F27,"") -> 1303134.505 | J61: =IFERROR('Salary Calculations'!G27,"") -> 19301.24699 | K61: =IFERROR('Salary Calculations'!H27,"") -> 128674.98 | L61: =IFERROR('Salary Calculations'!I27,"") -> 0 | M61: =IFERROR('Salary Calculations'!J27,"") -> 128674.98 | N61: =IFERROR('Salary Calculations'!K27,"") -> 15440.99759 | O61: =IFERROR('Salary Calculations'!L27,"") -> 7977.848757 | P61: =IFERROR('Salary Calculations'!M27,"") -> 1756.594691 | Q61: =IFERROR('Salary Calculations'!N27,"") -> 7720.498797 | R61: =IFERROR('Salary Calculations'!O27,"") -> 2573.499599 | S61: =IFERROR('Salary Calculations'!P27,"") -> 35469.43944 | T61: =IFERROR('Salary Calculations'!Q27,"") -> 101639.7053 | U61: =IFERROR('Salary Calculations'!R27,"") -> -8434.164805 | W61: 61 | X61: 1825866.339 | Y61: 800000 | Z61: 147807.1053 | AA61: -17973.603
D62: =IFERROR('Salary Calculations'!A28,"") -> 55 | E62: =IFERROR('Salary Calculations'!B28,"") -> 1294700.34 | F62: =IFERROR('Salary Calculations'!C28,"") -> 800000 | G62: =IFERROR('Salary Calculations'!D28,"") -> 3236.750851 | H62: =IFERROR('Salary Calculations'!E28,"") -> 90629.02383 | I62: =IFERROR('Salary Calculations'!F28,"") -> 1382092.613 | J62: =IFERROR('Salary Calculations'!G28,"") -> 19687.27193 | K62: =IFERROR('Salary Calculations'!H28,"") -> 131248.4796 | L62: =IFERROR('Salary Calculations'!I28,"") -> 0 | M62: =IFERROR('Salary Calculations'!J28,"") -> 131248.4796 | N62: =IFERROR('Salary Calculations'!K28,"") -> 15749.81755 | O62: =IFERROR('Salary Calculations'!L28,"") -> 8137.405733 | P62: =IFERROR('Salary Calculations'!M28,"") -> 1796.226585 | Q62: =IFERROR('Salary Calculations'!N28,"") -> 7874.908773 | R62: =IFERROR('Salary Calculations'!O28,"") -> 2624.969591 | S62: =IFERROR('Salary Calculations'!P28,"") -> 36183.32823 | T62: =IFERROR('Salary Calculations'!Q28,"") -> 104688.8965 | U62: =IFERROR('Salary Calculations'!R28,"") -> -9623.745155 | W62: 62 | X62: 1931138.713 | Y62: 800000 | Z62: 150763.2474 | AA62: -19587.61524
D63: =IFERROR('Salary Calculations'!A29,"") -> 56 | E63: =IFERROR('Salary Calculations'!B29,"") -> 1372468.868 | F63: =IFERROR('Salary Calculations'!C29,"") -> 800000 | G63: =IFERROR('Salary Calculations'!D29,"") -> 3431.172171 | H63: =IFERROR('Salary Calculations'!E29,"") -> 96072.82078 | I63: =IFERROR('Salary Calculations'!F29,"") -> 1465110.517 | J63: =IFERROR('Salary Calculations'!G29,"") -> 20081.01737 | K63: =IFERROR('Salary Calculations'!H29,"") -> 133873.4491 | L63: =IFERROR('Salary Calculations'!I29,"") -> 0 | M63: =IFERROR('Salary Calculations'!J29,"") -> 133873.4491 | N63: =IFERROR('Salary Calculations'!K29,"") -> 16064.8139 | O63: =IFERROR('Salary Calculations'!L29,"") -> 8300.153847 | P63: =IFERROR('Salary Calculations'!M29,"") -> 1836.651117 | Q63: =IFERROR('Salary Calculations'!N29,"") -> 8032.406949 | R63: =IFERROR('Salary Calculations'!O29,"") -> 2677.468983 | S63: =IFERROR('Salary Calculations'!P29,"") -> 36911.49479 | T63: =IFERROR('Salary Calculations'!Q29,"") -> 107829.5634 | U63: =IFERROR('Salary Calculations'!R29,"") -> -10867.60902 | W63: 63 | X63: 2041902.961 | Y63: 800000 | Z63: 153778.5123 | AA63: -21271.40892
D64: =IFERROR('Salary Calculations'!A30,"") -> 57 | E64: =IFERROR('Salary Calculations'!B30,"") -> 1454242.908 | F64: =IFERROR('Salary Calculations'!C30,"") -> 800000 | G64: =IFERROR('Salary Calculations'!D30,"") -> 3635.60727 | H64: =IFERROR('Salary Calculations'!E30,"") -> 101797.0035 | I64: =IFERROR('Salary Calculations'!F30,"") -> 1552404.304 | J64: =IFERROR('Salary Calculations'!G30,"") -> 20482.63772 | K64: =IFERROR('Salary Calculations'!H30,"") -> 136550.9181 | L64: =IFERROR('Salary Calculations'!I30,"") -> 0 | M64: =IFERROR('Salary Calculations'!J30,"") -> 136550.9181 | N64: =IFERROR('Salary Calculations'!K30,"") -> 16386.11018 | O64: =IFERROR('Salary Calculations'!L30,"") -> 8466.156924 | P64: =IFERROR('Salary Calculations'!M30,"") -> 1877.884139 | Q64: =IFERROR('Salary Calculations'!N30,"") -> 8193.055088 | R64: =IFERROR('Salary Calculations'!O30,"") -> 2731.018363 | S64: =IFERROR('Salary Calculations'!P30,"") -> 37654.22469 | T64: =IFERROR('Salary Calculations'!Q30,"") -> 111064.4503 | U64: =IFERROR('Salary Calculations'!R30,"") -> -12167.75684 | W64: 64 | X64: 2158460.002 | Y64: 800000 | Z64: 156854.0826 | AA64: -23027.50472
D65: =IFERROR('Salary Calculations'!A31,"") -> 58 | E65: =IFERROR('Salary Calculations'!B31,"") -> 1540236.547 | F65: =IFERROR('Salary Calculations'!C31,"") -> 800000 | G65: =IFERROR('Salary Calculations'!D31,"") -> 3850.591368 | H65: =IFERROR('Salary Calculations'!E31,"") -> 107816.5583 | I65: =IFERROR('Salary Calculations'!F31,"") -> 1644202.514 | J65: =IFERROR('Salary Calculations'!G31,"") -> 20892.29047 | K65: =IFERROR('Salary Calculations'!H31,"") -> 139281.9365 | L65: =IFERROR('Salary Calculations'!I31,"") -> 0 | M65: =IFERROR('Salary Calculations'!J31,"") -> 139281.9365 | N65: =IFERROR('Salary Calculations'!K31,"") -> 16713.83238 | O65: =IFERROR('Salary Calculations'!L31,"") -> 8635.480063 | P65: =IFERROR('Salary Calculations'!M31,"") -> 1919.941822 | Q65: =IFERROR('Salary Calculations'!N31,"") -> 8356.91619 | R65: =IFERROR('Salary Calculations'!O31,"") -> 2785.63873 | S65: =IFERROR('Salary Calculations'!P31,"") -> 38411.80918 | T65: =IFERROR('Salary Calculations'!Q31,"") -> 114396.3838 | U65: =IFERROR('Salary Calculations'!R31,"") -> -13526.25648 | W65: 65 | X65: 2281128.548 | Y65: 800000 | Z65: 159991.1642 | AA65: -24858.50746
D66: =IFERROR('Salary Calculations'!A32,"") -> 59 | E66: =IFERROR('Salary Calculations'!B32,"") -> 1630676.258 | F66: =IFERROR('Salary Calculations'!C32,"") -> 800000 | G66: =IFERROR('Salary Calculations'!D32,"") -> 4076.690644 | H66: =IFERROR('Salary Calculations'!E32,"") -> 114147.338 | I66: =IFERROR('Salary Calculations'!F32,"") -> 1740746.905 | J66: =IFERROR('Salary Calculations'!G32,"") -> 21310.13628 | K66: =IFERROR('Salary Calculations'!H32,"") -> 142067.5752 | L66: =IFERROR('Salary Calculations'!I32,"") -> 0 | M66: =IFERROR('Salary Calculations'!J32,"") -> 142067.5752 | N66: =IFERROR('Salary Calculations'!K32,"") -> 17048.10903 | O66: =IFERROR('Salary Calculations'!L32,"") -> 8808.189664 | P66: =IFERROR('Salary Calculations'!M32,"") -> 1962.840658 | Q66: =IFERROR('Salary Calculations'!N32,"") -> 8524.054513 | R66: =IFERROR('Salary Calculations'!O32,"") -> 2841.351504 | S66: =IFERROR('Salary Calculations'!P32,"") -> 39184.54537 | T66: =IFERROR('Salary Calculations'!Q32,"") -> 117828.2753 | U66: =IFERROR('Salary Calculations'!R32,"") -> -14945.24544 | W66: Grand Total | X66: 34788934.11 | Y66: 28800000 | Z66: 4159549.375 | AA66: -138006.8351
D67: =IFERROR('Salary Calculations'!A33,"") -> 60 | E67: =IFERROR('Salary Calculations'!B33,"") -> 1725801.66 | F67: =IFERROR('Salary Calculations'!C33,"") -> 800000 | G67: =IFERROR('Salary Calculations'!D33,"") -> 4314.504149 | H67: =IFERROR('Salary Calculations'!E33,"") -> 120806.1162 | I67: =IFERROR('Salary Calculations'!F33,"") -> 1842293.272 | J67: =IFERROR('Salary Calculations'!G33,"") -> 21736.33901 | K67: =IFERROR('Salary Calculations'!H33,"") -> 144908.9267 | L67: =IFERROR('Salary Calculations'!I33,"") -> 0 | M67: =IFERROR('Salary Calculations'!J33,"") -> 144908.9267 | N67: =IFERROR('Salary Calculations'!K33,"") -> 17389.07121 | O67: =IFERROR('Salary Calculations'!L33,"") -> 8984.353457 | P67: =IFERROR('Salary Calculations'!M33,"") -> 2006.597472 | Q67: =IFERROR('Salary Calculations'!N33,"") -> 8694.535604 | R67: =IFERROR('Salary Calculations'!O33,"") -> 2898.178535 | S67: =IFERROR('Salary Calculations'!P33,"") -> 39972.73627 | T67: =IFERROR('Salary Calculations'!Q33,"") -> 121363.1236 | U67: =IFERROR('Salary Calculations'!R33,"") -> -16426.93311
D68: =IFERROR('Salary Calculations'!A34,"") -> 61 | E68: =IFERROR('Salary Calculations'!B34,"") -> 1825866.339 | F68: =IFERROR('Salary Calculations'!C34,"") -> 800000 | G68: =IFERROR('Salary Calculations'!D34,"") -> 4564.665847 | H68: =IFERROR('Salary Calculations'!E34,"") -> 127810.6437 | I68: =IFERROR('Salary Calculations'!F34,"") -> 1949112.316 | J68: =IFERROR('Salary Calculations'!G34,"") -> 22171.06579 | K68: =IFERROR('Salary Calculations'!H34,"") -> 147807.1053 | L68: =IFERROR('Salary Calculations'!I34,"") -> 0 | M68: =IFERROR('Salary Calculations'!J34,"") -> 147807.1053 | N68: =IFERROR('Salary Calculations'!K34,"") -> 17736.85263 | O68: =IFERROR('Salary Calculations'!L34,"") -> 9164.040526 | P68: =IFERROR('Salary Calculations'!M34,"") -> 2051.229421 | Q68: =IFERROR('Salary Calculations'!N34,"") -> 8868.426316 | R68: =IFERROR('Salary Calculations'!O34,"") -> 2956.142105 | S68: =IFERROR('Salary Calculations'!P34,"") -> 40776.691 | T68: =IFERROR('Salary Calculations'!Q34,"") -> 125004.0173 | U68: =IFERROR('Salary Calculations'!R34,"") -> -17973.603
D69: =IFERROR('Salary Calculations'!A35,"") -> 62 | E69: =IFERROR('Salary Calculations'!B35,"") -> 1931138.713 | F69: =IFERROR('Salary Calculations'!C35,"") -> 800000 | G69: =IFERROR('Salary Calculations'!D35,"") -> 4827.846784 | H69: =IFERROR('Salary Calculations'!E35,"") -> 135179.7099 | I69: =IFERROR('Salary Calculations'!F35,"") -> 2061490.577 | J69: =IFERROR('Salary Calculations'!G35,"") -> 22614.48711 | K69: =IFERROR('Salary Calculations'!H35,"") -> 150763.2474 | L69: =IFERROR('Salary Calculations'!I35,"") -> 0 | M69: =IFERROR('Salary Calculations'!J35,"") -> 150763.2474 | N69: =IFERROR('Salary Calculations'!K35,"") -> 18091.58968 | O69: =IFERROR('Salary Calculations'!L35,"") -> 9347.321337 | P69: =IFERROR('Salary Calculations'!M35,"") -> 2096.754009 | Q69: =IFERROR('Salary Calculations'!N35,"") -> 9045.794842 | R69: =IFERROR('Salary Calculations'!O35,"") -> 3015.264947 | S69: =IFERROR('Salary Calculations'!P35,"") -> 41596.72482 | T69: =IFERROR('Salary Calculations'!Q35,"") -> 128754.1378 | U69: =IFERROR('Salary Calculations'!R35,"") -> -19587.61524
D70: =IFERROR('Salary Calculations'!A36,"") -> 63 | E70: =IFERROR('Salary Calculations'!B36,"") -> 2041902.961 | F70: =IFERROR('Salary Calculations'!C36,"") -> 800000 | G70: =IFERROR('Salary Calculations'!D36,"") -> 5104.757404 | H70: =IFERROR('Salary Calculations'!E36,"") -> 142933.2073 | I70: =IFERROR('Salary Calculations'!F36,"") -> 2179731.411 | J70: =IFERROR('Salary Calculations'!G36,"") -> 23066.77685 | K70: =IFERROR('Salary Calculations'!H36,"") -> 153778.5123 | L70: =IFERROR('Salary Calculations'!I36,"") -> 0 | M70: =IFERROR('Salary Calculations'!J36,"") -> 153778.5123 | N70: =IFERROR('Salary Calculations'!K36,"") -> 18453.42148 | O70: =IFERROR('Salary Calculations'!L36,"") -> 9534.267764 | P70: =IFERROR('Salary Calculations'!M36,"") -> 2143.18909 | Q70: =IFERROR('Salary Calculations'!N36,"") -> 9226.710739 | R70: =IFERROR('Salary Calculations'!O36,"") -> 3075.570246 | S70: =IFERROR('Salary Calculations'!P36,"") -> 42433.15932 | T70: =IFERROR('Salary Calculations'!Q36,"") -> 132616.7619 | U70: =IFERROR('Salary Calculations'!R36,"") -> -21271.40892
D71: =IFERROR('Salary Calculations'!A37,"") -> 64 | E71: =IFERROR('Salary Calculations'!B37,"") -> 2158460.002 | F71: =IFERROR('Salary Calculations'!C37,"") -> 800000 | G71: =IFERROR('Salary Calculations'!D37,"") -> 5396.150006 | H71: =IFERROR('Salary Calculations'!E37,"") -> 151092.2002 | I71: =IFERROR('Salary Calculations'!F37,"") -> 2304156.053 | J71: =IFERROR('Salary Calculations'!G37,"") -> 23528.11238 | K71: =IFERROR('Salary Calculations'!H37,"") -> 156854.0826 | L71: =IFERROR('Salary Calculations'!I37,"") -> 0 | M71: =IFERROR('Salary Calculations'!J37,"") -> 156854.0826 | N71: =IFERROR('Salary Calculations'!K37,"") -> 18822.48991 | O71: =IFERROR('Salary Calculations'!L37,"") -> 9724.953119 | P71: =IFERROR('Salary Calculations'!M37,"") -> 2190.552871 | Q71: =IFERROR('Salary Calculations'!N37,"") -> 9411.244954 | R71: =IFERROR('Salary Calculations'!O37,"") -> 3137.081651 | S71: =IFERROR('Salary Calculations'!P37,"") -> 43286.3225 | T71: =IFERROR('Salary Calculations'!Q37,"") -> 136595.2648 | U71: =IFERROR('Salary Calculations'!R37,"") -> -23027.50472
D72: =IFERROR('Salary Calculations'!A38,"") -> 65 | E72: =IFERROR('Salary Calculations'!B38,"") -> 2281128.548 | F72: =IFERROR('Salary Calculations'!C38,"") -> 800000 | G72: =IFERROR('Salary Calculations'!D38,"") -> 5702.82137 | H72: =IFERROR('Salary Calculations'!E38,"") -> 159678.9983 | I72: =IFERROR('Salary Calculations'!F38,"") -> 2435104.725 | J72: =IFERROR('Salary Calculations'!G38,"") -> 23998.67463 | K72: =IFERROR('Salary Calculations'!H38,"") -> 159991.1642 | L72: =IFERROR('Salary Calculations'!I38,"") -> 0 | M72: =IFERROR('Salary Calculations'!J38,"") -> 159991.1642 | N72: =IFERROR('Salary Calculations'!K38,"") -> 19198.93971 | O72: =IFERROR('Salary Calculations'!L38,"") -> 9919.452181 | P72: =IFERROR('Salary Calculations'!M38,"") -> 2238.863929 | Q72: =IFERROR('Salary Calculations'!N38,"") -> 9599.469853 | R72: =IFERROR('Salary Calculations'!O38,"") -> 3199.823284 | S72: =IFERROR('Salary Calculations'!P38,"") -> 44156.54895 | T72: =IFERROR('Salary Calculations'!Q38,"") -> 140693.1227 | U72: =IFERROR('Salary Calculations'!R38,"") -> -24858.50746
D73: =IFERROR('Salary Calculations'!A39,"") ->  | E73: =IFERROR('Salary Calculations'!B39,"") ->  | F73: =IFERROR('Salary Calculations'!C39,"") ->  | G73: =IFERROR('Salary Calculations'!D39,"") ->  | H73: =IFERROR('Salary Calculations'!E39,"") ->  | I73: =IFERROR('Salary Calculations'!F39,"") ->  | J73: =IFERROR('Salary Calculations'!G39,"") ->  | K73: =IFERROR('Salary Calculations'!H39,"") ->  | L73: =IFERROR('Salary Calculations'!I39,"") ->  | M73: =IFERROR('Salary Calculations'!J39,"") ->  | N73: =IFERROR('Salary Calculations'!K39,"") ->  | O73: =IFERROR('Salary Calculations'!L39,"") ->  | P73: =IFERROR('Salary Calculations'!M39,"") ->  | Q73: =IFERROR('Salary Calculations'!N39,"") ->  | R73: =IFERROR('Salary Calculations'!O39,"") ->  | S73: =IFERROR('Salary Calculations'!P39,"") ->  | T73: =IFERROR('Salary Calculations'!Q39,"") ->  | U73: =IFERROR('Salary Calculations'!R39,"") -> 
D74: =IFERROR('Salary Calculations'!A40,"") ->  | E74: =IFERROR('Salary Calculations'!B40,"") ->  | F74: =IFERROR('Salary Calculations'!C40,"") ->  | G74: =IFERROR('Salary Calculations'!D40,"") ->  | H74: =IFERROR('Salary Calculations'!E40,"") ->  | I74: =IFERROR('Salary Calculations'!F40,"") ->  | J74: =IFERROR('Salary Calculations'!G40,"") ->  | K74: =IFERROR('Salary Calculations'!H40,"") ->  | L74: =IFERROR('Salary Calculations'!I40,"") ->  | M74: =IFERROR('Salary Calculations'!J40,"") ->  | N74: =IFERROR('Salary Calculations'!K40,"") ->  | O74: =IFERROR('Salary Calculations'!L40,"") ->  | P74: =IFERROR('Salary Calculations'!M40,"") ->  | Q74: =IFERROR('Salary Calculations'!N40,"") ->  | R74: =IFERROR('Salary Calculations'!O40,"") ->  | S74: =IFERROR('Salary Calculations'!P40,"") ->  | T74: =IFERROR('Salary Calculations'!Q40,"") ->  | U74: =IFERROR('Salary Calculations'!R40,"") -> 
D75: =IFERROR('Salary Calculations'!A41,"") ->  | E75: =IFERROR('Salary Calculations'!B41,"") ->  | F75: =IFERROR('Salary Calculations'!C41,"") ->  | G75: =IFERROR('Salary Calculations'!D41,"") ->  | H75: =IFERROR('Salary Calculations'!E41,"") ->  | I75: =IFERROR('Salary Calculations'!F41,"") ->  | J75: =IFERROR('Salary Calculations'!G41,"") ->  | K75: =IFERROR('Salary Calculations'!H41,"") ->  | L75: =IFERROR('Salary Calculations'!I41,"") ->  | M75: =IFERROR('Salary Calculations'!J41,"") ->  | N75: =IFERROR('Salary Calculations'!K41,"") ->  | O75: =IFERROR('Salary Calculations'!L41,"") ->  | P75: =IFERROR('Salary Calculations'!M41,"") ->  | Q75: =IFERROR('Salary Calculations'!N41,"") ->  | R75: =IFERROR('Salary Calculations'!O41,"") ->  | S75: =IFERROR('Salary Calculations'!P41,"") ->  | T75: =IFERROR('Salary Calculations'!Q41,"") ->  | U75: =IFERROR('Salary Calculations'!R41,"") -> 
D76: =IFERROR('Salary Calculations'!A42,"") ->  | E76: =IFERROR('Salary Calculations'!B42,"") ->  | F76: =IFERROR('Salary Calculations'!C42,"") ->  | G76: =IFERROR('Salary Calculations'!D42,"") ->  | H76: =IFERROR('Salary Calculations'!E42,"") ->  | I76: =IFERROR('Salary Calculations'!F42,"") ->  | J76: =IFERROR('Salary Calculations'!G42,"") ->  | K76: =IFERROR('Salary Calculations'!H42,"") ->  | L76: =IFERROR('Salary Calculations'!I42,"") ->  | M76: =IFERROR('Salary Calculations'!J42,"") ->  | N76: =IFERROR('Salary Calculations'!K42,"") ->  | O76: =IFERROR('Salary Calculations'!L42,"") ->  | P76: =IFERROR('Salary Calculations'!M42,"") ->  | Q76: =IFERROR('Salary Calculations'!N42,"") ->  | R76: =IFERROR('Salary Calculations'!O42,"") ->  | S76: =IFERROR('Salary Calculations'!P42,"") ->  | T76: =IFERROR('Salary Calculations'!Q42,"") ->  | U76: =IFERROR('Salary Calculations'!R42,"") -> 
D77: =IFERROR('Salary Calculations'!A43,"") ->  | E77: =IFERROR('Salary Calculations'!B43,"") ->  | F77: =IFERROR('Salary Calculations'!C43,"") ->  | G77: =IFERROR('Salary Calculations'!D43,"") ->  | H77: =IFERROR('Salary Calculations'!E43,"") ->  | I77: =IFERROR('Salary Calculations'!F43,"") ->  | J77: =IFERROR('Salary Calculations'!G43,"") ->  | K77: =IFERROR('Salary Calculations'!H43,"") ->  | L77: =IFERROR('Salary Calculations'!I43,"") ->  | M77: =IFERROR('Salary Calculations'!J43,"") ->  | N77: =IFERROR('Salary Calculations'!K43,"") ->  | O77: =IFERROR('Salary Calculations'!L43,"") ->  | P77: =IFERROR('Salary Calculations'!M43,"") ->  | Q77: =IFERROR('Salary Calculations'!N43,"") ->  | R77: =IFERROR('Salary Calculations'!O43,"") ->  | S77: =IFERROR('Salary Calculations'!P43,"") ->  | T77: =IFERROR('Salary Calculations'!Q43,"") ->  | U77: =IFERROR('Salary Calculations'!R43,"") -> 
D78: =IFERROR('Salary Calculations'!A44,"") ->  | E78: =IFERROR('Salary Calculations'!B44,"") ->  | F78: =IFERROR('Salary Calculations'!C44,"") ->  | G78: =IFERROR('Salary Calculations'!D44,"") ->  | H78: =IFERROR('Salary Calculations'!E44,"") ->  | I78: =IFERROR('Salary Calculations'!F44,"") ->  | J78: =IFERROR('Salary Calculations'!G44,"") ->  | K78: =IFERROR('Salary Calculations'!H44,"") ->  | L78: =IFERROR('Salary Calculations'!I44,"") ->  | M78: =IFERROR('Salary Calculations'!J44,"") ->  | N78: =IFERROR('Salary Calculations'!K44,"") ->  | O78: =IFERROR('Salary Calculations'!L44,"") ->  | P78: =IFERROR('Salary Calculations'!M44,"") ->  | Q78: =IFERROR('Salary Calculations'!N44,"") ->  | R78: =IFERROR('Salary Calculations'!O44,"") ->  | S78: =IFERROR('Salary Calculations'!P44,"") ->  | T78: =IFERROR('Salary Calculations'!Q44,"") ->  | U78: =IFERROR('Salary Calculations'!R44,"") -> 
D79: =IFERROR('Salary Calculations'!A45,"") ->  | E79: =IFERROR('Salary Calculations'!B45,"") ->  | F79: =IFERROR('Salary Calculations'!C45,"") ->  | G79: =IFERROR('Salary Calculations'!D45,"") ->  | H79: =IFERROR('Salary Calculations'!E45,"") ->  | I79: =IFERROR('Salary Calculations'!F45,"") ->  | J79: =IFERROR('Salary Calculations'!G45,"") ->  | K79: =IFERROR('Salary Calculations'!H45,"") ->  | L79: =IFERROR('Salary Calculations'!I45,"") ->  | M79: =IFERROR('Salary Calculations'!J45,"") ->  | N79: =IFERROR('Salary Calculations'!K45,"") ->  | O79: =IFERROR('Salary Calculations'!L45,"") ->  | P79: =IFERROR('Salary Calculations'!M45,"") ->  | Q79: =IFERROR('Salary Calculations'!N45,"") ->  | R79: =IFERROR('Salary Calculations'!O45,"") ->  | S79: =IFERROR('Salary Calculations'!P45,"") ->  | T79: =IFERROR('Salary Calculations'!Q45,"") ->  | U79: =IFERROR('Salary Calculations'!R45,"") -> 
D80: =IFERROR('Salary Calculations'!A46,"") ->  | E80: =IFERROR('Salary Calculations'!B46,"") ->  | F80: =IFERROR('Salary Calculations'!C46,"") ->  | G80: =IFERROR('Salary Calculations'!D46,"") ->  | H80: =IFERROR('Salary Calculations'!E46,"") ->  | I80: =IFERROR('Salary Calculations'!F46,"") ->  | J80: =IFERROR('Salary Calculations'!G46,"") ->  | K80: =IFERROR('Salary Calculations'!H46,"") ->  | L80: =IFERROR('Salary Calculations'!I46,"") ->  | M80: =IFERROR('Salary Calculations'!J46,"") ->  | N80: =IFERROR('Salary Calculations'!K46,"") ->  | O80: =IFERROR('Salary Calculations'!L46,"") ->  | P80: =IFERROR('Salary Calculations'!M46,"") ->  | Q80: =IFERROR('Salary Calculations'!N46,"") ->  | R80: =IFERROR('Salary Calculations'!O46,"") ->  | S80: =IFERROR('Salary Calculations'!P46,"") ->  | T80: =IFERROR('Salary Calculations'!Q46,"") ->  | U80: =IFERROR('Salary Calculations'!R46,"") -> 
D81: =IFERROR('Salary Calculations'!A47,"") ->  | E81: =IFERROR('Salary Calculations'!B47,"") ->  | F81: =IFERROR('Salary Calculations'!C47,"") ->  | G81: =IFERROR('Salary Calculations'!D47,"") ->  | H81: =IFERROR('Salary Calculations'!E47,"") ->  | I81: =IFERROR('Salary Calculations'!F47,"") ->  | J81: =IFERROR('Salary Calculations'!G47,"") ->  | K81: =IFERROR('Salary Calculations'!H47,"") ->  | L81: =IFERROR('Salary Calculations'!I47,"") ->  | M81: =IFERROR('Salary Calculations'!J47,"") ->  | N81: =IFERROR('Salary Calculations'!K47,"") ->  | O81: =IFERROR('Salary Calculations'!L47,"") ->  | P81: =IFERROR('Salary Calculations'!M47,"") ->  | Q81: =IFERROR('Salary Calculations'!N47,"") ->  | R81: =IFERROR('Salary Calculations'!O47,"") ->  | S81: =IFERROR('Salary Calculations'!P47,"") ->  | T81: =IFERROR('Salary Calculations'!Q47,"") ->  | U81: =IFERROR('Salary Calculations'!R47,"") -> 
D82: =IFERROR('Salary Calculations'!A48,"") ->  | E82: =IFERROR('Salary Calculations'!B48,"") ->  | F82: =IFERROR('Salary Calculations'!C48,"") ->  | G82: =IFERROR('Salary Calculations'!D48,"") ->  | H82: =IFERROR('Salary Calculations'!E48,"") ->  | I82: =IFERROR('Salary Calculations'!F48,"") ->  | J82: =IFERROR('Salary Calculations'!G48,"") ->  | K82: =IFERROR('Salary Calculations'!H48,"") ->  | L82: =IFERROR('Salary Calculations'!I48,"") ->  | M82: =IFERROR('Salary Calculations'!J48,"") ->  | N82: =IFERROR('Salary Calculations'!K48,"") ->  | O82: =IFERROR('Salary Calculations'!L48,"") ->  | P82: =IFERROR('Salary Calculations'!M48,"") ->  | Q82: =IFERROR('Salary Calculations'!N48,"") ->  | R82: =IFERROR('Salary Calculations'!O48,"") ->  | S82: =IFERROR('Salary Calculations'!P48,"") ->  | T82: =IFERROR('Salary Calculations'!Q48,"") ->  | U82: =IFERROR('Salary Calculations'!R48,"") -> 
D83: =IFERROR('Salary Calculations'!A49,"") ->  | E83: =IFERROR('Salary Calculations'!B49,"") ->  | F83: =IFERROR('Salary Calculations'!C49,"") ->  | G83: =IFERROR('Salary Calculations'!D49,"") ->  | H83: =IFERROR('Salary Calculations'!E49,"") ->  | I83: =IFERROR('Salary Calculations'!F49,"") ->  | J83: =IFERROR('Salary Calculations'!G49,"") ->  | K83: =IFERROR('Salary Calculations'!H49,"") ->  | L83: =IFERROR('Salary Calculations'!I49,"") ->  | M83: =IFERROR('Salary Calculations'!J49,"") ->  | N83: =IFERROR('Salary Calculations'!K49,"") ->  | O83: =IFERROR('Salary Calculations'!L49,"") ->  | P83: =IFERROR('Salary Calculations'!M49,"") ->  | Q83: =IFERROR('Salary Calculations'!N49,"") ->  | R83: =IFERROR('Salary Calculations'!O49,"") ->  | S83: =IFERROR('Salary Calculations'!P49,"") ->  | T83: =IFERROR('Salary Calculations'!Q49,"") ->  | U83: =IFERROR('Salary Calculations'!R49,"") -> 
D84: =IFERROR('Salary Calculations'!A50,"") ->  | E84: =IFERROR('Salary Calculations'!B50,"") ->  | F84: =IFERROR('Salary Calculations'!C50,"") ->  | G84: =IFERROR('Salary Calculations'!D50,"") ->  | H84: =IFERROR('Salary Calculations'!E50,"") ->  | I84: =IFERROR('Salary Calculations'!F50,"") ->  | J84: =IFERROR('Salary Calculations'!G50,"") ->  | K84: =IFERROR('Salary Calculations'!H50,"") ->  | L84: =IFERROR('Salary Calculations'!I50,"") ->  | M84: =IFERROR('Salary Calculations'!J50,"") ->  | N84: =IFERROR('Salary Calculations'!K50,"") ->  | O84: =IFERROR('Salary Calculations'!L50,"") ->  | P84: =IFERROR('Salary Calculations'!M50,"") ->  | Q84: =IFERROR('Salary Calculations'!N50,"") ->  | R84: =IFERROR('Salary Calculations'!O50,"") ->  | S84: =IFERROR('Salary Calculations'!P50,"") ->  | T84: =IFERROR('Salary Calculations'!Q50,"") ->  | U84: =IFERROR('Salary Calculations'!R50,"") -> 
D85: =IFERROR('Salary Calculations'!A51,"") ->  | E85: =IFERROR('Salary Calculations'!B51,"") ->  | F85: =IFERROR('Salary Calculations'!C51,"") ->  | G85: =IFERROR('Salary Calculations'!D51,"") ->  | H85: =IFERROR('Salary Calculations'!E51,"") ->  | I85: =IFERROR('Salary Calculations'!F51,"") ->  | J85: =IFERROR('Salary Calculations'!G51,"") ->  | K85: =IFERROR('Salary Calculations'!H51,"") ->  | L85: =IFERROR('Salary Calculations'!I51,"") ->  | M85: =IFERROR('Salary Calculations'!J51,"") ->  | N85: =IFERROR('Salary Calculations'!K51,"") ->  | O85: =IFERROR('Salary Calculations'!L51,"") ->  | P85: =IFERROR('Salary Calculations'!M51,"") ->  | Q85: =IFERROR('Salary Calculations'!N51,"") ->  | R85: =IFERROR('Salary Calculations'!O51,"") ->  | S85: =IFERROR('Salary Calculations'!P51,"") ->  | T85: =IFERROR('Salary Calculations'!Q51,"") ->  | U85: =IFERROR('Salary Calculations'!R51,"") -> 
D86: =IFERROR('Salary Calculations'!A52,"") ->  | E86: =IFERROR('Salary Calculations'!B52,"") ->  | F86: =IFERROR('Salary Calculations'!C52,"") ->  | G86: =IFERROR('Salary Calculations'!D52,"") ->  | H86: =IFERROR('Salary Calculations'!E52,"") ->  | I86: =IFERROR('Salary Calculations'!F52,"") ->  | J86: =IFERROR('Salary Calculations'!G52,"") ->  | K86: =IFERROR('Salary Calculations'!H52,"") ->  | L86: =IFERROR('Salary Calculations'!I52,"") ->  | M86: =IFERROR('Salary Calculations'!J52,"") ->  | N86: =IFERROR('Salary Calculations'!K52,"") ->  | O86: =IFERROR('Salary Calculations'!L52,"") ->  | P86: =IFERROR('Salary Calculations'!M52,"") ->  | Q86: =IFERROR('Salary Calculations'!N52,"") ->  | R86: =IFERROR('Salary Calculations'!O52,"") ->  | S86: =IFERROR('Salary Calculations'!P52,"") ->  | T86: =IFERROR('Salary Calculations'!Q52,"") ->  | U86: =IFERROR('Salary Calculations'!R52,"") -> 
D87: =IFERROR('Salary Calculations'!A53,"") ->  | E87: =IFERROR('Salary Calculations'!B53,"") ->  | F87: =IFERROR('Salary Calculations'!C53,"") ->  | G87: =IFERROR('Salary Calculations'!D53,"") ->  | H87: =IFERROR('Salary Calculations'!E53,"") ->  | I87: =IFERROR('Salary Calculations'!F53,"") ->  | J87: =IFERROR('Salary Calculations'!G53,"") ->  | K87: =IFERROR('Salary Calculations'!H53,"") ->  | L87: =IFERROR('Salary Calculations'!I53,"") ->  | M87: =IFERROR('Salary Calculations'!J53,"") ->  | N87: =IFERROR('Salary Calculations'!K53,"") ->  | O87: =IFERROR('Salary Calculations'!L53,"") ->  | P87: =IFERROR('Salary Calculations'!M53,"") ->  | Q87: =IFERROR('Salary Calculations'!N53,"") ->  | R87: =IFERROR('Salary Calculations'!O53,"") ->  | S87: =IFERROR('Salary Calculations'!P53,"") ->  | T87: =IFERROR('Salary Calculations'!Q53,"") ->  | U87: =IFERROR('Salary Calculations'!R53,"") -> 
D88: =IFERROR('Salary Calculations'!A54,"") ->  | E88: =IFERROR('Salary Calculations'!B54,"") ->  | F88: =IFERROR('Salary Calculations'!C54,"") ->  | G88: =IFERROR('Salary Calculations'!D54,"") ->  | H88: =IFERROR('Salary Calculations'!E54,"") ->  | I88: =IFERROR('Salary Calculations'!F54,"") ->  | J88: =IFERROR('Salary Calculations'!G54,"") ->  | K88: =IFERROR('Salary Calculations'!H54,"") ->  | L88: =IFERROR('Salary Calculations'!I54,"") ->  | M88: =IFERROR('Salary Calculations'!J54,"") ->  | N88: =IFERROR('Salary Calculations'!K54,"") ->  | O88: =IFERROR('Salary Calculations'!L54,"") ->  | P88: =IFERROR('Salary Calculations'!M54,"") ->  | Q88: =IFERROR('Salary Calculations'!N54,"") ->  | R88: =IFERROR('Salary Calculations'!O54,"") ->  | S88: =IFERROR('Salary Calculations'!P54,"") ->  | T88: =IFERROR('Salary Calculations'!Q54,"") ->  | U88: =IFERROR('Salary Calculations'!R54,"") -> 
D89: =IFERROR('Salary Calculations'!A55,"") ->  | E89: =IFERROR('Salary Calculations'!B55,"") ->  | F89: =IFERROR('Salary Calculations'!C55,"") ->  | G89: =IFERROR('Salary Calculations'!D55,"") ->  | H89: =IFERROR('Salary Calculations'!E55,"") ->  | I89: =IFERROR('Salary Calculations'!F55,"") ->  | J89: =IFERROR('Salary Calculations'!G55,"") ->  | K89: =IFERROR('Salary Calculations'!H55,"") ->  | L89: =IFERROR('Salary Calculations'!I55,"") ->  | M89: =IFERROR('Salary Calculations'!J55,"") ->  | N89: =IFERROR('Salary Calculations'!K55,"") ->  | O89: =IFERROR('Salary Calculations'!L55,"") ->  | P89: =IFERROR('Salary Calculations'!M55,"") ->  | Q89: =IFERROR('Salary Calculations'!N55,"") ->  | R89: =IFERROR('Salary Calculations'!O55,"") ->  | S89: =IFERROR('Salary Calculations'!P55,"") ->  | T89: =IFERROR('Salary Calculations'!Q55,"") ->  | U89: =IFERROR('Salary Calculations'!R55,"") -> 
D90: =IFERROR('Salary Calculations'!A56,"") ->  | E90: =IFERROR('Salary Calculations'!B56,"") ->  | F90: =IFERROR('Salary Calculations'!C56,"") ->  | G90: =IFERROR('Salary Calculations'!D56,"") ->  | H90: =IFERROR('Salary Calculations'!E56,"") ->  | I90: =IFERROR('Salary Calculations'!F56,"") ->  | J90: =IFERROR('Salary Calculations'!G56,"") ->  | K90: =IFERROR('Salary Calculations'!H56,"") ->  | L90: =IFERROR('Salary Calculations'!I56,"") ->  | M90: =IFERROR('Salary Calculations'!J56,"") ->  | N90: =IFERROR('Salary Calculations'!K56,"") ->  | O90: =IFERROR('Salary Calculations'!L56,"") ->  | P90: =IFERROR('Salary Calculations'!M56,"") ->  | Q90: =IFERROR('Salary Calculations'!N56,"") ->  | R90: =IFERROR('Salary Calculations'!O56,"") ->  | S90: =IFERROR('Salary Calculations'!P56,"") ->  | T90: =IFERROR('Salary Calculations'!Q56,"") ->  | U90: =IFERROR('Salary Calculations'!R56,"") -> 
D91: =IFERROR('Salary Calculations'!A57,"") ->  | E91: =IFERROR('Salary Calculations'!B57,"") ->  | F91: =IFERROR('Salary Calculations'!C57,"") ->  | G91: =IFERROR('Salary Calculations'!D57,"") ->  | H91: =IFERROR('Salary Calculations'!E57,"") ->  | I91: =IFERROR('Salary Calculations'!F57,"") ->  | J91: =IFERROR('Salary Calculations'!G57,"") ->  | K91: =IFERROR('Salary Calculations'!H57,"") ->  | L91: =IFERROR('Salary Calculations'!I57,"") ->  | M91: =IFERROR('Salary Calculations'!J57,"") ->  | N91: =IFERROR('Salary Calculations'!K57,"") ->  | O91: =IFERROR('Salary Calculations'!L57,"") ->  | P91: =IFERROR('Salary Calculations'!M57,"") ->  | Q91: =IFERROR('Salary Calculations'!N57,"") ->  | R91: =IFERROR('Salary Calculations'!O57,"") ->  | S91: =IFERROR('Salary Calculations'!P57,"") ->  | T91: =IFERROR('Salary Calculations'!Q57,"") ->  | U91: =IFERROR('Salary Calculations'!R57,"") -> 
D92: =IFERROR('Salary Calculations'!A58,"") ->  | E92: =IFERROR('Salary Calculations'!B58,"") ->  | F92: =IFERROR('Salary Calculations'!C58,"") ->  | G92: =IFERROR('Salary Calculations'!D58,"") ->  | H92: =IFERROR('Salary Calculations'!E58,"") ->  | I92: =IFERROR('Salary Calculations'!F58,"") ->  | J92: =IFERROR('Salary Calculations'!G58,"") ->  | K92: =IFERROR('Salary Calculations'!H58,"") ->  | L92: =IFERROR('Salary Calculations'!I58,"") ->  | M92: =IFERROR('Salary Calculations'!J58,"") ->  | N92: =IFERROR('Salary Calculations'!K58,"") ->  | O92: =IFERROR('Salary Calculations'!L58,"") ->  | P92: =IFERROR('Salary Calculations'!M58,"") ->  | Q92: =IFERROR('Salary Calculations'!N58,"") ->  | R92: =IFERROR('Salary Calculations'!O58,"") ->  | S92: =IFERROR('Salary Calculations'!P58,"") ->  | T92: =IFERROR('Salary Calculations'!Q58,"") ->  | U92: =IFERROR('Salary Calculations'!R58,"") -> 
D93: =IFERROR('Salary Calculations'!A59,"") ->  | E93: =IFERROR('Salary Calculations'!B59,"") ->  | F93: =IFERROR('Salary Calculations'!C59,"") ->  | G93: =IFERROR('Salary Calculations'!D59,"") ->  | H93: =IFERROR('Salary Calculations'!E59,"") ->  | I93: =IFERROR('Salary Calculations'!F59,"") ->  | J93: =IFERROR('Salary Calculations'!G59,"") ->  | K93: =IFERROR('Salary Calculations'!H59,"") ->  | L93: =IFERROR('Salary Calculations'!I59,"") ->  | M93: =IFERROR('Salary Calculations'!J59,"") ->  | N93: =IFERROR('Salary Calculations'!K59,"") ->  | O93: =IFERROR('Salary Calculations'!L59,"") ->  | P93: =IFERROR('Salary Calculations'!M59,"") ->  | Q93: =IFERROR('Salary Calculations'!N59,"") ->  | R93: =IFERROR('Salary Calculations'!O59,"") ->  | S93: =IFERROR('Salary Calculations'!P59,"") ->  | T93: =IFERROR('Salary Calculations'!Q59,"") ->  | U93: =IFERROR('Salary Calculations'!R59,"") -> 
D94: =IFERROR('Salary Calculations'!A60,"") ->  | E94: =IFERROR('Salary Calculations'!B60,"") ->  | F94: =IFERROR('Salary Calculations'!C60,"") ->  | G94: =IFERROR('Salary Calculations'!D60,"") ->  | H94: =IFERROR('Salary Calculations'!E60,"") ->  | I94: =IFERROR('Salary Calculations'!F60,"") ->  | J94: =IFERROR('Salary Calculations'!G60,"") ->  | K94: =IFERROR('Salary Calculations'!H60,"") ->  | L94: =IFERROR('Salary Calculations'!I60,"") ->  | M94: =IFERROR('Salary Calculations'!J60,"") ->  | N94: =IFERROR('Salary Calculations'!K60,"") ->  | O94: =IFERROR('Salary Calculations'!L60,"") ->  | P94: =IFERROR('Salary Calculations'!M60,"") ->  | Q94: =IFERROR('Salary Calculations'!N60,"") ->  | R94: =IFERROR('Salary Calculations'!O60,"") ->  | S94: =IFERROR('Salary Calculations'!P60,"") ->  | T94: =IFERROR('Salary Calculations'!Q60,"") ->  | U94: =IFERROR('Salary Calculations'!R60,"") -> 
D95: =IFERROR('Salary Calculations'!A61,"") ->  | E95: =IFERROR('Salary Calculations'!B61,"") ->  | F95: =IFERROR('Salary Calculations'!C61,"") ->  | G95: =IFERROR('Salary Calculations'!D61,"") ->  | H95: =IFERROR('Salary Calculations'!E61,"") ->  | I95: =IFERROR('Salary Calculations'!F61,"") ->  | J95: =IFERROR('Salary Calculations'!G61,"") ->  | K95: =IFERROR('Salary Calculations'!H61,"") ->  | L95: =IFERROR('Salary Calculations'!I61,"") ->  | M95: =IFERROR('Salary Calculations'!J61,"") ->  | N95: =IFERROR('Salary Calculations'!K61,"") ->  | O95: =IFERROR('Salary Calculations'!L61,"") ->  | P95: =IFERROR('Salary Calculations'!M61,"") ->  | Q95: =IFERROR('Salary Calculations'!N61,"") ->  | R95: =IFERROR('Salary Calculations'!O61,"") ->  | S95: =IFERROR('Salary Calculations'!P61,"") ->  | T95: =IFERROR('Salary Calculations'!Q61,"") ->  | U95: =IFERROR('Salary Calculations'!R61,"") -> 
D96: =IFERROR('Salary Calculations'!A62,"") ->  | E96: =IFERROR('Salary Calculations'!B62,"") ->  | F96: =IFERROR('Salary Calculations'!C62,"") ->  | G96: =IFERROR('Salary Calculations'!D62,"") ->  | H96: =IFERROR('Salary Calculations'!E62,"") ->  | I96: =IFERROR('Salary Calculations'!F62,"") ->  | J96: =IFERROR('Salary Calculations'!G62,"") ->  | K96: =IFERROR('Salary Calculations'!H62,"") ->  | L96: =IFERROR('Salary Calculations'!I62,"") ->  | M96: =IFERROR('Salary Calculations'!J62,"") ->  | N96: =IFERROR('Salary Calculations'!K62,"") ->  | O96: =IFERROR('Salary Calculations'!L62,"") ->  | P96: =IFERROR('Salary Calculations'!M62,"") ->  | Q96: =IFERROR('Salary Calculations'!N62,"") ->  | R96: =IFERROR('Salary Calculations'!O62,"") ->  | S96: =IFERROR('Salary Calculations'!P62,"") ->  | T96: =IFERROR('Salary Calculations'!Q62,"") ->  | U96: =IFERROR('Salary Calculations'!R62,"") -> 
D97: =IFERROR('Salary Calculations'!A63,"") ->  | E97: =IFERROR('Salary Calculations'!B63,"") ->  | F97: =IFERROR('Salary Calculations'!C63,"") ->  | G97: =IFERROR('Salary Calculations'!D63,"") ->  | H97: =IFERROR('Salary Calculations'!E63,"") ->  | I97: =IFERROR('Salary Calculations'!F63,"") ->  | J97: =IFERROR('Salary Calculations'!G63,"") ->  | K97: =IFERROR('Salary Calculations'!H63,"") ->  | L97: =IFERROR('Salary Calculations'!I63,"") ->  | M97: =IFERROR('Salary Calculations'!J63,"") ->  | N97: =IFERROR('Salary Calculations'!K63,"") ->  | O97: =IFERROR('Salary Calculations'!L63,"") ->  | P97: =IFERROR('Salary Calculations'!M63,"") ->  | Q97: =IFERROR('Salary Calculations'!N63,"") ->  | R97: =IFERROR('Salary Calculations'!O63,"") ->  | S97: =IFERROR('Salary Calculations'!P63,"") ->  | T97: =IFERROR('Salary Calculations'!Q63,"") ->  | U97: =IFERROR('Salary Calculations'!R63,"") -> 
D98: =IFERROR('Salary Calculations'!A64,"") ->  | E98: =IFERROR('Salary Calculations'!B64,"") ->  | F98: =IFERROR('Salary Calculations'!C64,"") ->  | G98: =IFERROR('Salary Calculations'!D64,"") ->  | H98: =IFERROR('Salary Calculations'!E64,"") ->  | I98: =IFERROR('Salary Calculations'!F64,"") ->  | J98: =IFERROR('Salary Calculations'!G64,"") ->  | K98: =IFERROR('Salary Calculations'!H64,"") ->  | L98: =IFERROR('Salary Calculations'!I64,"") ->  | M98: =IFERROR('Salary Calculations'!J64,"") ->  | N98: =IFERROR('Salary Calculations'!K64,"") ->  | O98: =IFERROR('Salary Calculations'!L64,"") ->  | P98: =IFERROR('Salary Calculations'!M64,"") ->  | Q98: =IFERROR('Salary Calculations'!N64,"") ->  | R98: =IFERROR('Salary Calculations'!O64,"") ->  | S98: =IFERROR('Salary Calculations'!P64,"") ->  | T98: =IFERROR('Salary Calculations'!Q64,"") ->  | U98: =IFERROR('Salary Calculations'!R64,"") -> 
D99: =IFERROR('Salary Calculations'!A65,"") ->  | E99: =IFERROR('Salary Calculations'!B65,"") ->  | F99: =IFERROR('Salary Calculations'!C65,"") ->  | G99: =IFERROR('Salary Calculations'!D65,"") ->  | H99: =IFERROR('Salary Calculations'!E65,"") ->  | I99: =IFERROR('Salary Calculations'!F65,"") ->  | J99: =IFERROR('Salary Calculations'!G65,"") ->  | K99: =IFERROR('Salary Calculations'!H65,"") ->  | L99: =IFERROR('Salary Calculations'!I65,"") ->  | M99: =IFERROR('Salary Calculations'!J65,"") ->  | N99: =IFERROR('Salary Calculations'!K65,"") ->  | O99: =IFERROR('Salary Calculations'!L65,"") ->  | P99: =IFERROR('Salary Calculations'!M65,"") ->  | Q99: =IFERROR('Salary Calculations'!N65,"") ->  | R99: =IFERROR('Salary Calculations'!O65,"") ->  | S99: =IFERROR('Salary Calculations'!P65,"") ->  | T99: =IFERROR('Salary Calculations'!Q65,"") ->  | U99: =IFERROR('Salary Calculations'!R65,"") -> 
D100: =IFERROR('Salary Calculations'!A66,"") ->  | E100: =IFERROR('Salary Calculations'!B66,"") ->  | F100: =IFERROR('Salary Calculations'!C66,"") ->  | G100: =IFERROR('Salary Calculations'!D66,"") ->  | H100: =IFERROR('Salary Calculations'!E66,"") ->  | I100: =IFERROR('Salary Calculations'!F66,"") ->  | J100: =IFERROR('Salary Calculations'!G66,"") ->  | K100: =IFERROR('Salary Calculations'!H66,"") ->  | L100: =IFERROR('Salary Calculations'!I66,"") ->  | M100: =IFERROR('Salary Calculations'!J66,"") ->  | N100: =IFERROR('Salary Calculations'!K66,"") ->  | O100: =IFERROR('Salary Calculations'!L66,"") ->  | P100: =IFERROR('Salary Calculations'!M66,"") ->  | Q100: =IFERROR('Salary Calculations'!N66,"") ->  | R100: =IFERROR('Salary Calculations'!O66,"") ->  | S100: =IFERROR('Salary Calculations'!P66,"") ->  | T100: =IFERROR('Salary Calculations'!Q66,"") ->  | U100: =IFERROR('Salary Calculations'!R66,"") -> 
D101: =IFERROR('Salary Calculations'!A67,"") ->  | E101: =IFERROR('Salary Calculations'!B67,"") ->  | F101: =IFERROR('Salary Calculations'!C67,"") ->  | G101: =IFERROR('Salary Calculations'!D67,"") ->  | H101: =IFERROR('Salary Calculations'!E67,"") ->  | I101: =IFERROR('Salary Calculations'!F67,"") ->  | J101: =IFERROR('Salary Calculations'!G67,"") ->  | K101: =IFERROR('Salary Calculations'!H67,"") ->  | L101: =IFERROR('Salary Calculations'!I67,"") ->  | M101: =IFERROR('Salary Calculations'!J67,"") ->  | N101: =IFERROR('Salary Calculations'!K67,"") ->  | O101: =IFERROR('Salary Calculations'!L67,"") ->  | P101: =IFERROR('Salary Calculations'!M67,"") ->  | Q101: =IFERROR('Salary Calculations'!N67,"") ->  | R101: =IFERROR('Salary Calculations'!O67,"") ->  | S101: =IFERROR('Salary Calculations'!P67,"") ->  | T101: =IFERROR('Salary Calculations'!Q67,"") ->  | U101: =IFERROR('Salary Calculations'!R67,"") -> 
D102: =IFERROR('Salary Calculations'!A68,"") ->  | E102: =IFERROR('Salary Calculations'!B68,"") ->  | F102: =IFERROR('Salary Calculations'!C68,"") ->  | G102: =IFERROR('Salary Calculations'!D68,"") ->  | H102: =IFERROR('Salary Calculations'!E68,"") ->  | I102: =IFERROR('Salary Calculations'!F68,"") ->  | J102: =IFERROR('Salary Calculations'!G68,"") ->  | K102: =IFERROR('Salary Calculations'!H68,"") ->  | L102: =IFERROR('Salary Calculations'!I68,"") ->  | M102: =IFERROR('Salary Calculations'!J68,"") ->  | N102: =IFERROR('Salary Calculations'!K68,"") ->  | O102: =IFERROR('Salary Calculations'!L68,"") ->  | P102: =IFERROR('Salary Calculations'!M68,"") ->  | Q102: =IFERROR('Salary Calculations'!N68,"") ->  | R102: =IFERROR('Salary Calculations'!O68,"") ->  | S102: =IFERROR('Salary Calculations'!P68,"") ->  | T102: =IFERROR('Salary Calculations'!Q68,"") ->  | U102: =IFERROR('Salary Calculations'!R68,"") -> 
D103: =IFERROR('Salary Calculations'!A69,"") ->  | E103: =IFERROR('Salary Calculations'!B69,"") ->  | F103: =IFERROR('Salary Calculations'!C69,"") ->  | G103: =IFERROR('Salary Calculations'!D69,"") ->  | H103: =IFERROR('Salary Calculations'!E69,"") ->  | I103: =IFERROR('Salary Calculations'!F69,"") ->  | J103: =IFERROR('Salary Calculations'!G69,"") ->  | K103: =IFERROR('Salary Calculations'!H69,"") ->  | L103: =IFERROR('Salary Calculations'!I69,"") ->  | M103: =IFERROR('Salary Calculations'!J69,"") ->  | N103: =IFERROR('Salary Calculations'!K69,"") ->  | O103: =IFERROR('Salary Calculations'!L69,"") ->  | P103: =IFERROR('Salary Calculations'!M69,"") ->  | Q103: =IFERROR('Salary Calculations'!N69,"") ->  | R103: =IFERROR('Salary Calculations'!O69,"") ->  | S103: =IFERROR('Salary Calculations'!P69,"") ->  | T103: =IFERROR('Salary Calculations'!Q69,"") ->  | U103: =IFERROR('Salary Calculations'!R69,"") -> 
D104: =IFERROR('Salary Calculations'!A70,"") ->  | E104: =IFERROR('Salary Calculations'!B70,"") ->  | F104: =IFERROR('Salary Calculations'!C70,"") ->  | G104: =IFERROR('Salary Calculations'!D70,"") ->  | H104: =IFERROR('Salary Calculations'!E70,"") ->  | I104: =IFERROR('Salary Calculations'!F70,"") ->  | J104: =IFERROR('Salary Calculations'!G70,"") ->  | K104: =IFERROR('Salary Calculations'!H70,"") ->  | L104: =IFERROR('Salary Calculations'!I70,"") ->  | M104: =IFERROR('Salary Calculations'!J70,"") ->  | N104: =IFERROR('Salary Calculations'!K70,"") ->  | O104: =IFERROR('Salary Calculations'!L70,"") ->  | P104: =IFERROR('Salary Calculations'!M70,"") ->  | Q104: =IFERROR('Salary Calculations'!N70,"") ->  | R104: =IFERROR('Salary Calculations'!O70,"") ->  | S104: =IFERROR('Salary Calculations'!P70,"") ->  | T104: =IFERROR('Salary Calculations'!Q70,"") ->  | U104: =IFERROR('Salary Calculations'!R70,"") -> 

Sheet Salary Calculations (hidden)
B1: Investments | G1: Income | K1: Deductions
A2: Age | B2: Savings | C2: Savings Requirement | D2: Investment Fees | E2: Return on Investments | F2: Net Investments | G2: Disability | H2: Salary | I2: Pension | J2: Total Income | K2: Federal Taxes | L2: Social Security | M2: Medicare | N2: State Taxes | O2: Local Taxes | P2: Total Deductions | Q2: Expenses | R2: Net Income
A3: ='Salary Worksheet'!B8 -> 30 | B3: ='Salary Worksheet'!B11 -> 200000 | C3: =IF(ISERROR(A3),NA(),'Salary Worksheet'!$B$22) -> 800000 | D3: ='Salary Worksheet'!$B$15*'Salary Calculations'!B3 -> 500 | E3: ='Salary Worksheet'!$B$16*'Salary Calculations'!B3 -> 14000 | F3: =B3-D3+E3 -> 213500 | G3: ='Salary Worksheet'!$B$28 -> 12000 | H3: ='Salary Worksheet'!$B$23 -> 80000 | I3: =IF('Salary Calculations'!A3<'Salary Worksheet'!$B$10,0,('Salary Worksheet'!$B$27*(1+'Salary Worksheet'!$B$32)^('Salary Calculations'!A3-'Salary Worksheet'!$B$10))) -> 0 | J3: =SUM(G3:I3) -> 92000 | K3: ='Salary Worksheet'!$B$12*SUM(H3:I3) -> 9600 | L3: =IF(H3>'Salary Worksheet'!$B$18,'Salary Worksheet'!$B$18*'Salary Worksheet'!$B$17,'Salary Worksheet'!$B$17*'Salary Calculations'!H3) -> 4960 | M3: ='Salary Worksheet'!$B$19*'Salary Calculations'!H3+IF('Salary Worksheet'!$B$21="Single",('Salary Calculations'!H3-200000)*'Salary Worksheet'!$B$20,IF('Salary Worksheet'!$B$21="Married-Joint",('Salary Calculations'!H3-250000)*'Salary Worksheet'!$B$20,IF('Salary Worksheet'!$B$21="Married-Separate",('Salary Calculations'!H3-125000)*'Salary Worksheet'!$B$20))) -> 1007 | N3: =IF('Salary Worksheet'!$B$29="Yes",'Salary Worksheet'!$B$13*SUM(H3:I3),'Salary Worksheet'!$B$13*'Salary Calculations'!H3) -> 4800 | O3: =IF('Salary Worksheet'!$B$29="Yes",'Salary Worksheet'!$B$14*SUM('Salary Calculations'!H3:I3),'Salary Worksheet'!$B$13*'Salary Calculations'!H3) -> 1600 | P3: =SUM(K3:O3) -> 21967 | Q3: ='Salary Worksheet'!$B$30 -> 50000 | R3: =J3-P3-Q3 -> 20033
A4: =IF(A3<'Salary Worksheet'!$B$9,A3+1,NA()) -> 31 | B4: =IF('Salary Worksheet'!$B$33="Yes",IF(ISERROR(A4),NA(),F3+R3),IF(ISERROR(A4),NA(),F3)) -> 233533 | C4: =IF(ISERROR(A4),NA(),'Salary Worksheet'!$B$22) -> 800000 | D4: ='Salary Worksheet'!$B$15*'Salary Calculations'!B4 -> 583.8325 | E4: ='Salary Worksheet'!$B$16*'Salary Calculations'!B4 -> 16347.31 | F4: =B4-D4+E4 -> 249296.4775 | G4: =IF(ISERROR(A4),NA(),G3*(1+'Salary Worksheet'!$B$32)) -> 12240 | H4: =IF(ISERROR(A4),NA(),H3*(1+'Salary Worksheet'!$B$32)) -> 81600 | I4: =IF('Salary Calculations'!A4<'Salary Worksheet'!$B$10,0,('Salary Worksheet'!$B$27*(1+'Salary Worksheet'!$B$32)^('Salary Calculations'!A4-'Salary Worksheet'!$B$10))) -> 0 | J4: =SUM(H4:I4) -> 81600 | K4: ='Salary Worksheet'!$B$12*'Salary Calculations'!J4 -> 9792 | L4: =IF(H4>'Salary Worksheet'!$B$18,'Salary Worksheet'!$B$18*'Salary Worksheet'!$B$17,'Salary Worksheet'!$B$17*'Salary Calculations'!H4) -> 5059.2 | M4: ='Salary Worksheet'!$B$19*'Salary Calculations'!H4+IF('Salary Worksheet'!$B$21="Single",('Salary Calculations'!H4-200000)*'Salary Worksheet'!$B$20,IF('Salary Worksheet'!$B$21="Married-Joint",('Salary Calculations'!H4-250000)*'Salary Worksheet'!$B$20,IF('Salary Worksheet'!$B$21="Married-Separate",('Salary Calculations'!H4-125000)*'Salary Worksheet'!$B$20))) -> 1031.64 | N4: =IF('Salary Worksheet'!$B$29="Yes",'Salary Worksheet'!$B$13*SUM(H4:I4),'Salary Worksheet'!$B$13*'Salary Calculations'!H4) -> 4896 | O4: =IF('Salary Worksheet'!$B$29="Yes",'Salary Worksheet'!$B$14*SUM('Salary Calculations'!H4:I4),'Salary Worksheet'!$B$13*'Salary Calculations'!H4) -> 1632 | P4: =SUM(K4:O4) -> 22410.84 | Q4: =IF(ISERROR(A4),NA(),Q3*(1+'Salary Worksheet'!$B$31)) -> 51500 | R4: =J4-P4-Q4 -> 7689.16
